Workbook

Sheet Introduction
B6: PROJECT EVALUATION TOOLKIT (PET)
B7: Version 2.0 | N7: Color Coding Scheme
B9: Authors: | C9: Dan Fagnant (Excel-based components) | H9: danfagnant@hotmail.com | N9: White | P9: LABELS and TOOLKIT ESTIMATES based on in-spreadsheet equations, parameters and user inputs
C10: Brice Nichols (Excel-based components) | H10: bricenichols@gmail.com
C11: Dr. Chi Xie (Travel demand model) | H11: chi.xie@mail.utexas.edu | N11: Green | P11: DEFAULT PARAMETER VALUES for system-wide conditions and assumptions
C12: Dr. Stevel Boyles (Travel demand model) | H12: sboyles@mail.utexas.edu
C13: Dr. Kara Kockelman (Project team leader) | H13: kkockelm@mail.utexas.edu | N13: Blue | P13: USER INPUTS Project specific values that should be entered by the analyst
C14: University of Texas at Austin | H14: www.utexas.edu
N15: Pink | P15: LINK LEVEL ESTIMATES generated by the Travel Demand Model component of the project toolkit
B16: Sponsor: | C16: Texas Department of Transportation | H16: www.dot.state.tx.us
N17: Yellow | P17: KEY RESULTS generated by the project toolkit
B18: Toolkit Overview:
C20: The Project Evaluation Toolkit is a sketch-planning tool for evaluating the impacts of potential transportation projects. Estimated impacts include: | N20: IMPORTANT NOTES:
O21: PET has automatic calculations turned off to speed toolkit operation and data manipulation. To update calculations click on Excel's "Formulas" Tab and press "Calculate Now".
D23: ● Traveler Welfare (changes in travel times and operating costs)
D24: ● Reliability (travel time variance) | O24: Cells that are not blue or green are typically protected. To unprotect a sheet, click the "Review" tab then the "Unprotect Sheet" button using the password "PET".
D25: ● Crashes (by severity)
D26: ● Emissions (14 different species)
D27: ● Tolling Revenues
C29: Values are reported for each scenario, both in the initial and design year. Impacts are evaluated over time, producing economic evaluations assessments including NPV, B/C Ratio, IRR and Payback period.
C33: The toolkit operates by taking current traffic volumes (AADTs) on an existing node-link network, then estimating how travel patterns will change in alternative scenarios and in future years by using an integrated travel demand model.
C38: The Project Evaluation Toolkit has the ability to evaluate numerous project types, including:
D41: ● Capacity expansion and functional classification upgrades (i.e. freeway conversion)
D42: ● Roadway pricing (by time of day and by mode, if desired)
D43: ● Reversible lanes (or links with variable capacity by time of day)
D44: ● Traffic safety projects
D45: ● Ramp metering
D46: ● Speed limit changes
D47: ● Speed harmonization
D48: ● Shoulder lane use
D49: ● Incident management
D50: ● Advance traveler information systems
C52: For full details regarding toolkit inputs, outputs or operation, please refer to the user guidebook.

Sheet Navigation
B1: Project Evaluation Toolkit - Navigation Panel
C3: Click on any navigation button to go to the corresponding toolkit tab.
R4: Individual Scenario | W4: Individual Scenario | AB4: Individual Scenario | AG4: Individual Scenario | AL4: Emissions Tables, Fleet Info
C5: General Project Information | H5: Key Project Inputs | M5: Project Impact Summaries | R5: Volume Outputs | W5: Link Crashes | AB5: Intersection Crashes | AG5: Emissions Estimates | AL5: And Fuel Economy
H6: General Information
F7: ? | P7: ? | U7: ? | Z7: ? | AE7: ? | AJ7: ? | AO7: ?
K8: ?
F10: ? | P10: ? | U10: ? | Z10: ? | AE10: ? | AJ10: ? | AO10: ?
K11: ?
F13: ? | P13: ? | U13: ? | Z13: ? | AE13: ? | AJ13: ? | AO13: ?
K14: ?
F16: ? | P16: ? | U16: ? | Z16: ? | AE16: ? | AJ16: ? | AO16: ?
K17: ?
F19: ? | P19: ? | U19: ? | Z19: ? | AE19: ? | AJ19: ? | AO19: ?
I20: Network Information
F22: ? | K22: ? | P22: ? | U22: ? | Z22: ? | AE22: ? | AJ22: ? | AO22: ?
F25: ? | K25: ? | P25: ? | U25: ? | Z25: ? | AE25: ? | AJ25: ? | AO25: ?
K28: ? | P28: ? | U28: ? | Z28: ? | AE28: ? | AJ28: ?
K31: ? | P31: ?
... 16 more rows

Sheet Project Evaluation Toolkit Home
B1: Project Evaluation Toolkit - HOME
E3: Project Name: | F3: ='Summary Input Information'!C5 -> Austin Network - No Project
E4: Analyst: | F4: ='Summary Input Information'!C6 -> D. Fagnant
E5: Date: | F5: ='Summary Input Information'!C7 -> 2012-05-29
H8: Summary Input Information | M8: TOD Splits | R8: Hwy Link Configuration - General | W8: Intersections - General
H9: =IF(NumScenarios="","ERROR",NumScenarios) -> 1 | I9: Number of Scenarios | M9: =IF(OR(NumTOD<1,NumTOD>5,NumTOD=""),"ERROR",NumTOD) -> 5 | N9: # TOD Periods | R9: =NumLinksBase -> 194 | S9: Base # of Links | W9: =MAX('Base Art Ints'!A12:A211)-1 -> 0 | X9: Base # Intersections
H10: =IF(InitialYear="","ERROR",InitialYear) -> 2015 | I10: Initial Year | M10: =IF('TOD Splits'!C11<>"",6,IF('TOD Splits'!C10<>"",5,IF('TOD Splits'!C9<>"",4,IF('TOD Splits'!C8<>"",3,IF('TOD Splits'!C7<>"",2,IF('TOD Splits'!C6<>"",1,"ERROR")))))) -> 6 | N10: # TOD Ref. Stations | R10: =NumLinks1 -> 0 | S10: Alt 1 # of Links | W10: =MAX('Alt 1 Art Ints'!A12:A211)-1 -> 0 | X10: Alt 1 # Intersections
H11: =IF(ProjLife="","ERROR",IF(ProjLife>50,"ERROR",IF(ProjLife<1,"ERROR",ProjLife))) -> 20 | I11: Design Life (Years) | K11: =IF(ProjLife>50,"Cannot exceed 50 Yrs",IF(ProjLife<1,"Must be >= 1 Yr","")) ->  | M11: =IF(PRODUCT('TOD Splits'!K20:OFFSET('TOD Splits'!K20,M9-1,0))>0,"OK","ERROR") -> OK | N11: Non-zero TOD Period | R11: =IF(H9>1,NumLinks2,"N/A") -> N/A | S11: Alt 2 # of Links | W11: =IF(H9<2,"N/A",MAX('Alt 2 Art Ints'!A12:A211)-1) -> N/A | X11: Alt 2 # Intersections
C12: Initial Year (IY), Design Year (DY), or Both (All) | H12: =IF(TraffGrowthRate="","ERROR",TraffGrowthRate) -> 0.01028783241 | I12: Annual Growth Rate | M12: =IF(PRODUCT('TOD Splits'!D6:OFFSET('TOD Splits'!D6,M10-1,M9-1))>0,"OK","ERROR") -> OK | N12: Non-zero split in TOD reference | R12: =IF(H9>2,NumLinks3,"N/A") -> N/A | S12: Alt 3 # of Links | W12: =IF(H9<3,"N/A",MAX('Alt 3 Art Ints'!A12:A211)-1) -> N/A | X12: Alt 3 # Intersections
C13: All | R13: =NumNodesBase -> 62 | S13: Base # of Nodes
R14: =IF(AND(R13=NumNodes1,IF(H9>1,R13=NumNodes2,TRUE),IF(H9>2,R13=NumNodes3,TRUE)),"OK","ERROR") -> ERROR | S14: All Alt Scenarios have same # of Nodes as Base
C15: Alternative Scenario (#), Base Case (Base), or All (All)
C16: All
H17: Hwy Link Configuration - Base Case Scenario | M17: Hwy Link Configuration - Alt Scenario 1 | R17: Hwy Link Configuration - Alt Scenario 2 | W17: Hwy Link Configuration - Alt Scenario 3
H18: =IF(COUNT('Base Hwy Link Config'!$B12:OFFSET('Base Hwy Link Config'!$B12,$R9-1,0))=$R9,"OK","ERROR") -> OK | I18: From Link Entered on All Links | M18: =IF(COUNT('Alt 1 Hwy Link Config'!$B12:OFFSET('Alt 1 Hwy Link Config'!$B12,$R10-1,0))=$R10,"OK","ERROR") -> OK | N18: From Link Entered on All Links | R18: =IF(H9<2,"N/A",IF(COUNT('Alt 2 Hwy Link Config'!$B12:OFFSET('Alt 2 Hwy Link Config'!$B12,$R11-1,0))=$R11,"OK","ERROR")) -> N/A | S18: From Link Entered on All Links | W18: =IF(H9<3,"N/A",IF(COUNT('Alt 3 Hwy Link Config'!$B12:OFFSET('Alt 3 Hwy Link Config'!$B12,$R12-1,0))=$R12,"OK","ERROR")) -> N/A | X18: From Link Entered on All Links
H19: =IF(COUNT('Base Hwy Link Config'!$C12:OFFSET('Base Hwy Link Config'!$C12,$R9-1,0))=$R9,"OK","ERROR") -> OK | I19: To Link Entered on All Links | M19: =IF(COUNT('Alt 1 Hwy Link Config'!$C12:OFFSET('Alt 1 Hwy Link Config'!$C12,$R10-1,0))=$R10,"OK","ERROR") -> OK | N19: To Link Entered on All Links | R19: =IF(H9<2,"N/A",IF(COUNT('Alt 2 Hwy Link Config'!$C12:OFFSET('Alt 2 Hwy Link Config'!$C12,$R11-1,0))=$R11,"OK","ERROR")) -> N/A | S19: To Link Entered on All Links | W19: =IF(H9<3,"N/A",IF(COUNT('Alt 3 Hwy Link Config'!$C12:OFFSET('Alt 3 Hwy Link Config'!$C12,$R12-1,0))=$R12,"OK","ERROR")) -> N/A | X19: To Link Entered on All Links
H20: =IF(COUNT('Base Hwy Link Config'!$E12:OFFSET('Base Hwy Link Config'!$E12,$R9-1,0))=$R9,"OK","ERROR") -> OK | I20: Link Lengths Entered on All Links | M20: =IF(COUNT('Alt 1 Hwy Link Config'!$E12:OFFSET('Alt 1 Hwy Link Config'!$E12,$R10-1,0))=$R10,"OK","ERROR") -> OK | N20: Link Lengths Entered on All Links | R20: =IF(H9<2,"N/A",IF(COUNT('Alt 2 Hwy Link Config'!$E12:OFFSET('Alt 2 Hwy Link Config'!$E12,$R11-1,0))=$R11,"OK","ERROR")) -> N/A | S20: Link Lengths Entered on All Links | W20: =IF(H9<3,"N/A",IF(COUNT('Alt 3 Hwy Link Config'!$E12:OFFSET('Alt 3 Hwy Link Config'!$E12,$R12-1,0))=$R12,"OK","ERROR")) -> N/A | X20: Link Lengths Entered on All Links
H21: =IF(COUNT('Base Hwy Link Config'!$F12:OFFSET('Base Hwy Link Config'!$F12,$R9-1,0))=$R9,"OK","ERROR") -> OK | I21: Road Class Entered on All Links | M21: =IF(COUNT('Alt 1 Hwy Link Config'!$F12:OFFSET('Alt 1 Hwy Link Config'!$F12,$R10-1,0))=$R10,"OK","ERROR") -> OK | N21: Road Class Entered on All Links | R21: =IF(H9<2,"N/A",IF(COUNT('Alt 2 Hwy Link Config'!$F12:OFFSET('Alt 2 Hwy Link Config'!$F12,$R11-1,0))=$R11,"OK","ERROR")) -> N/A | S21: Road Class Entered on All Links | W21: =IF(H9<3,"N/A",IF(COUNT('Alt 3 Hwy Link Config'!$F12:OFFSET('Alt 3 Hwy Link Config'!$F12,$R12-1,0))=$R12,"OK","ERROR")) -> N/A | X21: Road Class Entered on All Links
H22: =IF(COUNT('Base Hwy Link Config'!$G12:OFFSET('Base Hwy Link Config'!$G12,$R9-1,0))=$R9,"OK","ERROR") -> OK | I22: Area Type Entered on All Links | M22: =IF(COUNT('Alt 1 Hwy Link Config'!$G12:OFFSET('Alt 1 Hwy Link Config'!$G12,$R10-1,0))=$R10,"OK","ERROR") -> OK | N22: Area Type Entered on All Links | R22: =IF(H9<2,"N/A",IF(COUNT('Alt 2 Hwy Link Config'!$G12:OFFSET('Alt 2 Hwy Link Config'!$G12,$R11-1,0))=$R11,"OK","ERROR")) -> N/A | S22: Area Type Entered on All Links | W22: =IF(H9<3,"N/A",IF(COUNT('Alt 3 Hwy Link Config'!$G12:OFFSET('Alt 3 Hwy Link Config'!$G12,$R12-1,0))=$R12,"OK","ERROR")) -> N/A | X22: Area Type Entered on All Links
H23: =IF(COUNT('Base Hwy Link Config'!$K12:OFFSET('Base Hwy Link Config'!$K12,$R9-1,0))=$R9,"OK","ERROR") -> OK | I23: # Lanes Entered on All Links | M23: =IF(COUNT('Alt 1 Hwy Link Config'!$K12:OFFSET('Alt 1 Hwy Link Config'!$K12,$R10-1,0))=$R10,"OK","ERROR") -> OK | N23: # Lanes Entered on All Links | R23: =IF(H9<2,"N/A",IF(COUNT('Alt 2 Hwy Link Config'!$K12:OFFSET('Alt 2 Hwy Link Config'!$K12,$R11-1,0))=$R11,"OK","ERROR")) -> N/A | S23: # Lanes Entered on All Links | W23: =IF(H9<3,"N/A",IF(COUNT('Alt 3 Hwy Link Config'!$K12:OFFSET('Alt 3 Hwy Link Config'!$K12,$R12-1,0))=$R12,"OK","ERROR")) -> N/A | X23: # Lanes Entered on All Links
H24: =IF(COUNT('Base Hwy Link Config'!$M12:OFFSET('Base Hwy Link Config'!$M12,$R9-1,0))=$R9,"OK","ERROR") -> OK | I24: Traffic Volume Entered on All Links | M24: =IF(COUNT('Alt 1 Hwy Link Config'!$T12:OFFSET('Alt 1 Hwy Link Config'!$T12,$R10-1,0))=$R10,"OK","ERROR") -> OK | N24: Capacity Entered on All Links | R24: =IF(H9<2,"N/A",IF(COUNT('Alt 2 Hwy Link Config'!$T12:OFFSET('Alt 2 Hwy Link Config'!$T12,$R11-1,0))=$R11,"OK","ERROR")) -> N/A | S24: Capacity Entered on All Links | W24: =IF(H9<3,"N/A",IF(COUNT('Alt 3 Hwy Link Config'!$T12:OFFSET('Alt 3 Hwy Link Config'!$T12,$R12-1,0))=$R12,"OK","ERROR")) -> N/A | X24: Capacity Entered on All Links
H25: =IF(COUNT('Base Hwy Link Config'!$U12:OFFSET('Base Hwy Link Config'!$U12,$R9-1,0))=$R9,"OK","ERROR") -> OK | I25: Capacity Entered on All Links
H26: =IF(COUNT('Base Hwy Link Config'!$AC12:OFFSET('Base Hwy Link Config'!$AC12,$R9-1,0))=$R9,"OK","ERROR") -> OK | I26: TOD Reference Entered on All Links
C28: Perform All Tasks Without Stopping (Y/N)
C29: N | H29: Intersection Configuration - Base Case Scenario | M29: Intersection Configuration - Alt Scenario 1 | R29: Intersection Configuration - Alt Scenario 2 | W29: Intersection Configuration - Alt Scenario 3
C30: (Note: Case Sensitive) | H30: =IF(COUNT('Base Art Ints'!$C12:OFFSET('Base Art Ints'!$C12,$W9-1,0))=$W9,"OK","ERROR") -> OK | I30: Area Type Entered for All Intersections | M30: =IF(COUNT('Alt 1 Art Ints'!$C12:OFFSET('Alt 1 Art Ints'!$C12,$W10-1,0))=$W10,"OK","ERROR") -> OK | N30: Area Type Entered for All Intersections | R30: =IF($H9<2,"N/A",IF(COUNT('Alt 2 Art Ints'!$C12:OFFSET('Alt 2 Art Ints'!$C12,$W11-1,0))=$W11,"OK","ERROR")) -> N/A | S30: Area Type Entered for All Intersections | W30: =IF($H9<3,"N/A",IF(COUNT('Alt 3 Art Ints'!$C12:OFFSET('Alt 3 Art Ints'!$C12,$W12-1,0))=$W12,"OK","ERROR")) -> N/A | X30: Area Type Entered for All Intersections
H31: =IF(COUNT('Base Art Ints'!$D12:OFFSET('Base Art Ints'!$D12,$W9-1,0))=$W9,"OK","ERROR") -> OK | I31: Control Entered for All Intersections | M31: =IF(COUNT('Alt 1 Art Ints'!$D12:OFFSET('Alt 1 Art Ints'!$D12,$W10-1,0))=$W10,"OK","ERROR") -> OK | N31: Control Entered for All Intersections | R31: =IF($H9<2,"N/A",IF(COUNT('Alt 2 Art Ints'!$D12:OFFSET('Alt 2 Art Ints'!$D12,$W11-1,0))=$W11,"OK","ERROR")) -> N/A | S31: Control Entered for All Intersections | W31: =IF($H9<3,"N/A",IF(COUNT('Alt 3 Art Ints'!$D12:OFFSET('Alt 3 Art Ints'!$D12,$W12-1,0))=$W12,"OK","ERROR")) -> N/A | X31: Control Entered for All Intersections
C32: Status | H32: =IF(COUNT('Base Art Ints'!$F12:OFFSET('Base Art Ints'!$I12,$W9-1,0))=$W9,"OK","ERROR") -> OK | I32: Major Link # or Vol Entered for Intersects | M32: =IF(COUNT('Alt 1 Art Ints'!$F12:OFFSET('Alt 1 Art Ints'!$G12,$W10-1,0))=$W10,"OK","ERROR") -> OK | N32: Major Link # or Vol Entered for Intersects | R32: =IF($H9<2,"N/A",IF(COUNT('Alt 2 Art Ints'!$F12:OFFSET('Alt 2 Art Ints'!$G12,$W11-1,0))=$W11,"OK","ERROR")) -> N/A | S32: Major Link # or Vol Entered for Intersects | W32: =IF($H9<3,"N/A",IF(COUNT('Alt 3 Art Ints'!$F12:OFFSET('Alt 3 Art Ints'!$G12,$W12-1,0))=$W12,"OK","ERROR")) -> N/A | X32: Major Link # or Vol Entered for Intersects
C33: Completed Loading Traffic Volumes. | H33: =IF(COUNT('Base Art Ints'!$N12:OFFSET('Base Art Ints'!$Q12,$W9-1,0))=$W9,"OK","ERROR") -> OK | I33: Minor Link # or Vol Entered for Intersects | M33: =IF(COUNT('Alt 1 Art Ints'!$J12:OFFSET('Alt 1 Art Ints'!$K12,$W10-1,0))=$W10,"OK","ERROR") -> OK | N33: Minor Link # or Vol Entered for Intersects | R33: =IF($H9<2,"N/A",IF(COUNT('Alt 2 Art Ints'!$J12:OFFSET('Alt 2 Art Ints'!$K12,$W11-1,0))=$W11,"OK","ERROR")) -> N/A | S33: Minor Link # or Vol Entered for Intersects | W33: =IF($H9<3,"N/A",IF(COUNT('Alt 3 Art Ints'!$J12:OFFSET('Alt 3 Art Ints'!$K12,$W12-1,0))=$W12,"OK","ERROR")) -> N/A | X33: Minor Link # or Vol Entered for Intersects
C35: Sensitivity Testing | H35: Engineer's Estimate - Base Case Scenario | M35: Engineer's Estimate - Alt Scenario 1 | R35: Engineer's Estimate - Alt Scenario 2 | W35: Engineer's Estimate - Alt Scenario 3
H36: 0 | I36: Initial Costs ($M) | M36: =InitCostAlt1/1000000 -> 0 | N36: Initial Costs ($M) | R36: =IF(H9<2,"N/A",InitCostAlt2/1000000) -> N/A | S36: Initial Costs ($M) | W36: =IF(H9<3,"N/A",InitCostAlt3/1000000) -> N/A | X36: Initial Costs ($M)
H37: 0 | I37: Add Annual Maint. ($k) | M37: =MandOCostS1/1000 -> 0 | N37: Add Annual Maint. ($k) | R37: =IF(H9<2,"N/A",MandOCostS2/1000) -> N/A | S37: Add Annual Maint. ($k) | W37: =IF(H9<3,"N/A",MandOCostS3/1000) -> N/A | X37: Add Annual Maint. ($k)
H38: =SalvValBase/1000000 -> 0 | I38: Salvage Value ($M) | M38: =SalvValS1/1000000 -> 0 | N38: Salvage Value ($M) | R38: =IF(H9<2,"N/A",SalvValS2/1000000) -> N/A | S38: Salvage Value ($M) | W38: =IF(H9<3,"N/A",SalvValS3/1000000) -> N/A | X38: Salvage Value ($M)
H39: =IF(AddProjYrBase="","N/A",AddProjYrBase) -> N/A | I39: Maint & Rehab Project Year | M39: =IF(AddProjYrAlt1="","N/A",AddProjYrAlt1) -> N/A | N39: Maint & Rehab Project Year | R39: =IF(H9<2,"N/A",IF(AddProjYrAlt2="","N/A",AddProjYrAlt2)) -> N/A | S39: Maint & Rehab Project Year | W39: =IF(H9<3,"N/A",IF(AddProjYrAlt3="","N/A",AddProjYrAlt3)) -> N/A | X39: Maint & Rehab Project Year
H40: =AddProjCostBase/1000000 -> 0 | I40: Maint & Rehab Project Cost ($M) | M40: =AddProjCostAlt1/1000000 -> 0 | N40: Maint & Rehab Project Cost ($M) | R40: =IF(H9<2,"N/A",AddProjCostAlt2/1000000) -> N/A | S40: Maint & Rehab Project Cost ($M) | W40: =IF(H9<3,"N/A",AddProjCostAlt3/1000000) -> N/A | X40: Maint & Rehab Project Cost ($M)
D43: Required Network Information
D44: Optional Network Information
D45: Tolling Information
D46: Time of Day Information
D47: Parameter Information
D48: Travel Growth Rates
D50: upload_toolkit_file.xlsx
D56: Network | E56: Tolls | F56: Volume IY | G56: Vol DY | H56: O-D
C57: Base Network | D57: 0 | E57: 0 | F57: 0 | G57: 0
C58: Alt 1 | D58: 0 | E58: 0 | F58: 0 | G58: 0 | H58: 1
C59: Alt 2 | D59: 0 | E59: 0 | F59: 0 | G59: 0 | H59: 0
C60: Alt 3 | D60: 0 | E60: 0 | F60: 0 | G60: 0 | H60: 0

Sheet Output Summary
C1: Project Evaluation Toolkit - Output Summary
E3: First Year of Constr. | F3: =ConstrYr -> 2015
E4: First Year of Operation | F4: =InitialYear -> 2015 | I4: Initial Year | J4: =InitialYear -> 2015
B5: Project Name | C5: =ProjectName -> Austin Network - No Project | E5: Design Year | F5: =F4+F7 -> 2035 | I5: Design Year | J5: =J4+J7 -> 2035
B6: Date | C6: =AnalysisDate -> 2012-05-29 | E6: Discount Rate | F6: =DiscRate -> 0.07 | I6: Discount Rate | J6: =DiscRate -> 0.07
B7: Analyst | C7: =AnalystName -> D. Fagnant | E7: Project Design Life | F7: =ProjLife -> 20 | I7: Project Design Life | J7: =ProjLife -> 20
D9: Scenarios | H9: Operational Strategy Scenarios
D10: No Build | E10: =S1Name -> 0 | F10: =S2Name -> 0 | G10: =S3Name -> 0 | H10: ATIS | I10: Incident Management | J10: Speed Harmonization
B11: Initial | C11: Right of Way | D11: =ROWCostNB -> 0 | E11: =ROWCostS1 -> 0 | F11: =ROWCostS2 -> 0 | G11: =ROWCostS3 -> 0 | H11: =ROWCostATIS -> 0 | I11: =ROWCostIM -> 0 | J11: =ROWCostSH -> 0
B12: Project Costs | C12: Design | D12: =DesCostNB -> 0 | E12: =DesCostS1 -> 0 | F12: =DesCostS2 -> 0 | G12: =DesCostS3 -> 0 | H12: =DesCostATIS -> 0 | I12: =DesCostIM -> 0 | J12: =DesCostSH -> 0
C13: Construction | D13: =ConstCostNB -> 0 | E13: =ConstCostS1 -> 0 | F13: =ConstCostS2 -> 0 | G13: =ConstCostS3 -> 0 | H13: =ConstCostATIS -> 0 | I13: =ConstCostIM -> 0 | J13: =ConstCostSH -> 0
C14: Other | D14: =IndCostsNB+ContingNB+ConstEngNB -> 0 | E14: =IndCostsS1+ContingS1+ConstEngS1 -> 0 | F14: =IndCostsS2+ContingS2+ConstEngS2 -> 0 | G14: =IndCostsS3+ContingS3+ConstEngS3 -> 0 | H14: =IndCostsATIS+ContingATIS+ConstEngATIS -> 0 | I14: =IndCostsIM+ContingIM+ConstEngIM -> 0 | J14: =IndCostsSH+ContingSH+ConstEngSH -> 0
B15: Total Initial Costs | D15: =SUM(D11:D14) -> 0 | E15: =SUM(E11:E14) -> 0 | F15: =SUM(F11:F14) -> 0 | G15: =SUM(G11:G14) -> 0 | H15: =SUM(H11:H14) -> 0 | I15: 0 | J15: 0
D17: No Build | E17: =S1Name -> 0 | F17: =S2Name -> 0 | G17: =S3Name -> 0 | H17: ATIS | I17: Incident Management | J17: Speed Harmonization
B18: Total Initial Year Costs | D18: =D15 -> 0 | E18: =E15 -> 0 | F18: =F15 -> 0 | G18: =G15 -> 0 | H18: =H15 -> 0 | I18: 0 | J18: 0
B19: Change in Annual Maint. & Operations Costs | D19: 0 | E19: =MandOCostS1 -> 0 | F19: =MandOCostS2 -> 0 | G19: =MandOCostS3 -> 0 | H19: =MandOCostATIS -> 0 | I19: =MandOCostIM -> 0 | J19: =MandOCostSH -> 0
B20: Annualized End of Life Salvage Value | D20: =SalvValBase -> 0 | E20: =SalvValS1 -> 0 | F20: =SalvValS2 -> 0 | G20: =SalvValS3 -> 0 | H20: =SalvValATIS -> 0 | I20: =SalvValIM -> 0 | J20: =SalvValSH -> 0
B21: Interim Project Cost | D21: =AddProjCostBase -> 0 | E21: =AddProjCostAlt1 -> 0 | F21: =AddProjCostAlt2 -> 0 | G21: =AddProjCostAlt3 -> 0 | H21: =AddProjCostATIS -> 0 | I21: =AddProjCostIM -> 0 | J21: =AddProjCostSH -> 0
B22: Interim Project Year | D22: =AddProjYrBase -> 0 | E22: =AddProjYrAlt1 -> 0 | F22: =AddProjYrAlt2 -> 0 | G22: =AddProjYrAlt3 -> 0 | H22: =AddProjYrATIS -> 0 | I22: =AddProjYrIM -> 0 | J22: =AddProjYrSH -> 0
D24: No Build | E24: =S1Name -> 0 | F24: =S2Name -> 0 | G24: =S3Name -> 0 | H24: ATIS | I24: Incident Management | J24: Speed Harmonization | L24: Note: Traveler welfare assesses direct tolling costs to travelers in the form of higher generalized costs. These tolling revenues, however, are added back into the benefits portion of B/C ratios, effectively simulating a benefit-neutral tolling revenue transfer payment. For more information, please see the PET guidebook.
B25: Initial Year Monetary Benefits | D25: 0 | E25: ='Yearly Costs'!R7 -> 0 | F25: ='Yearly Costs'!S7 -> 0 | G25: ='Yearly Costs'!T7 -> 0 | H25: =ATISIYBen -> 0 | I25: =IMIYBen -> 0 | J25: =SHIYBen -> 0
B26: Traveler Welfare | D26: 0 | E26: =TWInitYrAlt1 -> 0 | F26: =TWInitYrAlt2 -> 0 | G26: =TWInitYrAlt3 -> 0 | H26: =ATISIYBen -> 0 | I26: =IMIYBen -> 0 | J26: 0
B27: Tolling Revenues | D27: 0 | E27: =F47*1000 -> 0 | F27: =H47*1000 -> 0 | G27: =J47*1000 -> 0 | H27: 0 | I27: 0 | J27: 0
B28: Reliability | D28: 0 | E28: =RelCostInitYrBase-RelCostInitYrAlt1 -> 0 | F28: =RelCostInitYrBase-RelCostInitYrAlt2 -> 0 | G28: =RelCostInitYrBase-RelCostInitYrAlt3 -> 0 | H28: 0 | I28: 0 | J28: =SHIYBen -> 0
B29: Crashes | D29: 0 | E29: =CrashCostInitYrBase-CrashCostInitYrAlt1 -> 0 | F29: =CrashCostInitYrBase-CrashCostInitYrAlt2 -> 0 | G29: =CrashCostInitYrBase-CrashCostInitYrAlt3 -> 0 | H29: 0 | I29: 0 | J29: 0
D31: No Build | E31: =S1Name -> 0 | F31: =S2Name -> 0 | G31: =S3Name -> 0 | H31: ATIS | I31: Incident Management | J31: Speed Harmonization
... 5 more rows

Sheet Summary Charts
F1: Project Evaluation Toolkit - Summary Charts
D5: Traveler Welfare | N5: Travel Time Reliability
H27: Initial Year | I27: Design Year | S27: Initial Year | T27: Design Year | AA27: Initial Year | AB27: Design Year
E28: =S1Name -> 0 | H28: =TWInitYrAlt1/1000000 -> 0 | I28: =TWDesYrAlt1/1000000 -> 0 | J28: (Millions) | P28: =S1Name -> 0 | S28: =(RelCostInitYrBase-RelCostInitYrAlt1)/1000000 -> 0 | T28: =(RelCostDesYrBase-RelCostDesYrAlt1)/1000000 -> 0 | U28: (Millions) | X28: Base Case (No build) | AA28: =RelCostInitYrBase/1000000 -> 0 | AB28: =RelCostDesYrBase/1000000 -> 0 | AC28: (Millions)
E29: =S2Name -> 0 | H29: =TWInitYrAlt2/1000000 -> 0 | I29: =TWDesYrAlt2/1000000 -> 0 | J29: (Millions) | P29: =S2Name -> 0 | S29: =(RelCostInitYrBase-RelCostInitYrAlt2)/1000000 -> 0 | T29: =(RelCostDesYrBase-RelCostDesYrAlt2)/1000000 -> 0 | U29: (Millions) | X29: =S1Name -> 0 | AA29: =RelCostInitYrAlt1/1000000 -> 0 | AB29: =RelCostDesYrAlt1/1000000 -> 0 | AC29: (Millions)
E30: =S3Name -> 0 | H30: =TWInitYrAlt3/1000000 -> 0 | I30: =TWDesYrAlt3/1000000 -> 0 | J30: (Millions) | P30: =S3Name -> 0 | S30: =(RelCostInitYrBase-RelCostInitYrAlt3)/1000000 -> 0 | T30: =(RelCostDesYrBase-RelCostDesYrAlt3)/1000000 -> 0 | U30: (Millions) | X30: =S2Name -> 0 | AA30: =RelCostInitYrAlt2/1000000 -> 0 | AB30: =RelCostDesYrAlt2/1000000 -> 0 | AC30: (Millions)
X31: =S3Name -> 0 | AA31: =RelCostInitYrAlt3/1000000 -> 0 | AB31: =RelCostDesYrAlt3/1000000 -> 0 | AC31: (Millions)
... 16 more rows

Sheet Sensitivity Testing
D1: Project Evaluation Toolkit - Sensitivity Testing Results
S2: * The sensitivity analysis will record a 0% internal rate of return for any individual trial that results in a negative IRR. Result may be skewed if many or highly negative IRRs are found during the trial runs.
C5: Summary Project Indicators | D5: Net Present Value ($M) | G5: Benefit/Cost Ratio | J5: Internal Rate of Return * | M5: Payback Period **
D6: Average | E6: +1 S.D. | F6: -1 S.D. | G6: Average | H6: +1 S.D. | I6: -1 S.D. | J6: Average | K6: +1 S.D. | L6: -1 S.D. | M6: Average | N6: +1 S.D. | O6: -1 S.D. | Q6: Iteration #
C7: Base Case (No Build) | D7: =AVERAGE($L70:$L169)/1000000 ->  | E7: =D7+$L$64 ->  | F7: =D7-$L$64 ->  | G7: =AVERAGE(M70:M169) ->  | H7: =G7+$M$64 ->  | I7: =G7-$M$64 ->  | J7: =AVERAGE(N70:N169) ->  | K7: =J7+$N$64 ->  | L7: =J7-$N$64 ->  | M7: =AVERAGE(O70:O169) ->  | N7: =M7+$O$64 ->  | O7: =M7-$O$64 ->  | Q7: 50 | S7: ** The sensitivity analysis will record a payback period value of the design life + 1 year for any individual trial where the payback period exceeds the design life. Result may be skewed if many payback periods exceed the design life (or a few greatly exceed the design life).
C8: =S1Name -> 0 | D8: =AVERAGE($L170:$L269)/1000000 ->  | E8: =D8+$L$65/1000000 ->  | F8: =D8-$L$65/1000000 ->  | G8: =AVERAGE(M170:M269) ->  | H8: =G8+$M$65 ->  | I8: =G8-$M$65 ->  | J8: =AVERAGE(N170:N269) ->  | K8: =J8+$N$65 ->  | L8: =J8-$N$65 ->  | M8: =AVERAGE(O170:O269) ->  | N8: =M8+$O$65 ->  | O8: =M8-$O$65 -> 
C9: =S2Name -> 0 | D9: =AVERAGE($L270:$L369)/1000000 ->  | E9: =D9+$L$66/1000000 ->  | F9: =D9-$L$66/1000000 ->  | G9: =AVERAGE(M270:M369) ->  | H9: =G9+$M$66 ->  | I9: =G9-$M$66 ->  | J9: =AVERAGE(N270:N369) ->  | K9: =J9+$N$66 ->  | L9: =J9-$N$66 ->  | M9: =AVERAGE(O270:O369) ->  | N9: =M9+$O$66 ->  | O9: =M9-$O$66 -> 
C10: =S3Name -> 0 | D10: =AVERAGE($L370:$L469)/1000000 ->  | E10: =D10+$L$67/1000000 ->  | F10: =D10-$L$67/1000000 ->  | G10: =AVERAGE(M370:M469) ->  | H10: =G10+$M$67 ->  | I10: =G10-$M$67 ->  | J10: =AVERAGE(N370:N469) ->  | K10: =J10+$N$67 ->  | L10: =J10-$N$67 ->  | M10: =AVERAGE(O370:O469) ->  | N10: =M10+$O$67 ->  | O10: =M10-$O$67 -> 
C12: Initial Year Monetary Benefits | D12: Traveler Welfare ($k) | G12: Total Reliability Costs ($k) | J12: Total Crash Costs ($k) | M12: Other Costs | Q12: Initial Year Tolling Revenues ($k)
D13: Average | E13: +1 S.D. | F13: -1 S.D. | G13: Average | H13: +1 S.D. | I13: -1 S.D. | J13: Average | K13: +1 S.D. | L13: -1 S.D. | M13: Average | N13: +1 S.D. | O13: -1 S.D. | Q13: Average | R13: +1 S.D. | S13: -1 S.D.
C14: Base Case (No Build) | D14: =AVERAGE(P70:P169)/1000 ->  | E14: =D14+$P$64/1000 ->  | F14: =D14-$P$64/1000 ->  | G14: =AVERAGE(Q70:Q169)/1000 ->  | H14: =G14+$Q$64/1000 ->  | I14: =G14-$Q$64/1000 ->  | J14: =AVERAGE(R70:R169)/1000 ->  | K14: =J14+$R$64/1000 ->  | L14: =J14-$R$64/1000 ->  | M14: =AVERAGE(S70:S169) ->  | N14: =M14+$S$64 ->  | O14: =M14-$S$64 ->  | Q14: =AVERAGE(T70:T169)/1000 ->  | R14: =Q14+$T$64/1000 ->  | S14: =Q14-$T$64/1000 -> 
C15: =S1Name -> 0 | D15: =AVERAGE(P170:P269)/1000 ->  | E15: =D15+$P$65/1000 ->  | F15: =D15-$P$65/1000 ->  | G15: =AVERAGE(Q170:Q269)/1000 ->  | H15: =G15+$Q$65/1000 ->  | I15: =G15-$Q$65/1000 ->  | J15: =AVERAGE(R170:R269)/1000 ->  | K15: =J15+$R$65/1000 ->  | L15: =J15-$R$65/1000 ->  | M15: =AVERAGE(S170:S269) ->  | N15: =M15+$S$65 ->  | O15: =M15-$S$65 ->  | Q15: =AVERAGE(T170:T269)/1000 ->  | R15: =Q15+$T$65/1000 ->  | S15: =Q15-$T$65/1000 -> 
C16: =S2Name -> 0 | D16: =AVERAGE(P270:P369)/1000 ->  | E16: =D16+$P$66/1000 ->  | F16: =D16-$P$66/1000 ->  | G16: =AVERAGE(Q270:Q369)/1000 ->  | H16: =G16+$Q$66/1000 ->  | I16: =G16-$Q$66/1000 ->  | J16: =AVERAGE(R270:R369)/1000 ->  | K16: =J16+$R$66/1000 ->  | L16: =J16-$R$66/1000 ->  | M16: =AVERAGE(S270:S369) ->  | N16: =M16+$S$66 ->  | O16: =M16-$S$66 ->  | Q16: =AVERAGE(T270:T369)/1000 ->  | R16: =Q16+$T$66/1000 ->  | S16: =Q16-$T$66/1000 -> 
C17: =S3Name -> 0 | D17: =AVERAGE(P370:P469)/1000 ->  | E17: =D17+$P$67/1000 ->  | F17: =D17-$P$67/1000 ->  | G17: =AVERAGE(Q370:Q469)/1000 ->  | H17: =G17+$Q$67/1000 ->  | I17: =G17-$Q$67/1000 ->  | J17: =AVERAGE(R370:R469)/1000 ->  | K17: =J17+$R$67/1000 ->  | L17: =J17-$R$67/1000 ->  | M17: =AVERAGE(S370:S469) ->  | N17: =M17+$S$67 ->  | O17: =M17-$S$67 ->  | Q17: =AVERAGE(T370:T469)/1000 ->  | R17: =Q17+$T$67/1000 ->  | S17: =Q17-$T$67/1000 -> 
C19: Design Life Year Monetary Benefits | D19: Traveler Welfare ($k) | G19: Total Reliability Costs ($k) | J19: Total Crash Costs ($k) | M19: Other Costs | Q19: Design Year Tolling Revenues ($k)
D20: Average | E20: +1 S.D. | F20: -1 S.D. | G20: Average | H20: +1 S.D. | I20: -1 S.D. | J20: Average | K20: +1 S.D. | L20: -1 S.D. | M20: Average | N20: +1 S.D. | O20: -1 S.D. | Q20: Average | R20: +1 S.D. | S20: -1 S.D.
C21: Base Case (No Build) | D21: =AVERAGE(U70:U169)/1000 ->  | E21: =D21+$U$64/1000 ->  | F21: =D21-$U$64/1000 ->  | G21: =AVERAGE(V70:V169)/1000 ->  | H21: =G21+$V$64/1000 ->  | I21: =G21-$V$64/1000 ->  | J21: =AVERAGE(W70:W169)/1000 ->  | K21: =J21+$W$64/1000 ->  | L21: =J21-$W$64/1000 ->  | M21: =AVERAGE(X70:X169) ->  | N21: =M21+$X$64 ->  | O21: =M21-$X$64 ->  | Q21: =AVERAGE(Y70:Y169)/1000 ->  | R21: =Q21+$Y$64/1000 ->  | S21: =Q21-$Y$64/1000 -> 
C22: =S1Name -> 0 | D22: =AVERAGE(U170:U269)/1000 ->  | E22: =D22+$U$65/1000 ->  | F22: =D22-$U$65/1000 ->  | G22: =AVERAGE(V170:V269)/1000 ->  | H22: =G22+$V$65/1000 ->  | I22: =G22-$V$65/1000 ->  | J22: =AVERAGE(W170:W269)/1000 ->  | K22: =J22+$W$65/1000 ->  | L22: =J22-$W$65/1000 ->  | M22: =AVERAGE(X170:X269) ->  | N22: =M22+$X$65 ->  | O22: =M22-$X$65 ->  | Q22: =AVERAGE(Y170:Y269)/1000 ->  | R22: =Q22+$Y$65/1000 ->  | S22: =Q22-$Y$65/1000 -> 
C23: =S2Name -> 0 | D23: =AVERAGE(U270:U369)/1000 ->  | E23: =D23+$U$66/1000 ->  | F23: =D23-$U$66/1000 ->  | G23: =AVERAGE(V270:V369)/1000 ->  | H23: =G23+$V$66/1000 ->  | I23: =G23-$V$66/1000 ->  | J23: =AVERAGE(W270:W369)/1000 ->  | K23: =J23+$W$66/1000 ->  | L23: =J23-$W$66/1000 ->  | M23: =AVERAGE(X270:X369) ->  | N23: =M23+$X$66 ->  | O23: =M23-$X$66 ->  | Q23: =AVERAGE(Y270:Y369)/1000 ->  | R23: =Q23+$Y$66/1000 ->  | S23: =Q23-$Y$66/1000 -> 
C24: =S3Name -> 0 | D24: =AVERAGE(U370:U469)/1000 ->  | E24: =D24+$U$67/1000 ->  | F24: =D24-$U$67/1000 ->  | G24: =AVERAGE(V370:V469)/1000 ->  | H24: =G24+$V$67/1000 ->  | I24: =G24-$V$67/1000 ->  | J24: =AVERAGE(W370:W469)/1000 ->  | K24: =J24+$W$67/1000 ->  | L24: =J24-$W$67/1000 ->  | M24: =AVERAGE(X370:X469) ->  | N24: =M24+$X$67 ->  | O24: =M24-$X$67 ->  | Q24: =AVERAGE(Y370:Y469)/1000 ->  | R24: =Q24+$Y$67/1000 ->  | S24: =Q24-$Y$67/1000 -> 
C26: Total # Crashes | D26: Initial Year Total | G26: Design Life Year Total | J26: Initial Year Fatalities | M26: Design Life Year Fatalities
D27: Average | E27: +1 S.D. | F27: -1 S.D. | G27: Average | H27: +1 S.D. | I27: -1 S.D. | J27: Average | K27: +1 S.D. | L27: -1 S.D. | M27: Average | N27: +1 S.D. | O27: -1 S.D.
C28: Base Case (No Build) | D28: =AVERAGE(Z70:Z169) ->  | E28: =D28+$Z$64 ->  | F28: =D28-$Z$64 ->  | G28: =AVERAGE(AA70:AA169) ->  | H28: =G28+$AA$64 ->  | I28: =G28-$AA$64 ->  | J28: =AVERAGE(AB70:AB169) ->  | K28: =J28+$AB$64 ->  | L28: =J28-$AB$64 ->  | M28: =AVERAGE(AC70:AC169) ->  | N28: =M28+$AC$64 ->  | O28: =M28-$AC$64 -> 
C29: =S1Name -> 0 | D29: =AVERAGE(Z170:Z269) ->  | E29: =D29+$Z$65 ->  | F29: =D29-$Z$65 ->  | G29: =AVERAGE(AA170:AA269) ->  | H29: =G29+$AA$65 ->  | I29: =G29-$AA$65 ->  | J29: =AVERAGE(AB170:AB269) ->  | K29: =J29+$AB$65 ->  | L29: =J29-$AB$65 ->  | M29: =AVERAGE(AC170:AC269) ->  | N29: =M29+$AC$65 ->  | O29: =M29-$AC$65 -> 
C30: =S2Name -> 0 | D30: =AVERAGE(Z270:Z369) ->  | E30: =D30+$Z$66 ->  | F30: =D30-$Z$66 ->  | G30: =AVERAGE(AA270:AA369) ->  | H30: =G30+$AA$66 ->  | I30: =G30-$AA$66 ->  | J30: =AVERAGE(AB270:AB369) ->  | K30: =J30+$AB$66 ->  | L30: =J30-$AB$66 ->  | M30: =AVERAGE(AC270:AC369) ->  | N30: =M30+$AC$66 ->  | O30: =M30-$AC$66 -> 
C31: =S3Name -> 0 | D31: =AVERAGE(Z370:Z469) ->  | E31: =D31+$Z$67 ->  | F31: =D31-$Z$67 ->  | G31: =AVERAGE(AA370:AA469) ->  | H31: =G31+$AA$67 ->  | I31: =G31-$AA$67 ->  | J31: =AVERAGE(AB370:AB469) ->  | K31: =J31+$AB$67 ->  | L31: =J31-$AB$67 ->  | M31: =AVERAGE(AC370:AC469) ->  | N31: =M31+$AC$67 ->  | O31: =M31-$AC$67 -> 
... 37 more rows

Sheet CMFs
F1: Project Evaluation Toolkit - Crash Modification Factors
B4: NOTE: This page is for reference ONLY - any changes to this sheet will
C5: not directly affect the estimated crash numbers and rates.
C6: Apply CMFs as determined on this sheet to individual segments
C7: and intersections on the link and node configuration sheets.
C9: For additional CMFs see TTI's Roadway Safety Design Handbook
C10: Available online at: http://tcd.tamu.edu/documents/rsd.htm
B12: RAMP SEGMENTS:
B14: Ramp Type: | D14: 4
B15: Ramp CMF: | D15: =LOOKUP(D14,F19:F36,G19:G36)/G38 -> 1.190380762
B17: Ramp Crash Rates per Million Vehicles
D18: Ramp Type | F18: Type # | G18: Rate
B19: Non | C19: Exit | D19: Diagonal | F19: 1 | G19: 0.28
B20: Frontage | D20: Non-free-flow loop | F20: =F19+1 -> 2 | G20: 0.51
B21: Road | D21: Free-flow loop | F21: =F20+1 -> 3 | G21: 0.2
D22: Outer connection | F22: 4 | G22: 0.33
D23: Semi-direct conn. | F23: 5 | G23: 0.25
D24: Direct Connection | F24: 6 | G24: 0.21
C25: Entrance | D25: Diagonal | F25: 7 | G25: 0.17
D26: Non-free-flow loop | F26: 8 | G26: 0.31
D27: Free-flow loop | F27: 9 | G27: 0.12
D28: Outer connection | F28: 10 | G28: 0.2
D29: Semi-direct conn. | F29: 11 | G29: 0.15
D30: Direct Connection | F30: 12 | G30: 0.13
B31: Frontage | C31: Exit | D31: Button hook | F31: 13 | G31: 0.57
B32: Road | D32: Scissor | F32: 14 | G32: 0.48
D33: Slip | F33: 15 | G33: 0.36
C34: Entrance | D34: Button hook | F34: 16 | G34: 0.28
D35: Scissor | F35: 17 | G35: 0.21
D36: Slip | F36: 18 | G36: 0.23
B38: Default Ramp Crash Rate per Million Vehicles | G38: =AVERAGE(G19:G36) -> 0.2772222222

Sheet Summary Input Information
G1: Project Evaluation Toolkit - Summary Input Information
M4: Capacity and Reliability Parameters
B5: Project Name | C5: Austin Network - No Project | H5: General Project Information
B6: Analyst | C6: D. Fagnant
B7: Date | C7: 2012-05-29 | M7: Default Link Speeds (Free Flow) | R7: Reliability | U7: Capacity Function
F8: Project Costs (thousands) | M8: Facility Type | N8: Area Type | U8: Road Class | V8: Alpha | W8: Beta
C9: Total # Alternative Scenarios (not incl. no-build) | E9: 1 | F9: Design | G9: ROW | H9: Construct. | I9: Add. Annual Maintenance | J9: Salvage Value | N9: Urban | O9: Sub-Urban | P9: Rural | R9: r0 | S9: 0.001
C10: No Build | F10: ='Engineer''s Estimate'!F15 -> 0 | G10: ='Engineer''s Estimate'!G15 -> 0 | H10: ='Engineer''s Estimate'!N6 -> 0 | I10: ='Engineer''s Estimate'!E33 -> 0 | J10: ='Engineer''s Estimate'!F33 -> 0 | M10: Freeway | N10: 55 | O10: 60 | P10: 65 | R10: σ | S10: 2.3 | U10: Freeway | V10: 0.83 | W10: 5.5
B11: Scenario 1 | F11: ='Engineer''s Estimate'!F16 -> 0 | G11: ='Engineer''s Estimate'!G16 -> 0 | H11: ='Engineer''s Estimate'!N7 -> 0 | I11: ='Engineer''s Estimate'!E34 -> 0 | J11: ='Engineer''s Estimate'!F34 -> 0 | M11: Arterial | N11: 45 | O11: 50 | P11: 55 | R11: γ | S11: 0.7 | U11: Arterial | V11: 0.74 | W11: 5
B12: Scenario 2 | F12: ='Engineer''s Estimate'!F17 -> 0 | G12: ='Engineer''s Estimate'!G17 -> 0 | H12: ='Engineer''s Estimate'!N8 -> 0 | I12: ='Engineer''s Estimate'!E35 -> 0 | J12: ='Engineer''s Estimate'!F35 -> 0 | M12: Collector | N12: 40 | O12: 45 | P12: 50 | R12: τ | S12: 8.4 | U12: Collector | V12: 0.28 | W12: 3.9
B13: Scenario 3 | F13: ='Engineer''s Estimate'!F18 -> 0 | G13: ='Engineer''s Estimate'!G18 -> 0 | H13: ='Engineer''s Estimate'!N9 -> 0 | I13: ='Engineer''s Estimate'!E36 -> 0 | J13: ='Engineer''s Estimate'!F36 -> 0 | M13: Ramp | N13: 40 | O13: 40 | P13: 40 | R13: FF Var. | S13: =RelR0*(1+RelSig*(RelGam^RelTau)) -> 0.001114961222 | U13: Local | V13: 6.6 | W13: 3.9
U14: Ramp | V14: 0.33 | W14: 3.9
B15: Projected Traffic Growth Rate | F15: Discount Rate | H15: 0.07 | M15: Heavy Vehicle Pass Car Equivalency | R15: Reliability Estimate Equation:
B16: Annual Growth Rate | D16: 0.01028783241 | F16: Initial Construction Year | H16: 2015 | M16: 1.8 | R16: r = r0*(1+σ*(γ+v/c)^τ) | U16: Capacity Function to Predict Speed
B17: Linear Growth (0) or Exponential Growth (1) | D17: 1 | F17: # of Construction Years | H17: 1 | I17: Whole number >= 1 | U17: SPD = FFS/(1+Alpha*(vol/cap)^Beta)
F18: Initial Year of Operation | H18: 2015 | I18: =IF(InitialYear<H16+H17-1,"Error. Initial year of operation must be the same year or after construction is complete.","") -> 
B19: Total Traffic Growth over Project Life | D19: =IF(D17=0,D16*H19,(1+D16)^H19-1) -> 0.227163559 | F19: Proj. Design Life (yrs) | H19: 20 | I19: Max Proj Design Life = 50 yrs
F20: Future Year | H20: =InitialYear+ProjLife -> 2035
M21: Operational Parameters
R23: % Total Crashes in Hour
Q24: Hour Beginning
E25: Operating Costs, User Groups and Modes | M25: Max Proj Life = 50 yrs | N25: Project Life | Q25: Midnight | R25: 0.01532218992
M26: Operational Strategy | N26: 10 | Q26: 01:00:00 | R26: 0.01532218992
B27: Value of Time and Reliability ($/hr) | G27: Transport Modes** | M27: Incident Growth Rate | N27: 0.01 | Q27: 02:00:00 | R27: 0.01532218992
B28: Total # User Types Used: | E28: 4 | G28: Total # Modes Used: | I28: 5 | Q28: 03:00:00 | R28: 0.01078003876
B29: User Type | C29: VOT | D29: VOR | E29: % of Pop. | G29: Mode # | H29: Name | I29: Ave Veh Occ | Q29: 04:00:00 | R29: 0.01078003876
B30: 1* | C30: 50 | D30: 50 | E30: 0.05 | G30: 1 | H30: SOV | I30: 1 | M30: Avg. Vehicle Occupancy | N30: 1.6 | Q30: 05:00:00 | R30: 0.01078003876
B31: 2 | C31: 30 | D31: 30 | E31: 0.1 | G31: 2 | H31: HOV 2 | I31: 2 | M31: Avg. Val Trav Time($/hr) | N31: 10.75 | Q31: 06:00:00 | R31: 0.04166666667
... 35 more rows

Sheet TOD Splits
D1: Project Evaluation Toolkit - Time of Day Splits
D4: Time of Day Splits (% of AADT In Period)
B5: Ref # | D5: AM Peak | E5: Mid Day | F5: PM Peak | G5: Evening | H5: Off Peak | I5: Equal to 1
B6: 1 | C6: IH 35, 0.3 MI S OF FM 1626, AUSTIN | D6: 0.25 | E6: 0.17 | F6: 0.331 | G6: 0.154 | H6: 0.095 | I6: =SUM(D6:OFFSET(C6,0,NumTOD)) -> 1
B7: 2 | C7: US 290, 4.2 MI W OF FM 1826, AUSTIN | D7: 0.27 | E7: 0.188 | F7: 0.36 | G7: 0.135 | H7: 0.047 | I7: =SUM(D7:OFFSET(C7,0,NumTOD)) -> 1
B8: 3 | C8: SH 71, 3.58 MI E OF US 183, AUSTIN | D8: 0.274 | E8: 0.166 | F8: 0.349 | G8: 0.138 | H8: 0.073 | I8: =SUM(D8:OFFSET(C8,0,NumTOD)) -> 1
B9: 4 | C9: US 183, 3.3 MI S OF SH 71, AUSTIN | D9: 0.278 | E9: 0.148 | F9: 0.357 | G9: 0.133 | H9: 0.084 | I9: =SUM(D9:OFFSET(C9,0,NumTOD)) -> 1
B10: 5 | C10: IH 35, N OF TOWN LAKE BRIDGE, AUSTIN | D10: 0.242 | E10: 0.178 | F10: 0.293 | G10: 0.173 | H10: 0.114 | I10: =SUM(D10:OFFSET(C10,0,NumTOD)) -> 1 | J10: Number of TOD Periods
B11: 6 | C11: LOOP 1, UNDER 35TH STREET OVERPASS, AUSTIN | D11: 0.275 | E11: 0.188 | F11: 0.328 | G11: 0.151 | H11: 0.058 | I11: =SUM(D11:OFFSET(C11,0,NumTOD)) -> 1 | J11: 5
B12: 7
B13: 8
B14: 9
B15: 10
B16: 11
B17: 12
C19: Time of Day Settings | E19: Demand Elasticity | G19: TOD Start | J19: Time of Day Hours
C20: AM Peak Begins | D20: 06:00:00 | E20: -0.69 | G20: =VALUE(D20)*24 -> 6 | J20: AM Peak | K20: =('TOD Splits'!D21-'TOD Splits'!D20)*24 -> 5
C21: Mid Day Begins | D21: 11:00:00 | E21: -0.69 | G21: =VALUE(D21)*24 -> 11 | J21: Mid Day | K21: =('TOD Splits'!D22-'TOD Splits'!D21)*24 -> 3
C22: PM Peak Begins | D22: 14:00:00 | E22: -0.69 | G22: =VALUE(D22)*24 -> 14 | J22: PM Peak | K22: =('TOD Splits'!D23-'TOD Splits'!D22)*24 -> 5
C23: Evening Begins | D23: 19:00:00 | E23: -0.69 | G23: =VALUE(D23)*24 -> 19 | J23: Evening | K23: =('TOD Splits'!D24-'TOD Splits'!D23)*24 -> 4
C24: Off Peak Begins | D24: 23:00:00 | E24: -0.69 | G24: =VALUE(D24)*24 -> 23 | J24: Off Peak | K24: =('TOD Splits'!D20-'TOD Splits'!D24)*24+24 -> 7
D26: Time of Day Splits (% of AADT per hour) | J26: TOD Scale Paramter
B27: Ref # | D27: AM Peak | E27: Mid Day | F27: PM Peak | G27: Evening | H27: Off Peak | J27: 0.1
B28: 1 | C28: =IF(C6="","",C6) -> IH 35, 0.3 MI S OF FM 1626, AUSTIN | D28: =D6/$K$20 -> 0.05 | E28: =E6/$K$21 -> 0.05666666667 | F28: =F6/$K$22 -> 0.0662 | G28: =G6/$K$23 -> 0.0385 | H28: =H6/$K$24 -> 0.01357142857
B29: 2 | C29: =IF(C7="","",C7) -> US 290, 4.2 MI W OF FM 1826, AUSTIN | D29: 0.054 | E29: 0.06266666667 | F29: 0.072 | G29: 0.03375 | H29: 0.006714285714
B30: 3 | C30: SH 71, 3.58 MI E OF US 183, AUSTIN | D30: 0.0548 | E30: 0.05533333333 | F30: 0.0698 | G30: 0.0345 | H30: 0.01042857143
B31: 4 | C31: US 183, 3.3 MI S OF SH 71, AUSTIN | D31: 0.0556 | E31: 0.04933333333 | F31: 0.0714 | G31: 0.03325 | H31: 0.012
B32: 5 | C32: IH 35, N OF TOWN LAKE BRIDGE, AUSTIN | D32: 0.0484 | E32: 0.05933333333 | F32: 0.0586 | G32: 0.04325 | H32: 0.01628571429
B33: 6 | C33: LOOP 1, UNDER 35TH STREET OVERPASS, AUSTIN | D33: 0.055 | E33: 0.06266666667 | F33: 0.0656 | G33: 0.03775 | H33: 0.008285714286
B34: 7 | D34: =D12/$K$20 -> 0 | E34: =E12/$K$21 -> 0 | F34: =F12/$K$22 -> 0 | G34: =G12/$K$23 -> 0 | H34: =H12/$K$24 -> 0
B35: 8 | D35: 0 | E35: 0 | F35: 0 | G35: 0 | H35: 0
B36: 9 | D36: 0 | E36: 0 | F36: 0 | G36: 0 | H36: 0
B37: 10 | D37: 0 | E37: 0 | F37: 0 | G37: 0 | H37: 0
B38: 11 | D38: 0 | E38: 0 | F38: 0 | G38: 0 | H38: 0
B39: 12 | D39: 0 | E39: 0 | F39: 0 | G39: 0 | H39: 0

Sheet Travel Growth Rates
D1: Project Evaluation Toolkit - Travel Growth Rates
H3: Base Annual Growth Rate | J3: =TraffGrowthRate -> 0.01028783241
H4: Growth Rate is | J4: =IF(Expon=0,"Linear","Exponential") -> Exponential
H5: Project Life (Years) | J5: =ProjLife -> 20
H6: Base Traffic Growth over Project Life | J6: =LifeGrowth -> 0.227163559
C9: Initial Year | G9: Design Year
C10: Production Growth | E10: Attraction Growth | G10: Production Growth | I10: Attraction Growth
B11: Node | C11: Base Initial Growth | D11: Initial Growth | E11: Base Initial Growth | F11: Initial Growth | G11: Alternate Growth Rate | H11: Life Growth | I11: Alternate Growth Rate | J11: Life Growth
B12: 1 | D12: =IF(B12="","",IF(C12="",0,C12)) -> 0 | F12: =IF(B12="","",IF(E12="",0,E12)) -> 0 | H12: =IF(B12="","",(IF(G12="",TraffGrowthRate,G12)+1)^ProjLife-1) -> 0.227163559 | J12: =IF(H12="","",(IF(I12="",TraffGrowthRate,I12)+1)^ProjLife-1) -> 0.227163559
B13: =IF(B12="","",IF(B12+1<=NumNodesBase,B12+1,"")) -> 2 | D13: =IF(B13="","",IF(C13="",0,C13)) -> 0 | F13: =IF(B13="","",IF(E13="",0,E13)) -> 0 | H13: 0.227163559 | J13: 0.227163559
B14: 3 | D14: 0 | F14: 0 | H14: 0.227163559 | J14: 0.227163559
B15: 4 | D15: 0 | F15: 0 | H15: 0.227163559 | J15: 0.227163559
B16: 5 | D16: 0 | F16: 0 | H16: 0.227163559 | J16: 0.227163559
B17: 6 | D17: 0 | F17: 0 | H17: 0.227163559 | J17: 0.227163559
B18: 7 | D18: 0 | F18: 0 | H18: 0.227163559 | J18: 0.227163559
B19: 8 | D19: 0 | F19: 0 | H19: 0.227163559 | J19: 0.227163559
B20: 9 | D20: 0 | F20: 0 | H20: 0.227163559 | J20: 0.227163559
B21: 10 | D21: 0 | F21: 0 | H21: 0.227163559 | J21: 0.227163559
B22: 11 | D22: 0 | F22: 0 | H22: 0.227163559 | J22: 0.227163559
B23: 12 | D23: 0 | F23: 0 | H23: 0.227163559 | J23: 0.227163559
B24: 13 | D24: 0 | F24: 0 | H24: 0.227163559 | J24: 0.227163559
B25: 14 | D25: 0 | F25: 0 | H25: 0.227163559 | J25: 0.227163559
B26: 15 | D26: 0 | F26: 0 | H26: 0.227163559 | J26: 0.227163559
B27: 16 | D27: 0 | F27: 0 | H27: 0.227163559 | J27: 0.227163559
B28: 17 | D28: 0 | F28: 0 | H28: 0.227163559 | J28: 0.227163559
B29: 18 | D29: 0 | F29: 0 | H29: 0.227163559 | J29: 0.227163559
B30: 19 | D30: 0 | F30: 0 | H30: 0.227163559 | J30: 0.227163559
B31: 20 | D31: 0 | F31: 0 | H31: 0.227163559 | J31: 0.227163559
... 22 more rows

Sheet Base Hwy Link Config
A1: Project Evaluation Toolkit - Base Highway Link Configuration
E3: Notes: | F3: All links are directional (including # of lanes in each link)
F4: Link Class: 1=Freeway, 2= Principal Arterial, 3 = Major Arterial | V4: Total Links | W4: =MAX(A12:A321) -> 194
F5: 4=Minor Arterial, 5 =Collector, 6=Ramp | V5: Total Nodes | W5: =MAX(B:C) -> 62
F6: Area Type: 1=Urban, 2=Suburban, 3=Rural
F7: Land Use: 0=Rural/Residential, 1=Industrial, 2=Commercial, 3=Office
F8: Median: 0=None, 1=TWLTL, 2=Restrictive Median
A10: Link Characteristics | O10: Freeway Only (Optional) | S10: Arterial Only | U10: Capacity & Link Performance Parameters | X10: Managed Lanes with Variable Capacity | AC10: TOD Parameters | AE10: AM Peak Conditions | AK10: Mid Day Conditions | AQ10: PM Peak Conditions | AW10: Evening Conditions | BC10: Off Peak Conditions | BK10: Facility Type | BM10: Area Type
A11: Link # | B11: From Node # | C11: To Node # | D11: Link Name | E11: Length (mi) | F11: Link Class | G11: Area Type | H11: FF Speed (User Entered) | I11: FF Speed | J11: FF Time | K11: # Lanes | L11: CMF | M11: AADT | N11: Variable Capacity (0/1) | O11: # Entr Ramps (User Entered) | P11: # Exit Ramps (User Entered) | Q11: # Entr Ramps | R11: # Ex Ramps | S11: Land Use | T11: Median | U11: Link Capacity (pc/hr) | V11: BPR Formula Alpha | W11: BPR Formula Beta | X11: AM Peak Capacity | Y11: Mid Day Capactiy | Z11: PM Peak Capacity | AA11: Evening Capacity | AB11: Off Peak Capacity | AC11: Reference | AD11: Reference Name | AE11: Traffic Vol (Veh / Hr) | AF11: % Heavy Trucks | AG11: Speed | AH11: Travel Time | AI11: Capacity | AJ11: V/C Ratio | AK11: Traffic Vol (Veh / Hr) | AL11: % Heavy Trucks | AM11: Speed | AN11: Travel Time | AO11: Capacity | AP11: V/C Ratio | AQ11: Traffic Vol (Veh / Hr) | AR11: % Heavy Trucks | AS11: Speed | AT11: Travel Time | AU11: Capacity | AV11: V/C Ratio | AW11: Traffic Vol (Veh / Hr) | AX11: % Heavy Trucks | AY11: Speed | AZ11: Travel Time | BA11: Capacity | BB11: V/C Ratio | BC11: Traffic Vol (Veh / Hr) | BD11: % Heavy Trucks | BE11: Speed | BF11: Travel Time | BG11: Capacity | BH11: V/C Ratio | BM11: Urban | BN11: Sub-Urban | BO11: Rural
A12: =IF(B12="","",1) -> 1 | B12: 51 | C12: 1 | D12: 183: N of TT45 - TT45 | E12: 1 | F12: 1 | G12: 1 | I12: =IF(B12="","",IF(H12<>0,H12,OFFSET(BM$12,IF(F12=1,0,IF(F12=5,2,IF(F12=6,3,1))),0))) -> 55 | J12: =IF(B12="","",60*E12/I12) -> 1.090909091 | K12: 3 | M12: 16500 | N12: 0 | O12: 1 | P12: 1 | Q12: =IF(OR(B12="",F12<>1),"",IF(O12<>"",O12,AvgEntRamps*E12)) -> 1 | R12: =IF(OR(B12="",F12<>1),"",IF(P12<>"",P12,AvgExRamps*E12)) -> 1 | U12: 5730 | V12: =IF(B12="","",IF(F12=1,FWayAlpha,IF(F12=5,CollectAlpha,IF(F12=6,RampAlpha,ArterialAlpha)))) -> 0.83 | W12: =IF(C12="","",IF(F12=1,FWBeta,IF(F12=5,CollectBeta,IF(F12=6,RampBeta,ArterialBeta)))) -> 5.5 | AC12: 4 | AD12: =IF(AC12="","",LOOKUP(AC12,'TOD Splits'!$B$6:$B$17,'TOD Splits'!$C$6:$C$17)) -> US 183, 3.3 MI S OF SH 71, AUSTIN | AE12: =IF(M12="","",$M12*LOOKUP($AC12,'TOD Splits'!$B$28:$B$39,'TOD Splits'!$D$28:$D$39)) -> 917.4 | AF12: =IF($M12="","",SUMPRODUCT('Summary Input Information'!$E$30:$E$34,'Summary Input Information'!$G$42:$G$46)) -> 0.05 | AG12: =IF($B12="","",$I12/(1+$V12*(AJ12)^$W12)) -> 54.99761588 | AH12: =IF($B12="","",$E12*60/AG12) -> 1.090956381 | AI12: =IF($B12="","",IF($N12=6,$X12,$U12)) -> 5730 | AJ12: =IF($B12="","",(AE12*(1+AF12*(HVPCE-1))/AI12)) -> 0.1665089005 | AK12: =IF(AF12="","",$M12*LOOKUP($AC12,'TOD Splits'!$B$28:$B$39,'TOD Splits'!$E$28:$E$39)) -> 814 | AL12: =IF($M12="","",SUMPRODUCT('Summary Input Information'!$E$30:$E$34,'Summary Input Information'!$G$42:$G$46)) -> 0.05 | AM12: =IF($B12="","",$I12/(1+$V12*(AP12)^$W12)) -> 54.99876491 | AN12: =IF($B12="","",$E12*60/AM12) -> 1.090933589 | AO12: =IF($B12="","",IF($N12=6,$Y12,$U12)) -> 5730 | AP12: =IF($B12="","",(AK12*(1+AL12*(HVPCE-1))/AO12)) -> 0.1477417103 | AQ12: =IF(AL12="","",$M12*LOOKUP($AC12,'TOD Splits'!$B$28:$B$39,'TOD Splits'!$F$28:$F$39)) -> 1178.1 | AR12: =IF($M12="","",SUMPRODUCT('Summary Input Information'!$E$30:$E$34,'Summary Input Information'!$G$42:$G$46)) -> 0.05 | AS12: =IF($B12="","",$I12/(1+$V12*(AV12)^$W12)) -> 54.99056589 | AT12: =IF($B12="","",$E12*60/AS12) -> 1.091096246 | AU12: =IF($B12="","",IF($N12=6,$Z12,$U12)) -> 5730 | AV12: =IF($B12="","",(AQ12*(1+AR12*(HVPCE-1))/AU12)) -> 0.213826178 | AW12: =IF(AR12="","",$M12*LOOKUP($AC12,'TOD Splits'!$B$28:$B$39,'TOD Splits'!$G$28:$G$39)) -> 548.625 | AX12: =IF($M12="","",SUMPRODUCT('Summary Input Information'!$E$30:$E$34,'Summary Input Information'!$G$42:$G$46)) -> 0.05 | AY12: =IF($B12="","",$I12/(1+$V12*(BB12)^$W12)) -> 54.99985898 | AZ12: =IF($B12="","",$E12*60/AY12) -> 1.090911888 | BA12: =IF($B12="","",IF($N12=6,$AA12,$U12)) -> 5730 | BB12: =IF($B12="","",(AW12*(1+AX12*(HVPCE-1))/BA12)) -> 0.09957591623 | BC12: =IF(AX12="","",$M12*LOOKUP($AC12,'TOD Splits'!$B$28:$B$39,'TOD Splits'!$H$28:$H$39)) -> 198 | BD12: =IF($M12="","",SUMPRODUCT('Summary Input Information'!$E$30:$E$34,'Summary Input Information'!$G$42:$G$46)) -> 0.05 | BE12: =IF($B12="","",$I12/(1+$V12*(BH12)^$W12)) -> 54.99999948 | BF12: =IF($B12="","",$E12*60/BE12) -> 1.090909101 | BG12: =IF($B12="","",IF($N12=6,$AB12,$U12)) -> 5730 | BH12: =IF($B12="","",(BC12*(1+BD12*(HVPCE-1))/BG12)) -> 0.03593717277 | BK12: Freeway | BM12: ='Summary Input Information'!N10 -> 55 | BN12: ='Summary Input Information'!O10 -> 60 | BO12: ='Summary Input Information'!P10 -> 65
A13: =IF(B13="","",2) -> 2 | B13: 1 | C13: 51 | D13: 183: TT45 - N of TT45 | E13: 1 | F13: 1 | G13: 1 | I13: 55 | J13: 1.090909091 | K13: 3 | M13: 16500 | N13: 0 | O13: 1 | P13: 1 | Q13: 1 | R13: 1 | U13: 5730 | V13: 0.83 | W13: 5.5 | AC13: 4 | AD13: =IF(AC13="","",LOOKUP(AC13,'TOD Splits'!$B$6:$B$17,'TOD Splits'!$C$6:$C$17)) -> US 183, 3.3 MI S OF SH 71, AUSTIN | AE13: =IF(M13="","",$M13*LOOKUP($AC13,'TOD Splits'!$B$28:$B$39,'TOD Splits'!$D$28:$D$39)) -> 917.4 | AF13: =IF($M13="","",SUMPRODUCT('Summary Input Information'!$E$30:$E$34,'Summary Input Information'!$G$42:$G$46)) -> 0.05 | AG13: 54.99761588 | AH13: 1.090956381 | AI13: 5730 | AJ13: 0.1665089005 | AK13: =IF(AF13="","",$M13*LOOKUP($AC13,'TOD Splits'!$B$28:$B$39,'TOD Splits'!$E$28:$E$39)) -> 814 | AL13: =IF($M13="","",SUMPRODUCT('Summary Input Information'!$E$30:$E$34,'Summary Input Information'!$G$42:$G$46)) -> 0.05 | AM13: 54.99876491 | AN13: 1.090933589 | AO13: 5730 | AP13: 0.1477417103 | AQ13: =IF(AL13="","",$M13*LOOKUP($AC13,'TOD Splits'!$B$28:$B$39,'TOD Splits'!$F$28:$F$39)) -> 1178.1 | AR13: =IF($M13="","",SUMPRODUCT('Summary Input Information'!$E$30:$E$34,'Summary Input Information'!$G$42:$G$46)) -> 0.05 | AS13: 54.99056589 | AT13: 1.091096246 | AU13: 5730 | AV13: 0.213826178 | AW13: =IF(AR13="","",$M13*LOOKUP($AC13,'TOD Splits'!$B$28:$B$39,'TOD Splits'!$G$28:$G$39)) -> 548.625 | AX13: =IF($M13="","",SUMPRODUCT('Summary Input Information'!$E$30:$E$34,'Summary Input Information'!$G$42:$G$46)) -> 0.05 | AY13: 54.99985898 | AZ13: 1.090911888 | BA13: 5730 | BB13: 0.09957591623 | BC13: =IF(AX13="","",$M13*LOOKUP($AC13,'TOD Splits'!$B$28:$B$39,'TOD Splits'!$H$28:$H$39)) -> 198 | BD13: =IF($M13="","",SUMPRODUCT('Summary Input Information'!$E$30:$E$34,'Summary Input Information'!$G$42:$G$46)) -> 0.05 | BE13: 54.99999948 | BF13: 1.090909101 | BG13: 5730 | BH13: 0.03593717277 | BK13: Arterial | BM13: ='Summary Input Information'!N11 -> 45 | BN13: ='Summary Input Information'!O11 -> 50 | BO13: ='Summary Input Information'!P11 -> 55
A14: =IF(B14="","",3) -> 3 | B14: 1 | C14: 10 | D14: 183: TT45 Loop 1 | E14: 7.8 | F14: 1 | G14: 1 | I14: 55 | J14: 8.509090909 | K14: 3 | M14: 75000 | N14: 0 | O14: 7 | P14: 5 | Q14: 7 | R14: 5 | U14: 5730 | V14: 0.83 | W14: 5.5 | AC14: 4 | AD14: =IF(AC14="","",LOOKUP(AC14,'TOD Splits'!$B$6:$B$17,'TOD Splits'!$C$6:$C$17)) -> US 183, 3.3 MI S OF SH 71, AUSTIN | AE14: =IF(M14="","",$M14*LOOKUP($AC14,'TOD Splits'!$B$28:$B$39,'TOD Splits'!$D$28:$D$39)) -> 4170 | AF14: =IF($M14="","",SUMPRODUCT('Summary Input Information'!$E$30:$E$34,'Summary Input Information'!$G$42:$G$46)) -> 0.05 | AG14: 46.63654525 | AH14: 10.03504864 | AI14: 5730 | AJ14: 0.7568586387 | AK14: =IF(AF14="","",$M14*LOOKUP($AC14,'TOD Splits'!$B$28:$B$39,'TOD Splits'!$E$28:$E$39)) -> 3700 | AL14: =IF($M14="","",SUMPRODUCT('Summary Input Information'!$E$30:$E$34,'Summary Input Information'!$G$42:$G$46)) -> 0.05 | AM14: 50.32477652 | AN14: 9.299594203 | AO14: 5730 | AP14: 0.6715532286 | AQ14: =IF(AL14="","",$M14*LOOKUP($AC14,'TOD Splits'!$B$28:$B$39,'TOD Splits'!$F$28:$F$39)) -> 5355 | AR14: =IF($M14="","",SUMPRODUCT('Summary Input Information'!$E$30:$E$34,'Summary Input Information'!$G$42:$G$46)) -> 0.05 | AS14: 32.16897608 | AT14: 14.54817831 | AU14: 5730 | AV14: 0.9719371728 | AW14: =IF(AR14="","",$M14*LOOKUP($AC14,'TOD Splits'!$B$28:$B$39,'TOD Splits'!$G$28:$G$39)) -> 2493.75 | AX14: =IF($M14="","",SUMPRODUCT('Summary Input Information'!$E$30:$E$34,'Summary Input Information'!$G$42:$G$46)) -> 0.05 | AY14: 54.42272554 | AZ14: 8.599348809 | BA14: 5730 | BB14: 0.452617801 | BC14: =IF(AX14="","",$M14*LOOKUP($AC14,'TOD Splits'!$B$28:$B$39,'TOD Splits'!$H$28:$H$39)) -> 900 | BD14: =IF($M14="","",SUMPRODUCT('Summary Input Information'!$E$30:$E$34,'Summary Input Information'!$G$42:$G$46)) -> 0.05 | BE14: 54.99785419 | BF14: 8.509422901 | BG14: 5730 | BH14: 0.1633507853 | BK14: Collector | BM14: ='Summary Input Information'!N12 -> 40 | BN14: ='Summary Input Information'!O12 -> 45 | BO14: ='Summary Input Information'!P12 -> 50
A15: =IF(B15="","",4) -> 4 | B15: 10 | C15: 1 | D15: 183: Loop 1 - TT 45 | E15: 7.8 | F15: 1 | G15: 1 | I15: 55 | J15: 8.509090909 | K15: 3 | M15: 75000 | N15: 0 | O15: 7 | P15: 8 | Q15: 7 | R15: 8 | U15: 5730 | V15: 0.83 | W15: 5.5 | AC15: 4 | AD15: =IF(AC15="","",LOOKUP(AC15,'TOD Splits'!$B$6:$B$17,'TOD Splits'!$C$6:$C$17)) -> US 183, 3.3 MI S OF SH 71, AUSTIN | AE15: =IF(M15="","",$M15*LOOKUP($AC15,'TOD Splits'!$B$28:$B$39,'TOD Splits'!$D$28:$D$39)) -> 4170 | AF15: =IF($M15="","",SUMPRODUCT('Summary Input Information'!$E$30:$E$34,'Summary Input Information'!$G$42:$G$46)) -> 0.05 | AG15: 46.63654525 | AH15: 10.03504864 | AI15: 5730 | AJ15: 0.7568586387 | AK15: =IF(AF15="","",$M15*LOOKUP($AC15,'TOD Splits'!$B$28:$B$39,'TOD Splits'!$E$28:$E$39)) -> 3700 | AL15: =IF($M15="","",SUMPRODUCT('Summary Input Information'!$E$30:$E$34,'Summary Input Information'!$G$42:$G$46)) -> 0.05 | AM15: 50.32477652 | AN15: 9.299594203 | AO15: 5730 | AP15: 0.6715532286 | AQ15: =IF(AL15="","",$M15*LOOKUP($AC15,'TOD Splits'!$B$28:$B$39,'TOD Splits'!$F$28:$F$39)) -> 5355 | AR15: =IF($M15="","",SUMPRODUCT('Summary Input Information'!$E$30:$E$34,'Summary Input Information'!$G$42:$G$46)) -> 0.05 | AS15: 32.16897608 | AT15: 14.54817831 | AU15: 5730 | AV15: 0.9719371728 | AW15: =IF(AR15="","",$M15*LOOKUP($AC15,'TOD Splits'!$B$28:$B$39,'TOD Splits'!$G$28:$G$39)) -> 2493.75 | AX15: =IF($M15="","",SUMPRODUCT('Summary Input Information'!$E$30:$E$34,'Summary Input Information'!$G$42:$G$46)) -> 0.05 | AY15: 54.42272554 | AZ15: 8.599348809 | BA15: 5730 | BB15: 0.452617801 | BC15: =IF(AX15="","",$M15*LOOKUP($AC15,'TOD Splits'!$B$28:$B$39,'TOD Splits'!$H$28:$H$39)) -> 900 | BD15: =IF($M15="","",SUMPRODUCT('Summary Input Information'!$E$30:$E$34,'Summary Input Information'!$G$42:$G$46)) -> 0.05 | BE15: 54.99785419 | BF15: 8.509422901 | BG15: 5730 | BH15: 0.1633507853 | BK15: Ramp | BM15: ='Summary Input Information'!N13 -> 40 | BN15: ='Summary Input Information'!O13 -> 40 | BO15: ='Summary Input Information'!P13 -> 40
A16: =IF(B16="","",5) -> 5 | B16: 10 | C16: 15 | D16: 183: Loop 1 - Lamar | E16: 2.9 | F16: 1 | G16: 1 | I16: 55 | J16: 3.163636364 | K16: 3 | M16: 69500 | N16: 0 | O16: 2 | P16: 2 | Q16: 2 | R16: 2 | U16: 5730 | V16: 0.83 | W16: 5.5 | AC16: 4 | AD16: =IF(AC16="","",LOOKUP(AC16,'TOD Splits'!$B$6:$B$17,'TOD Splits'!$C$6:$C$17)) -> US 183, 3.3 MI S OF SH 71, AUSTIN | AE16: =IF(M16="","",$M16*LOOKUP($AC16,'TOD Splits'!$B$28:$B$39,'TOD Splits'!$D$28:$D$39)) -> 3864.2 | AF16: =IF($M16="","",SUMPRODUCT('Summary Input Information'!$E$30:$E$34,'Summary Input Information'!$G$42:$G$46)) -> 0.05 | AG16: 49.19670278 | AH16: 3.536822392 | AI16: 5730 | AJ16: 0.7013556719 | AK16: =IF(AF16="","",$M16*LOOKUP($AC16,'TOD Splits'!$B$28:$B$39,'TOD Splits'!$E$28:$E$39)) -> 3428.666667 | AL16: =IF($M16="","",SUMPRODUCT('Summary Input Information'!$E$30:$E$34,'Summary Input Information'!$G$42:$G$46)) -> 0.05 | AM16: 51.83259946 | AN16: 3.356960712 | AO16: 5730 | AP16: 0.6223059919 | AQ16: =IF(AL16="","",$M16*LOOKUP($AC16,'TOD Splits'!$B$28:$B$39,'TOD Splits'!$F$28:$F$39)) -> 4962.3 | AR16: =IF($M16="","",SUMPRODUCT('Summary Input Information'!$E$30:$E$34,'Summary Input Information'!$G$42:$G$46)) -> 0.05 | AS16: 37.49558059 | AT16: 4.640546892 | AU16: 5730 | AV16: 0.9006617801 | AW16: =IF(AR16="","",$M16*LOOKUP($AC16,'TOD Splits'!$B$28:$B$39,'TOD Splits'!$G$28:$G$39)) -> 2310.875 | AX16: =IF($M16="","",SUMPRODUCT('Summary Input Information'!$E$30:$E$34,'Summary Input Information'!$G$42:$G$46)) -> 0.05 | AY16: 54.6189126 | AZ16: 3.185709706 | BA16: 5730 | BB16: 0.419425829 | BC16: =IF(AX16="","",$M16*LOOKUP($AC16,'TOD Splits'!$B$28:$B$39,'TOD Splits'!$H$28:$H$39)) -> 834 | BD16: =IF($M16="","",SUMPRODUCT('Summary Input Information'!$E$30:$E$34,'Summary Input Information'!$G$42:$G$46)) -> 0.05 | BE16: 54.99858852 | BF16: 3.163717555 | BG16: 5730 | BH16: 0.1513717277
A17: =IF(B17="","",6) -> 6 | B17: 15 | C17: 10 | D17: 183: Lamar - Loop 1 | E17: 2.9 | F17: 1 | G17: 1 | I17: 55 | J17: 3.163636364 | K17: 3 | M17: 69500 | N17: 0 | O17: 2 | P17: 2 | Q17: 2 | R17: 2 | U17: 5730 | V17: 0.83 | W17: 5.5 | AC17: 4 | AD17: =IF(AC17="","",LOOKUP(AC17,'TOD Splits'!$B$6:$B$17,'TOD Splits'!$C$6:$C$17)) -> US 183, 3.3 MI S OF SH 71, AUSTIN | AE17: =IF(M17="","",$M17*LOOKUP($AC17,'TOD Splits'!$B$28:$B$39,'TOD Splits'!$D$28:$D$39)) -> 3864.2 | AF17: =IF($M17="","",SUMPRODUCT('Summary Input Information'!$E$30:$E$34,'Summary Input Information'!$G$42:$G$46)) -> 0.05 | AG17: 49.19670278 | AH17: 3.536822392 | AI17: 5730 | AJ17: 0.7013556719 | AK17: =IF(AF17="","",$M17*LOOKUP($AC17,'TOD Splits'!$B$28:$B$39,'TOD Splits'!$E$28:$E$39)) -> 3428.666667 | AL17: =IF($M17="","",SUMPRODUCT('Summary Input Information'!$E$30:$E$34,'Summary Input Information'!$G$42:$G$46)) -> 0.05 | AM17: 51.83259946 | AN17: 3.356960712 | AO17: 5730 | AP17: 0.6223059919 | AQ17: =IF(AL17="","",$M17*LOOKUP($AC17,'TOD Splits'!$B$28:$B$39,'TOD Splits'!$F$28:$F$39)) -> 4962.3 | AR17: =IF($M17="","",SUMPRODUCT('Summary Input Information'!$E$30:$E$34,'Summary Input Information'!$G$42:$G$46)) -> 0.05 | AS17: 37.49558059 | AT17: 4.640546892 | AU17: 5730 | AV17: 0.9006617801 | AW17: =IF(AR17="","",$M17*LOOKUP($AC17,'TOD Splits'!$B$28:$B$39,'TOD Splits'!$G$28:$G$39)) -> 2310.875 | AX17: =IF($M17="","",SUMPRODUCT('Summary Input Information'!$E$30:$E$34,'Summary Input Information'!$G$42:$G$46)) -> 0.05 | AY17: 54.6189126 | AZ17: 3.185709706 | BA17: 5730 | BB17: 0.419425829 | BC17: =IF(AX17="","",$M17*LOOKUP($AC17,'TOD Splits'!$B$28:$B$39,'TOD Splits'!$H$28:$H$39)) -> 834 | BD17: =IF($M17="","",SUMPRODUCT('Summary Input Information'!$E$30:$E$34,'Summary Input Information'!$G$42:$G$46)) -> 0.05 | BE17: 54.99858852 | BF17: 3.163717555 | BG17: 5730 | BH17: 0.1513717277
A18: =IF(B18="","",7) -> 7 | B18: 15 | C18: 16 | D18: 183: Lamar - 35 | E18: 1 | F18: 1 | G18: 1 | I18: 55 | J18: 1.090909091 | K18: 3 | M18: 69500 | N18: 0 | O18: 1 | P18: 2 | Q18: 1 | R18: 2 | U18: 5730 | V18: 0.83 | W18: 5.5 | AC18: 4 | AD18: =IF(AC18="","",LOOKUP(AC18,'TOD Splits'!$B$6:$B$17,'TOD Splits'!$C$6:$C$17)) -> US 183, 3.3 MI S OF SH 71, AUSTIN | AE18: =IF(M18="","",$M18*LOOKUP($AC18,'TOD Splits'!$B$28:$B$39,'TOD Splits'!$D$28:$D$39)) -> 3864.2 | AF18: =IF($M18="","",SUMPRODUCT('Summary Input Information'!$E$30:$E$34,'Summary Input Information'!$G$42:$G$46)) -> 0.05 | AG18: 49.19670278 | AH18: 1.219593928 | AI18: 5730 | AJ18: 0.7013556719 | AK18: =IF(AF18="","",$M18*LOOKUP($AC18,'TOD Splits'!$B$28:$B$39,'TOD Splits'!$E$28:$E$39)) -> 3428.666667 | AL18: =IF($M18="","",SUMPRODUCT('Summary Input Information'!$E$30:$E$34,'Summary Input Information'!$G$42:$G$46)) -> 0.05 | AM18: 51.83259946 | AN18: 1.157572659 | AO18: 5730 | AP18: 0.6223059919 | AQ18: =IF(AL18="","",$M18*LOOKUP($AC18,'TOD Splits'!$B$28:$B$39,'TOD Splits'!$F$28:$F$39)) -> 4962.3 | AR18: =IF($M18="","",SUMPRODUCT('Summary Input Information'!$E$30:$E$34,'Summary Input Information'!$G$42:$G$46)) -> 0.05 | AS18: 37.49558059 | AT18: 1.600188584 | AU18: 5730 | AV18: 0.9006617801 | AW18: =IF(AR18="","",$M18*LOOKUP($AC18,'TOD Splits'!$B$28:$B$39,'TOD Splits'!$G$28:$G$39)) -> 2310.875 | AX18: =IF($M18="","",SUMPRODUCT('Summary Input Information'!$E$30:$E$34,'Summary Input Information'!$G$42:$G$46)) -> 0.05 | AY18: 54.6189126 | AZ18: 1.098520588 | BA18: 5730 | BB18: 0.419425829 | BC18: =IF(AX18="","",$M18*LOOKUP($AC18,'TOD Splits'!$B$28:$B$39,'TOD Splits'!$H$28:$H$39)) -> 834 | BD18: =IF($M18="","",SUMPRODUCT('Summary Input Information'!$E$30:$E$34,'Summary Input Information'!$G$42:$G$46)) -> 0.05 | BE18: 54.99858852 | BF18: 1.090937088 | BG18: 5730 | BH18: 0.1513717277
A19: =IF(B19="","",8) -> 8 | B19: 16 | C19: 15 | D19: 183: 35 - Lamar | E19: 1 | F19: 1 | G19: 1 | I19: 55 | J19: 1.090909091 | K19: 3 | M19: 69500 | N19: 0 | O19: 1 | P19: 2 | Q19: 1 | R19: 2 | U19: 5730 | V19: 0.83 | W19: 5.5 | AC19: 4 | AD19: =IF(AC19="","",LOOKUP(AC19,'TOD Splits'!$B$6:$B$17,'TOD Splits'!$C$6:$C$17)) -> US 183, 3.3 MI S OF SH 71, AUSTIN | AE19: =IF(M19="","",$M19*LOOKUP($AC19,'TOD Splits'!$B$28:$B$39,'TOD Splits'!$D$28:$D$39)) -> 3864.2 | AF19: =IF($M19="","",SUMPRODUCT('Summary Input Information'!$E$30:$E$34,'Summary Input Information'!$G$42:$G$46)) -> 0.05 | AG19: 49.19670278 | AH19: 1.219593928 | AI19: 5730 | AJ19: 0.7013556719 | AK19: =IF(AF19="","",$M19*LOOKUP($AC19,'TOD Splits'!$B$28:$B$39,'TOD Splits'!$E$28:$E$39)) -> 3428.666667 | AL19: =IF($M19="","",SUMPRODUCT('Summary Input Information'!$E$30:$E$34,'Summary Input Information'!$G$42:$G$46)) -> 0.05 | AM19: 51.83259946 | AN19: 1.157572659 | AO19: 5730 | AP19: 0.6223059919 | AQ19: =IF(AL19="","",$M19*LOOKUP($AC19,'TOD Splits'!$B$28:$B$39,'TOD Splits'!$F$28:$F$39)) -> 4962.3 | AR19: =IF($M19="","",SUMPRODUCT('Summary Input Information'!$E$30:$E$34,'Summary Input Information'!$G$42:$G$46)) -> 0.05 | AS19: 37.49558059 | AT19: 1.600188584 | AU19: 5730 | AV19: 0.9006617801 | AW19: =IF(AR19="","",$M19*LOOKUP($AC19,'TOD Splits'!$B$28:$B$39,'TOD Splits'!$G$28:$G$39)) -> 2310.875 | AX19: =IF($M19="","",SUMPRODUCT('Summary Input Information'!$E$30:$E$34,'Summary Input Information'!$G$42:$G$46)) -> 0.05 | AY19: 54.6189126 | AZ19: 1.098520588 | BA19: 5730 | BB19: 0.419425829 | BC19: =IF(AX19="","",$M19*LOOKUP($AC19,'TOD Splits'!$B$28:$B$39,'TOD Splits'!$H$28:$H$39)) -> 834 | BD19: =IF($M19="","",SUMPRODUCT('Summary Input Information'!$E$30:$E$34,'Summary Input Information'!$G$42:$G$46)) -> 0.05 | BE19: 54.99858852 | BF19: 1.090937088 | BG19: 5730 | BH19: 0.1513717277
A20: =IF(B20="","",9) -> 9 | B20: 16 | C20: 18 | D20: 183: 35 - Dessau / Cameron | E20: 0.9 | F20: 1 | G20: 1 | I20: 55 | J20: 0.9818181818 | K20: 3 | M20: 42000 | N20: 0 | O20: 1 | P20: 0 | Q20: 1 | R20: 0 | U20: 5730 | V20: 0.83 | W20: 5.5 | AC20: 4 | AD20: =IF(AC20="","",LOOKUP(AC20,'TOD Splits'!$B$6:$B$17,'TOD Splits'!$C$6:$C$17)) -> US 183, 3.3 MI S OF SH 71, AUSTIN | AE20: =IF(M20="","",$M20*LOOKUP($AC20,'TOD Splits'!$B$28:$B$39,'TOD Splits'!$D$28:$D$39)) -> 2335.2 | AF20: =IF($M20="","",SUMPRODUCT('Summary Input Information'!$E$30:$E$34,'Summary Input Information'!$G$42:$G$46)) -> 0.05 | AG20: 54.59648639 | AH20: 0.9890746377 | AI20: 5730 | AJ20: 0.4238408377 | AK20: =IF(AF20="","",$M20*LOOKUP($AC20,'TOD Splits'!$B$28:$B$39,'TOD Splits'!$E$28:$E$39)) -> 2072 | AL20: =IF($M20="","",SUMPRODUCT('Summary Input Information'!$E$30:$E$34,'Summary Input Information'!$G$42:$G$46)) -> 0.05 | AM20: 54.79022306 | AN20: 0.9855772979 | AO20: 5730 | AP20: 0.376069808 | AQ20: =IF(AL20="","",$M20*LOOKUP($AC20,'TOD Splits'!$B$28:$B$39,'TOD Splits'!$F$28:$F$39)) -> 2998.8 | AR20: =IF($M20="","",SUMPRODUCT('Summary Input Information'!$E$30:$E$34,'Summary Input Information'!$G$42:$G$46)) -> 0.05 | AS20: 53.43698115 | AT20: 1.010536128 | AU20: 5730 | AV20: 0.5442848168 | AW20: =IF(AR20="","",$M20*LOOKUP($AC20,'TOD Splits'!$B$28:$B$39,'TOD Splits'!$G$28:$G$39)) -> 1396.5 | AX20: =IF($M20="","",SUMPRODUCT('Summary Input Information'!$E$30:$E$34,'Summary Input Information'!$G$42:$G$46)) -> 0.05 | AY20: 54.97596694 | AZ20: 0.9822473893 | BA20: 5730 | BB20: 0.2534659686 | BC20: =IF(AX20="","",$M20*LOOKUP($AC20,'TOD Splits'!$B$28:$B$39,'TOD Splits'!$H$28:$H$39)) -> 504 | BD20: =IF($M20="","",SUMPRODUCT('Summary Input Information'!$E$30:$E$34,'Summary Input Information'!$G$42:$G$46)) -> 0.05 | BE20: 54.99991156 | BF20: 0.9818197606 | BG20: 5730 | BH20: 0.09147643979
A21: =IF(B21="","",10) -> 10 | B21: 18 | C21: 16 | D21: 183: Dessau / Cameron - 35 | E21: 0.9 | F21: 1 | G21: 1 | I21: 55 | J21: 0.9818181818 | K21: 3 | M21: 42000 | N21: 0 | O21: 0 | P21: 1 | Q21: 0 | R21: 1 | U21: 5730 | V21: 0.83 | W21: 5.5 | AC21: 4 | AD21: =IF(AC21="","",LOOKUP(AC21,'TOD Splits'!$B$6:$B$17,'TOD Splits'!$C$6:$C$17)) -> US 183, 3.3 MI S OF SH 71, AUSTIN | AE21: =IF(M21="","",$M21*LOOKUP($AC21,'TOD Splits'!$B$28:$B$39,'TOD Splits'!$D$28:$D$39)) -> 2335.2 | AF21: =IF($M21="","",SUMPRODUCT('Summary Input Information'!$E$30:$E$34,'Summary Input Information'!$G$42:$G$46)) -> 0.05 | AG21: 54.59648639 | AH21: 0.9890746377 | AI21: 5730 | AJ21: 0.4238408377 | AK21: =IF(AF21="","",$M21*LOOKUP($AC21,'TOD Splits'!$B$28:$B$39,'TOD Splits'!$E$28:$E$39)) -> 2072 | AL21: =IF($M21="","",SUMPRODUCT('Summary Input Information'!$E$30:$E$34,'Summary Input Information'!$G$42:$G$46)) -> 0.05 | AM21: 54.79022306 | AN21: 0.9855772979 | AO21: 5730 | AP21: 0.376069808 | AQ21: =IF(AL21="","",$M21*LOOKUP($AC21,'TOD Splits'!$B$28:$B$39,'TOD Splits'!$F$28:$F$39)) -> 2998.8 | AR21: =IF($M21="","",SUMPRODUCT('Summary Input Information'!$E$30:$E$34,'Summary Input Information'!$G$42:$G$46)) -> 0.05 | AS21: 53.43698115 | AT21: 1.010536128 | AU21: 5730 | AV21: 0.5442848168 | AW21: =IF(AR21="","",$M21*LOOKUP($AC21,'TOD Splits'!$B$28:$B$39,'TOD Splits'!$G$28:$G$39)) -> 1396.5 | AX21: =IF($M21="","",SUMPRODUCT('Summary Input Information'!$E$30:$E$34,'Summary Input Information'!$G$42:$G$46)) -> 0.05 | AY21: 54.97596694 | AZ21: 0.9822473893 | BA21: 5730 | BB21: 0.2534659686 | BC21: =IF(AX21="","",$M21*LOOKUP($AC21,'TOD Splits'!$B$28:$B$39,'TOD Splits'!$H$28:$H$39)) -> 504 | BD21: =IF($M21="","",SUMPRODUCT('Summary Input Information'!$E$30:$E$34,'Summary Input Information'!$G$42:$G$46)) -> 0.05 | BE21: 54.99991156 | BF21: 0.9818197606 | BG21: 5730 | BH21: 0.09147643979
A22: =IF(B22="","",11) -> 11 | B22: 18 | C22: 20 | D22: 183: Dessau / Cameron - 290 | E22: 0.9 | F22: 1 | G22: 1 | I22: 55 | J22: 0.9818181818 | K22: 3 | M22: 42000 | N22: 0 | O22: 0 | P22: 1 | Q22: 0 | R22: 1 | U22: 5730 | V22: 0.83 | W22: 5.5 | AC22: 4 | AD22: =IF(AC22="","",LOOKUP(AC22,'TOD Splits'!$B$6:$B$17,'TOD Splits'!$C$6:$C$17)) -> US 183, 3.3 MI S OF SH 71, AUSTIN | AE22: =IF(M22="","",$M22*LOOKUP($AC22,'TOD Splits'!$B$28:$B$39,'TOD Splits'!$D$28:$D$39)) -> 2335.2 | AF22: =IF($M22="","",SUMPRODUCT('Summary Input Information'!$E$30:$E$34,'Summary Input Information'!$G$42:$G$46)) -> 0.05 | AG22: 54.59648639 | AH22: 0.9890746377 | AI22: 5730 | AJ22: 0.4238408377 | AK22: =IF(AF22="","",$M22*LOOKUP($AC22,'TOD Splits'!$B$28:$B$39,'TOD Splits'!$E$28:$E$39)) -> 2072 | AL22: =IF($M22="","",SUMPRODUCT('Summary Input Information'!$E$30:$E$34,'Summary Input Information'!$G$42:$G$46)) -> 0.05 | AM22: 54.79022306 | AN22: 0.9855772979 | AO22: 5730 | AP22: 0.376069808 | AQ22: =IF(AL22="","",$M22*LOOKUP($AC22,'TOD Splits'!$B$28:$B$39,'TOD Splits'!$F$28:$F$39)) -> 2998.8 | AR22: =IF($M22="","",SUMPRODUCT('Summary Input Information'!$E$30:$E$34,'Summary Input Information'!$G$42:$G$46)) -> 0.05 | AS22: 53.43698115 | AT22: 1.010536128 | AU22: 5730 | AV22: 0.5442848168 | AW22: =IF(AR22="","",$M22*LOOKUP($AC22,'TOD Splits'!$B$28:$B$39,'TOD Splits'!$G$28:$G$39)) -> 1396.5 | AX22: =IF($M22="","",SUMPRODUCT('Summary Input Information'!$E$30:$E$34,'Summary Input Information'!$G$42:$G$46)) -> 0.05 | AY22: 54.97596694 | AZ22: 0.9822473893 | BA22: 5730 | BB22: 0.2534659686 | BC22: =IF(AX22="","",$M22*LOOKUP($AC22,'TOD Splits'!$B$28:$B$39,'TOD Splits'!$H$28:$H$39)) -> 504 | BD22: =IF($M22="","",SUMPRODUCT('Summary Input Information'!$E$30:$E$34,'Summary Input Information'!$G$42:$G$46)) -> 0.05 | BE22: 54.99991156 | BF22: 0.9818197606 | BG22: 5730 | BH22: 0.09147643979
A23: =IF(B23="","",12) -> 12 | B23: 20 | C23: 18 | D23: 183: 183: 290 - Dessau / Cameron | E23: 0.9 | F23: 1 | G23: 1 | I23: 55 | J23: 0.9818181818 | K23: 3 | M23: 42000 | N23: 0 | O23: 1 | P23: 0 | Q23: 1 | R23: 0 | U23: 5730 | V23: 0.83 | W23: 5.5 | AC23: 4 | AD23: =IF(AC23="","",LOOKUP(AC23,'TOD Splits'!$B$6:$B$17,'TOD Splits'!$C$6:$C$17)) -> US 183, 3.3 MI S OF SH 71, AUSTIN | AE23: =IF(M23="","",$M23*LOOKUP($AC23,'TOD Splits'!$B$28:$B$39,'TOD Splits'!$D$28:$D$39)) -> 2335.2 | AF23: =IF($M23="","",SUMPRODUCT('Summary Input Information'!$E$30:$E$34,'Summary Input Information'!$G$42:$G$46)) -> 0.05 | AG23: 54.59648639 | AH23: 0.9890746377 | AI23: 5730 | AJ23: 0.4238408377 | AK23: =IF(AF23="","",$M23*LOOKUP($AC23,'TOD Splits'!$B$28:$B$39,'TOD Splits'!$E$28:$E$39)) -> 2072 | AL23: =IF($M23="","",SUMPRODUCT('Summary Input Information'!$E$30:$E$34,'Summary Input Information'!$G$42:$G$46)) -> 0.05 | AM23: 54.79022306 | AN23: 0.9855772979 | AO23: 5730 | AP23: 0.376069808 | AQ23: =IF(AL23="","",$M23*LOOKUP($AC23,'TOD Splits'!$B$28:$B$39,'TOD Splits'!$F$28:$F$39)) -> 2998.8 | AR23: =IF($M23="","",SUMPRODUCT('Summary Input Information'!$E$30:$E$34,'Summary Input Information'!$G$42:$G$46)) -> 0.05 | AS23: 53.43698115 | AT23: 1.010536128 | AU23: 5730 | AV23: 0.5442848168 | AW23: =IF(AR23="","",$M23*LOOKUP($AC23,'TOD Splits'!$B$28:$B$39,'TOD Splits'!$G$28:$G$39)) -> 1396.5 | AX23: =IF($M23="","",SUMPRODUCT('Summary Input Information'!$E$30:$E$34,'Summary Input Information'!$G$42:$G$46)) -> 0.05 | AY23: 54.97596694 | AZ23: 0.9822473893 | BA23: 5730 | BB23: 0.2534659686 | BC23: =IF(AX23="","",$M23*LOOKUP($AC23,'TOD Splits'!$B$28:$B$39,'TOD Splits'!$H$28:$H$39)) -> 504 | BD23: =IF($M23="","",SUMPRODUCT('Summary Input Information'!$E$30:$E$34,'Summary Input Information'!$G$42:$G$46)) -> 0.05 | BE23: 54.99991156 | BF23: 0.9818197606 | BG23: 5730 | BH23: 0.09147643979
A24: =IF(B24="","",13) -> 13 | B24: 20 | C24: 29 | D24: 183: 290 - Springdale | E24: 0.9 | F24: 1 | G24: 1 | I24: 55 | J24: 0.9818181818 | K24: 2 | M24: 27000 | N24: 0 | O24: 1 | P24: 1 | Q24: 1 | R24: 1 | U24: 2400 | V24: 0.83 | W24: 5.5 | AC24: 4 | AD24: =IF(AC24="","",LOOKUP(AC24,'TOD Splits'!$B$6:$B$17,'TOD Splits'!$C$6:$C$17)) -> US 183, 3.3 MI S OF SH 71, AUSTIN | AE24: =IF(M24="","",$M24*LOOKUP($AC24,'TOD Splits'!$B$28:$B$39,'TOD Splits'!$D$28:$D$39)) -> 1501.2 | AF24: =IF($M24="","",SUMPRODUCT('Summary Input Information'!$E$30:$E$34,'Summary Input Information'!$G$42:$G$46)) -> 0.05 | AG24: 51.02111293 | AH24: 1.05838538 | AI24: 2400 | AJ24: 0.65052 | AK24: =IF(AF24="","",$M24*LOOKUP($AC24,'TOD Splits'!$B$28:$B$39,'TOD Splits'!$E$28:$E$39)) -> 1332 | AL24: =IF($M24="","",SUMPRODUCT('Summary Input Information'!$E$30:$E$34,'Summary Input Information'!$G$42:$G$46)) -> 0.05 | AM24: 52.86432314 | AN24: 1.02148286 | AO24: 2400 | AP24: 0.5772 | AQ24: =IF(AL24="","",$M24*LOOKUP($AC24,'TOD Splits'!$B$28:$B$39,'TOD Splits'!$F$28:$F$39)) -> 1927.8 | AR24: =IF($M24="","",SUMPRODUCT('Summary Input Information'!$E$30:$E$34,'Summary Input Information'!$G$42:$G$46)) -> 0.05 | AS24: 42.02863267 | AT24: 1.284838372 | AU24: 2400 | AV24: 0.83538 | AW24: =IF(AR24="","",$M24*LOOKUP($AC24,'TOD Splits'!$B$28:$B$39,'TOD Splits'!$G$28:$G$39)) -> 897.75 | AX24: =IF($M24="","",SUMPRODUCT('Summary Input Information'!$E$30:$E$34,'Summary Input Information'!$G$42:$G$46)) -> 0.05 | AY24: 54.74746683 | AZ24: 0.9863470062 | BA24: 2400 | BB24: 0.389025 | BC24: =IF(AX24="","",$M24*LOOKUP($AC24,'TOD Splits'!$B$28:$B$39,'TOD Splits'!$H$28:$H$39)) -> 324 | BD24: =IF($M24="","",SUMPRODUCT('Summary Input Information'!$E$30:$E$34,'Summary Input Information'!$G$42:$G$46)) -> 0.05 | BE24: 54.99906685 | BF24: 0.98183484 | BG24: 2400 | BH24: 0.1404
A25: =IF(B25="","",14) -> 14 | B25: 29 | C25: 20 | D25: 183: Springdale - 290 | E25: 0.9 | F25: 1 | G25: 1 | I25: 55 | J25: 0.9818181818 | K25: 2 | M25: 27000 | N25: 0 | O25: 1 | P25: 1 | Q25: 1 | R25: 1 | U25: 2400 | V25: 0.83 | W25: 5.5 | AC25: 4 | AD25: =IF(AC25="","",LOOKUP(AC25,'TOD Splits'!$B$6:$B$17,'TOD Splits'!$C$6:$C$17)) -> US 183, 3.3 MI S OF SH 71, AUSTIN | AE25: =IF(M25="","",$M25*LOOKUP($AC25,'TOD Splits'!$B$28:$B$39,'TOD Splits'!$D$28:$D$39)) -> 1501.2 | AF25: =IF($M25="","",SUMPRODUCT('Summary Input Information'!$E$30:$E$34,'Summary Input Information'!$G$42:$G$46)) -> 0.05 | AG25: 51.02111293 | AH25: 1.05838538 | AI25: 2400 | AJ25: 0.65052 | AK25: =IF(AF25="","",$M25*LOOKUP($AC25,'TOD Splits'!$B$28:$B$39,'TOD Splits'!$E$28:$E$39)) -> 1332 | AL25: =IF($M25="","",SUMPRODUCT('Summary Input Information'!$E$30:$E$34,'Summary Input Information'!$G$42:$G$46)) -> 0.05 | AM25: 52.86432314 | AN25: 1.02148286 | AO25: 2400 | AP25: 0.5772 | AQ25: =IF(AL25="","",$M25*LOOKUP($AC25,'TOD Splits'!$B$28:$B$39,'TOD Splits'!$F$28:$F$39)) -> 1927.8 | AR25: =IF($M25="","",SUMPRODUCT('Summary Input Information'!$E$30:$E$34,'Summary Input Information'!$G$42:$G$46)) -> 0.05 | AS25: 42.02863267 | AT25: 1.284838372 | AU25: 2400 | AV25: 0.83538 | AW25: =IF(AR25="","",$M25*LOOKUP($AC25,'TOD Splits'!$B$28:$B$39,'TOD Splits'!$G$28:$G$39)) -> 897.75 | AX25: =IF($M25="","",SUMPRODUCT('Summary Input Information'!$E$30:$E$34,'Summary Input Information'!$G$42:$G$46)) -> 0.05 | AY25: 54.74746683 | AZ25: 0.9863470062 | BA25: 2400 | BB25: 0.389025 | BC25: =IF(AX25="","",$M25*LOOKUP($AC25,'TOD Splits'!$B$28:$B$39,'TOD Splits'!$H$28:$H$39)) -> 324 | BD25: =IF($M25="","",SUMPRODUCT('Summary Input Information'!$E$30:$E$34,'Summary Input Information'!$G$42:$G$46)) -> 0.05 | BE25: 54.99906685 | BF25: 0.98183484 | BG25: 2400 | BH25: 0.1404
A26: =IF(B26="","",15) -> 15 | B26: 29 | C26: 35 | D26: 183: Springdale - FM 969 | E26: 2.2 | F26: 2 | G26: 1 | I26: 45 | J26: 2.933333333 | K26: 2 | M26: 31500 | N26: 0 | S26: 0 | T26: 1 | U26: 1580 | V26: 0.74 | W26: 5 | AC26: 4 | AD26: =IF(AC26="","",LOOKUP(AC26,'TOD Splits'!$B$6:$B$17,'TOD Splits'!$C$6:$C$17)) -> US 183, 3.3 MI S OF SH 71, AUSTIN | AE26: =IF(M26="","",$M26*LOOKUP($AC26,'TOD Splits'!$B$28:$B$39,'TOD Splits'!$D$28:$D$39)) -> 1751.4 | AF26: =IF($M26="","",SUMPRODUCT('Summary Input Information'!$E$30:$E$34,'Summary Input Information'!$G$42:$G$46)) -> 0.05 | AG26: 17.95156793 | AH26: 7.353118151 | AI26: 1580 | AJ26: 1.152820253 | AK26: =IF(AF26="","",$M26*LOOKUP($AC26,'TOD Splits'!$B$28:$B$39,'TOD Splits'!$E$28:$E$39)) -> 1554 | AL26: =IF($M26="","",SUMPRODUCT('Summary Input Information'!$E$30:$E$34,'Summary Input Information'!$G$42:$G$46)) -> 0.05 | AM26: 24.60839672 | AN26: 5.364022756 | AO26: 1580 | AP26: 1.022886076 | AQ26: =IF(AL26="","",$M26*LOOKUP($AC26,'TOD Splits'!$B$28:$B$39,'TOD Splits'!$F$28:$F$39)) -> 2249.1 | AR26: =IF($M26="","",SUMPRODUCT('Summary Input Information'!$E$30:$E$34,'Summary Input Information'!$G$42:$G$46)) -> 0.05 | AS26: 7.186119544 | AT26: 18.36874535 | AU26: 1580 | AV26: 1.480420253 | AW26: =IF(AR26="","",$M26*LOOKUP($AC26,'TOD Splits'!$B$28:$B$39,'TOD Splits'!$G$28:$G$39)) -> 1047.375 | AX26: =IF($M26="","",SUMPRODUCT('Summary Input Information'!$E$30:$E$34,'Summary Input Information'!$G$42:$G$46)) -> 0.05 | AY26: 40.34985998 | AZ26: 3.271386817 | BA26: 1580 | BB26: 0.6894113924 | BC26: =IF(AX26="","",$M26*LOOKUP($AC26,'TOD Splits'!$B$28:$B$39,'TOD Splits'!$H$28:$H$39)) -> 378 | BD26: =IF($M26="","",SUMPRODUCT('Summary Input Information'!$E$30:$E$34,'Summary Input Information'!$G$42:$G$46)) -> 0.05 | BE26: 44.96826941 | BF26: 2.935403157 | BG26: 1580 | BH26: 0.2488101266
A27: =IF(B27="","",16) -> 16 | B27: 35 | C27: 29 | D27: 183: FM969 - Springdale | E27: 2.2 | F27: 2 | G27: 1 | I27: 45 | J27: 2.933333333 | K27: 2 | M27: 31500 | N27: 0 | S27: 0 | T27: 1 | U27: 1580 | V27: 0.74 | W27: 5 | AC27: 4 | AD27: =IF(AC27="","",LOOKUP(AC27,'TOD Splits'!$B$6:$B$17,'TOD Splits'!$C$6:$C$17)) -> US 183, 3.3 MI S OF SH 71, AUSTIN | AE27: =IF(M27="","",$M27*LOOKUP($AC27,'TOD Splits'!$B$28:$B$39,'TOD Splits'!$D$28:$D$39)) -> 1751.4 | AF27: =IF($M27="","",SUMPRODUCT('Summary Input Information'!$E$30:$E$34,'Summary Input Information'!$G$42:$G$46)) -> 0.05 | AG27: 17.95156793 | AH27: 7.353118151 | AI27: 1580 | AJ27: 1.152820253 | AK27: =IF(AF27="","",$M27*LOOKUP($AC27,'TOD Splits'!$B$28:$B$39,'TOD Splits'!$E$28:$E$39)) -> 1554 | AL27: =IF($M27="","",SUMPRODUCT('Summary Input Information'!$E$30:$E$34,'Summary Input Information'!$G$42:$G$46)) -> 0.05 | AM27: 24.60839672 | AN27: 5.364022756 | AO27: 1580 | AP27: 1.022886076 | AQ27: =IF(AL27="","",$M27*LOOKUP($AC27,'TOD Splits'!$B$28:$B$39,'TOD Splits'!$F$28:$F$39)) -> 2249.1 | AR27: =IF($M27="","",SUMPRODUCT('Summary Input Information'!$E$30:$E$34,'Summary Input Information'!$G$42:$G$46)) -> 0.05 | AS27: 7.186119544 | AT27: 18.36874535 | AU27: 1580 | AV27: 1.480420253 | AW27: =IF(AR27="","",$M27*LOOKUP($AC27,'TOD Splits'!$B$28:$B$39,'TOD Splits'!$G$28:$G$39)) -> 1047.375 | AX27: =IF($M27="","",SUMPRODUCT('Summary Input Information'!$E$30:$E$34,'Summary Input Information'!$G$42:$G$46)) -> 0.05 | AY27: 40.34985998 | AZ27: 3.271386817 | BA27: 1580 | BB27: 0.6894113924 | BC27: =IF(AX27="","",$M27*LOOKUP($AC27,'TOD Splits'!$B$28:$B$39,'TOD Splits'!$H$28:$H$39)) -> 378 | BD27: =IF($M27="","",SUMPRODUCT('Summary Input Information'!$E$30:$E$34,'Summary Input Information'!$G$42:$G$46)) -> 0.05 | BE27: 44.96826941 | BF27: 2.935403157 | BG27: 1580 | BH27: 0.2488101266
A28: =IF(B28="","",17) -> 17 | B28: 35 | C28: 42 | D28: 183: FM969 - Airport Blvd | E28: 3.2 | F28: 2 | G28: 1 | I28: 45 | J28: 4.266666667 | K28: 2 | M28: 26500 | N28: 0 | S28: 0 | T28: 1 | U28: 1580 | V28: 0.74 | W28: 5 | AC28: 4 | AD28: =IF(AC28="","",LOOKUP(AC28,'TOD Splits'!$B$6:$B$17,'TOD Splits'!$C$6:$C$17)) -> US 183, 3.3 MI S OF SH 71, AUSTIN | AE28: =IF(M28="","",$M28*LOOKUP($AC28,'TOD Splits'!$B$28:$B$39,'TOD Splits'!$D$28:$D$39)) -> 1473.4 | AF28: =IF($M28="","",SUMPRODUCT('Summary Input Information'!$E$30:$E$34,'Summary Input Information'!$G$42:$G$46)) -> 0.05 | AG28: 27.52434895 | AH28: 6.975641834 | AI28: 1580 | AJ28: 0.9698329114 | AK28: =IF(AF28="","",$M28*LOOKUP($AC28,'TOD Splits'!$B$28:$B$39,'TOD Splits'!$E$28:$E$39)) -> 1307.333333 | AL28: =IF($M28="","",SUMPRODUCT('Summary Input Information'!$E$30:$E$34,'Summary Input Information'!$G$42:$G$46)) -> 0.05 | AM28: 33.35368609 | AN28: 5.756485189 | AO28: 1580 | AP28: 0.8605232068 | AQ28: =IF(AL28="","",$M28*LOOKUP($AC28,'TOD Splits'!$B$28:$B$39,'TOD Splits'!$F$28:$F$39)) -> 1892.1 | AR28: =IF($M28="","",SUMPRODUCT('Summary Input Information'!$E$30:$E$34,'Summary Input Information'!$G$42:$G$46)) -> 0.05 | AS28: 13.98668469 | AT28: 13.7273417 | AU28: 1580 | AV28: 1.245432911 | AW28: =IF(AR28="","",$M28*LOOKUP($AC28,'TOD Splits'!$B$28:$B$39,'TOD Splits'!$G$28:$G$39)) -> 881.125 | AX28: =IF($M28="","",SUMPRODUCT('Summary Input Information'!$E$30:$E$34,'Summary Input Information'!$G$42:$G$46)) -> 0.05 | AY28: 42.91589876 | AZ28: 4.473866458 | BA28: 1580 | BB28: 0.5799810127 | BC28: =IF(AX28="","",$M28*LOOKUP($AC28,'TOD Splits'!$B$28:$B$39,'TOD Splits'!$H$28:$H$39)) -> 318 | BD28: =IF($M28="","",SUMPRODUCT('Summary Input Information'!$E$30:$E$34,'Summary Input Information'!$G$42:$G$46)) -> 0.05 | BE28: 44.98662382 | BF28: 4.267935303 | BG28: 1580 | BH28: 0.2093164557
A29: =IF(B29="","",18) -> 18 | B29: 42 | C29: 35 | D29: 183: Airport Blvd - FM 969 | E29: 3.2 | F29: 2 | G29: 1 | I29: 45 | J29: 4.266666667 | K29: 2 | M29: 26500 | N29: 0 | S29: 0 | T29: 1 | U29: 1580 | V29: 0.74 | W29: 5 | AC29: 4 | AD29: =IF(AC29="","",LOOKUP(AC29,'TOD Splits'!$B$6:$B$17,'TOD Splits'!$C$6:$C$17)) -> US 183, 3.3 MI S OF SH 71, AUSTIN | AE29: =IF(M29="","",$M29*LOOKUP($AC29,'TOD Splits'!$B$28:$B$39,'TOD Splits'!$D$28:$D$39)) -> 1473.4 | AF29: =IF($M29="","",SUMPRODUCT('Summary Input Information'!$E$30:$E$34,'Summary Input Information'!$G$42:$G$46)) -> 0.05 | AG29: 27.52434895 | AH29: 6.975641834 | AI29: 1580 | AJ29: 0.9698329114 | AK29: =IF(AF29="","",$M29*LOOKUP($AC29,'TOD Splits'!$B$28:$B$39,'TOD Splits'!$E$28:$E$39)) -> 1307.333333 | AL29: =IF($M29="","",SUMPRODUCT('Summary Input Information'!$E$30:$E$34,'Summary Input Information'!$G$42:$G$46)) -> 0.05 | AM29: 33.35368609 | AN29: 5.756485189 | AO29: 1580 | AP29: 0.8605232068 | AQ29: =IF(AL29="","",$M29*LOOKUP($AC29,'TOD Splits'!$B$28:$B$39,'TOD Splits'!$F$28:$F$39)) -> 1892.1 | AR29: =IF($M29="","",SUMPRODUCT('Summary Input Information'!$E$30:$E$34,'Summary Input Information'!$G$42:$G$46)) -> 0.05 | AS29: 13.98668469 | AT29: 13.7273417 | AU29: 1580 | AV29: 1.245432911 | AW29: =IF(AR29="","",$M29*LOOKUP($AC29,'TOD Splits'!$B$28:$B$39,'TOD Splits'!$G$28:$G$39)) -> 881.125 | AX29: =IF($M29="","",SUMPRODUCT('Summary Input Information'!$E$30:$E$34,'Summary Input Information'!$G$42:$G$46)) -> 0.05 | AY29: 42.91589876 | AZ29: 4.473866458 | BA29: 1580 | BB29: 0.5799810127 | BC29: =IF(AX29="","",$M29*LOOKUP($AC29,'TOD Splits'!$B$28:$B$39,'TOD Splits'!$H$28:$H$39)) -> 318 | BD29: =IF($M29="","",SUMPRODUCT('Summary Input Information'!$E$30:$E$34,'Summary Input Information'!$G$42:$G$46)) -> 0.05 | BE29: 44.98662382 | BF29: 4.267935303 | BG29: 1580 | BH29: 0.2093164557
A30: =IF(B30="","",19) -> 19 | B30: 42 | C30: 46 | D30: 183: Airport Blvd - 71 | E30: 2.1 | F30: 2 | G30: 1 | I30: 45 | J30: 2.8 | K30: 2 | M30: 38000 | N30: 0 | S30: 1 | T30: 1 | U30: 2370 | V30: 0.74 | W30: 5 | AC30: 4 | AD30: =IF(AC30="","",LOOKUP(AC30,'TOD Splits'!$B$6:$B$17,'TOD Splits'!$C$6:$C$17)) -> US 183, 3.3 MI S OF SH 71, AUSTIN | AE30: =IF(M30="","",$M30*LOOKUP($AC30,'TOD Splits'!$B$28:$B$39,'TOD Splits'!$D$28:$D$39)) -> 2112.8 | AF30: =IF($M30="","",SUMPRODUCT('Summary Input Information'!$E$30:$E$34,'Summary Input Information'!$G$42:$G$46)) -> 0.05 | AG30: 29.86202273 | AH30: 4.219406071 | AI30: 2370 | AJ30: 0.927135865 | AK30: =IF(AF30="","",$M30*LOOKUP($AC30,'TOD Splits'!$B$28:$B$39,'TOD Splits'!$E$28:$E$39)) -> 1874.666667 | AL30: =IF($M30="","",SUMPRODUCT('Summary Input Information'!$E$30:$E$34,'Summary Input Information'!$G$42:$G$46)) -> 0.05 | AM30: 35.18951896 | AN30: 3.580611606 | AO30: 2370 | AP30: 0.8226385373 | AQ30: =IF(AL30="","",$M30*LOOKUP($AC30,'TOD Splits'!$B$28:$B$39,'TOD Splits'!$F$28:$F$39)) -> 2713.2 | AR30: =IF($M30="","",SUMPRODUCT('Summary Input Information'!$E$30:$E$34,'Summary Input Information'!$G$42:$G$46)) -> 0.05 | AS30: 16.24327737 | AT30: 7.75705525 | AU30: 2370 | AV30: 1.190602532 | AW30: =IF(AR30="","",$M30*LOOKUP($AC30,'TOD Splits'!$B$28:$B$39,'TOD Splits'!$G$28:$G$39)) -> 1263.5 | AX30: =IF($M30="","",SUMPRODUCT('Summary Input Information'!$E$30:$E$34,'Summary Input Information'!$G$42:$G$46)) -> 0.05 | AY30: 43.32032736 | AZ30: 2.908565278 | BA30: 2370 | BB30: 0.5544472574 | BC30: =IF(AX30="","",$M30*LOOKUP($AC30,'TOD Splits'!$B$28:$B$39,'TOD Splits'!$H$28:$H$39)) -> 456 | BD30: =IF($M30="","",SUMPRODUCT('Summary Input Information'!$E$30:$E$34,'Summary Input Information'!$G$42:$G$46)) -> 0.05 | BE30: 44.98931953 | BF30: 2.80066472 | BG30: 2370 | BH30: 0.2001012658
A31: =IF(B31="","",20) -> 20 | B31: 46 | C31: 42 | D31: 183: 71 - Airport Blvd | E31: 2.1 | F31: 2 | G31: 1 | I31: 45 | J31: 2.8 | K31: 2 | M31: 38000 | N31: 0 | S31: 1 | T31: 1 | U31: 2370 | V31: 0.74 | W31: 5 | AC31: 4 | AD31: =IF(AC31="","",LOOKUP(AC31,'TOD Splits'!$B$6:$B$17,'TOD Splits'!$C$6:$C$17)) -> US 183, 3.3 MI S OF SH 71, AUSTIN | AE31: =IF(M31="","",$M31*LOOKUP($AC31,'TOD Splits'!$B$28:$B$39,'TOD Splits'!$D$28:$D$39)) -> 2112.8 | AF31: =IF($M31="","",SUMPRODUCT('Summary Input Information'!$E$30:$E$34,'Summary Input Information'!$G$42:$G$46)) -> 0.05 | AG31: 29.86202273 | AH31: 4.219406071 | AI31: 2370 | AJ31: 0.927135865 | AK31: =IF(AF31="","",$M31*LOOKUP($AC31,'TOD Splits'!$B$28:$B$39,'TOD Splits'!$E$28:$E$39)) -> 1874.666667 | AL31: =IF($M31="","",SUMPRODUCT('Summary Input Information'!$E$30:$E$34,'Summary Input Information'!$G$42:$G$46)) -> 0.05 | AM31: 35.18951896 | AN31: 3.580611606 | AO31: 2370 | AP31: 0.8226385373 | AQ31: =IF(AL31="","",$M31*LOOKUP($AC31,'TOD Splits'!$B$28:$B$39,'TOD Splits'!$F$28:$F$39)) -> 2713.2 | AR31: =IF($M31="","",SUMPRODUCT('Summary Input Information'!$E$30:$E$34,'Summary Input Information'!$G$42:$G$46)) -> 0.05 | AS31: 16.24327737 | AT31: 7.75705525 | AU31: 2370 | AV31: 1.190602532 | AW31: =IF(AR31="","",$M31*LOOKUP($AC31,'TOD Splits'!$B$28:$B$39,'TOD Splits'!$G$28:$G$39)) -> 1263.5 | AX31: =IF($M31="","",SUMPRODUCT('Summary Input Information'!$E$30:$E$34,'Summary Input Information'!$G$42:$G$46)) -> 0.05 | AY31: 43.32032736 | AZ31: 2.908565278 | BA31: 2370 | BB31: 0.5544472574 | BC31: =IF(AX31="","",$M31*LOOKUP($AC31,'TOD Splits'!$B$28:$B$39,'TOD Splits'!$H$28:$H$39)) -> 456 | BD31: =IF($M31="","",SUMPRODUCT('Summary Input Information'!$E$30:$E$34,'Summary Input Information'!$G$42:$G$46)) -> 0.05 | BE31: 44.98931953 | BF31: 2.80066472 | BG31: 2370 | BH31: 0.2001012658
... 38 more rows

Sheet Alt 1 Hwy Link Config
A1: Project Evaluation Toolkit - Alternative Scenario 1 Highway Link Configuration
E3: Notes: | F3: All links are directional (including # of lanes in each link)
F4: Link Class: 1=Freeway, 2= Principal Arterial, 3 = Major Arterial | U4: Total Links | V4: =MAX(A12:A311) -> 0
F5: 4=Minor Arterial, 5 =Collector, 6=Ramp | U5: Total Nodes | V5: =MAX(B:C) -> 0
F6: Area Type: 1=Urban, 2=Suburban, 3=Rural
F7: Land Use: 0=Rural/Residential, 1=Industrial, 2=Commercial, 3=Office
F8: Median: 0=None, 1=TWLTL, 2=Restrictive Median
A10: Link Characteristics | N10: Freeway Only (Optional) | R10: Arterial Only | T10: Capacity & Link Performance Parameters | W10: Managed Lanes with Variable Capacity | BD10: Facility Type | BF10: Area Type
A11: Link # | B11: From Node # | C11: To Node # | D11: Link Name | E11: Length (mi) | F11: Link Class | G11: Area Type | H11: FF Speed (User Entered) | I11: FF Speed | J11: FF Time | K11: # Lanes | L11: CMF | M11: Variable Capacity (0/1) | N11: # Entr Ramps (User Entered) | O11: # Exit Ramps (User Entered) | P11: # Entr Ramps | Q11: # Ex Ramps | R11: Land Use | S11: Median | T11: Link Capacity (pc/hr) | U11: BPR Formula Alpha | V11: BPR Formula Beta | W11: AM Peak Capacity | X11: Mid Day Capactiy | Y11: PM Peak Capacity | Z11: Evening Capacity | AA11: Off Peak Capacity | BF11: Urban | BG11: Sub-Urban | BH11: Rural
A12: =IF(B12="","",1) ->  | I12: =IF(B12="","",IF(H12<>0,H12,OFFSET(BF$12,IF(F12=1,0,IF(F12=5,2,IF(F12=6,3,1))),0))) ->  | J12: =IF(B12="","",60*E12/I12) ->  | P12: =IF(OR(B12="",F12<>1),"",IF(N12<>"",N12,AvgEntRamps*E12)) ->  | Q12: =IF(OR(B12="",F12<>1),"",IF(O12<>"",O12,AvgExRamps*E12)) ->  | U12: =IF(B12="","",IF(F12=1,FWayAlpha,IF(F12=5,CollectAlpha,IF(F12=6,RampAlpha,ArterialAlpha)))) ->  | V12: =IF(C12="","",IF(F12=1,FWBeta,IF(F12=5,CollectBeta,IF(F12=6,RampBeta,ArterialBeta)))) ->  | BD12: Freeway | BF12: ='Summary Input Information'!N10 -> 55 | BG12: ='Summary Input Information'!O10 -> 60 | BH12: 65
A13: =IF(B13="","",2) ->  | BD13: Arterial | BF13: 45 | BG13: 50 | BH13: 55
A14: =IF(B14="","",3) ->  | BD14: Collector | BF14: 40 | BG14: 45 | BH14: 50
A15: =IF(B15="","",4) ->  | BD15: Ramp | BF15: ='Summary Input Information'!N12 -> 40 | BG15: 40 | BH15: 40
A16: =IF(B16="","",5) -> 
A17: =IF(B17="","",6) -> 
A18: =IF(B18="","",7) -> 
A19: =IF(B19="","",8) -> 
A20: =IF(B20="","",9) -> 
A21: =IF(B21="","",10) -> 
A22: =IF(B22="","",11) -> 
A23: =IF(B23="","",12) -> 
A24: =IF(B24="","",13) -> 
A25: =IF(B25="","",14) -> 
A26: =IF(B26="","",15) -> 
A27: =IF(B27="","",16) -> 
A28: =IF(B28="","",17) -> 
A29: =IF(B29="","",18) -> 
A30: =IF(B30="","",19) -> 
A31: =IF(B31="","",20) -> 
... 38 more rows

Sheet Alt 2 Hwy Link Config
A1: Project Evaluation Toolkit - Alternative Scenario 2 Highway Link Configuration
E3: Notes: | F3: All links are directional (including # of lanes in each link)
F4: Link Class: 1=Freeway, 2= Principal Arterial, 3 = Major Arterial | U4: Total Links | V4: =MAX(A12:A311) -> 0
F5: 4=Minor Arterial, 5 =Collector, 6=Ramp | U5: Total Nodes | V5: =MAX(B:C) -> 0
F6: Area Type: 1=Urban, 2=Suburban, 3=Rural
F7: Land Use: 0=Rural/Residential, 1=Industrial, 2=Commercial, 3=Office
F8: Median: 0=None, 1=TWLTL, 2=Restrictive Median
A10: Link Characteristics | N10: Freeway Only (Optional) | R10: Arterial Only | T10: Capacity & Link Performance Parameters | W10: Managed Lanes with Variable Capacity | BD10: Facility Type | BF10: Area Type
A11: Link # | B11: From Node # | C11: To Node # | D11: Link Name | E11: Length (mi) | F11: Link Class | G11: Area Type | H11: FF Speed (User Entered) | I11: FF Speed | J11: FF Time | K11: # Lanes | L11: CMF | M11: Variable Capacity (0/1) | N11: # Entr Ramps (User Entered) | O11: # Exit Ramps (User Entered) | P11: # Entr Ramps | Q11: # Ex Ramps | R11: Land Use | S11: Median | T11: Link Capacity (pc/hr) | U11: BPR Formula Alpha | V11: BPR Formula Beta | W11: AM Peak Capacity | X11: Mid Day Capactiy | Y11: PM Peak Capacity | Z11: Evening Capacity | AA11: Off Peak Capacity | BF11: Urban | BG11: Sub-Urban | BH11: Rural
A12: =IF(B12="","",1) ->  | I12: =IF(B12="","",IF(H12<>0,H12,OFFSET(BF$12,IF(F12=1,0,IF(F12=5,2,IF(F12=6,3,1))),0))) ->  | J12: =IF(B12="","",60*E12/I12) ->  | P12: =IF(OR(B12="",F12<>1),"",IF(N12<>"",N12,AvgEntRamps*E12)) ->  | Q12: =IF(OR(B12="",F12<>1),"",IF(O12<>"",O12,AvgExRamps*E12)) ->  | U12: =IF(B12="","",IF(F12=1,FWayAlpha,IF(F12=5,CollectAlpha,IF(F12=6,RampAlpha,ArterialAlpha)))) ->  | V12: =IF(C12="","",IF(F12=1,FWBeta,IF(F12=5,CollectBeta,IF(F12=6,RampBeta,ArterialBeta)))) ->  | BD12: Freeway | BF12: ='Summary Input Information'!N10 -> 55 | BG12: ='Summary Input Information'!O10 -> 60 | BH12: ='Summary Input Information'!P10 -> 65
A13: =IF(B13="","",2) ->  | BD13: Arterial | BF13: ='Summary Input Information'!N11 -> 45 | BG13: ='Summary Input Information'!O11 -> 50 | BH13: ='Summary Input Information'!P11 -> 55
A14: =IF(B14="","",3) ->  | BD14: Collector | BF14: ='Summary Input Information'!N12 -> 40 | BG14: ='Summary Input Information'!O12 -> 45 | BH14: ='Summary Input Information'!P12 -> 50
A15: =IF(B15="","",4) ->  | BD15: Ramp | BF15: ='Summary Input Information'!N13 -> 40 | BG15: ='Summary Input Information'!O13 -> 40 | BH15: ='Summary Input Information'!P13 -> 40
A16: =IF(B16="","",5) -> 
A17: =IF(B17="","",6) -> 
A18: =IF(B18="","",7) -> 
A19: =IF(B19="","",8) -> 
A20: =IF(B20="","",9) -> 
A21: =IF(B21="","",10) -> 
A22: =IF(B22="","",11) -> 
A23: =IF(B23="","",12) -> 
A24: =IF(B24="","",13) -> 
A25: =IF(B25="","",14) -> 
A26: =IF(B26="","",15) -> 
A27: =IF(B27="","",16) -> 
A28: =IF(B28="","",17) -> 
A29: =IF(B29="","",18) -> 
A30: =IF(B30="","",19) -> 
A31: =IF(B31="","",20) -> 
... 38 more rows

Sheet Alt 3 Hwy Link Config
A1: Project Evaluation Toolkit - Alternative Scenario 3 Highway Link Configuration
E3: Notes: | F3: All links are directional (including # of lanes in each link)
F4: Link Class: 1=Freeway, 2= Principal Arterial, 3 = Major Arterial | U4: Total Links | V4: =MAX(A12:A311) -> 0
F5: 4=Minor Arterial, 5 =Collector, 6=Ramp | U5: Total Nodes | V5: =MAX(B:C) -> 0
F6: Area Type: 1=Urban, 2=Suburban, 3=Rural
F7: Land Use: 0=Rural/Residential, 1=Industrial, 2=Commercial, 3=Office
F8: Median: 0=None, 1=TWLTL, 2=Restrictive Median
A10: Link Characteristics | N10: Freeway Only (Optional) | R10: Arterial Only | T10: Capacity & Link Performance Parameters | W10: Managed Lanes with Variable Capacity | BE10: Facility Type | BG10: Area Type
A11: Link # | B11: From Node # | C11: To Node # | D11: Link Name | E11: Length (mi) | F11: Link Class | G11: Area Type | H11: FF Speed (User Entered) | I11: FF Speed | J11: FF Time | K11: # Lanes | L11: CMF | M11: Variable Capacity (0/1) | N11: # Entr Ramps (User Entered) | O11: # Exit Ramps (User Entered) | P11: # Entr Ramps | Q11: # Ex Ramps | R11: Land Use | S11: Median | T11: Link Capacity (pc/hr) | U11: BPR Formula Alpha | V11: BPR Formula Beta | W11: AM Peak Capacity | X11: Mid Day Capactiy | Y11: PM Peak Capacity | Z11: Evening Capacity | AA11: Off Peak Capacity | BG11: Urban | BH11: Sub-Urban | BI11: Rural
A12: =IF(B12="","",1) ->  | I12: =IF(B12="","",IF(H12<>0,H12,OFFSET(BG$12,IF(F12=1,0,IF(F12=5,2,IF(F12=6,3,1))),0))) ->  | J12: =IF(B12="","",60*E12/I12) ->  | P12: =IF(OR(B12="",F12<>1),"",IF(N12<>"",N12,AvgEntRamps*E12)) ->  | Q12: =IF(OR(B12="",F12<>1),"",IF(O12<>"",O12,AvgExRamps*E12)) ->  | U12: =IF(B12="","",IF(F12=1,FWayAlpha,IF(F12=5,CollectAlpha,IF(F12=6,RampAlpha,ArterialAlpha)))) ->  | V12: =IF(C12="","",IF(F12=1,FWBeta,IF(F12=5,CollectBeta,IF(F12=6,RampBeta,ArterialBeta)))) ->  | BE12: Freeway | BG12: ='Summary Input Information'!N10 -> 55 | BH12: ='Summary Input Information'!O10 -> 60 | BI12: ='Summary Input Information'!P10 -> 65
A13: =IF(B13="","",2) ->  | BE13: Arterial | BG13: ='Summary Input Information'!N11 -> 45 | BH13: ='Summary Input Information'!O11 -> 50 | BI13: ='Summary Input Information'!P11 -> 55
A14: =IF(B14="","",3) ->  | BE14: Collector | BG14: ='Summary Input Information'!N12 -> 40 | BH14: ='Summary Input Information'!O12 -> 45 | BI14: ='Summary Input Information'!P12 -> 50
A15: =IF(B15="","",4) ->  | BE15: Ramp | BG15: ='Summary Input Information'!N13 -> 40 | BH15: ='Summary Input Information'!O13 -> 40 | BI15: ='Summary Input Information'!P13 -> 40
A16: =IF(B16="","",5) -> 
A17: =IF(B17="","",6) -> 
A18: =IF(B18="","",7) -> 
A19: =IF(B19="","",8) -> 
A20: =IF(B20="","",9) -> 
A21: =IF(B21="","",10) -> 
A22: =IF(B22="","",11) -> 
A23: =IF(B23="","",12) -> 
A24: =IF(B24="","",13) -> 
A25: =IF(B25="","",14) -> 
A26: =IF(B26="","",15) -> 
A27: =IF(B27="","",16) -> 
A28: =IF(B28="","",17) -> 
A29: =IF(B29="","",18) -> 
A30: =IF(B30="","",19) -> 
A31: =IF(B31="","",20) -> 
... 38 more rows

Sheet Tolls Base
A1: Project Evaluation Toolkit - Base Case Toll Settings
F10: AM Toll Settings | K10: Mid Day Toll Settings | P10: PM Toll Settings | U10: Evening Toll Settings | Z10: Off Peak Toll Settings
A11: Link # | B11: From Node # | C11: To Node # | D11: Link Name | E11: Length | F11: Vehicle Class 1 | G11: Vehicle Class 2 | H11: Vehicle Class 3 | I11: Vehicle Class 4 | J11: Vehicle Class 5 | K11: Vehicle Class 1 | L11: Vehicle Class 2 | M11: Vehicle Class 3 | N11: Vehicle Class 4 | O11: Vehicle Class 5 | P11: Vehicle Class 1 | Q11: Vehicle Class 2 | R11: Vehicle Class 3 | S11: Vehicle Class 4 | T11: Vehicle Class 5 | U11: Vehicle Class 1 | V11: Vehicle Class 2 | W11: Vehicle Class 3 | X11: Vehicle Class 4 | Y11: Vehicle Class 5 | Z11: Vehicle Class 1 | AA11: Vehicle Class 2 | AB11: Vehicle Class 3 | AC11: Vehicle Class 4 | AD11: Vehicle Class 5
A12: =IF('Base Hwy Link Config'!A12="","",'Base Hwy Link Config'!A12) -> 1 | B12: =IF('Base Hwy Link Config'!B12="","",'Base Hwy Link Config'!B12) -> 51 | C12: =IF('Base Hwy Link Config'!C12="","",'Base Hwy Link Config'!C12) -> 1 | D12: =IF('Base Hwy Link Config'!D12="","",'Base Hwy Link Config'!D12) -> 183: N of TT45 - TT45 | E12: =IF('Base Hwy Link Config'!E12="","",'Base Hwy Link Config'!E12) -> 1 | F12: 0.11 | G12: 0.11 | H12: 0.11 | I12: 0.11 | J12: 0.44 | K12: 0.11 | L12: 0.11 | M12: 0.11 | N12: 0.11 | O12: 0.44 | P12: 0.11 | Q12: 0.11 | R12: 0.11 | S12: 0.11 | T12: 0.44 | U12: 0.11 | V12: 0.11 | W12: 0.11 | X12: 0.11 | Y12: 0.44 | Z12: 0.11 | AA12: 0.11 | AB12: 0.11 | AC12: 0.11 | AD12: 0.44
A13: =IF('Base Hwy Link Config'!A13="","",'Base Hwy Link Config'!A13) -> 2 | B13: =IF('Base Hwy Link Config'!B13="","",'Base Hwy Link Config'!B13) -> 1 | C13: =IF('Base Hwy Link Config'!C13="","",'Base Hwy Link Config'!C13) -> 51 | D13: =IF('Base Hwy Link Config'!D13="","",'Base Hwy Link Config'!D13) -> 183: TT45 - N of TT45 | E13: =IF('Base Hwy Link Config'!E13="","",'Base Hwy Link Config'!E13) -> 1 | F13: 0.11 | G13: 0.11 | H13: 0.11 | I13: 0.11 | J13: 0.44 | K13: 0.11 | L13: 0.11 | M13: 0.11 | N13: 0.11 | O13: 0.44 | P13: 0.11 | Q13: 0.11 | R13: 0.11 | S13: 0.11 | T13: 0.44 | U13: 0.11 | V13: 0.11 | W13: 0.11 | X13: 0.11 | Y13: 0.44 | Z13: 0.11 | AA13: 0.11 | AB13: 0.11 | AC13: 0.11 | AD13: 0.44
A14: =IF('Base Hwy Link Config'!A14="","",'Base Hwy Link Config'!A14) -> 3 | B14: =IF('Base Hwy Link Config'!B14="","",'Base Hwy Link Config'!B14) -> 1 | C14: =IF('Base Hwy Link Config'!C14="","",'Base Hwy Link Config'!C14) -> 10 | D14: =IF('Base Hwy Link Config'!D14="","",'Base Hwy Link Config'!D14) -> 183: TT45 Loop 1 | E14: =IF('Base Hwy Link Config'!E14="","",'Base Hwy Link Config'!E14) -> 7.8
A15: =IF('Base Hwy Link Config'!A15="","",'Base Hwy Link Config'!A15) -> 4 | B15: =IF('Base Hwy Link Config'!B15="","",'Base Hwy Link Config'!B15) -> 10 | C15: =IF('Base Hwy Link Config'!C15="","",'Base Hwy Link Config'!C15) -> 1 | D15: =IF('Base Hwy Link Config'!D15="","",'Base Hwy Link Config'!D15) -> 183: Loop 1 - TT 45 | E15: =IF('Base Hwy Link Config'!E15="","",'Base Hwy Link Config'!E15) -> 7.8
A16: =IF('Base Hwy Link Config'!A16="","",'Base Hwy Link Config'!A16) -> 5 | B16: =IF('Base Hwy Link Config'!B16="","",'Base Hwy Link Config'!B16) -> 10 | C16: =IF('Base Hwy Link Config'!C16="","",'Base Hwy Link Config'!C16) -> 15 | D16: =IF('Base Hwy Link Config'!D16="","",'Base Hwy Link Config'!D16) -> 183: Loop 1 - Lamar | E16: =IF('Base Hwy Link Config'!E16="","",'Base Hwy Link Config'!E16) -> 2.9
A17: =IF('Base Hwy Link Config'!A17="","",'Base Hwy Link Config'!A17) -> 6 | B17: =IF('Base Hwy Link Config'!B17="","",'Base Hwy Link Config'!B17) -> 15 | C17: =IF('Base Hwy Link Config'!C17="","",'Base Hwy Link Config'!C17) -> 10 | D17: =IF('Base Hwy Link Config'!D17="","",'Base Hwy Link Config'!D17) -> 183: Lamar - Loop 1 | E17: =IF('Base Hwy Link Config'!E17="","",'Base Hwy Link Config'!E17) -> 2.9
A18: =IF('Base Hwy Link Config'!A18="","",'Base Hwy Link Config'!A18) -> 7 | B18: =IF('Base Hwy Link Config'!B18="","",'Base Hwy Link Config'!B18) -> 15 | C18: =IF('Base Hwy Link Config'!C18="","",'Base Hwy Link Config'!C18) -> 16 | D18: =IF('Base Hwy Link Config'!D18="","",'Base Hwy Link Config'!D18) -> 183: Lamar - 35 | E18: =IF('Base Hwy Link Config'!E18="","",'Base Hwy Link Config'!E18) -> 1
A19: =IF('Base Hwy Link Config'!A19="","",'Base Hwy Link Config'!A19) -> 8 | B19: =IF('Base Hwy Link Config'!B19="","",'Base Hwy Link Config'!B19) -> 16 | C19: =IF('Base Hwy Link Config'!C19="","",'Base Hwy Link Config'!C19) -> 15 | D19: =IF('Base Hwy Link Config'!D19="","",'Base Hwy Link Config'!D19) -> 183: 35 - Lamar | E19: =IF('Base Hwy Link Config'!E19="","",'Base Hwy Link Config'!E19) -> 1
A20: =IF('Base Hwy Link Config'!A20="","",'Base Hwy Link Config'!A20) -> 9 | B20: =IF('Base Hwy Link Config'!B20="","",'Base Hwy Link Config'!B20) -> 16 | C20: =IF('Base Hwy Link Config'!C20="","",'Base Hwy Link Config'!C20) -> 18 | D20: =IF('Base Hwy Link Config'!D20="","",'Base Hwy Link Config'!D20) -> 183: 35 - Dessau / Cameron | E20: =IF('Base Hwy Link Config'!E20="","",'Base Hwy Link Config'!E20) -> 0.9
A21: =IF('Base Hwy Link Config'!A21="","",'Base Hwy Link Config'!A21) -> 10 | B21: =IF('Base Hwy Link Config'!B21="","",'Base Hwy Link Config'!B21) -> 18 | C21: =IF('Base Hwy Link Config'!C21="","",'Base Hwy Link Config'!C21) -> 16 | D21: =IF('Base Hwy Link Config'!D21="","",'Base Hwy Link Config'!D21) -> 183: Dessau / Cameron - 35 | E21: =IF('Base Hwy Link Config'!E21="","",'Base Hwy Link Config'!E21) -> 0.9
A22: =IF('Base Hwy Link Config'!A22="","",'Base Hwy Link Config'!A22) -> 11 | B22: =IF('Base Hwy Link Config'!B22="","",'Base Hwy Link Config'!B22) -> 18 | C22: =IF('Base Hwy Link Config'!C22="","",'Base Hwy Link Config'!C22) -> 20 | D22: =IF('Base Hwy Link Config'!D22="","",'Base Hwy Link Config'!D22) -> 183: Dessau / Cameron - 290 | E22: =IF('Base Hwy Link Config'!E22="","",'Base Hwy Link Config'!E22) -> 0.9
A23: =IF('Base Hwy Link Config'!A23="","",'Base Hwy Link Config'!A23) -> 12 | B23: =IF('Base Hwy Link Config'!B23="","",'Base Hwy Link Config'!B23) -> 20 | C23: =IF('Base Hwy Link Config'!C23="","",'Base Hwy Link Config'!C23) -> 18 | D23: =IF('Base Hwy Link Config'!D23="","",'Base Hwy Link Config'!D23) -> 183: 183: 290 - Dessau / Cameron | E23: =IF('Base Hwy Link Config'!E23="","",'Base Hwy Link Config'!E23) -> 0.9
A24: =IF('Base Hwy Link Config'!A24="","",'Base Hwy Link Config'!A24) -> 13 | B24: =IF('Base Hwy Link Config'!B24="","",'Base Hwy Link Config'!B24) -> 20 | C24: =IF('Base Hwy Link Config'!C24="","",'Base Hwy Link Config'!C24) -> 29 | D24: =IF('Base Hwy Link Config'!D24="","",'Base Hwy Link Config'!D24) -> 183: 290 - Springdale | E24: =IF('Base Hwy Link Config'!E24="","",'Base Hwy Link Config'!E24) -> 0.9
A25: =IF('Base Hwy Link Config'!A25="","",'Base Hwy Link Config'!A25) -> 14 | B25: =IF('Base Hwy Link Config'!B25="","",'Base Hwy Link Config'!B25) -> 29 | C25: =IF('Base Hwy Link Config'!C25="","",'Base Hwy Link Config'!C25) -> 20 | D25: =IF('Base Hwy Link Config'!D25="","",'Base Hwy Link Config'!D25) -> 183: Springdale - 290 | E25: =IF('Base Hwy Link Config'!E25="","",'Base Hwy Link Config'!E25) -> 0.9
A26: =IF('Base Hwy Link Config'!A26="","",'Base Hwy Link Config'!A26) -> 15 | B26: =IF('Base Hwy Link Config'!B26="","",'Base Hwy Link Config'!B26) -> 29 | C26: =IF('Base Hwy Link Config'!C26="","",'Base Hwy Link Config'!C26) -> 35 | D26: =IF('Base Hwy Link Config'!D26="","",'Base Hwy Link Config'!D26) -> 183: Springdale - FM 969 | E26: =IF('Base Hwy Link Config'!E26="","",'Base Hwy Link Config'!E26) -> 2.2
A27: =IF('Base Hwy Link Config'!A27="","",'Base Hwy Link Config'!A27) -> 16 | B27: =IF('Base Hwy Link Config'!B27="","",'Base Hwy Link Config'!B27) -> 35 | C27: =IF('Base Hwy Link Config'!C27="","",'Base Hwy Link Config'!C27) -> 29 | D27: =IF('Base Hwy Link Config'!D27="","",'Base Hwy Link Config'!D27) -> 183: FM969 - Springdale | E27: =IF('Base Hwy Link Config'!E27="","",'Base Hwy Link Config'!E27) -> 2.2
A28: =IF('Base Hwy Link Config'!A28="","",'Base Hwy Link Config'!A28) -> 17 | B28: =IF('Base Hwy Link Config'!B28="","",'Base Hwy Link Config'!B28) -> 35 | C28: =IF('Base Hwy Link Config'!C28="","",'Base Hwy Link Config'!C28) -> 42 | D28: =IF('Base Hwy Link Config'!D28="","",'Base Hwy Link Config'!D28) -> 183: FM969 - Airport Blvd | E28: =IF('Base Hwy Link Config'!E28="","",'Base Hwy Link Config'!E28) -> 3.2
A29: =IF('Base Hwy Link Config'!A29="","",'Base Hwy Link Config'!A29) -> 18 | B29: =IF('Base Hwy Link Config'!B29="","",'Base Hwy Link Config'!B29) -> 42 | C29: =IF('Base Hwy Link Config'!C29="","",'Base Hwy Link Config'!C29) -> 35 | D29: =IF('Base Hwy Link Config'!D29="","",'Base Hwy Link Config'!D29) -> 183: Airport Blvd - FM 969 | E29: =IF('Base Hwy Link Config'!E29="","",'Base Hwy Link Config'!E29) -> 3.2
A30: =IF('Base Hwy Link Config'!A30="","",'Base Hwy Link Config'!A30) -> 19 | B30: =IF('Base Hwy Link Config'!B30="","",'Base Hwy Link Config'!B30) -> 42 | C30: =IF('Base Hwy Link Config'!C30="","",'Base Hwy Link Config'!C30) -> 46 | D30: =IF('Base Hwy Link Config'!D30="","",'Base Hwy Link Config'!D30) -> 183: Airport Blvd - 71 | E30: =IF('Base Hwy Link Config'!E30="","",'Base Hwy Link Config'!E30) -> 2.1
A31: =IF('Base Hwy Link Config'!A31="","",'Base Hwy Link Config'!A31) -> 20 | B31: =IF('Base Hwy Link Config'!B31="","",'Base Hwy Link Config'!B31) -> 46 | C31: =IF('Base Hwy Link Config'!C31="","",'Base Hwy Link Config'!C31) -> 42 | D31: =IF('Base Hwy Link Config'!D31="","",'Base Hwy Link Config'!D31) -> 183: 71 - Airport Blvd | E31: =IF('Base Hwy Link Config'!E31="","",'Base Hwy Link Config'!E31) -> 2.1
... 38 more rows

Sheet Tolls Alt 1
A1: Project Evaluation Toolkit - Alternative Scenario 1 Toll Settings
F10: AM Toll Settings | K10: Mid Day Toll Settings | P10: PM Toll Settings | U10: Evening Toll Settings | Z10: Off Peak Toll Settings
A11: Link # | B11: From Node # | C11: To Node # | D11: Link Name | E11: Length | F11: Vehicle Class 1 | G11: Vehicle Class 2 | H11: Vehicle Class 3 | I11: Vehicle Class 4 | J11: Vehicle Class 5 | K11: Vehicle Class 1 | L11: Vehicle Class 2 | M11: Vehicle Class 3 | N11: Vehicle Class 4 | O11: Vehicle Class 5 | P11: Vehicle Class 1 | Q11: Vehicle Class 2 | R11: Vehicle Class 3 | S11: Vehicle Class 4 | T11: Vehicle Class 5 | U11: Vehicle Class 1 | V11: Vehicle Class 2 | W11: Vehicle Class 3 | X11: Vehicle Class 4 | Y11: Vehicle Class 5 | Z11: Vehicle Class 1 | AA11: Vehicle Class 2 | AB11: Vehicle Class 3 | AC11: Vehicle Class 4 | AD11: Vehicle Class 5
A12: =IF('Alt 1 Hwy Link Config'!A12="","",'Alt 1 Hwy Link Config'!A12) ->  | B12: =IF('Alt 1 Hwy Link Config'!B12="","",'Alt 1 Hwy Link Config'!B12) ->  | C12: =IF('Alt 1 Hwy Link Config'!C12="","",'Alt 1 Hwy Link Config'!C12) ->  | D12: =IF('Alt 1 Hwy Link Config'!D12="","",'Alt 1 Hwy Link Config'!D12) ->  | E12: =IF('Alt 1 Hwy Link Config'!E12="","",'Alt 1 Hwy Link Config'!E12) -> 
A13: =IF('Alt 1 Hwy Link Config'!A13="","",'Alt 1 Hwy Link Config'!A13) ->  | B13: =IF('Alt 1 Hwy Link Config'!B13="","",'Alt 1 Hwy Link Config'!B13) ->  | C13: =IF('Alt 1 Hwy Link Config'!C13="","",'Alt 1 Hwy Link Config'!C13) ->  | D13: =IF('Alt 1 Hwy Link Config'!D13="","",'Alt 1 Hwy Link Config'!D13) ->  | E13: =IF('Alt 1 Hwy Link Config'!E13="","",'Alt 1 Hwy Link Config'!E13) -> 
A14: =IF('Alt 1 Hwy Link Config'!A14="","",'Alt 1 Hwy Link Config'!A14) ->  | B14: =IF('Alt 1 Hwy Link Config'!B14="","",'Alt 1 Hwy Link Config'!B14) ->  | C14: =IF('Alt 1 Hwy Link Config'!C14="","",'Alt 1 Hwy Link Config'!C14) ->  | D14: =IF('Alt 1 Hwy Link Config'!D14="","",'Alt 1 Hwy Link Config'!D14) ->  | E14: =IF('Alt 1 Hwy Link Config'!E14="","",'Alt 1 Hwy Link Config'!E14) -> 
A15: =IF('Alt 1 Hwy Link Config'!A15="","",'Alt 1 Hwy Link Config'!A15) ->  | B15: =IF('Alt 1 Hwy Link Config'!B15="","",'Alt 1 Hwy Link Config'!B15) ->  | C15: =IF('Alt 1 Hwy Link Config'!C15="","",'Alt 1 Hwy Link Config'!C15) ->  | D15: =IF('Alt 1 Hwy Link Config'!D15="","",'Alt 1 Hwy Link Config'!D15) ->  | E15: =IF('Alt 1 Hwy Link Config'!E15="","",'Alt 1 Hwy Link Config'!E15) -> 
A16: =IF('Alt 1 Hwy Link Config'!A16="","",'Alt 1 Hwy Link Config'!A16) ->  | B16: =IF('Alt 1 Hwy Link Config'!B16="","",'Alt 1 Hwy Link Config'!B16) ->  | C16: =IF('Alt 1 Hwy Link Config'!C16="","",'Alt 1 Hwy Link Config'!C16) ->  | D16: =IF('Alt 1 Hwy Link Config'!D16="","",'Alt 1 Hwy Link Config'!D16) ->  | E16: =IF('Alt 1 Hwy Link Config'!E16="","",'Alt 1 Hwy Link Config'!E16) -> 
A17: =IF('Alt 1 Hwy Link Config'!A17="","",'Alt 1 Hwy Link Config'!A17) ->  | B17: =IF('Alt 1 Hwy Link Config'!B17="","",'Alt 1 Hwy Link Config'!B17) ->  | C17: =IF('Alt 1 Hwy Link Config'!C17="","",'Alt 1 Hwy Link Config'!C17) ->  | D17: =IF('Alt 1 Hwy Link Config'!D17="","",'Alt 1 Hwy Link Config'!D17) ->  | E17: =IF('Alt 1 Hwy Link Config'!E17="","",'Alt 1 Hwy Link Config'!E17) -> 
A18: =IF('Alt 1 Hwy Link Config'!A18="","",'Alt 1 Hwy Link Config'!A18) ->  | B18: =IF('Alt 1 Hwy Link Config'!B18="","",'Alt 1 Hwy Link Config'!B18) ->  | C18: =IF('Alt 1 Hwy Link Config'!C18="","",'Alt 1 Hwy Link Config'!C18) ->  | D18: =IF('Alt 1 Hwy Link Config'!D18="","",'Alt 1 Hwy Link Config'!D18) ->  | E18: =IF('Alt 1 Hwy Link Config'!E18="","",'Alt 1 Hwy Link Config'!E18) -> 
A19: =IF('Alt 1 Hwy Link Config'!A19="","",'Alt 1 Hwy Link Config'!A19) ->  | B19: =IF('Alt 1 Hwy Link Config'!B19="","",'Alt 1 Hwy Link Config'!B19) ->  | C19: =IF('Alt 1 Hwy Link Config'!C19="","",'Alt 1 Hwy Link Config'!C19) ->  | D19: =IF('Alt 1 Hwy Link Config'!D19="","",'Alt 1 Hwy Link Config'!D19) ->  | E19: =IF('Alt 1 Hwy Link Config'!E19="","",'Alt 1 Hwy Link Config'!E19) -> 
A20: =IF('Alt 1 Hwy Link Config'!A20="","",'Alt 1 Hwy Link Config'!A20) ->  | B20: =IF('Alt 1 Hwy Link Config'!B20="","",'Alt 1 Hwy Link Config'!B20) ->  | C20: =IF('Alt 1 Hwy Link Config'!C20="","",'Alt 1 Hwy Link Config'!C20) ->  | D20: =IF('Alt 1 Hwy Link Config'!D20="","",'Alt 1 Hwy Link Config'!D20) ->  | E20: =IF('Alt 1 Hwy Link Config'!E20="","",'Alt 1 Hwy Link Config'!E20) -> 
A21: =IF('Alt 1 Hwy Link Config'!A21="","",'Alt 1 Hwy Link Config'!A21) ->  | B21: =IF('Alt 1 Hwy Link Config'!B21="","",'Alt 1 Hwy Link Config'!B21) ->  | C21: =IF('Alt 1 Hwy Link Config'!C21="","",'Alt 1 Hwy Link Config'!C21) ->  | D21: =IF('Alt 1 Hwy Link Config'!D21="","",'Alt 1 Hwy Link Config'!D21) ->  | E21: =IF('Alt 1 Hwy Link Config'!E21="","",'Alt 1 Hwy Link Config'!E21) -> 
A22: =IF('Alt 1 Hwy Link Config'!A22="","",'Alt 1 Hwy Link Config'!A22) ->  | B22: =IF('Alt 1 Hwy Link Config'!B22="","",'Alt 1 Hwy Link Config'!B22) ->  | C22: =IF('Alt 1 Hwy Link Config'!C22="","",'Alt 1 Hwy Link Config'!C22) ->  | D22: =IF('Alt 1 Hwy Link Config'!D22="","",'Alt 1 Hwy Link Config'!D22) ->  | E22: =IF('Alt 1 Hwy Link Config'!E22="","",'Alt 1 Hwy Link Config'!E22) -> 
A23: =IF('Alt 1 Hwy Link Config'!A23="","",'Alt 1 Hwy Link Config'!A23) ->  | B23: =IF('Alt 1 Hwy Link Config'!B23="","",'Alt 1 Hwy Link Config'!B23) ->  | C23: =IF('Alt 1 Hwy Link Config'!C23="","",'Alt 1 Hwy Link Config'!C23) ->  | D23: =IF('Alt 1 Hwy Link Config'!D23="","",'Alt 1 Hwy Link Config'!D23) ->  | E23: =IF('Alt 1 Hwy Link Config'!E23="","",'Alt 1 Hwy Link Config'!E23) -> 
A24: =IF('Alt 1 Hwy Link Config'!A24="","",'Alt 1 Hwy Link Config'!A24) ->  | B24: =IF('Alt 1 Hwy Link Config'!B24="","",'Alt 1 Hwy Link Config'!B24) ->  | C24: =IF('Alt 1 Hwy Link Config'!C24="","",'Alt 1 Hwy Link Config'!C24) ->  | D24: =IF('Alt 1 Hwy Link Config'!D24="","",'Alt 1 Hwy Link Config'!D24) ->  | E24: =IF('Alt 1 Hwy Link Config'!E24="","",'Alt 1 Hwy Link Config'!E24) -> 
A25: =IF('Alt 1 Hwy Link Config'!A25="","",'Alt 1 Hwy Link Config'!A25) ->  | B25: =IF('Alt 1 Hwy Link Config'!B25="","",'Alt 1 Hwy Link Config'!B25) ->  | C25: =IF('Alt 1 Hwy Link Config'!C25="","",'Alt 1 Hwy Link Config'!C25) ->  | D25: =IF('Alt 1 Hwy Link Config'!D25="","",'Alt 1 Hwy Link Config'!D25) ->  | E25: =IF('Alt 1 Hwy Link Config'!E25="","",'Alt 1 Hwy Link Config'!E25) -> 
A26: =IF('Alt 1 Hwy Link Config'!A26="","",'Alt 1 Hwy Link Config'!A26) ->  | B26: =IF('Alt 1 Hwy Link Config'!B26="","",'Alt 1 Hwy Link Config'!B26) ->  | C26: =IF('Alt 1 Hwy Link Config'!C26="","",'Alt 1 Hwy Link Config'!C26) ->  | D26: =IF('Alt 1 Hwy Link Config'!D26="","",'Alt 1 Hwy Link Config'!D26) ->  | E26: =IF('Alt 1 Hwy Link Config'!E26="","",'Alt 1 Hwy Link Config'!E26) -> 
A27: =IF('Alt 1 Hwy Link Config'!A27="","",'Alt 1 Hwy Link Config'!A27) ->  | B27: =IF('Alt 1 Hwy Link Config'!B27="","",'Alt 1 Hwy Link Config'!B27) ->  | C27: =IF('Alt 1 Hwy Link Config'!C27="","",'Alt 1 Hwy Link Config'!C27) ->  | D27: =IF('Alt 1 Hwy Link Config'!D27="","",'Alt 1 Hwy Link Config'!D27) ->  | E27: =IF('Alt 1 Hwy Link Config'!E27="","",'Alt 1 Hwy Link Config'!E27) -> 
A28: =IF('Alt 1 Hwy Link Config'!A28="","",'Alt 1 Hwy Link Config'!A28) ->  | B28: =IF('Alt 1 Hwy Link Config'!B28="","",'Alt 1 Hwy Link Config'!B28) ->  | C28: =IF('Alt 1 Hwy Link Config'!C28="","",'Alt 1 Hwy Link Config'!C28) ->  | D28: =IF('Alt 1 Hwy Link Config'!D28="","",'Alt 1 Hwy Link Config'!D28) ->  | E28: =IF('Alt 1 Hwy Link Config'!E28="","",'Alt 1 Hwy Link Config'!E28) -> 
A29: =IF('Alt 1 Hwy Link Config'!A29="","",'Alt 1 Hwy Link Config'!A29) ->  | B29: =IF('Alt 1 Hwy Link Config'!B29="","",'Alt 1 Hwy Link Config'!B29) ->  | C29: =IF('Alt 1 Hwy Link Config'!C29="","",'Alt 1 Hwy Link Config'!C29) ->  | D29: =IF('Alt 1 Hwy Link Config'!D29="","",'Alt 1 Hwy Link Config'!D29) ->  | E29: =IF('Alt 1 Hwy Link Config'!E29="","",'Alt 1 Hwy Link Config'!E29) -> 
A30: =IF('Alt 1 Hwy Link Config'!A30="","",'Alt 1 Hwy Link Config'!A30) ->  | B30: =IF('Alt 1 Hwy Link Config'!B30="","",'Alt 1 Hwy Link Config'!B30) ->  | C30: =IF('Alt 1 Hwy Link Config'!C30="","",'Alt 1 Hwy Link Config'!C30) ->  | D30: =IF('Alt 1 Hwy Link Config'!D30="","",'Alt 1 Hwy Link Config'!D30) ->  | E30: =IF('Alt 1 Hwy Link Config'!E30="","",'Alt 1 Hwy Link Config'!E30) -> 
A31: =IF('Alt 1 Hwy Link Config'!A31="","",'Alt 1 Hwy Link Config'!A31) ->  | B31: =IF('Alt 1 Hwy Link Config'!B31="","",'Alt 1 Hwy Link Config'!B31) ->  | C31: =IF('Alt 1 Hwy Link Config'!C31="","",'Alt 1 Hwy Link Config'!C31) ->  | D31: =IF('Alt 1 Hwy Link Config'!D31="","",'Alt 1 Hwy Link Config'!D31) ->  | E31: =IF('Alt 1 Hwy Link Config'!E31="","",'Alt 1 Hwy Link Config'!E31) -> 
... 38 more rows

Sheet Tolls Alt 2
A1: Project Evaluation Toolkit - Alternative Scenario 2 Toll Settings
F10: AM Toll Settings | K10: Mid Day Toll Settings | P10: PM Toll Settings | U10: Evening Toll Settings | Z10: Off Peak Toll Settings
A11: Link # | B11: From Node # | C11: To Node # | D11: Link Name | E11: Length | F11: Vehicle Class 1 | G11: Vehicle Class 2 | H11: Vehicle Class 3 | I11: Vehicle Class 4 | J11: Vehicle Class 5 | K11: Vehicle Class 1 | L11: Vehicle Class 2 | M11: Vehicle Class 3 | N11: Vehicle Class 4 | O11: Vehicle Class 5 | P11: Vehicle Class 1 | Q11: Vehicle Class 2 | R11: Vehicle Class 3 | S11: Vehicle Class 4 | T11: Vehicle Class 5 | U11: Vehicle Class 1 | V11: Vehicle Class 2 | W11: Vehicle Class 3 | X11: Vehicle Class 4 | Y11: Vehicle Class 5 | Z11: Vehicle Class 1 | AA11: Vehicle Class 2 | AB11: Vehicle Class 3 | AC11: Vehicle Class 4 | AD11: Vehicle Class 5
A12: =IF('Alt 2 Hwy Link Config'!A12="","",'Alt 2 Hwy Link Config'!A12) ->  | B12: =IF('Alt 2 Hwy Link Config'!B12="","",'Alt 2 Hwy Link Config'!B12) ->  | C12: =IF('Alt 2 Hwy Link Config'!C12="","",'Alt 2 Hwy Link Config'!C12) ->  | D12: =IF('Alt 2 Hwy Link Config'!D12="","",'Alt 2 Hwy Link Config'!D12) ->  | E12: =IF('Alt 2 Hwy Link Config'!E12="","",'Alt 2 Hwy Link Config'!E12) -> 
A13: =IF('Alt 2 Hwy Link Config'!A13="","",'Alt 2 Hwy Link Config'!A13) ->  | B13: =IF('Alt 2 Hwy Link Config'!B13="","",'Alt 2 Hwy Link Config'!B13) ->  | C13: =IF('Alt 2 Hwy Link Config'!C13="","",'Alt 2 Hwy Link Config'!C13) ->  | D13: =IF('Alt 2 Hwy Link Config'!D13="","",'Alt 2 Hwy Link Config'!D13) ->  | E13: =IF('Alt 2 Hwy Link Config'!E13="","",'Alt 2 Hwy Link Config'!E13) -> 
A14: =IF('Alt 2 Hwy Link Config'!A14="","",'Alt 2 Hwy Link Config'!A14) ->  | B14: =IF('Alt 2 Hwy Link Config'!B14="","",'Alt 2 Hwy Link Config'!B14) ->  | C14: =IF('Alt 2 Hwy Link Config'!C14="","",'Alt 2 Hwy Link Config'!C14) ->  | D14: =IF('Alt 2 Hwy Link Config'!D14="","",'Alt 2 Hwy Link Config'!D14) ->  | E14: =IF('Alt 2 Hwy Link Config'!E14="","",'Alt 2 Hwy Link Config'!E14) -> 
A15: =IF('Alt 2 Hwy Link Config'!A15="","",'Alt 2 Hwy Link Config'!A15) ->  | B15: =IF('Alt 2 Hwy Link Config'!B15="","",'Alt 2 Hwy Link Config'!B15) ->  | C15: =IF('Alt 2 Hwy Link Config'!C15="","",'Alt 2 Hwy Link Config'!C15) ->  | D15: =IF('Alt 2 Hwy Link Config'!D15="","",'Alt 2 Hwy Link Config'!D15) ->  | E15: =IF('Alt 2 Hwy Link Config'!E15="","",'Alt 2 Hwy Link Config'!E15) -> 
A16: =IF('Alt 2 Hwy Link Config'!A16="","",'Alt 2 Hwy Link Config'!A16) ->  | B16: =IF('Alt 2 Hwy Link Config'!B16="","",'Alt 2 Hwy Link Config'!B16) ->  | C16: =IF('Alt 2 Hwy Link Config'!C16="","",'Alt 2 Hwy Link Config'!C16) ->  | D16: =IF('Alt 2 Hwy Link Config'!D16="","",'Alt 2 Hwy Link Config'!D16) ->  | E16: =IF('Alt 2 Hwy Link Config'!E16="","",'Alt 2 Hwy Link Config'!E16) -> 
A17: =IF('Alt 2 Hwy Link Config'!A17="","",'Alt 2 Hwy Link Config'!A17) ->  | B17: =IF('Alt 2 Hwy Link Config'!B17="","",'Alt 2 Hwy Link Config'!B17) ->  | C17: =IF('Alt 2 Hwy Link Config'!C17="","",'Alt 2 Hwy Link Config'!C17) ->  | D17: =IF('Alt 2 Hwy Link Config'!D17="","",'Alt 2 Hwy Link Config'!D17) ->  | E17: =IF('Alt 2 Hwy Link Config'!E17="","",'Alt 2 Hwy Link Config'!E17) -> 
A18: =IF('Alt 2 Hwy Link Config'!A18="","",'Alt 2 Hwy Link Config'!A18) ->  | B18: =IF('Alt 2 Hwy Link Config'!B18="","",'Alt 2 Hwy Link Config'!B18) ->  | C18: =IF('Alt 2 Hwy Link Config'!C18="","",'Alt 2 Hwy Link Config'!C18) ->  | D18: =IF('Alt 2 Hwy Link Config'!D18="","",'Alt 2 Hwy Link Config'!D18) ->  | E18: =IF('Alt 2 Hwy Link Config'!E18="","",'Alt 2 Hwy Link Config'!E18) -> 
A19: =IF('Alt 2 Hwy Link Config'!A19="","",'Alt 2 Hwy Link Config'!A19) ->  | B19: =IF('Alt 2 Hwy Link Config'!B19="","",'Alt 2 Hwy Link Config'!B19) ->  | C19: =IF('Alt 2 Hwy Link Config'!C19="","",'Alt 2 Hwy Link Config'!C19) ->  | D19: =IF('Alt 2 Hwy Link Config'!D19="","",'Alt 2 Hwy Link Config'!D19) ->  | E19: =IF('Alt 2 Hwy Link Config'!E19="","",'Alt 2 Hwy Link Config'!E19) -> 
A20: =IF('Alt 2 Hwy Link Config'!A20="","",'Alt 2 Hwy Link Config'!A20) ->  | B20: =IF('Alt 2 Hwy Link Config'!B20="","",'Alt 2 Hwy Link Config'!B20) ->  | C20: =IF('Alt 2 Hwy Link Config'!C20="","",'Alt 2 Hwy Link Config'!C20) ->  | D20: =IF('Alt 2 Hwy Link Config'!D20="","",'Alt 2 Hwy Link Config'!D20) ->  | E20: =IF('Alt 2 Hwy Link Config'!E20="","",'Alt 2 Hwy Link Config'!E20) -> 
A21: =IF('Alt 2 Hwy Link Config'!A21="","",'Alt 2 Hwy Link Config'!A21) ->  | B21: =IF('Alt 2 Hwy Link Config'!B21="","",'Alt 2 Hwy Link Config'!B21) ->  | C21: =IF('Alt 2 Hwy Link Config'!C21="","",'Alt 2 Hwy Link Config'!C21) ->  | D21: =IF('Alt 2 Hwy Link Config'!D21="","",'Alt 2 Hwy Link Config'!D21) ->  | E21: =IF('Alt 2 Hwy Link Config'!E21="","",'Alt 2 Hwy Link Config'!E21) -> 
A22: =IF('Alt 2 Hwy Link Config'!A22="","",'Alt 2 Hwy Link Config'!A22) ->  | B22: =IF('Alt 2 Hwy Link Config'!B22="","",'Alt 2 Hwy Link Config'!B22) ->  | C22: =IF('Alt 2 Hwy Link Config'!C22="","",'Alt 2 Hwy Link Config'!C22) ->  | D22: =IF('Alt 2 Hwy Link Config'!D22="","",'Alt 2 Hwy Link Config'!D22) ->  | E22: =IF('Alt 2 Hwy Link Config'!E22="","",'Alt 2 Hwy Link Config'!E22) -> 
A23: =IF('Alt 2 Hwy Link Config'!A23="","",'Alt 2 Hwy Link Config'!A23) ->  | B23: =IF('Alt 2 Hwy Link Config'!B23="","",'Alt 2 Hwy Link Config'!B23) ->  | C23: =IF('Alt 2 Hwy Link Config'!C23="","",'Alt 2 Hwy Link Config'!C23) ->  | D23: =IF('Alt 2 Hwy Link Config'!D23="","",'Alt 2 Hwy Link Config'!D23) ->  | E23: =IF('Alt 2 Hwy Link Config'!E23="","",'Alt 2 Hwy Link Config'!E23) -> 
A24: =IF('Alt 2 Hwy Link Config'!A24="","",'Alt 2 Hwy Link Config'!A24) ->  | B24: =IF('Alt 2 Hwy Link Config'!B24="","",'Alt 2 Hwy Link Config'!B24) ->  | C24: =IF('Alt 2 Hwy Link Config'!C24="","",'Alt 2 Hwy Link Config'!C24) ->  | D24: =IF('Alt 2 Hwy Link Config'!D24="","",'Alt 2 Hwy Link Config'!D24) ->  | E24: =IF('Alt 2 Hwy Link Config'!E24="","",'Alt 2 Hwy Link Config'!E24) -> 
A25: =IF('Alt 2 Hwy Link Config'!A25="","",'Alt 2 Hwy Link Config'!A25) ->  | B25: =IF('Alt 2 Hwy Link Config'!B25="","",'Alt 2 Hwy Link Config'!B25) ->  | C25: =IF('Alt 2 Hwy Link Config'!C25="","",'Alt 2 Hwy Link Config'!C25) ->  | D25: =IF('Alt 2 Hwy Link Config'!D25="","",'Alt 2 Hwy Link Config'!D25) ->  | E25: =IF('Alt 2 Hwy Link Config'!E25="","",'Alt 2 Hwy Link Config'!E25) -> 
A26: =IF('Alt 2 Hwy Link Config'!A26="","",'Alt 2 Hwy Link Config'!A26) ->  | B26: =IF('Alt 2 Hwy Link Config'!B26="","",'Alt 2 Hwy Link Config'!B26) ->  | C26: =IF('Alt 2 Hwy Link Config'!C26="","",'Alt 2 Hwy Link Config'!C26) ->  | D26: =IF('Alt 2 Hwy Link Config'!D26="","",'Alt 2 Hwy Link Config'!D26) ->  | E26: =IF('Alt 2 Hwy Link Config'!E26="","",'Alt 2 Hwy Link Config'!E26) -> 
A27: =IF('Alt 2 Hwy Link Config'!A27="","",'Alt 2 Hwy Link Config'!A27) ->  | B27: =IF('Alt 2 Hwy Link Config'!B27="","",'Alt 2 Hwy Link Config'!B27) ->  | C27: =IF('Alt 2 Hwy Link Config'!C27="","",'Alt 2 Hwy Link Config'!C27) ->  | D27: =IF('Alt 2 Hwy Link Config'!D27="","",'Alt 2 Hwy Link Config'!D27) ->  | E27: =IF('Alt 2 Hwy Link Config'!E27="","",'Alt 2 Hwy Link Config'!E27) -> 
A28: =IF('Alt 2 Hwy Link Config'!A28="","",'Alt 2 Hwy Link Config'!A28) ->  | B28: =IF('Alt 2 Hwy Link Config'!B28="","",'Alt 2 Hwy Link Config'!B28) ->  | C28: =IF('Alt 2 Hwy Link Config'!C28="","",'Alt 2 Hwy Link Config'!C28) ->  | D28: =IF('Alt 2 Hwy Link Config'!D28="","",'Alt 2 Hwy Link Config'!D28) ->  | E28: =IF('Alt 2 Hwy Link Config'!E28="","",'Alt 2 Hwy Link Config'!E28) -> 
A29: =IF('Alt 2 Hwy Link Config'!A29="","",'Alt 2 Hwy Link Config'!A29) ->  | B29: =IF('Alt 2 Hwy Link Config'!B29="","",'Alt 2 Hwy Link Config'!B29) ->  | C29: =IF('Alt 2 Hwy Link Config'!C29="","",'Alt 2 Hwy Link Config'!C29) ->  | D29: =IF('Alt 2 Hwy Link Config'!D29="","",'Alt 2 Hwy Link Config'!D29) ->  | E29: =IF('Alt 2 Hwy Link Config'!E29="","",'Alt 2 Hwy Link Config'!E29) -> 
A30: =IF('Alt 2 Hwy Link Config'!A30="","",'Alt 2 Hwy Link Config'!A30) ->  | B30: =IF('Alt 2 Hwy Link Config'!B30="","",'Alt 2 Hwy Link Config'!B30) ->  | C30: =IF('Alt 2 Hwy Link Config'!C30="","",'Alt 2 Hwy Link Config'!C30) ->  | D30: =IF('Alt 2 Hwy Link Config'!D30="","",'Alt 2 Hwy Link Config'!D30) ->  | E30: =IF('Alt 2 Hwy Link Config'!E30="","",'Alt 2 Hwy Link Config'!E30) -> 
A31: =IF('Alt 2 Hwy Link Config'!A31="","",'Alt 2 Hwy Link Config'!A31) ->  | B31: =IF('Alt 2 Hwy Link Config'!B31="","",'Alt 2 Hwy Link Config'!B31) ->  | C31: =IF('Alt 2 Hwy Link Config'!C31="","",'Alt 2 Hwy Link Config'!C31) ->  | D31: =IF('Alt 2 Hwy Link Config'!D31="","",'Alt 2 Hwy Link Config'!D31) ->  | E31: =IF('Alt 2 Hwy Link Config'!E31="","",'Alt 2 Hwy Link Config'!E31) -> 
... 38 more rows

Sheet Tolls Alt 3
A1: Project Evaluation Toolkit - Alternative Scenario 3 Toll Settings
F10: AM Toll Settings | K10: Mid Day Toll Settings | P10: PM Toll Settings | U10: Evening Toll Settings | Z10: Off Peak Toll Settings
A11: Link # | B11: From Node # | C11: To Node # | D11: Link Name | E11: Length | F11: Vehicle Class 1 | G11: Vehicle Class 2 | H11: Vehicle Class 3 | I11: Vehicle Class 4 | J11: Vehicle Class 5 | K11: Vehicle Class 1 | L11: Vehicle Class 2 | M11: Vehicle Class 3 | N11: Vehicle Class 4 | O11: Vehicle Class 5 | P11: Vehicle Class 1 | Q11: Vehicle Class 2 | R11: Vehicle Class 3 | S11: Vehicle Class 4 | T11: Vehicle Class 5 | U11: Vehicle Class 1 | V11: Vehicle Class 2 | W11: Vehicle Class 3 | X11: Vehicle Class 4 | Y11: Vehicle Class 5 | Z11: Vehicle Class 1 | AA11: Vehicle Class 2 | AB11: Vehicle Class 3 | AC11: Vehicle Class 4 | AD11: Vehicle Class 5
A12: =IF('Alt 3 Hwy Link Config'!A12="","",'Alt 3 Hwy Link Config'!A12) ->  | B12: =IF('Alt 3 Hwy Link Config'!B12="","",'Alt 3 Hwy Link Config'!B12) ->  | C12: =IF('Alt 3 Hwy Link Config'!C12="","",'Alt 3 Hwy Link Config'!C12) ->  | D12: =IF('Alt 3 Hwy Link Config'!D12="","",'Alt 3 Hwy Link Config'!D12) ->  | E12: =IF('Alt 3 Hwy Link Config'!E12="","",'Alt 3 Hwy Link Config'!E12) -> 
A13: =IF('Alt 3 Hwy Link Config'!A13="","",'Alt 3 Hwy Link Config'!A13) ->  | B13: =IF('Alt 3 Hwy Link Config'!B13="","",'Alt 3 Hwy Link Config'!B13) ->  | C13: =IF('Alt 3 Hwy Link Config'!C13="","",'Alt 3 Hwy Link Config'!C13) ->  | D13: =IF('Alt 3 Hwy Link Config'!D13="","",'Alt 3 Hwy Link Config'!D13) ->  | E13: =IF('Alt 3 Hwy Link Config'!E13="","",'Alt 3 Hwy Link Config'!E13) -> 
A14: =IF('Alt 3 Hwy Link Config'!A14="","",'Alt 3 Hwy Link Config'!A14) ->  | B14: =IF('Alt 3 Hwy Link Config'!B14="","",'Alt 3 Hwy Link Config'!B14) ->  | C14: =IF('Alt 3 Hwy Link Config'!C14="","",'Alt 3 Hwy Link Config'!C14) ->  | D14: =IF('Alt 3 Hwy Link Config'!D14="","",'Alt 3 Hwy Link Config'!D14) ->  | E14: =IF('Alt 3 Hwy Link Config'!E14="","",'Alt 3 Hwy Link Config'!E14) -> 
A15: =IF('Alt 3 Hwy Link Config'!A15="","",'Alt 3 Hwy Link Config'!A15) ->  | B15: =IF('Alt 3 Hwy Link Config'!B15="","",'Alt 3 Hwy Link Config'!B15) ->  | C15: =IF('Alt 3 Hwy Link Config'!C15="","",'Alt 3 Hwy Link Config'!C15) ->  | D15: =IF('Alt 3 Hwy Link Config'!D15="","",'Alt 3 Hwy Link Config'!D15) ->  | E15: =IF('Alt 3 Hwy Link Config'!E15="","",'Alt 3 Hwy Link Config'!E15) -> 
A16: =IF('Alt 3 Hwy Link Config'!A16="","",'Alt 3 Hwy Link Config'!A16) ->  | B16: =IF('Alt 3 Hwy Link Config'!B16="","",'Alt 3 Hwy Link Config'!B16) ->  | C16: =IF('Alt 3 Hwy Link Config'!C16="","",'Alt 3 Hwy Link Config'!C16) ->  | D16: =IF('Alt 3 Hwy Link Config'!D16="","",'Alt 3 Hwy Link Config'!D16) ->  | E16: =IF('Alt 3 Hwy Link Config'!E16="","",'Alt 3 Hwy Link Config'!E16) -> 
A17: =IF('Alt 3 Hwy Link Config'!A17="","",'Alt 3 Hwy Link Config'!A17) ->  | B17: =IF('Alt 3 Hwy Link Config'!B17="","",'Alt 3 Hwy Link Config'!B17) ->  | C17: =IF('Alt 3 Hwy Link Config'!C17="","",'Alt 3 Hwy Link Config'!C17) ->  | D17: =IF('Alt 3 Hwy Link Config'!D17="","",'Alt 3 Hwy Link Config'!D17) ->  | E17: =IF('Alt 3 Hwy Link Config'!E17="","",'Alt 3 Hwy Link Config'!E17) -> 
A18: =IF('Alt 3 Hwy Link Config'!A18="","",'Alt 3 Hwy Link Config'!A18) ->  | B18: =IF('Alt 3 Hwy Link Config'!B18="","",'Alt 3 Hwy Link Config'!B18) ->  | C18: =IF('Alt 3 Hwy Link Config'!C18="","",'Alt 3 Hwy Link Config'!C18) ->  | D18: =IF('Alt 3 Hwy Link Config'!D18="","",'Alt 3 Hwy Link Config'!D18) ->  | E18: =IF('Alt 3 Hwy Link Config'!E18="","",'Alt 3 Hwy Link Config'!E18) -> 
A19: =IF('Alt 3 Hwy Link Config'!A19="","",'Alt 3 Hwy Link Config'!A19) ->  | B19: =IF('Alt 3 Hwy Link Config'!B19="","",'Alt 3 Hwy Link Config'!B19) ->  | C19: =IF('Alt 3 Hwy Link Config'!C19="","",'Alt 3 Hwy Link Config'!C19) ->  | D19: =IF('Alt 3 Hwy Link Config'!D19="","",'Alt 3 Hwy Link Config'!D19) ->  | E19: =IF('Alt 3 Hwy Link Config'!E19="","",'Alt 3 Hwy Link Config'!E19) -> 
A20: =IF('Alt 3 Hwy Link Config'!A20="","",'Alt 3 Hwy Link Config'!A20) ->  | B20: =IF('Alt 3 Hwy Link Config'!B20="","",'Alt 3 Hwy Link Config'!B20) ->  | C20: =IF('Alt 3 Hwy Link Config'!C20="","",'Alt 3 Hwy Link Config'!C20) ->  | D20: =IF('Alt 3 Hwy Link Config'!D20="","",'Alt 3 Hwy Link Config'!D20) ->  | E20: =IF('Alt 3 Hwy Link Config'!E20="","",'Alt 3 Hwy Link Config'!E20) -> 
A21: =IF('Alt 3 Hwy Link Config'!A21="","",'Alt 3 Hwy Link Config'!A21) ->  | B21: =IF('Alt 3 Hwy Link Config'!B21="","",'Alt 3 Hwy Link Config'!B21) ->  | C21: =IF('Alt 3 Hwy Link Config'!C21="","",'Alt 3 Hwy Link Config'!C21) ->  | D21: =IF('Alt 3 Hwy Link Config'!D21="","",'Alt 3 Hwy Link Config'!D21) ->  | E21: =IF('Alt 3 Hwy Link Config'!E21="","",'Alt 3 Hwy Link Config'!E21) -> 
A22: =IF('Alt 3 Hwy Link Config'!A22="","",'Alt 3 Hwy Link Config'!A22) ->  | B22: =IF('Alt 3 Hwy Link Config'!B22="","",'Alt 3 Hwy Link Config'!B22) ->  | C22: =IF('Alt 3 Hwy Link Config'!C22="","",'Alt 3 Hwy Link Config'!C22) ->  | D22: =IF('Alt 3 Hwy Link Config'!D22="","",'Alt 3 Hwy Link Config'!D22) ->  | E22: =IF('Alt 3 Hwy Link Config'!E22="","",'Alt 3 Hwy Link Config'!E22) -> 
A23: =IF('Alt 3 Hwy Link Config'!A23="","",'Alt 3 Hwy Link Config'!A23) ->  | B23: =IF('Alt 3 Hwy Link Config'!B23="","",'Alt 3 Hwy Link Config'!B23) ->  | C23: =IF('Alt 3 Hwy Link Config'!C23="","",'Alt 3 Hwy Link Config'!C23) ->  | D23: =IF('Alt 3 Hwy Link Config'!D23="","",'Alt 3 Hwy Link Config'!D23) ->  | E23: =IF('Alt 3 Hwy Link Config'!E23="","",'Alt 3 Hwy Link Config'!E23) -> 
A24: =IF('Alt 3 Hwy Link Config'!A24="","",'Alt 3 Hwy Link Config'!A24) ->  | B24: =IF('Alt 3 Hwy Link Config'!B24="","",'Alt 3 Hwy Link Config'!B24) ->  | C24: =IF('Alt 3 Hwy Link Config'!C24="","",'Alt 3 Hwy Link Config'!C24) ->  | D24: =IF('Alt 3 Hwy Link Config'!D24="","",'Alt 3 Hwy Link Config'!D24) ->  | E24: =IF('Alt 3 Hwy Link Config'!E24="","",'Alt 3 Hwy Link Config'!E24) -> 
A25: =IF('Alt 3 Hwy Link Config'!A25="","",'Alt 3 Hwy Link Config'!A25) ->  | B25: =IF('Alt 3 Hwy Link Config'!B25="","",'Alt 3 Hwy Link Config'!B25) ->  | C25: =IF('Alt 3 Hwy Link Config'!C25="","",'Alt 3 Hwy Link Config'!C25) ->  | D25: =IF('Alt 3 Hwy Link Config'!D25="","",'Alt 3 Hwy Link Config'!D25) ->  | E25: =IF('Alt 3 Hwy Link Config'!E25="","",'Alt 3 Hwy Link Config'!E25) -> 
A26: =IF('Alt 3 Hwy Link Config'!A26="","",'Alt 3 Hwy Link Config'!A26) ->  | B26: =IF('Alt 3 Hwy Link Config'!B26="","",'Alt 3 Hwy Link Config'!B26) ->  | C26: =IF('Alt 3 Hwy Link Config'!C26="","",'Alt 3 Hwy Link Config'!C26) ->  | D26: =IF('Alt 3 Hwy Link Config'!D26="","",'Alt 3 Hwy Link Config'!D26) ->  | E26: =IF('Alt 3 Hwy Link Config'!E26="","",'Alt 3 Hwy Link Config'!E26) -> 
A27: =IF('Alt 3 Hwy Link Config'!A27="","",'Alt 3 Hwy Link Config'!A27) ->  | B27: =IF('Alt 3 Hwy Link Config'!B27="","",'Alt 3 Hwy Link Config'!B27) ->  | C27: =IF('Alt 3 Hwy Link Config'!C27="","",'Alt 3 Hwy Link Config'!C27) ->  | D27: =IF('Alt 3 Hwy Link Config'!D27="","",'Alt 3 Hwy Link Config'!D27) ->  | E27: =IF('Alt 3 Hwy Link Config'!E27="","",'Alt 3 Hwy Link Config'!E27) -> 
A28: =IF('Alt 3 Hwy Link Config'!A28="","",'Alt 3 Hwy Link Config'!A28) ->  | B28: =IF('Alt 3 Hwy Link Config'!B28="","",'Alt 3 Hwy Link Config'!B28) ->  | C28: =IF('Alt 3 Hwy Link Config'!C28="","",'Alt 3 Hwy Link Config'!C28) ->  | D28: =IF('Alt 3 Hwy Link Config'!D28="","",'Alt 3 Hwy Link Config'!D28) ->  | E28: =IF('Alt 3 Hwy Link Config'!E28="","",'Alt 3 Hwy Link Config'!E28) -> 
A29: =IF('Alt 3 Hwy Link Config'!A29="","",'Alt 3 Hwy Link Config'!A29) ->  | B29: =IF('Alt 3 Hwy Link Config'!B29="","",'Alt 3 Hwy Link Config'!B29) ->  | C29: =IF('Alt 3 Hwy Link Config'!C29="","",'Alt 3 Hwy Link Config'!C29) ->  | D29: =IF('Alt 3 Hwy Link Config'!D29="","",'Alt 3 Hwy Link Config'!D29) ->  | E29: =IF('Alt 3 Hwy Link Config'!E29="","",'Alt 3 Hwy Link Config'!E29) -> 
A30: =IF('Alt 3 Hwy Link Config'!A30="","",'Alt 3 Hwy Link Config'!A30) ->  | B30: =IF('Alt 3 Hwy Link Config'!B30="","",'Alt 3 Hwy Link Config'!B30) ->  | C30: =IF('Alt 3 Hwy Link Config'!C30="","",'Alt 3 Hwy Link Config'!C30) ->  | D30: =IF('Alt 3 Hwy Link Config'!D30="","",'Alt 3 Hwy Link Config'!D30) ->  | E30: =IF('Alt 3 Hwy Link Config'!E30="","",'Alt 3 Hwy Link Config'!E30) -> 
A31: =IF('Alt 3 Hwy Link Config'!A31="","",'Alt 3 Hwy Link Config'!A31) ->  | B31: =IF('Alt 3 Hwy Link Config'!B31="","",'Alt 3 Hwy Link Config'!B31) ->  | C31: =IF('Alt 3 Hwy Link Config'!C31="","",'Alt 3 Hwy Link Config'!C31) ->  | D31: =IF('Alt 3 Hwy Link Config'!D31="","",'Alt 3 Hwy Link Config'!D31) ->  | E31: =IF('Alt 3 Hwy Link Config'!E31="","",'Alt 3 Hwy Link Config'!E31) -> 
... 38 more rows

Sheet Base Art Ints
A1: Project Evaluation Toolkit - Base Configuration Arterial and Rural Highway Intersections
C3: Area Type: 1=Urban, 2=Suburban, 3=Rural
C4: Control: 1=Signalized, 2=Unsignalized
F10: Links and Volumes - Fill in EITHER the connecting link reference # OR the link AADT (when link is not modeled)
A11: Node # | B11: Node / Intersection Name | C11: Area Type | D11: Control | E11: CMF | F11: Link 1 (Major) | G11: Lanes (User Entered) | H11: Lanes | I11: Use Link 1 AADT | J11: Link 2 (Major) | K11: Lanes (User Entered) | L11: Lanes | M11: Use Link 2 AADT | N11: Link 3 (Minor) | O11: Lanes (User Entered) | P11: Lanes | Q11: Use Link 3 AADT | R11: Link 4 (Minor) | S11: Lanes (User Entered) | T11: Lanes | U11: Use Link 4 AADT
A12: 1 | H12: =IF(A13="","",IF(G12="",IF(F12="",0,LOOKUP(F12,'Base Hwy Link Config'!A12:A1200,'Base Hwy Link Config'!$K$12:$K$1200)),G12)) ->  | L12: =IF(A13="","",IF(K12="",IF(J12="",0,LOOKUP(J12,'Base Hwy Link Config'!A12:A1200,'Base Hwy Link Config'!$K$12:$K$1200)),K12)) ->  | P12: =IF(A13="","",IF(O12="",IF(N12="",0,LOOKUP(N12,'Base Hwy Link Config'!A12:A1200,'Base Hwy Link Config'!$K$12:$K$1200)),O12)) ->  | T12: =IF(A13="","",IF(S12="",IF(R12="",0,LOOKUP(R12,'Base Hwy Link Config'!A12:A1200,'Base Hwy Link Config'!$K$12:$K$1200)),S12)) -> 
A13: =IF(B12="","",A12+1) ->  | H13: =IF(A14="","",IF(G13="",IF(F13="",0,LOOKUP(F13,'Base Hwy Link Config'!A13:A1201,'Base Hwy Link Config'!$K$12:$K$1200)),G13)) ->  | L13: =IF(A14="","",IF(K13="",IF(J13="",0,LOOKUP(J13,'Base Hwy Link Config'!A13:A1201,'Base Hwy Link Config'!$K$12:$K$1200)),K13)) ->  | P13: =IF(A14="","",IF(O13="",IF(N13="",0,LOOKUP(N13,'Base Hwy Link Config'!A13:A1201,'Base Hwy Link Config'!$K$12:$K$1200)),O13)) ->  | T13: =IF(A14="","",IF(S13="",IF(R13="",0,LOOKUP(R13,'Base Hwy Link Config'!A13:A1201,'Base Hwy Link Config'!$K$12:$K$1200)),S13)) -> 
A14: =IF(B13="","",A13+1) ->  | H14: =IF(A15="","",IF(G14="",IF(F14="",0,LOOKUP(F14,'Base Hwy Link Config'!A14:A1202,'Base Hwy Link Config'!$K$12:$K$1200)),G14)) ->  | L14: =IF(A15="","",IF(K14="",IF(J14="",0,LOOKUP(J14,'Base Hwy Link Config'!A14:A1202,'Base Hwy Link Config'!$K$12:$K$1200)),K14)) ->  | P14: =IF(A15="","",IF(O14="",IF(N14="",0,LOOKUP(N14,'Base Hwy Link Config'!A14:A1202,'Base Hwy Link Config'!$K$12:$K$1200)),O14)) ->  | T14: =IF(A15="","",IF(S14="",IF(R14="",0,LOOKUP(R14,'Base Hwy Link Config'!A14:A1202,'Base Hwy Link Config'!$K$12:$K$1200)),S14)) -> 
H15: =IF(A16="","",IF(G15="",IF(F15="",0,LOOKUP(F15,'Base Hwy Link Config'!A15:A1203,'Base Hwy Link Config'!$K$12:$K$1200)),G15)) ->  | L15: =IF(A16="","",IF(K15="",IF(J15="",0,LOOKUP(J15,'Base Hwy Link Config'!A15:A1203,'Base Hwy Link Config'!$K$12:$K$1200)),K15)) ->  | P15: =IF(A16="","",IF(O15="",IF(N15="",0,LOOKUP(N15,'Base Hwy Link Config'!A15:A1203,'Base Hwy Link Config'!$K$12:$K$1200)),O15)) ->  | T15: =IF(A16="","",IF(S15="",IF(R15="",0,LOOKUP(R15,'Base Hwy Link Config'!A15:A1203,'Base Hwy Link Config'!$K$12:$K$1200)),S15)) -> 
H16: =IF(A17="","",IF(G16="",IF(F16="",0,LOOKUP(F16,'Base Hwy Link Config'!A16:A1204,'Base Hwy Link Config'!$K$12:$K$1200)),G16)) ->  | L16: =IF(A17="","",IF(K16="",IF(J16="",0,LOOKUP(J16,'Base Hwy Link Config'!A16:A1204,'Base Hwy Link Config'!$K$12:$K$1200)),K16)) ->  | P16: =IF(A17="","",IF(O16="",IF(N16="",0,LOOKUP(N16,'Base Hwy Link Config'!A16:A1204,'Base Hwy Link Config'!$K$12:$K$1200)),O16)) ->  | T16: =IF(A17="","",IF(S16="",IF(R16="",0,LOOKUP(R16,'Base Hwy Link Config'!A16:A1204,'Base Hwy Link Config'!$K$12:$K$1200)),S16)) -> 
H17: =IF(A18="","",IF(G17="",IF(F17="",0,LOOKUP(F17,'Base Hwy Link Config'!A17:A1205,'Base Hwy Link Config'!$K$12:$K$1200)),G17)) ->  | L17: =IF(A18="","",IF(K17="",IF(J17="",0,LOOKUP(J17,'Base Hwy Link Config'!A17:A1205,'Base Hwy Link Config'!$K$12:$K$1200)),K17)) ->  | P17: =IF(A18="","",IF(O17="",IF(N17="",0,LOOKUP(N17,'Base Hwy Link Config'!A17:A1205,'Base Hwy Link Config'!$K$12:$K$1200)),O17)) ->  | T17: =IF(A18="","",IF(S17="",IF(R17="",0,LOOKUP(R17,'Base Hwy Link Config'!A17:A1205,'Base Hwy Link Config'!$K$12:$K$1200)),S17)) -> 
H18: =IF(A19="","",IF(G18="",IF(F18="",0,LOOKUP(F18,'Base Hwy Link Config'!A18:A1206,'Base Hwy Link Config'!$K$12:$K$1200)),G18)) ->  | L18: =IF(A19="","",IF(K18="",IF(J18="",0,LOOKUP(J18,'Base Hwy Link Config'!A18:A1206,'Base Hwy Link Config'!$K$12:$K$1200)),K18)) ->  | P18: =IF(A19="","",IF(O18="",IF(N18="",0,LOOKUP(N18,'Base Hwy Link Config'!A18:A1206,'Base Hwy Link Config'!$K$12:$K$1200)),O18)) ->  | T18: =IF(A19="","",IF(S18="",IF(R18="",0,LOOKUP(R18,'Base Hwy Link Config'!A18:A1206,'Base Hwy Link Config'!$K$12:$K$1200)),S18)) -> 
H19: =IF(A20="","",IF(G19="",IF(F19="",0,LOOKUP(F19,'Base Hwy Link Config'!A19:A1207,'Base Hwy Link Config'!$K$12:$K$1200)),G19)) ->  | L19: =IF(A20="","",IF(K19="",IF(J19="",0,LOOKUP(J19,'Base Hwy Link Config'!A19:A1207,'Base Hwy Link Config'!$K$12:$K$1200)),K19)) ->  | P19: =IF(A20="","",IF(O19="",IF(N19="",0,LOOKUP(N19,'Base Hwy Link Config'!A19:A1207,'Base Hwy Link Config'!$K$12:$K$1200)),O19)) ->  | T19: =IF(A20="","",IF(S19="",IF(R19="",0,LOOKUP(R19,'Base Hwy Link Config'!A19:A1207,'Base Hwy Link Config'!$K$12:$K$1200)),S19)) -> 
H20: =IF(A21="","",IF(G20="",IF(F20="",0,LOOKUP(F20,'Base Hwy Link Config'!A20:A1208,'Base Hwy Link Config'!$K$12:$K$1200)),G20)) ->  | L20: =IF(A21="","",IF(K20="",IF(J20="",0,LOOKUP(J20,'Base Hwy Link Config'!A20:A1208,'Base Hwy Link Config'!$K$12:$K$1200)),K20)) ->  | P20: =IF(A21="","",IF(O20="",IF(N20="",0,LOOKUP(N20,'Base Hwy Link Config'!A20:A1208,'Base Hwy Link Config'!$K$12:$K$1200)),O20)) ->  | T20: =IF(A21="","",IF(S20="",IF(R20="",0,LOOKUP(R20,'Base Hwy Link Config'!A20:A1208,'Base Hwy Link Config'!$K$12:$K$1200)),S20)) -> 
H21: =IF(A22="","",IF(G21="",IF(F21="",0,LOOKUP(F21,'Base Hwy Link Config'!A21:A1209,'Base Hwy Link Config'!$K$12:$K$1200)),G21)) ->  | L21: =IF(A22="","",IF(K21="",IF(J21="",0,LOOKUP(J21,'Base Hwy Link Config'!A21:A1209,'Base Hwy Link Config'!$K$12:$K$1200)),K21)) ->  | P21: =IF(A22="","",IF(O21="",IF(N21="",0,LOOKUP(N21,'Base Hwy Link Config'!A21:A1209,'Base Hwy Link Config'!$K$12:$K$1200)),O21)) ->  | T21: =IF(A22="","",IF(S21="",IF(R21="",0,LOOKUP(R21,'Base Hwy Link Config'!A21:A1209,'Base Hwy Link Config'!$K$12:$K$1200)),S21)) -> 
H22: =IF(A23="","",IF(G22="",IF(F22="",0,LOOKUP(F22,'Base Hwy Link Config'!A22:A1210,'Base Hwy Link Config'!$K$12:$K$1200)),G22)) ->  | L22: =IF(A23="","",IF(K22="",IF(J22="",0,LOOKUP(J22,'Base Hwy Link Config'!A22:A1210,'Base Hwy Link Config'!$K$12:$K$1200)),K22)) ->  | P22: =IF(A23="","",IF(O22="",IF(N22="",0,LOOKUP(N22,'Base Hwy Link Config'!A22:A1210,'Base Hwy Link Config'!$K$12:$K$1200)),O22)) ->  | T22: =IF(A23="","",IF(S22="",IF(R22="",0,LOOKUP(R22,'Base Hwy Link Config'!A22:A1210,'Base Hwy Link Config'!$K$12:$K$1200)),S22)) -> 
H23: =IF(A24="","",IF(G23="",IF(F23="",0,LOOKUP(F23,'Base Hwy Link Config'!A23:A1211,'Base Hwy Link Config'!$K$12:$K$1200)),G23)) ->  | L23: =IF(A24="","",IF(K23="",IF(J23="",0,LOOKUP(J23,'Base Hwy Link Config'!A23:A1211,'Base Hwy Link Config'!$K$12:$K$1200)),K23)) ->  | P23: =IF(A24="","",IF(O23="",IF(N23="",0,LOOKUP(N23,'Base Hwy Link Config'!A23:A1211,'Base Hwy Link Config'!$K$12:$K$1200)),O23)) ->  | T23: =IF(A24="","",IF(S23="",IF(R23="",0,LOOKUP(R23,'Base Hwy Link Config'!A23:A1211,'Base Hwy Link Config'!$K$12:$K$1200)),S23)) -> 
H24: =IF(A25="","",IF(G24="",IF(F24="",0,LOOKUP(F24,'Base Hwy Link Config'!A24:A1212,'Base Hwy Link Config'!$K$12:$K$1200)),G24)) ->  | L24: =IF(A25="","",IF(K24="",IF(J24="",0,LOOKUP(J24,'Base Hwy Link Config'!A24:A1212,'Base Hwy Link Config'!$K$12:$K$1200)),K24)) ->  | P24: =IF(A25="","",IF(O24="",IF(N24="",0,LOOKUP(N24,'Base Hwy Link Config'!A24:A1212,'Base Hwy Link Config'!$K$12:$K$1200)),O24)) ->  | T24: =IF(A25="","",IF(S24="",IF(R24="",0,LOOKUP(R24,'Base Hwy Link Config'!A24:A1212,'Base Hwy Link Config'!$K$12:$K$1200)),S24)) -> 
H25: =IF(A26="","",IF(G25="",IF(F25="",0,LOOKUP(F25,'Base Hwy Link Config'!A25:A1213,'Base Hwy Link Config'!$K$12:$K$1200)),G25)) ->  | L25: =IF(A26="","",IF(K25="",IF(J25="",0,LOOKUP(J25,'Base Hwy Link Config'!A25:A1213,'Base Hwy Link Config'!$K$12:$K$1200)),K25)) ->  | P25: =IF(A26="","",IF(O25="",IF(N25="",0,LOOKUP(N25,'Base Hwy Link Config'!A25:A1213,'Base Hwy Link Config'!$K$12:$K$1200)),O25)) ->  | T25: =IF(A26="","",IF(S25="",IF(R25="",0,LOOKUP(R25,'Base Hwy Link Config'!A25:A1213,'Base Hwy Link Config'!$K$12:$K$1200)),S25)) -> 
H26: =IF(A27="","",IF(G26="",IF(F26="",0,LOOKUP(F26,'Base Hwy Link Config'!A26:A1214,'Base Hwy Link Config'!$K$12:$K$1200)),G26)) ->  | L26: =IF(A27="","",IF(K26="",IF(J26="",0,LOOKUP(J26,'Base Hwy Link Config'!A26:A1214,'Base Hwy Link Config'!$K$12:$K$1200)),K26)) ->  | P26: =IF(A27="","",IF(O26="",IF(N26="",0,LOOKUP(N26,'Base Hwy Link Config'!A26:A1214,'Base Hwy Link Config'!$K$12:$K$1200)),O26)) ->  | T26: =IF(A27="","",IF(S26="",IF(R26="",0,LOOKUP(R26,'Base Hwy Link Config'!A26:A1214,'Base Hwy Link Config'!$K$12:$K$1200)),S26)) -> 
H27: =IF(A28="","",IF(G27="",IF(F27="",0,LOOKUP(F27,'Base Hwy Link Config'!A27:A1215,'Base Hwy Link Config'!$K$12:$K$1200)),G27)) ->  | L27: =IF(A28="","",IF(K27="",IF(J27="",0,LOOKUP(J27,'Base Hwy Link Config'!A27:A1215,'Base Hwy Link Config'!$K$12:$K$1200)),K27)) ->  | P27: =IF(A28="","",IF(O27="",IF(N27="",0,LOOKUP(N27,'Base Hwy Link Config'!A27:A1215,'Base Hwy Link Config'!$K$12:$K$1200)),O27)) ->  | T27: =IF(A28="","",IF(S27="",IF(R27="",0,LOOKUP(R27,'Base Hwy Link Config'!A27:A1215,'Base Hwy Link Config'!$K$12:$K$1200)),S27)) -> 
H28: =IF(A29="","",IF(G28="",IF(F28="",0,LOOKUP(F28,'Base Hwy Link Config'!A28:A1216,'Base Hwy Link Config'!$K$12:$K$1200)),G28)) ->  | L28: =IF(A29="","",IF(K28="",IF(J28="",0,LOOKUP(J28,'Base Hwy Link Config'!A28:A1216,'Base Hwy Link Config'!$K$12:$K$1200)),K28)) ->  | P28: =IF(A29="","",IF(O28="",IF(N28="",0,LOOKUP(N28,'Base Hwy Link Config'!A28:A1216,'Base Hwy Link Config'!$K$12:$K$1200)),O28)) ->  | T28: =IF(A29="","",IF(S28="",IF(R28="",0,LOOKUP(R28,'Base Hwy Link Config'!A28:A1216,'Base Hwy Link Config'!$K$12:$K$1200)),S28)) -> 
H29: =IF(A30="","",IF(G29="",IF(F29="",0,LOOKUP(F29,'Base Hwy Link Config'!A29:A1217,'Base Hwy Link Config'!$K$12:$K$1200)),G29)) ->  | L29: =IF(A30="","",IF(K29="",IF(J29="",0,LOOKUP(J29,'Base Hwy Link Config'!A29:A1217,'Base Hwy Link Config'!$K$12:$K$1200)),K29)) ->  | P29: =IF(A30="","",IF(O29="",IF(N29="",0,LOOKUP(N29,'Base Hwy Link Config'!A29:A1217,'Base Hwy Link Config'!$K$12:$K$1200)),O29)) ->  | T29: =IF(A30="","",IF(S29="",IF(R29="",0,LOOKUP(R29,'Base Hwy Link Config'!A29:A1217,'Base Hwy Link Config'!$K$12:$K$1200)),S29)) -> 
H30: =IF(A31="","",IF(G30="",IF(F30="",0,LOOKUP(F30,'Base Hwy Link Config'!A30:A1218,'Base Hwy Link Config'!$K$12:$K$1200)),G30)) ->  | L30: =IF(A31="","",IF(K30="",IF(J30="",0,LOOKUP(J30,'Base Hwy Link Config'!A30:A1218,'Base Hwy Link Config'!$K$12:$K$1200)),K30)) ->  | P30: =IF(A31="","",IF(O30="",IF(N30="",0,LOOKUP(N30,'Base Hwy Link Config'!A30:A1218,'Base Hwy Link Config'!$K$12:$K$1200)),O30)) ->  | T30: =IF(A31="","",IF(S30="",IF(R30="",0,LOOKUP(R30,'Base Hwy Link Config'!A30:A1218,'Base Hwy Link Config'!$K$12:$K$1200)),S30)) -> 
H31: =IF(A32="","",IF(G31="",IF(F31="",0,LOOKUP(F31,'Base Hwy Link Config'!A31:A1219,'Base Hwy Link Config'!$K$12:$K$1200)),G31)) ->  | L31: =IF(A32="","",IF(K31="",IF(J31="",0,LOOKUP(J31,'Base Hwy Link Config'!A31:A1219,'Base Hwy Link Config'!$K$12:$K$1200)),K31)) ->  | P31: =IF(A32="","",IF(O31="",IF(N31="",0,LOOKUP(N31,'Base Hwy Link Config'!A31:A1219,'Base Hwy Link Config'!$K$12:$K$1200)),O31)) ->  | T31: =IF(A32="","",IF(S31="",IF(R31="",0,LOOKUP(R31,'Base Hwy Link Config'!A31:A1219,'Base Hwy Link Config'!$K$12:$K$1200)),S31)) -> 
... 38 more rows

Sheet Alt 1 Art Ints
A1: Project Evaluation Toolkit - Alternative Scenario 1 Arterial and Rural Highway Intersections
C3: Area Type: 1=Urban, 2=Suburban, 3=Rural
C4: Control: 1=Signalized, 2=Unsignalized
F10: Links and Volumes - Fill in EITHER the connecting link reference # OR the link AADT (when link is not modeled)
A11: Node # | B11: Node / Intersection Name | C11: Area Type | D11: Control | E11: CMF | F11: Link 1 (Major) | G11: Use Link 1 AADT | H11: Link 2 (Major) | I11: Use Link 2 AADT | J11: Link 3 (Minor) | K11: Use Link 3 AADT | L11: Link 4 (Minor) | M11: Use Link 4 AADT
A12: 1
A13: =IF(B12="","",A12+1) -> 
A14: =IF(B13="","",A13+1) -> 
... 1 more rows

Sheet Alt 2 Art Ints
A1: Project Evaluation Toolkit - Alternative Scenario 2 Arterial and Rural Highway Intersections
C3: Area Type: 1=Urban, 2=Suburban, 3=Rural
C4: Control: 1=Signalized, 2=Unsignalized
F10: Links and Volumes - Fill in EITHER the connecting link reference # OR the link AADT (when link is not modeled)
A11: Node # | B11: Node / Intersection Name | C11: Area Type | D11: Control | E11: CMF | F11: Link 1 (Major) | G11: Use Link 1 AADT | H11: Link 2 (Major) | I11: Use Link 2 AADT | J11: Link 3 (Minor) | K11: Use Link 3 AADT | L11: Link 4 (Minor) | M11: Use Link 4 AADT
A12: 1
A13: =IF(B12="","",A12+1) -> 
A14: =IF(B13="","",A13+1) -> 
... 1 more rows

Sheet Alt 3 Art Ints
A1: Project Evaluation Toolkit - Alternative Scenario 3 Arterial and Rural Highway Intersections
C3: Area Type: 1=Urban, 2=Suburban, 3=Rural
C4: Control: 1=Signalized, 2=Unsignalized
F10: Links and Volumes - Fill in EITHER the connecting link reference # OR the link AADT (when link is not modeled)
A11: Node # | B11: Node / Intersection Name | C11: Area Type | D11: Control | E11: CMF | F11: Link 1 (Major) | G11: Use Link 1 AADT | H11: Link 2 (Major) | I11: Use Link 2 AADT | J11: Link 3 (Minor) | K11: Use Link 3 AADT | L11: Link 4 (Minor) | M11: Use Link 4 AADT
A12: 1
A13: =IF(B12="","",A12+1) -> 
A14: =IF(B13="","",A13+1) -> 

Sheet Engineer's Estimate
F1: Project Evaluation Toolkit - Engineer's Estimate
E5: Lane Miles | F5: Const Cost per Lane Mile | G5: ITS / Signal / Electrical | H5: Bridges & Structures | I5: Utility & Other Fixed Costs | J5: Construction Subtotal | K5: Traffic Control | L5: Environmental Construction | M5: Additional Costs Subtotal | N5: Construction Cost Total
B6: No Build | J6: =E6*F6+G6+H6+I6 -> 0 | K6: 0 | L6: 0 | M6: =J6*(K6+L6) -> 0 | N6: =M6+J6 -> 0
B7: =S1Name -> 0 | J7: 0 | K7: 0 | L7: 0 | M7: 0 | N7: 0
B8: =S2Name -> 0 | J8: 0 | K8: 0 | L8: 0 | M8: 0 | N8: 0
B9: =S3Name -> 0 | J9: 0 | K9: 0 | L9: 0 | M9: 0 | N9: 0
B10: ATIS | J10: 0 | K10: 0 | L10: 0 | M10: 0 | N10: 0
B11: Incident Management | J11: 0 | K11: 0 | L11: 0 | M11: 0 | N11: 0
B12: Speed Harmonization | J12: 0 | K12: 0 | L12: 0 | M12: 0 | N12: 0
E14: Design as % of Const Costs | F14: Design | G14: ROW Purchase | H14: Construction Engineering | I14: Construction Engineering | J14: Contingencies | K14: Contingencies | L14: Overhead & Indirect Costs | M14: Overhead & Indirect Costs
B15: No Build | E15: 0 | F15: =N6*E15 -> 0 | G15: 0 | H15: 0 | I15: =H15*ConstCostNB -> 0 | J15: 0 | K15: =J15*(ConstCostNB+ROWCostNB) -> 0 | L15: 0 | M15: =L15*ConstCostNB -> 0
B16: =S1Name -> 0 | E16: 0.1 | F16: 0 | G16: 0 | H16: 0 | I16: =H16*ConstCostS1 -> 0 | J16: 0 | K16: =J16*(ConstCostS1+ROWCostS1) -> 0 | L16: 0 | M16: =L16*ConstCostS1 -> 0
B17: =S2Name -> 0 | E17: 0.1 | F17: 0 | G17: 0 | H17: 0 | I17: =H17*ConstCostS2 -> 0 | J17: 0 | K17: =J17*(ConstCostS2+ROWCostS2) -> 0 | L17: 0 | M17: =L17*ConstCostS2 -> 0
B18: =S3Name -> 0 | E18: 0.1 | F18: 0 | G18: 0 | H18: 0 | I18: =H18*ConstCostS3 -> 0 | J18: 0 | K18: =J18*(ConstCostS3+ROWCostS3) -> 0 | L18: 0 | M18: =L18*ConstCostS3 -> 0
B19: ATIS | E19: 0 | F19: 0 | G19: 0 | H19: 0 | I19: =H19*ConstCostATIS -> 0 | J19: 0 | K19: =J19*ConstCostATIS -> 0 | L19: 0 | M19: =L19*ConstCostATIS -> 0
B20: Incident Management | E20: 0 | F20: 0 | G20: 0 | H20: 0 | I20: =H20*ConstCostIM -> 0 | J20: 0 | K20: =J20*ConstCostIM -> 0 | L20: 0 | M20: =L20*ConstCostIM -> 0
B21: Speed Harmonization | E21: 0 | F21: 0 | G21: 0 | H21: 0 | I21: =H21*ConstCostSH -> 0 | J21: 0 | K21: =J21*ConstCostSH -> 0 | L21: 0 | M21: =L21*ConstCostSH -> 0
E23: Design | F23: ROW Purchase | G23: Construction Engineering | H23: Construction Cost | I23: Contingencies | J23: Overhead & Indirect Costs | K23: Total Initial Project Costs
B24: No Build | E24: =DesCostNB -> 0 | F24: =ROWCostNB -> 0 | G24: =I15 -> 0 | H24: =ConstCostNB -> 0 | I24: =K15 -> 0 | J24: =M15 -> 0 | K24: =SUM(E24:J24) -> 0
B25: =S1Name -> 0 | E25: =DesCostS1 -> 0 | F25: =ROWCostS1 -> 0 | G25: 0 | H25: =ConstCostS1 -> 0 | I25: 0 | J25: 0 | K25: 0
B26: =S2Name -> 0 | E26: =DesCostS2 -> 0 | F26: =ROWCostS2 -> 0 | G26: 0 | H26: =ConstCostS2 -> 0 | I26: 0 | J26: 0 | K26: 0
B27: =S3Name -> 0 | E27: =DesCostS3 -> 0 | F27: =ROWCostS3 -> 0 | G27: 0 | H27: =ConstCostS3 -> 0 | I27: 0 | J27: 0 | K27: 0
B28: ATIS | E28: =DesCostATIS -> 0 | F28: =ROWCostATIS -> 0 | G28: 0 | H28: =ConstCostATIS -> 0 | I28: 0 | J28: 0 | K28: 0
B29: Incident Management | E29: =DesCostIM -> 0 | F29: =ROWCostIM -> 0 | G29: 0 | H29: =ConstCostIM -> 0 | I29: 0 | J29: 0 | K29: 0
B30: Speed Harmonization | E30: =DesCostSH -> 0 | F30: =ROWCostSH -> 0 | G30: 0 | H30: =ConstCostSH -> 0 | I30: 0 | J30: 0 | K30: 0
E32: Add. Annual Maintenance | F32: Salvage Value | G32: Maint & Rehab Project Year | H32: Maint & Rehab Project Cost
B33: No Build
B34: =S1Name -> 0
B35: =S2Name -> 0
B36: =S3Name -> 0
B37: ATIS
B38: Incident Management
B39: Speed Harmonization
B40: Notes: Items in the bolded boxes are required for economic analysis (Total Initial Project Cost, Additional Annual Maintenance, Salvage Value, Maintenance & Rehabilitation Project and Maintenance & Rehabilitation Year). Other Engineering Estimate items used for calculating Total Initial Project Cost.
B42: Total The Construction Cost Total is the expected value of the project bid. Design Costs include all costs associated with design, planning and environmental permitting. Add. Annual Maintenance is the expected additional annual costs to be incurred by maintenance and operations due to the project's construction.

Sheet Yearly Costs
D1: Project Evaluation Toolkit - Yearly Costs | O1: Note: This sheet is for internal toolkit cash-flow calculations only.
G3: Oper. Start Years after Constr. | J3: =InitialYear-ConstrYr -> 0 | L3: Operational Design Life | N3: =ProjLifeOper -> 10
A5: Summary Measures | G5: Agency Costs | P5: Project Impacts Benefits | Y5: Total Cash Flow (Benefits-Costs) | AH5: Agency Costs vs. Base Case | AQ5: Total Cash Flow vs. Base Case | AZ5: Payback Period | BR5: Tolling Revenues | BX5: Tolling Revenues vs Base Case | CD5: Total Cash Flow (Toll Revenues-Costs) | CJ5: Payback Period
A6: Measure | B6: No Build | C6: =S1Name -> 0 | D6: =S2Name -> 0 | E6: =S3Name -> 0 | G6: Year | H6: No Build | I6: =S1Name -> 0 | J6: =S2Name -> 0 | K6: =S3Name -> 0 | L6: ATIS | M6: Incident Management | N6: Speed Harmonization | P6: Year | Q6: No Build | R6: =S1Name -> 0 | S6: =S2Name -> 0 | T6: =S3Name -> 0 | U6: ATIS | V6: Incident Management | W6: Speed Harmonization | Y6: Year | Z6: No Build | AA6: =S1Name -> 0 | AB6: =S2Name -> 0 | AC6: =S3Name -> 0 | AD6: ATIS | AE6: Incident Management | AF6: Speed Harmonization | AH6: Year | AI6: No Build | AJ6: =S1Name -> 0 | AK6: =S2Name -> 0 | AL6: =S3Name -> 0 | AM6: ATIS | AN6: Incident Management | AO6: Speed Harmonization | AQ6: Year | AR6: No Build | AS6: =S1Name -> 0 | AT6: =S2Name -> 0 | AU6: =S3Name -> 0 | AV6: ATIS | AW6: Incident Management | AX6: Speed Harmonization | AZ6: Year | BA6: No Build | BB6: =S1Name -> 0 | BC6: =S2Name -> 0 | BD6: =S3Name -> 0 | BE6: ATIS | BF6: Incident Management | BG6: Speed Harmonization | BJ6: No Build | BK6: =S1Name -> 0 | BL6: =S2Name -> 0 | BM6: =S3Name -> 0 | BN6: ATIS | BO6: Incident Management | BP6: Speed Harmonization | BR6: Year | BS6: No Build | BT6: =S1Name -> 0 | BU6: =S2Name -> 0 | BV6: =S3Name -> 0 | BX6: Year | BY6: No Build | BZ6: =S1Name -> 0 | CA6: =S2Name -> 0 | CB6: =S3Name -> 0 | CD6: Year | CE6: No Build | CF6: =S1Name -> 0 | CG6: =S2Name -> 0 | CH6: =S3Name -> 0 | CJ6: Year | CK6: No Build | CL6: =S1Name -> 0 | CM6: =S2Name -> 0 | CN6: =S3Name -> 0 | CQ6: No Build | CR6: =S1Name -> 0 | CS6: =S2Name -> 0 | CT6: =S3Name -> 0
A7: NPV | B7: 0 | C7: =AS7+NPV(DiscRate,AS8:AS57) -> 0 | D7: =AT7+NPV(DiscRate,AT8:AT57) -> 0 | E7: =AU7+NPV(DiscRate,AU8:AU57) -> 0 | G7: =ConstrYr -> 2015 | H7: =IF($G7="","",IF($G7=AddProjYrBase,AddProjCostBase,0)+IF($G7=InitialYear+ProjLife,SalvValBase,0)) -> 0 | I7: =InitCostAlt1/NumConstrYrs -> 0 | J7: =InitCostAlt2/NumConstrYrs -> 0 | K7: =InitCostAlt3/NumConstrYrs -> 0 | L7: =IYCostATIS -> 0 | M7: =IYCostIM -> 0 | N7: =IYCostSH -> 0 | P7: =ConstrYr -> 2015 | Q7: =IF(P7="","",0) -> 0 | R7: =IF(P7="","",IF(P7<InitialYear,0,(OFFSET('Traveler Welfare Summary'!K8,-J$3,0)+OFFSET('Reliability Summary'!Q8,-J$3,0)+IF(UseCrash="y",OFFSET('Crash Summary'!Y7,-J$3,0),0)+IF(UseEnv="y",OFFSET('Emissions Summary'!P48,-J$3,0),0))*1000000+BZ7)) -> 0 | S7: =IF(P7="","",IF(P7<InitialYear,0,(OFFSET('Traveler Welfare Summary'!L8,-J$3,0)+OFFSET('Reliability Summary'!R8,-J$3,0)+IF(UseCrash="y",OFFSET('Crash Summary'!Z7,-J$3,0),0)+IF(UseEnv="y",OFFSET('Emissions Summary'!Q48,-J$3,0),0))*1000000+CA7)) -> 0 | T7: =IF(P7="","",IF(P7<InitialYear,0,('Traveler Welfare Summary'!M8+'Reliability Summary'!S8+IF(UseCrash="y",'Crash Summary'!AA7,0)+IF(UseEnv="y",'Emissions Summary'!R48,0))*1000000+CB7)) -> 0 | U7: =IF(L7="","",'ATIS Summary'!I7) -> 0 | V7: =IF(M7="","",'Incident Management Summary'!I7) -> 0 | W7: =IF(N7="","",'Speed Harmonization Summary'!I7) -> 0 | Y7: =ConstrYr -> 2015 | Z7: =IF($Y7="","",Q7-H7) -> 0 | AA7: =IF($Y7="","",R7-I7) -> 0 | AB7: =IF($Y7="","",S7-J7) -> 0 | AC7: =IF($Y7="","",T7-K7) -> 0 | AD7: =IF($L7="","",U7-L7) -> 0 | AE7: =IF($L7="","",V7-M7) -> 0 | AF7: =IF($L7="","",W7-N7) -> 0 | AH7: =ConstrYr -> 2015 | AI7: =IF($Y7="","",0) -> 0 | AJ7: =IF($Y7="","",I7-$H7) -> 0 | AK7: =IF($Y7="","",J7-$H7) -> 0 | AL7: =IF($Y7="","",K7-$H7) -> 0 | AM7: =IF($AQ7="","",IF($AQ7>ConstrYr+ProjLifeOper,"",U7-L7)) -> 0 | AN7: =IF($AQ7="","",IF($AQ7>ConstrYr+ProjLifeOper,"",V7-M7)) -> 0 | AO7: =IF($AQ7="","",IF($AQ7>ConstrYr+ProjLifeOper,"",W7-N7)) -> 0 | AQ7: =ConstrYr -> 2015 | AR7: =IF($Y7="","",AH7-Y7) -> 0 | AS7: =IF($Y7="","",AA7-$Z7) -> 0 | AT7: =IF($Y7="","",AB7-$Z7) -> 0 | AU7: =IF($Y7="","",AC7-$Z7) -> 0 | AV7: =IF($AQ7="","",IF($AQ7>InitialYear+ProjLifeOper,"",AD7)) -> 0 | AW7: =IF($AQ7="","",IF($AQ7>InitialYear+ProjLifeOper,"",AE7)) -> 0 | AX7: =IF($AQ7="","",IF($AQ7>InitialYear+ProjLifeOper,"",AF7)) -> 0 | AZ7: =ConstrYr -> 2015 | BA7: =IF(AZ7="","","N/A") -> N/A | BB7: =IF(AZ7="","",IF(OR(BB6=1,BB6="X"),"X",IF(AS$7>0,1,0))) -> 0 | BC7: =IF(AZ7="","",IF(OR(BC6=1,BC6="X"),"X",IF(AT$7>0,1,0))) -> 0 | BD7: =IF(AZ7="","",IF(OR(BD6=1,BD6="X"),"X",IF(AU$7>0,1,0))) -> 0 | BE7: =IF(AZ7="","",IF(OR(BE6=1,BE6="X"),"X",IF(AV$7>0,1,0))) -> 0 | BF7: =IF(AZ7="","",IF(OR(BE6=1,BE6="X"),"X",IF(AW$7>0,1,0))) -> 0 | BG7: =IF(AZ7="","",IF(OR(BE6=1,BE6="X"),"X",IF(AX$7>0,1,0))) -> 0 | BI7: Yr Before PP | BJ7: N/A | BK7: =LOOKUP(1,BB7:BB82,$AZ7:$AZ82)-InitialYear -> 20 | BL7: 20 | BM7: 20 | BN7: 10 | BO7: 10 | BP7: 10 | BR7: =ConstrYr -> 2015 | BS7: =IF($G7="","",IF($BR7<InitialYear,0,OFFSET('Tolls, Fuel and VMT Summary'!J8,-$J$3,0)*1000000)) -> 0 | BT7: =IF($G7="","",IF($BR7<InitialYear,0,OFFSET('Tolls, Fuel and VMT Summary'!K8,-$J$3,0)*1000000)) -> 0 | BU7: =IF($G7="","",IF($BR7<InitialYear,0,OFFSET('Tolls, Fuel and VMT Summary'!L8,-$J$3,0)*1000000)) -> 0 | BV7: =IF($G7="","",IF($BR7<InitialYear,0,OFFSET('Tolls, Fuel and VMT Summary'!M8,-$J$3,0)*1000000)) -> 0 | BX7: =ConstrYr -> 2015 | BY7: =IF($G7="","",0) -> 0 | BZ7: =IF($G7="","",BT7-$BS7) -> 0 | CA7: =IF($G7="","",BU7-$BS7) -> 0 | CB7: =IF($G7="","",BV7-$BS7) -> 0 | CD7: =ConstrYr -> 2015 | CE7: =IF($G7="","",BY7-AI7) -> 0 | CF7: =IF($G7="","",BZ7-AJ7) -> 0 | CG7: =IF($G7="","",CA7-AK7) -> 0 | CH7: =IF($G7="","",CB7-AL7) -> 0 | CJ7: =ConstrYr -> 2015 | CK7: =IF(CJ7="","","N/A") -> N/A | CL7: =IF(CJ7="","",IF(OR(CL6=1,CL6="X"),"X",IF(CF$7>0,1,0))) -> 0 | CM7: =IF(CK7="","",IF(OR(CM6=1,CM6="X"),"X",IF(CG$7>0,1,0))) -> 0 | CN7: =IF(CL7="","",IF(OR(CN6=1,CN6="X"),"X",IF(CH$7>0,1,0))) -> 0 | CP7: Yr Before PP | CQ7: N/A | CR7: =LOOKUP(1,CL7:CL82,$AZ7:$AZ82)-InitialYear -> 20 | CS7: =LOOKUP(1,CM7:CM82,$AZ7:$AZ82)-InitialYear -> 20 | CT7: =LOOKUP(1,CN7:CN82,$AZ7:$AZ82)-InitialYear -> 20
A8: B/C | B8: N/A | C8: =(R7+NPV(DiscRate,R8:R57))/(AJ7+NPV(DiscRate,AJ8:AJ57)) ->  | D8: =(S7+NPV(DiscRate,S8:S57))/(AK7+NPV(DiscRate,AK8:AK57)) ->  | E8: =(T7+NPV(DiscRate,T8:T57))/(AL7+NPV(DiscRate,AL8:AL57)) ->  | G8: =IF(G7<FutureYear,G7+1,"") -> 2016 | H8: 0 | I8: =IF($G8="","",IF(G8>ConstrYr+NumConstrYrs-1,MandOCostS1+IF($G8=AddProjYrAlt1,AddProjCostAlt1,0)+IF($G8=InitialYear+ProjLife,SalvValS1,0),InitCostAlt1/NumConstrYrs)) -> 0 | J8: =IF($G8="","",IF(G8>ConstrYr+NumConstrYrs-1,MandOCostS2+IF($G8=AddProjYrAlt2,AddProjCostAlt2,0)+IF($G8=InitialYear+ProjLife,SalvValS2,0),InitCostAlt2/NumConstrYrs)) -> 0 | K8: =IF($G8="","",IF(G8>ConstrYr+NumConstrYrs-1,MandOCostS3+IF($G8=AddProjYrAlt3,AddProjCostAlt3,0)+IF($G8=InitialYear+ProjLife,SalvValS3,0),InitCostAlt3/NumConstrYrs)) -> 0 | L8: =IF($G8="","",IF(G8>ConstrYr+N$3,"",MandOCostATIS+IF($G8=AddProjYrATIS,AddProjCostATIS,0)+IF($G8=InitialYear+$N$3,SalvValATIS,0))) -> 0 | M8: =IF($G8="","",IF($G8>ConstrYr+$N$3,"",MandOCostIM+IF($G8=AddProjYrIM,AddProjCostIM,0)+IF($G8=InitialYear+ProjLifeOper,SalvValIM,0))) -> 0 | N8: =IF($G8="","",IF($G8>ConstrYr+ProjLifeOper,"",MandOCostSH+IF($G8=AddProjYrSH,AddProjCostSH,0)+IF($G8=InitialYear+ProjLifeOper,SalvValSH,0))) -> 0 | P8: =IF(P7<FutureYear,P7+1,"") -> 2016 | Q8: =IF(P8="","",0) -> 0 | R8: =IF(P8="","",IF(P8<InitialYear,0,(OFFSET('Traveler Welfare Summary'!K9,-J$3,0)+OFFSET('Reliability Summary'!Q9,-J$3,0)+IF(UseCrash="y",OFFSET('Crash Summary'!Y8,-J$3,0),0)+IF(UseEnv="y",OFFSET('Emissions Summary'!P49,-J$3,0),0))*1000000+BZ8)) -> 0 | S8: =IF(P8="","",IF(P8<InitialYear,0,(OFFSET('Traveler Welfare Summary'!L9,-J$3,0)+OFFSET('Reliability Summary'!R9,-J$3,0)+IF(UseCrash="y",OFFSET('Crash Summary'!Z8,-J$3,0),0)+IF(UseEnv="y",OFFSET('Emissions Summary'!Q49,-J$3,0),0))*1000000+CA8)) -> 0 | T8: =IF(P8="","",IF(P8<InitialYear,0,(OFFSET('Traveler Welfare Summary'!M9,-J$3,0)+OFFSET('Reliability Summary'!S9,-J$3,0)+IF(UseCrash="y",OFFSET('Crash Summary'!AA8,-J$3,0),0)+IF(UseEnv="y",OFFSET('Emissions Summary'!R49,-J$3,0),0))*1000000+CB8)) -> 0 | U8: =IF(L8="","",'ATIS Summary'!I8) -> 0 | V8: =IF(M8="","",'Incident Management Summary'!I8) -> 0 | W8: =IF(N8="","",'Speed Harmonization Summary'!I8) -> 0 | Y8: =IF(Y7<FutureYear,Y7+1,"") -> 2016 | Z8: 0 | AA8: 0 | AB8: 0 | AC8: =IF($Y8="","",T8-K8) -> 0 | AD8: =IF($L8="","",U8-L8) -> 0 | AE8: 0 | AF8: 0 | AH8: =IF(AH7<FutureYear,AH7+1,"") -> 2016 | AI8: 0 | AJ8: 0 | AK8: 0 | AL8: 0 | AM8: 0 | AN8: 0 | AO8: 0 | AQ8: =IF(AQ7<FutureYear,AQ7+1,"") -> 2016 | AR8: 0 | AS8: 0 | AT8: 0 | AU8: 0 | AV8: 0 | AW8: 0 | AX8: 0 | AZ8: =IF(AZ7<FutureYear,AZ7+1,"") -> 2016 | BA8: =IF(AZ8="","","N/A") -> N/A | BB8: =IF(AZ8="","",IF(OR(BB7=1,BB7="X"),"X",IF(AS$7+NPV(DiscRate,AS8:AS$8)>0,1,0))) -> 0 | BC8: =IF(AZ8="","",IF(OR(BC7=1,BC7="X"),"X",IF(AT$7+NPV(DiscRate,AT$8:AT8)>0,1,0))) -> 0 | BD8: =IF(AZ8="","",IF(OR(BD7=1,BD7="X"),"X",IF(AU$7+NPV(DiscRate,AU$8:AU8)>0,1,0))) -> 0 | BE8: =IF(OR($AZ8="",AV8=""),"",IF(OR(BE7=1,BE7="X"),"X",IF(AV$7+NPV(DiscRate,AV$8:AV8)>0,1,0))) -> 0 | BF8: =IF(OR(AW8="",$AZ8=""),"",IF(OR(BF7=1,BF7="X"),"X",IF(AW$7+NPV(DiscRate,AW$8:AW8)>0,1,0))) -> 0 | BG8: =IF(OR(AX8="",$AZ8=""),"",IF(OR(BG7=1,BG7="X"),"X",IF(AX$7+NPV(DiscRate,AX$8:AX8)>0,1,0))) -> 0 | BI8: Yr After PP | BJ8: N/A | BK8: =BK7+1 -> 21 | BL8: =BL7+1 -> 21 | BM8: =BM7+1 -> 21 | BN8: =BN7+1 -> 11 | BO8: 11 | BP8: 11 | BR8: =IF(BR7<FutureYear,BR7+1,"") -> 2016 | BS8: =IF($G8="","",IF($BR8<InitialYear,0,OFFSET('Tolls, Fuel and VMT Summary'!J9,-$J$3,0)*1000000)) -> 0 | BT8: =IF($G8="","",IF($BR8<InitialYear,0,OFFSET('Tolls, Fuel and VMT Summary'!K9,-$J$3,0)*1000000)) -> 0 | BU8: =IF($G8="","",IF($BR8<InitialYear,0,OFFSET('Tolls, Fuel and VMT Summary'!L9,-$J$3,0)*1000000)) -> 0 | BV8: =IF($G8="","",IF($BR8<InitialYear,0,OFFSET('Tolls, Fuel and VMT Summary'!M9,-$J$3,0)*1000000)) -> 0 | BX8: =IF(BX7<FutureYear,BX7+1,"") -> 2016 | BY8: =IF($G8="","",0) -> 0 | BZ8: 0 | CA8: 0 | CB8: 0 | CD8: =IF(CD7<FutureYear,CD7+1,"") -> 2016 | CE8: 0 | CF8: =IF($G8="","",BZ8-AJ8) -> 0 | CG8: 0 | CH8: 0 | CJ8: =IF(CJ7<FutureYear,CJ7+1,"") -> 2016 | CK8: =IF(CJ8="","","N/A") -> N/A | CL8: =IF(CJ8="","",IF(OR(CL7=1,CL7="X"),"X",IF(CF$7+NPV(DiscRate,CF$8:CF8)>0,1,0))) -> 0 | CM8: =IF(CK8="","",IF(OR(CM7=1,CM7="X"),"X",IF(CG$7+NPV(DiscRate,CG$8:CG8)>0,1,0))) -> 0 | CN8: =IF(CL8="","",IF(OR(CN7=1,CN7="X"),"X",IF(CH$7+NPV(DiscRate,CH$8:CH8)>0,1,0))) -> 0 | CP8: Yr After PP | CQ8: N/A | CR8: =CR7+1 -> 21 | CS8: =CS7+1 -> 21 | CT8: =CT7+1 -> 21
A9: IRR | B9: N/A | C9: =IF(AS7>0,"> 100%",IF(SUM(AS7:AS57)<0,"N/A",IRR(AS7:AS57))) ->  | D9: =IF(AT7>0,"> 100%",IF(SUM(AT7:AT57)<0,"N/A",IRR(AT7:AT57))) ->  | E9: =IF(AU7>0,"> 100%",IF(SUM(AU7:AU57)<0,"N/A",IRR(AU7:AU57))) ->  | G9: 2017 | H9: 0 | I9: 0 | J9: 0 | K9: 0 | L9: 0 | M9: 0 | N9: 0 | P9: 2017 | Q9: 0 | R9: =IF(P9="","",IF(P9<InitialYear,0,(OFFSET('Traveler Welfare Summary'!K10,-J$3,0)+OFFSET('Reliability Summary'!Q10,-J$3,0)+IF(UseCrash="y",OFFSET('Crash Summary'!Y9,-J$3,0),0)+IF(UseEnv="y",OFFSET('Emissions Summary'!P50,-J$3,0),0))*1000000+BZ9)) -> 0 | S9: =IF(P9="","",IF(P9<InitialYear,0,(OFFSET('Traveler Welfare Summary'!L10,-J$3,0)+OFFSET('Reliability Summary'!R10,-J$3,0)+IF(UseCrash="y",OFFSET('Crash Summary'!Z9,-J$3,0),0)+IF(UseEnv="y",OFFSET('Emissions Summary'!Q50,-J$3,0),0))*1000000+CA9)) -> 0 | T9: =IF(P9="","",IF(P9<InitialYear,0,(OFFSET('Traveler Welfare Summary'!M10,-J$3,0)+OFFSET('Reliability Summary'!S10,-J$3,0)+IF(UseCrash="y",OFFSET('Crash Summary'!AA9,-J$3,0),0)+IF(UseEnv="y",OFFSET('Emissions Summary'!R50,-J$3,0),0))*1000000+CB9)) -> 0 | U9: =IF(L9="","",'ATIS Summary'!I9) -> 0 | V9: =IF(M9="","",'Incident Management Summary'!I9) -> 0 | W9: =IF(N9="","",'Speed Harmonization Summary'!I9) -> 0 | Y9: 2017 | Z9: 0 | AA9: 0 | AB9: 0 | AC9: 0 | AD9: 0 | AE9: 0 | AF9: 0 | AH9: 2017 | AI9: 0 | AJ9: 0 | AK9: 0 | AL9: 0 | AM9: 0 | AN9: 0 | AO9: 0 | AQ9: 2017 | AR9: 0 | AS9: 0 | AT9: 0 | AU9: 0 | AV9: 0 | AW9: 0 | AX9: 0 | AZ9: 2017 | BA9: N/A | BB9: =IF(AZ9="","",IF(OR(BB8=1,BB8="X"),"X",IF(AS$7+NPV(DiscRate,AS$8:AS9)>0,1,0))) -> 0 | BC9: =IF(AZ9="","",IF(OR(BC8=1,BC8="X"),"X",IF(AT$7+NPV(DiscRate,AT$8:AT9)>0,1,0))) -> 0 | BD9: =IF(AZ9="","",IF(OR(BD8=1,BD8="X"),"X",IF(AU$7+NPV(DiscRate,AU$8:AU9)>0,1,0))) -> 0 | BE9: =IF(OR($AZ9="",AV9=""),"",IF(OR(BE8=1,BE8="X"),"X",IF(AV$7+NPV(DiscRate,AV$8:AV9)>0,1,0))) -> 0 | BF9: =IF(OR(AW9="",$AZ9=""),"",IF(OR(BF8=1,BF8="X"),"X",IF(AW$7+NPV(DiscRate,AW$8:AW9)>0,1,0))) -> 0 | BG9: =IF(OR(AX9="",$AZ9=""),"",IF(OR(BG8=1,BG8="X"),"X",IF(AX$7+NPV(DiscRate,AX$8:AX9)>0,1,0))) -> 0 | BI9: NPV Before PP | BJ9: N/A | BK9: =AS7+IF(BK7>1,NPV(DiscRate,AS8:OFFSET(AS7,BK7-1,0)),0) -> 0 | BL9: =AT7+IF(BL7>1, NPV(DiscRate,AT8:OFFSET(AT7,BL7-1,0)),0) -> 0 | BM9: =AU7+IF(BM7>1, NPV(DiscRate,AU8:OFFSET(AU7,BM7-1,0)),0) -> 0 | BN9: =AV7+IF(BN7>1, NPV(DiscRate,AV8:OFFSET(AV7,BN7-1,0)),0) -> 0 | BO9: =AW7+IF(BO7>1, NPV(DiscRate,AW8:OFFSET(AW7,BO7-1,0)),0) -> 0 | BP9: =AX7+IF(BP7>1, NPV(DiscRate,AX8:OFFSET(AX7,BP7-1,0)),0) -> 0 | BR9: 2017 | BS9: =IF($G9="","",IF($BR9<InitialYear,0,OFFSET('Tolls, Fuel and VMT Summary'!J10,-$J$3,0)*1000000)) -> 0 | BT9: =IF($G9="","",IF($BR9<InitialYear,0,OFFSET('Tolls, Fuel and VMT Summary'!K10,-$J$3,0)*1000000)) -> 0 | BU9: =IF($G9="","",IF($BR9<InitialYear,0,OFFSET('Tolls, Fuel and VMT Summary'!L10,-$J$3,0)*1000000)) -> 0 | BV9: =IF($G9="","",IF($BR9<InitialYear,0,OFFSET('Tolls, Fuel and VMT Summary'!M10,-$J$3,0)*1000000)) -> 0 | BX9: 2017 | BY9: 0 | BZ9: 0 | CA9: 0 | CB9: 0 | CD9: 2017 | CE9: 0 | CF9: 0 | CG9: 0 | CH9: 0 | CJ9: 2017 | CK9: N/A | CL9: =IF(CJ9="","",IF(OR(CL8=1,CL8="X"),"X",IF(CF$7+NPV(DiscRate,CF$8:CF9)>0,1,0))) -> 0 | CM9: =IF(CK9="","",IF(OR(CM8=1,CM8="X"),"X",IF(CG$7+NPV(DiscRate,CG$8:CG9)>0,1,0))) -> 0 | CN9: =IF(CL9="","",IF(OR(CN8=1,CN8="X"),"X",IF(CH$7+NPV(DiscRate,CH$8:CH9)>0,1,0))) -> 0 | CP9: NPV Before PP | CQ9: N/A | CR9: =CF7+IF(CR7>1, NPV(DiscRate,CF8:OFFSET(CF7,CR7-1,0)),0) -> 0 | CS9: =CG7+IF(CS7>1, NPV(DiscRate,CG8:OFFSET(CG7,CS7-1,0)),0) -> 0 | CT9: =CH7+IF(CT7>1, NPV(DiscRate,CH8:OFFSET(CH7,CT7-1,0)),0) -> 0
A10: PP | B10: N/A | C10: =IF(BCAlt1<1,"> " & ProjLife & " years",IF(AS7>0,"< 1 year",BK7+(-BK9/(BK10-BK9)))) ->  | D10: =IF(BCAlt2<1,"> " & ProjLife & " years",IF(AT7>0,"< 1 year",BL7+(-BL9/(BL10-BL9)))) ->  | E10: =IF(BCAlt3<1,"> " & ProjLife & " years",IF(AU7>0,"< 1 year",BM7+(-BM9/(BM10-BM9)))) ->  | G10: 2018 | H10: 0 | I10: 0 | J10: 0 | K10: 0 | L10: 0 | M10: 0 | N10: 0 | P10: 2018 | Q10: 0 | R10: =IF(P10="","",IF(P10<InitialYear,0,(OFFSET('Traveler Welfare Summary'!K11,-J$3,0)+OFFSET('Reliability Summary'!Q11,-J$3,0)+IF(UseCrash="y",OFFSET('Crash Summary'!Y10,-J$3,0),0)+IF(UseEnv="y",OFFSET('Emissions Summary'!P51,-J$3,0),0))*1000000+BZ10)) -> 0 | S10: =IF(P10="","",IF(P10<InitialYear,0,(OFFSET('Traveler Welfare Summary'!L11,-J$3,0)+OFFSET('Reliability Summary'!R11,-J$3,0)+IF(UseCrash="y",OFFSET('Crash Summary'!Z10,-J$3,0),0)+IF(UseEnv="y",OFFSET('Emissions Summary'!Q51,-J$3,0),0))*1000000+CA10)) -> 0 | T10: =IF(P10="","",IF(P10<InitialYear,0,(OFFSET('Traveler Welfare Summary'!M11,-J$3,0)+OFFSET('Reliability Summary'!S11,-J$3,0)+IF(UseCrash="y",OFFSET('Crash Summary'!AA10,-J$3,0),0)+IF(UseEnv="y",OFFSET('Emissions Summary'!R51,-J$3,0),0))*1000000+CB10)) -> 0 | U10: =IF(L10="","",'ATIS Summary'!I10) -> 0 | V10: =IF(M10="","",'Incident Management Summary'!I10) -> 0 | W10: =IF(N10="","",'Speed Harmonization Summary'!I10) -> 0 | Y10: 2018 | Z10: 0 | AA10: 0 | AB10: 0 | AC10: 0 | AD10: 0 | AE10: 0 | AF10: 0 | AH10: 2018 | AI10: 0 | AJ10: 0 | AK10: 0 | AL10: 0 | AM10: 0 | AN10: 0 | AO10: 0 | AQ10: 2018 | AR10: 0 | AS10: 0 | AT10: 0 | AU10: 0 | AV10: 0 | AW10: 0 | AX10: 0 | AZ10: 2018 | BA10: N/A | BB10: =IF(AZ10="","",IF(OR(BB9=1,BB9="X"),"X",IF(AS$7+NPV(DiscRate,AS$8:AS10)>0,1,0))) -> 0 | BC10: =IF(AZ10="","",IF(OR(BC9=1,BC9="X"),"X",IF(AT$7+NPV(DiscRate,AT$8:AT10)>0,1,0))) -> 0 | BD10: =IF(AZ10="","",IF(OR(BD9=1,BD9="X"),"X",IF(AU$7+NPV(DiscRate,AU$8:AU10)>0,1,0))) -> 0 | BE10: =IF(OR($AZ10="",AV10=""),"",IF(OR(BE9=1,BE9="X"),"X",IF(AV$7+NPV(DiscRate,AV$8:AV10)>0,1,0))) -> 0 | BF10: =IF(OR(AW10="",$AZ10=""),"",IF(OR(BF9=1,BF9="X"),"X",IF(AW$7+NPV(DiscRate,AW$8:AW10)>0,1,0))) -> 0 | BG10: =IF(OR(AX10="",$AZ10=""),"",IF(OR(BG9=1,BG9="X"),"X",IF(AX$7+NPV(DiscRate,AX$8:AX10)>0,1,0))) -> 0 | BI10: NPV After PP | BJ10: N/A | BK10: =AS7+NPV(DiscRate,AS8:OFFSET(AS7,BK8-1,0)) -> 0 | BL10: =AT7+NPV(DiscRate,AT8:OFFSET(AT7,BL8-1,0)) -> 0 | BM10: =AU7+NPV(DiscRate,AU8:OFFSET(AU7,BM8-1,0)) -> 0 | BN10: =AV7+NPV(DiscRate,AV8:OFFSET(AV7,BN8-1,0)) -> 0 | BO10: =AW7+NPV(DiscRate,AW8:OFFSET(AW7,BO8-1,0)) -> 0 | BP10: =AX7+NPV(DiscRate,AX8:OFFSET(AX7,BP8-1,0)) -> 0 | BR10: 2018 | BS10: =IF($G10="","",IF($BR10<InitialYear,0,OFFSET('Tolls, Fuel and VMT Summary'!J11,-$J$3,0)*1000000)) -> 0 | BT10: =IF($G10="","",IF($BR10<InitialYear,0,OFFSET('Tolls, Fuel and VMT Summary'!K11,-$J$3,0)*1000000)) -> 0 | BU10: =IF($G10="","",IF($BR10<InitialYear,0,OFFSET('Tolls, Fuel and VMT Summary'!L11,-$J$3,0)*1000000)) -> 0 | BV10: =IF($G10="","",IF($BR10<InitialYear,0,OFFSET('Tolls, Fuel and VMT Summary'!M11,-$J$3,0)*1000000)) -> 0 | BX10: 2018 | BY10: 0 | BZ10: 0 | CA10: 0 | CB10: 0 | CD10: 2018 | CE10: 0 | CF10: 0 | CG10: 0 | CH10: 0 | CJ10: 2018 | CK10: N/A | CL10: =IF(CJ10="","",IF(OR(CL9=1,CL9="X"),"X",IF(CF$7+NPV(DiscRate,CF$8:CF10)>0,1,0))) -> 0 | CM10: =IF(CK10="","",IF(OR(CM9=1,CM9="X"),"X",IF(CG$7+NPV(DiscRate,CG$8:CG10)>0,1,0))) -> 0 | CN10: =IF(CL10="","",IF(OR(CN9=1,CN9="X"),"X",IF(CH$7+NPV(DiscRate,CH$8:CH10)>0,1,0))) -> 0 | CP10: NPV After PP | CQ10: N/A | CR10: =CF7+NPV(DiscRate,CF8:OFFSET(CF7,CR8-1,0)) -> 0 | CS10: =CG7+NPV(DiscRate,CG8:OFFSET(CG7,CS8-1,0)) -> 0 | CT10: =CH7+NPV(DiscRate,CH8:OFFSET(CH7,CT8-1,0)) -> 0
G11: 2019 | H11: 0 | I11: 0 | J11: 0 | K11: 0 | L11: 0 | M11: 0 | N11: 0 | P11: 2019 | Q11: 0 | R11: =IF(P11="","",IF(P11<InitialYear,0,(OFFSET('Traveler Welfare Summary'!K12,-J$3,0)+OFFSET('Reliability Summary'!Q12,-J$3,0)+IF(UseCrash="y",OFFSET('Crash Summary'!Y11,-J$3,0),0)+IF(UseEnv="y",OFFSET('Emissions Summary'!P52,-J$3,0),0))*1000000+BZ11)) -> 0 | S11: =IF(P11="","",IF(P11<InitialYear,0,(OFFSET('Traveler Welfare Summary'!L12,-J$3,0)+OFFSET('Reliability Summary'!R12,-J$3,0)+IF(UseCrash="y",OFFSET('Crash Summary'!Z11,-J$3,0),0)+IF(UseEnv="y",OFFSET('Emissions Summary'!Q52,-J$3,0),0))*1000000+CA11)) -> 0 | T11: =IF(P11="","",IF(P11<InitialYear,0,(OFFSET('Traveler Welfare Summary'!M12,-J$3,0)+OFFSET('Reliability Summary'!S12,-J$3,0)+IF(UseCrash="y",OFFSET('Crash Summary'!AA11,-J$3,0),0)+IF(UseEnv="y",OFFSET('Emissions Summary'!R52,-J$3,0),0))*1000000+CB11)) -> 0 | U11: =IF(L11="","",'ATIS Summary'!I11) -> 0 | V11: =IF(M11="","",'Incident Management Summary'!I11) -> 0 | W11: =IF(N11="","",'Speed Harmonization Summary'!I11) -> 0 | Y11: 2019 | Z11: 0 | AA11: 0 | AB11: 0 | AC11: 0 | AD11: 0 | AE11: 0 | AF11: 0 | AH11: 2019 | AI11: 0 | AJ11: 0 | AK11: 0 | AL11: 0 | AM11: 0 | AN11: 0 | AO11: 0 | AQ11: 2019 | AR11: 0 | AS11: 0 | AT11: 0 | AU11: 0 | AV11: 0 | AW11: 0 | AX11: 0 | AZ11: 2019 | BA11: N/A | BB11: =IF(AZ11="","",IF(OR(BB10=1,BB10="X"),"X",IF(AS$7+NPV(DiscRate,AS$8:AS11)>0,1,0))) -> 0 | BC11: =IF(AZ11="","",IF(OR(BC10=1,BC10="X"),"X",IF(AT$7+NPV(DiscRate,AT$8:AT11)>0,1,0))) -> 0 | BD11: =IF(AZ11="","",IF(OR(BD10=1,BD10="X"),"X",IF(AU$7+NPV(DiscRate,AU$8:AU11)>0,1,0))) -> 0 | BE11: =IF(OR($AZ11="",AV11=""),"",IF(OR(BE10=1,BE10="X"),"X",IF(AV$7+NPV(DiscRate,AV$8:AV11)>0,1,0))) -> 0 | BF11: =IF(OR(AW11="",$AZ11=""),"",IF(OR(BF10=1,BF10="X"),"X",IF(AW$7+NPV(DiscRate,AW$8:AW11)>0,1,0))) -> 0 | BG11: =IF(OR(AX11="",$AZ11=""),"",IF(OR(BG10=1,BG10="X"),"X",IF(AX$7+NPV(DiscRate,AX$8:AX11)>0,1,0))) -> 0 | BR11: 2019 | BS11: =IF($G11="","",IF($BR11<InitialYear,0,OFFSET('Tolls, Fuel and VMT Summary'!J12,-$J$3,0)*1000000)) -> 0 | BT11: =IF($G11="","",IF($BR11<InitialYear,0,OFFSET('Tolls, Fuel and VMT Summary'!K12,-$J$3,0)*1000000)) -> 0 | BU11: =IF($G11="","",IF($BR11<InitialYear,0,OFFSET('Tolls, Fuel and VMT Summary'!L12,-$J$3,0)*1000000)) -> 0 | BV11: =IF($G11="","",IF($BR11<InitialYear,0,OFFSET('Tolls, Fuel and VMT Summary'!M12,-$J$3,0)*1000000)) -> 0 | BX11: 2019 | BY11: 0 | BZ11: 0 | CA11: 0 | CB11: 0 | CD11: 2019 | CE11: 0 | CF11: 0 | CG11: 0 | CH11: 0 | CJ11: 2019 | CK11: N/A | CL11: =IF(CJ11="","",IF(OR(CL10=1,CL10="X"),"X",IF(CF$7+NPV(DiscRate,CF$8:CF11)>0,1,0))) -> 0 | CM11: =IF(CK11="","",IF(OR(CM10=1,CM10="X"),"X",IF(CG$7+NPV(DiscRate,CG$8:CG11)>0,1,0))) -> 0 | CN11: =IF(CL11="","",IF(OR(CN10=1,CN10="X"),"X",IF(CH$7+NPV(DiscRate,CH$8:CH11)>0,1,0))) -> 0
A12: Financing Perspective Summary Measures | G12: 2020 | H12: 0 | I12: 0 | J12: 0 | K12: 0 | L12: 0 | M12: 0 | N12: 0 | P12: 2020 | Q12: 0 | R12: =IF(P12="","",IF(P12<InitialYear,0,(OFFSET('Traveler Welfare Summary'!K13,-J$3,0)+OFFSET('Reliability Summary'!Q13,-J$3,0)+IF(UseCrash="y",OFFSET('Crash Summary'!Y12,-J$3,0),0)+IF(UseEnv="y",OFFSET('Emissions Summary'!P53,-J$3,0),0))*1000000+BZ12)) -> 0 | S12: =IF(P12="","",IF(P12<InitialYear,0,(OFFSET('Traveler Welfare Summary'!L13,-J$3,0)+OFFSET('Reliability Summary'!R13,-J$3,0)+IF(UseCrash="y",OFFSET('Crash Summary'!Z12,-J$3,0),0)+IF(UseEnv="y",OFFSET('Emissions Summary'!Q53,-J$3,0),0))*1000000+CA12)) -> 0 | T12: =IF(P12="","",IF(P12<InitialYear,0,(OFFSET('Traveler Welfare Summary'!M13,-J$3,0)+OFFSET('Reliability Summary'!S13,-J$3,0)+IF(UseCrash="y",OFFSET('Crash Summary'!AA12,-J$3,0),0)+IF(UseEnv="y",OFFSET('Emissions Summary'!R53,-J$3,0),0))*1000000+CB12)) -> 0 | U12: =IF(L12="","",'ATIS Summary'!I12) -> 0 | V12: =IF(M12="","",'Incident Management Summary'!I12) -> 0 | W12: =IF(N12="","",'Speed Harmonization Summary'!I12) -> 0 | Y12: 2020 | Z12: 0 | AA12: 0 | AB12: 0 | AC12: 0 | AD12: 0 | AE12: 0 | AF12: 0 | AH12: 2020 | AI12: 0 | AJ12: 0 | AK12: 0 | AL12: 0 | AM12: 0 | AN12: 0 | AO12: 0 | AQ12: 2020 | AR12: 0 | AS12: 0 | AT12: 0 | AU12: 0 | AV12: 0 | AW12: 0 | AX12: 0 | AZ12: 2020 | BA12: N/A | BB12: =IF(AZ12="","",IF(OR(BB11=1,BB11="X"),"X",IF(AS$7+NPV(DiscRate,AS$8:AS12)>0,1,0))) -> 0 | BC12: =IF(AZ12="","",IF(OR(BC11=1,BC11="X"),"X",IF(AT$7+NPV(DiscRate,AT$8:AT12)>0,1,0))) -> 0 | BD12: =IF(AZ12="","",IF(OR(BD11=1,BD11="X"),"X",IF(AU$7+NPV(DiscRate,AU$8:AU12)>0,1,0))) -> 0 | BE12: =IF(OR($AZ12="",AV12=""),"",IF(OR(BE11=1,BE11="X"),"X",IF(AV$7+NPV(DiscRate,AV$8:AV12)>0,1,0))) -> 0 | BF12: =IF(OR(AW12="",$AZ12=""),"",IF(OR(BF11=1,BF11="X"),"X",IF(AW$7+NPV(DiscRate,AW$8:AW12)>0,1,0))) -> 0 | BG12: =IF(OR(AX12="",$AZ12=""),"",IF(OR(BG11=1,BG11="X"),"X",IF(AX$7+NPV(DiscRate,AX$8:AX12)>0,1,0))) -> 0 | BR12: 2020 | BS12: =IF($G12="","",IF($BR12<InitialYear,0,OFFSET('Tolls, Fuel and VMT Summary'!J13,-$J$3,0)*1000000)) -> 0 | BT12: =IF($G12="","",IF($BR12<InitialYear,0,OFFSET('Tolls, Fuel and VMT Summary'!K13,-$J$3,0)*1000000)) -> 0 | BU12: =IF($G12="","",IF($BR12<InitialYear,0,OFFSET('Tolls, Fuel and VMT Summary'!L13,-$J$3,0)*1000000)) -> 0 | BV12: =IF($G12="","",IF($BR12<InitialYear,0,OFFSET('Tolls, Fuel and VMT Summary'!M13,-$J$3,0)*1000000)) -> 0 | BX12: 2020 | BY12: 0 | BZ12: 0 | CA12: 0 | CB12: 0 | CD12: 2020 | CE12: 0 | CF12: 0 | CG12: 0 | CH12: 0 | CJ12: 2020 | CK12: N/A | CL12: =IF(CJ12="","",IF(OR(CL11=1,CL11="X"),"X",IF(CF$7+NPV(DiscRate,CF$8:CF12)>0,1,0))) -> 0 | CM12: =IF(CK12="","",IF(OR(CM11=1,CM11="X"),"X",IF(CG$7+NPV(DiscRate,CG$8:CG12)>0,1,0))) -> 0 | CN12: =IF(CL12="","",IF(OR(CN11=1,CN11="X"),"X",IF(CH$7+NPV(DiscRate,CH$8:CH12)>0,1,0))) -> 0
A13: Measure | B13: No Build | C13: =S1Name -> 0 | D13: =S2Name -> 0 | E13: =S3Name -> 0 | G13: 2021 | H13: 0 | I13: 0 | J13: 0 | K13: 0 | L13: 0 | M13: 0 | N13: 0 | P13: 2021 | Q13: 0 | R13: =IF(P13="","",IF(P13<InitialYear,0,(OFFSET('Traveler Welfare Summary'!K14,-J$3,0)+OFFSET('Reliability Summary'!Q14,-J$3,0)+IF(UseCrash="y",OFFSET('Crash Summary'!Y13,-J$3,0),0)+IF(UseEnv="y",OFFSET('Emissions Summary'!P54,-J$3,0),0))*1000000+BZ13)) -> 0 | S13: =IF(P13="","",IF(P13<InitialYear,0,(OFFSET('Traveler Welfare Summary'!L14,-J$3,0)+OFFSET('Reliability Summary'!R14,-J$3,0)+IF(UseCrash="y",OFFSET('Crash Summary'!Z13,-J$3,0),0)+IF(UseEnv="y",OFFSET('Emissions Summary'!Q54,-J$3,0),0))*1000000+CA13)) -> 0 | T13: =IF(P13="","",IF(P13<InitialYear,0,(OFFSET('Traveler Welfare Summary'!M14,-J$3,0)+OFFSET('Reliability Summary'!S14,-J$3,0)+IF(UseCrash="y",OFFSET('Crash Summary'!AA13,-J$3,0),0)+IF(UseEnv="y",OFFSET('Emissions Summary'!R54,-J$3,0),0))*1000000+CB13)) -> 0 | U13: =IF(L13="","",'ATIS Summary'!I13) -> 0 | V13: =IF(M13="","",'Incident Management Summary'!I13) -> 0 | W13: =IF(N13="","",'Speed Harmonization Summary'!I13) -> 0 | Y13: 2021 | Z13: 0 | AA13: 0 | AB13: 0 | AC13: 0 | AD13: 0 | AE13: 0 | AF13: 0 | AH13: 2021 | AI13: 0 | AJ13: 0 | AK13: 0 | AL13: 0 | AM13: 0 | AN13: 0 | AO13: 0 | AQ13: 2021 | AR13: 0 | AS13: 0 | AT13: 0 | AU13: 0 | AV13: 0 | AW13: 0 | AX13: 0 | AZ13: 2021 | BA13: N/A | BB13: =IF(AZ13="","",IF(OR(BB12=1,BB12="X"),"X",IF(AS$7+NPV(DiscRate,AS$8:AS13)>0,1,0))) -> 0 | BC13: =IF(AZ13="","",IF(OR(BC12=1,BC12="X"),"X",IF(AT$7+NPV(DiscRate,AT$8:AT13)>0,1,0))) -> 0 | BD13: =IF(AZ13="","",IF(OR(BD12=1,BD12="X"),"X",IF(AU$7+NPV(DiscRate,AU$8:AU13)>0,1,0))) -> 0 | BE13: =IF(OR($AZ13="",AV13=""),"",IF(OR(BE12=1,BE12="X"),"X",IF(AV$7+NPV(DiscRate,AV$8:AV13)>0,1,0))) -> 0 | BF13: =IF(OR(AW13="",$AZ13=""),"",IF(OR(BF12=1,BF12="X"),"X",IF(AW$7+NPV(DiscRate,AW$8:AW13)>0,1,0))) -> 0 | BG13: =IF(OR(AX13="",$AZ13=""),"",IF(OR(BG12=1,BG12="X"),"X",IF(AX$7+NPV(DiscRate,AX$8:AX13)>0,1,0))) -> 0 | BR13: 2021 | BS13: =IF($G13="","",IF($BR13<InitialYear,0,OFFSET('Tolls, Fuel and VMT Summary'!J14,-$J$3,0)*1000000)) -> 0 | BT13: =IF($G13="","",IF($BR13<InitialYear,0,OFFSET('Tolls, Fuel and VMT Summary'!K14,-$J$3,0)*1000000)) -> 0 | BU13: =IF($G13="","",IF($BR13<InitialYear,0,OFFSET('Tolls, Fuel and VMT Summary'!L14,-$J$3,0)*1000000)) -> 0 | BV13: =IF($G13="","",IF($BR13<InitialYear,0,OFFSET('Tolls, Fuel and VMT Summary'!M14,-$J$3,0)*1000000)) -> 0 | BX13: 2021 | BY13: 0 | BZ13: 0 | CA13: 0 | CB13: 0 | CD13: 2021 | CE13: 0 | CF13: 0 | CG13: 0 | CH13: 0 | CJ13: 2021 | CK13: N/A | CL13: =IF(CJ13="","",IF(OR(CL12=1,CL12="X"),"X",IF(CF$7+NPV(DiscRate,CF$8:CF13)>0,1,0))) -> 0 | CM13: =IF(CK13="","",IF(OR(CM12=1,CM12="X"),"X",IF(CG$7+NPV(DiscRate,CG$8:CG13)>0,1,0))) -> 0 | CN13: =IF(CL13="","",IF(OR(CN12=1,CN12="X"),"X",IF(CH$7+NPV(DiscRate,CH$8:CH13)>0,1,0))) -> 0
A14: NPV Tolling Revenues | B14: 0 | C14: =BZ7+NPV(DiscRate,BZ8:BZ57) -> 0 | D14: =CA7+NPV(DiscRate,CA8:CA57) -> 0 | E14: =CB7+NPV(DiscRate,CB8:CB57) -> 0 | G14: 2022 | H14: 0 | I14: 0 | J14: 0 | K14: 0 | L14: 0 | M14: 0 | N14: 0 | P14: 2022 | Q14: 0 | R14: =IF(P14="","",IF(P14<InitialYear,0,(OFFSET('Traveler Welfare Summary'!K15,-J$3,0)+OFFSET('Reliability Summary'!Q15,-J$3,0)+IF(UseCrash="y",OFFSET('Crash Summary'!Y14,-J$3,0),0)+IF(UseEnv="y",OFFSET('Emissions Summary'!P55,-J$3,0),0))*1000000+BZ14)) -> 0 | S14: =IF(P14="","",IF(P14<InitialYear,0,(OFFSET('Traveler Welfare Summary'!L15,-J$3,0)+OFFSET('Reliability Summary'!R15,-J$3,0)+IF(UseCrash="y",OFFSET('Crash Summary'!Z14,-J$3,0),0)+IF(UseEnv="y",OFFSET('Emissions Summary'!Q55,-J$3,0),0))*1000000+CA14)) -> 0 | T14: =IF(P14="","",IF(P14<InitialYear,0,(OFFSET('Traveler Welfare Summary'!M15,-J$3,0)+OFFSET('Reliability Summary'!S15,-J$3,0)+IF(UseCrash="y",OFFSET('Crash Summary'!AA14,-J$3,0),0)+IF(UseEnv="y",OFFSET('Emissions Summary'!R55,-J$3,0),0))*1000000+CB14)) -> 0 | U14: =IF(L14="","",'ATIS Summary'!I14) -> 0 | V14: =IF(M14="","",'Incident Management Summary'!I14) -> 0 | W14: =IF(N14="","",'Speed Harmonization Summary'!I14) -> 0 | Y14: 2022 | Z14: 0 | AA14: 0 | AB14: 0 | AC14: 0 | AD14: 0 | AE14: 0 | AF14: 0 | AH14: 2022 | AI14: 0 | AJ14: 0 | AK14: 0 | AL14: 0 | AM14: 0 | AN14: 0 | AO14: 0 | AQ14: 2022 | AR14: 0 | AS14: 0 | AT14: 0 | AU14: 0 | AV14: 0 | AW14: 0 | AX14: 0 | AZ14: 2022 | BA14: N/A | BB14: =IF(AZ14="","",IF(OR(BB13=1,BB13="X"),"X",IF(AS$7+NPV(DiscRate,AS$8:AS14)>0,1,0))) -> 0 | BC14: =IF(AZ14="","",IF(OR(BC13=1,BC13="X"),"X",IF(AT$7+NPV(DiscRate,AT$8:AT14)>0,1,0))) -> 0 | BD14: =IF(AZ14="","",IF(OR(BD13=1,BD13="X"),"X",IF(AU$7+NPV(DiscRate,AU$8:AU14)>0,1,0))) -> 0 | BE14: =IF(OR($AZ14="",AV14=""),"",IF(OR(BE13=1,BE13="X"),"X",IF(AV$7+NPV(DiscRate,AV$8:AV14)>0,1,0))) -> 0 | BF14: =IF(OR(AW14="",$AZ14=""),"",IF(OR(BF13=1,BF13="X"),"X",IF(AW$7+NPV(DiscRate,AW$8:AW14)>0,1,0))) -> 0 | BG14: =IF(OR(AX14="",$AZ14=""),"",IF(OR(BG13=1,BG13="X"),"X",IF(AX$7+NPV(DiscRate,AX$8:AX14)>0,1,0))) -> 0 | BR14: 2022 | BS14: =IF($G14="","",IF($BR14<InitialYear,0,OFFSET('Tolls, Fuel and VMT Summary'!J15,-$J$3,0)*1000000)) -> 0 | BT14: =IF($G14="","",IF($BR14<InitialYear,0,OFFSET('Tolls, Fuel and VMT Summary'!K15,-$J$3,0)*1000000)) -> 0 | BU14: =IF($G14="","",IF($BR14<InitialYear,0,OFFSET('Tolls, Fuel and VMT Summary'!L15,-$J$3,0)*1000000)) -> 0 | BV14: =IF($G14="","",IF($BR14<InitialYear,0,OFFSET('Tolls, Fuel and VMT Summary'!M15,-$J$3,0)*1000000)) -> 0 | BX14: 2022 | BY14: 0 | BZ14: 0 | CA14: 0 | CB14: 0 | CD14: 2022 | CE14: 0 | CF14: 0 | CG14: 0 | CH14: 0 | CJ14: 2022 | CK14: N/A | CL14: =IF(CJ14="","",IF(OR(CL13=1,CL13="X"),"X",IF(CF$7+NPV(DiscRate,CF$8:CF14)>0,1,0))) -> 0 | CM14: =IF(CK14="","",IF(OR(CM13=1,CM13="X"),"X",IF(CG$7+NPV(DiscRate,CG$8:CG14)>0,1,0))) -> 0 | CN14: =IF(CL14="","",IF(OR(CN13=1,CN13="X"),"X",IF(CH$7+NPV(DiscRate,CH$8:CH14)>0,1,0))) -> 0
A15: NPV Costs | B15: 0 | C15: =AJ7+NPV(DiscRate,AJ8:AJ57) -> 0 | D15: =AK7+NPV(DiscRate,AK8:AK57) -> 0 | E15: =AL7+NPV(DiscRate,AL8:AL57) -> 0 | G15: 2023 | H15: 0 | I15: 0 | J15: 0 | K15: 0 | L15: 0 | M15: 0 | N15: 0 | P15: 2023 | Q15: 0 | R15: =IF(P15="","",IF(P15<InitialYear,0,(OFFSET('Traveler Welfare Summary'!K16,-J$3,0)+OFFSET('Reliability Summary'!Q16,-J$3,0)+IF(UseCrash="y",OFFSET('Crash Summary'!Y15,-J$3,0),0)+IF(UseEnv="y",OFFSET('Emissions Summary'!P56,-J$3,0),0))*1000000+BZ15)) -> 0 | S15: =IF(P15="","",IF(P15<InitialYear,0,(OFFSET('Traveler Welfare Summary'!L16,-J$3,0)+OFFSET('Reliability Summary'!R16,-J$3,0)+IF(UseCrash="y",OFFSET('Crash Summary'!Z15,-J$3,0),0)+IF(UseEnv="y",OFFSET('Emissions Summary'!Q56,-J$3,0),0))*1000000+CA15)) -> 0 | T15: =IF(P15="","",IF(P15<InitialYear,0,(OFFSET('Traveler Welfare Summary'!M16,-J$3,0)+OFFSET('Reliability Summary'!S16,-J$3,0)+IF(UseCrash="y",OFFSET('Crash Summary'!AA15,-J$3,0),0)+IF(UseEnv="y",OFFSET('Emissions Summary'!R56,-J$3,0),0))*1000000+CB15)) -> 0 | U15: =IF(L15="","",'ATIS Summary'!I15) -> 0 | V15: =IF(M15="","",'Incident Management Summary'!I15) -> 0 | W15: =IF(N15="","",'Speed Harmonization Summary'!I15) -> 0 | Y15: 2023 | Z15: 0 | AA15: 0 | AB15: 0 | AC15: 0 | AD15: 0 | AE15: 0 | AF15: 0 | AH15: 2023 | AI15: 0 | AJ15: 0 | AK15: 0 | AL15: 0 | AM15: 0 | AN15: 0 | AO15: 0 | AQ15: 2023 | AR15: 0 | AS15: 0 | AT15: 0 | AU15: 0 | AV15: 0 | AW15: 0 | AX15: 0 | AZ15: 2023 | BA15: N/A | BB15: =IF(AZ15="","",IF(OR(BB14=1,BB14="X"),"X",IF(AS$7+NPV(DiscRate,AS$8:AS15)>0,1,0))) -> 0 | BC15: =IF(AZ15="","",IF(OR(BC14=1,BC14="X"),"X",IF(AT$7+NPV(DiscRate,AT$8:AT15)>0,1,0))) -> 0 | BD15: =IF(AZ15="","",IF(OR(BD14=1,BD14="X"),"X",IF(AU$7+NPV(DiscRate,AU$8:AU15)>0,1,0))) -> 0 | BE15: =IF(OR($AZ15="",AV15=""),"",IF(OR(BE14=1,BE14="X"),"X",IF(AV$7+NPV(DiscRate,AV$8:AV15)>0,1,0))) -> 0 | BF15: =IF(OR(AW15="",$AZ15=""),"",IF(OR(BF14=1,BF14="X"),"X",IF(AW$7+NPV(DiscRate,AW$8:AW15)>0,1,0))) -> 0 | BG15: =IF(OR(AX15="",$AZ15=""),"",IF(OR(BG14=1,BG14="X"),"X",IF(AX$7+NPV(DiscRate,AX$8:AX15)>0,1,0))) -> 0 | BR15: 2023 | BS15: =IF($G15="","",IF($BR15<InitialYear,0,OFFSET('Tolls, Fuel and VMT Summary'!J16,-$J$3,0)*1000000)) -> 0 | BT15: =IF($G15="","",IF($BR15<InitialYear,0,OFFSET('Tolls, Fuel and VMT Summary'!K16,-$J$3,0)*1000000)) -> 0 | BU15: =IF($G15="","",IF($BR15<InitialYear,0,OFFSET('Tolls, Fuel and VMT Summary'!L16,-$J$3,0)*1000000)) -> 0 | BV15: =IF($G15="","",IF($BR15<InitialYear,0,OFFSET('Tolls, Fuel and VMT Summary'!M16,-$J$3,0)*1000000)) -> 0 | BX15: 2023 | BY15: 0 | BZ15: 0 | CA15: 0 | CB15: 0 | CD15: 2023 | CE15: 0 | CF15: 0 | CG15: 0 | CH15: 0 | CJ15: 2023 | CK15: N/A | CL15: =IF(CJ15="","",IF(OR(CL14=1,CL14="X"),"X",IF(CF$7+NPV(DiscRate,CF$8:CF15)>0,1,0))) -> 0 | CM15: =IF(CK15="","",IF(OR(CM14=1,CM14="X"),"X",IF(CG$7+NPV(DiscRate,CG$8:CG15)>0,1,0))) -> 0 | CN15: =IF(CL15="","",IF(OR(CN14=1,CN14="X"),"X",IF(CH$7+NPV(DiscRate,CH$8:CH15)>0,1,0))) -> 0
A16: Financing NPV | B16: =B14-B15 -> 0 | C16: =C14-C15 -> 0 | D16: =D14-D15 -> 0 | E16: =E14-E15 -> 0 | G16: 2024 | H16: 0 | I16: 0 | J16: 0 | K16: 0 | L16: 0 | M16: 0 | N16: 0 | P16: 2024 | Q16: 0 | R16: =IF(P16="","",IF(P16<InitialYear,0,(OFFSET('Traveler Welfare Summary'!K17,-J$3,0)+OFFSET('Reliability Summary'!Q17,-J$3,0)+IF(UseCrash="y",OFFSET('Crash Summary'!Y16,-J$3,0),0)+IF(UseEnv="y",OFFSET('Emissions Summary'!P57,-J$3,0),0))*1000000+BZ16)) -> 0 | S16: =IF(P16="","",IF(P16<InitialYear,0,(OFFSET('Traveler Welfare Summary'!L17,-J$3,0)+OFFSET('Reliability Summary'!R17,-J$3,0)+IF(UseCrash="y",OFFSET('Crash Summary'!Z16,-J$3,0),0)+IF(UseEnv="y",OFFSET('Emissions Summary'!Q57,-J$3,0),0))*1000000+CA16)) -> 0 | T16: =IF(P16="","",IF(P16<InitialYear,0,(OFFSET('Traveler Welfare Summary'!M17,-J$3,0)+OFFSET('Reliability Summary'!S17,-J$3,0)+IF(UseCrash="y",OFFSET('Crash Summary'!AA16,-J$3,0),0)+IF(UseEnv="y",OFFSET('Emissions Summary'!R57,-J$3,0),0))*1000000+CB16)) -> 0 | U16: =IF(L16="","",'ATIS Summary'!I16) -> 0 | V16: =IF(M16="","",'Incident Management Summary'!I16) -> 0 | W16: =IF(N16="","",'Speed Harmonization Summary'!I16) -> 0 | Y16: 2024 | Z16: 0 | AA16: 0 | AB16: 0 | AC16: 0 | AD16: 0 | AE16: 0 | AF16: 0 | AH16: 2024 | AI16: 0 | AJ16: 0 | AK16: 0 | AL16: 0 | AM16: 0 | AN16: 0 | AO16: 0 | AQ16: 2024 | AR16: 0 | AS16: 0 | AT16: 0 | AU16: 0 | AV16: 0 | AW16: 0 | AX16: 0 | AZ16: 2024 | BA16: N/A | BB16: =IF(AZ16="","",IF(OR(BB15=1,BB15="X"),"X",IF(AS$7+NPV(DiscRate,AS$8:AS16)>0,1,0))) -> 0 | BC16: =IF(AZ16="","",IF(OR(BC15=1,BC15="X"),"X",IF(AT$7+NPV(DiscRate,AT$8:AT16)>0,1,0))) -> 0 | BD16: =IF(AZ16="","",IF(OR(BD15=1,BD15="X"),"X",IF(AU$7+NPV(DiscRate,AU$8:AU16)>0,1,0))) -> 0 | BE16: =IF(OR($AZ16="",AV16=""),"",IF(OR(BE15=1,BE15="X"),"X",IF(AV$7+NPV(DiscRate,AV$8:AV16)>0,1,0))) -> 0 | BF16: =IF(OR(AW16="",$AZ16=""),"",IF(OR(BF15=1,BF15="X"),"X",IF(AW$7+NPV(DiscRate,AW$8:AW16)>0,1,0))) -> 0 | BG16: =IF(OR(AX16="",$AZ16=""),"",IF(OR(BG15=1,BG15="X"),"X",IF(AX$7+NPV(DiscRate,AX$8:AX16)>0,1,0))) -> 0 | BR16: 2024 | BS16: =IF($G16="","",IF($BR16<InitialYear,0,OFFSET('Tolls, Fuel and VMT Summary'!J17,-$J$3,0)*1000000)) -> 0 | BT16: =IF($G16="","",IF($BR16<InitialYear,0,OFFSET('Tolls, Fuel and VMT Summary'!K17,-$J$3,0)*1000000)) -> 0 | BU16: =IF($G16="","",IF($BR16<InitialYear,0,OFFSET('Tolls, Fuel and VMT Summary'!L17,-$J$3,0)*1000000)) -> 0 | BV16: =IF($G16="","",IF($BR16<InitialYear,0,OFFSET('Tolls, Fuel and VMT Summary'!M17,-$J$3,0)*1000000)) -> 0 | BX16: 2024 | BY16: 0 | BZ16: 0 | CA16: 0 | CB16: 0 | CD16: 2024 | CE16: 0 | CF16: 0 | CG16: 0 | CH16: 0 | CJ16: 2024 | CK16: N/A | CL16: =IF(CJ16="","",IF(OR(CL15=1,CL15="X"),"X",IF(CF$7+NPV(DiscRate,CF$8:CF16)>0,1,0))) -> 0 | CM16: =IF(CK16="","",IF(OR(CM15=1,CM15="X"),"X",IF(CG$7+NPV(DiscRate,CG$8:CG16)>0,1,0))) -> 0 | CN16: =IF(CL16="","",IF(OR(CN15=1,CN15="X"),"X",IF(CH$7+NPV(DiscRate,CH$8:CH16)>0,1,0))) -> 0
A17: Financing IRR | B17: N/A | C17: =IF(CF7>0,"> 100%",IF(SUM(CF7:CF57)<0,"N/A",IRR(CF7:CF57))) ->  | D17: =IF(CG7>0,"> 100%",IF(SUM(CG7:CG57)<0,"N/A",IRR(CG7:CG57))) ->  | E17: =IF(CH7>0,"> 100%",IF(SUM(CH7:CH57)<0,"N/A",IRR(CH7:CH57))) ->  | G17: 2025 | H17: 0 | I17: 0 | J17: 0 | K17: 0 | L17: 0 | M17: 0 | N17: 0 | P17: 2025 | Q17: 0 | R17: =IF(P17="","",IF(P17<InitialYear,0,(OFFSET('Traveler Welfare Summary'!K18,-J$3,0)+OFFSET('Reliability Summary'!Q18,-J$3,0)+IF(UseCrash="y",OFFSET('Crash Summary'!Y17,-J$3,0),0)+IF(UseEnv="y",OFFSET('Emissions Summary'!P58,-J$3,0),0))*1000000+BZ17)) -> 0 | S17: =IF(P17="","",IF(P17<InitialYear,0,(OFFSET('Traveler Welfare Summary'!L18,-J$3,0)+OFFSET('Reliability Summary'!R18,-J$3,0)+IF(UseCrash="y",OFFSET('Crash Summary'!Z17,-J$3,0),0)+IF(UseEnv="y",OFFSET('Emissions Summary'!Q58,-J$3,0),0))*1000000+CA17)) -> 0 | T17: =IF(P17="","",IF(P17<InitialYear,0,(OFFSET('Traveler Welfare Summary'!M18,-J$3,0)+OFFSET('Reliability Summary'!S18,-J$3,0)+IF(UseCrash="y",OFFSET('Crash Summary'!AA17,-J$3,0),0)+IF(UseEnv="y",OFFSET('Emissions Summary'!R58,-J$3,0),0))*1000000+CB17)) -> 0 | U17: =IF(L17="","",'ATIS Summary'!I17) -> 0 | V17: =IF(M17="","",'Incident Management Summary'!I17) -> 0 | W17: =IF(N17="","",'Speed Harmonization Summary'!I17) -> 0 | Y17: 2025 | Z17: 0 | AA17: 0 | AB17: 0 | AC17: 0 | AD17: 0 | AE17: 0 | AF17: 0 | AH17: 2025 | AI17: 0 | AJ17: 0 | AK17: 0 | AL17: 0 | AM17: 0 | AN17: 0 | AO17: 0 | AQ17: 2025 | AR17: 0 | AS17: 0 | AT17: 0 | AU17: 0 | AV17: 0 | AW17: 0 | AX17: 0 | AZ17: 2025 | BA17: N/A | BB17: =IF(AZ17="","",IF(OR(BB16=1,BB16="X"),"X",IF(AS$7+NPV(DiscRate,AS$8:AS17)>0,1,0))) -> 0 | BC17: =IF(AZ17="","",IF(OR(BC16=1,BC16="X"),"X",IF(AT$7+NPV(DiscRate,AT$8:AT17)>0,1,0))) -> 0 | BD17: =IF(AZ17="","",IF(OR(BD16=1,BD16="X"),"X",IF(AU$7+NPV(DiscRate,AU$8:AU17)>0,1,0))) -> 0 | BE17: =IF(OR($AZ17="",AV17=""),"",IF(OR(BE16=1,BE16="X"),"X",IF(AV$7+NPV(DiscRate,AV$8:AV17)>0,1,0))) -> 0 | BF17: =IF(OR(AW17="",$AZ17=""),"",IF(OR(BF16=1,BF16="X"),"X",IF(AW$7+NPV(DiscRate,AW$8:AW17)>0,1,0))) -> 0 | BG17: =IF(OR(AX17="",$AZ17=""),"",IF(OR(BG16=1,BG16="X"),"X",IF(AX$7+NPV(DiscRate,AX$8:AX17)>0,1,0))) -> 0 | BR17: 2025 | BS17: =IF($G17="","",IF($BR17<InitialYear,0,OFFSET('Tolls, Fuel and VMT Summary'!J18,-$J$3,0)*1000000)) -> 0 | BT17: =IF($G17="","",IF($BR17<InitialYear,0,OFFSET('Tolls, Fuel and VMT Summary'!K18,-$J$3,0)*1000000)) -> 0 | BU17: =IF($G17="","",IF($BR17<InitialYear,0,OFFSET('Tolls, Fuel and VMT Summary'!L18,-$J$3,0)*1000000)) -> 0 | BV17: =IF($G17="","",IF($BR17<InitialYear,0,OFFSET('Tolls, Fuel and VMT Summary'!M18,-$J$3,0)*1000000)) -> 0 | BX17: 2025 | BY17: 0 | BZ17: 0 | CA17: 0 | CB17: 0 | CD17: 2025 | CE17: 0 | CF17: 0 | CG17: 0 | CH17: 0 | CJ17: 2025 | CK17: N/A | CL17: =IF(CJ17="","",IF(OR(CL16=1,CL16="X"),"X",IF(CF$7+NPV(DiscRate,CF$8:CF17)>0,1,0))) -> 0 | CM17: =IF(CK17="","",IF(OR(CM16=1,CM16="X"),"X",IF(CG$7+NPV(DiscRate,CG$8:CG17)>0,1,0))) -> 0 | CN17: =IF(CL17="","",IF(OR(CN16=1,CN16="X"),"X",IF(CH$7+NPV(DiscRate,CH$8:CH17)>0,1,0))) -> 0
A18: Financing PP | B18: N/A | C18: =IF(CR10<0,"> "&ProjLife&" years",IF(CF7>0,"< 1 year",CR7+(-CR9/(CR10-CR9)))) ->  | D18: =IF(CS10<0,"> "&ProjLife&" years",IF(CG7>0,"< 1 year",CS7+(-CS9/(CS10-CS9)))) ->  | E18: =IF(CT10<0,"> "&ProjLife&" years",IF(CH7>0,"< 1 year",CT7+(-CT9/(CT10-CT9)))) ->  | G18: 2026 | H18: 0 | I18: 0 | J18: 0 | K18: 0 | P18: 2026 | Q18: 0 | R18: =IF(P18="","",IF(P18<InitialYear,0,(OFFSET('Traveler Welfare Summary'!K19,-J$3,0)+OFFSET('Reliability Summary'!Q19,-J$3,0)+IF(UseCrash="y",OFFSET('Crash Summary'!Y18,-J$3,0),0)+IF(UseEnv="y",OFFSET('Emissions Summary'!P59,-J$3,0),0))*1000000+BZ18)) -> 0 | S18: =IF(P18="","",IF(P18<InitialYear,0,(OFFSET('Traveler Welfare Summary'!L19,-J$3,0)+OFFSET('Reliability Summary'!R19,-J$3,0)+IF(UseCrash="y",OFFSET('Crash Summary'!Z18,-J$3,0),0)+IF(UseEnv="y",OFFSET('Emissions Summary'!Q59,-J$3,0),0))*1000000+CA18)) -> 0 | T18: =IF(P18="","",IF(P18<InitialYear,0,(OFFSET('Traveler Welfare Summary'!M19,-J$3,0)+OFFSET('Reliability Summary'!S19,-J$3,0)+IF(UseCrash="y",OFFSET('Crash Summary'!AA18,-J$3,0),0)+IF(UseEnv="y",OFFSET('Emissions Summary'!R59,-J$3,0),0))*1000000+CB18)) -> 0 | U18: =IF(L18="","",'ATIS Summary'!I18) ->  | V18: =IF(M18="","",'Incident Management Summary'!I18) ->  | W18: =IF(N18="","",'Speed Harmonization Summary'!I18) ->  | Y18: 2026 | Z18: 0 | AA18: 0 | AB18: 0 | AC18: 0 | AH18: 2026 | AI18: 0 | AJ18: 0 | AK18: 0 | AL18: 0 | AQ18: 2026 | AR18: 0 | AS18: 0 | AT18: 0 | AU18: 0 | AZ18: 2026 | BA18: N/A | BB18: =IF(AZ18="","",IF(OR(BB17=1,BB17="X"),"X",IF(AS$7+NPV(DiscRate,AS$8:AS18)>0,1,0))) -> 0 | BC18: =IF(AZ18="","",IF(OR(BC17=1,BC17="X"),"X",IF(AT$7+NPV(DiscRate,AT$8:AT18)>0,1,0))) -> 0 | BD18: =IF(AZ18="","",IF(OR(BD17=1,BD17="X"),"X",IF(AU$7+NPV(DiscRate,AU$8:AU18)>0,1,0))) -> 0 | BE18: =IF(OR($AZ18="",AV18=""),"",IF(OR(BE17=1,BE17="X"),"X",IF(AV$7+NPV(DiscRate,AV$8:AV18)>0,1,0))) ->  | BF18: =IF(OR(AW18="",$AZ18=""),"",IF(OR(BF17=1,BF17="X"),"X",IF(AW$7+NPV(DiscRate,AW$8:AW18)>0,1,0))) ->  | BG18: =IF(OR(AX18="",$AZ18=""),"",IF(OR(BG17=1,BG17="X"),"X",IF(AX$7+NPV(DiscRate,AX$8:AX18)>0,1,0))) ->  | BR18: 2026 | BS18: =IF($G18="","",IF($BR18<InitialYear,0,OFFSET('Tolls, Fuel and VMT Summary'!J19,-$J$3,0)*1000000)) -> 0 | BT18: =IF($G18="","",IF($BR18<InitialYear,0,OFFSET('Tolls, Fuel and VMT Summary'!K19,-$J$3,0)*1000000)) -> 0 | BU18: =IF($G18="","",IF($BR18<InitialYear,0,OFFSET('Tolls, Fuel and VMT Summary'!L19,-$J$3,0)*1000000)) -> 0 | BV18: =IF($G18="","",IF($BR18<InitialYear,0,OFFSET('Tolls, Fuel and VMT Summary'!M19,-$J$3,0)*1000000)) -> 0 | BX18: 2026 | BY18: 0 | BZ18: 0 | CA18: 0 | CB18: 0 | CD18: 2026 | CE18: 0 | CF18: 0 | CG18: 0 | CH18: 0 | CJ18: 2026 | CK18: N/A | CL18: =IF(CJ18="","",IF(OR(CL17=1,CL17="X"),"X",IF(CF$7+NPV(DiscRate,CF$8:CF18)>0,1,0))) -> 0 | CM18: =IF(CK18="","",IF(OR(CM17=1,CM17="X"),"X",IF(CG$7+NPV(DiscRate,CG$8:CG18)>0,1,0))) -> 0 | CN18: =IF(CL18="","",IF(OR(CN17=1,CN17="X"),"X",IF(CH$7+NPV(DiscRate,CH$8:CH18)>0,1,0))) -> 0
G19: 2027 | H19: 0 | I19: 0 | J19: 0 | K19: 0 | P19: 2027 | Q19: 0 | R19: =IF(P19="","",IF(P19<InitialYear,0,(OFFSET('Traveler Welfare Summary'!K20,-J$3,0)+OFFSET('Reliability Summary'!Q20,-J$3,0)+IF(UseCrash="y",OFFSET('Crash Summary'!Y19,-J$3,0),0)+IF(UseEnv="y",OFFSET('Emissions Summary'!P60,-J$3,0),0))*1000000+BZ19)) -> 0 | S19: =IF(P19="","",IF(P19<InitialYear,0,(OFFSET('Traveler Welfare Summary'!L20,-J$3,0)+OFFSET('Reliability Summary'!R20,-J$3,0)+IF(UseCrash="y",OFFSET('Crash Summary'!Z19,-J$3,0),0)+IF(UseEnv="y",OFFSET('Emissions Summary'!Q60,-J$3,0),0))*1000000+CA19)) -> 0 | T19: =IF(P19="","",IF(P19<InitialYear,0,(OFFSET('Traveler Welfare Summary'!M20,-J$3,0)+OFFSET('Reliability Summary'!S20,-J$3,0)+IF(UseCrash="y",OFFSET('Crash Summary'!AA19,-J$3,0),0)+IF(UseEnv="y",OFFSET('Emissions Summary'!R60,-J$3,0),0))*1000000+CB19)) -> 0 | U19: =IF(L19="","",'ATIS Summary'!I19) ->  | V19: =IF(M19="","",'Incident Management Summary'!I19) ->  | W19: =IF(N19="","",'Speed Harmonization Summary'!I19) ->  | Y19: 2027 | Z19: 0 | AA19: 0 | AB19: 0 | AC19: 0 | AH19: 2027 | AI19: 0 | AJ19: 0 | AK19: 0 | AL19: 0 | AQ19: 2027 | AR19: 0 | AS19: 0 | AT19: 0 | AU19: 0 | AZ19: 2027 | BA19: N/A | BB19: =IF(AZ19="","",IF(OR(BB18=1,BB18="X"),"X",IF(AS$7+NPV(DiscRate,AS$8:AS19)>0,1,0))) -> 0 | BC19: =IF(AZ19="","",IF(OR(BC18=1,BC18="X"),"X",IF(AT$7+NPV(DiscRate,AT$8:AT19)>0,1,0))) -> 0 | BD19: =IF(AZ19="","",IF(OR(BD18=1,BD18="X"),"X",IF(AU$7+NPV(DiscRate,AU$8:AU19)>0,1,0))) -> 0 | BE19: =IF(OR($AZ19="",AV19=""),"",IF(OR(BE18=1,BE18="X"),"X",IF(AV$7+NPV(DiscRate,AV$8:AV19)>0,1,0))) ->  | BF19: =IF(OR(AW19="",$AZ19=""),"",IF(OR(BF18=1,BF18="X"),"X",IF(AW$7+NPV(DiscRate,AW$8:AW19)>0,1,0))) ->  | BG19: =IF(OR(AX19="",$AZ19=""),"",IF(OR(BG18=1,BG18="X"),"X",IF(AX$7+NPV(DiscRate,AX$8:AX19)>0,1,0))) ->  | BR19: 2027 | BS19: =IF($G19="","",IF($BR19<InitialYear,0,OFFSET('Tolls, Fuel and VMT Summary'!J20,-$J$3,0)*1000000)) -> 0 | BT19: =IF($G19="","",IF($BR19<InitialYear,0,OFFSET('Tolls, Fuel and VMT Summary'!K20,-$J$3,0)*1000000)) -> 0 | BU19: =IF($G19="","",IF($BR19<InitialYear,0,OFFSET('Tolls, Fuel and VMT Summary'!L20,-$J$3,0)*1000000)) -> 0 | BV19: =IF($G19="","",IF($BR19<InitialYear,0,OFFSET('Tolls, Fuel and VMT Summary'!M20,-$J$3,0)*1000000)) -> 0 | BX19: 2027 | BY19: 0 | BZ19: 0 | CA19: 0 | CB19: 0 | CD19: 2027 | CE19: 0 | CF19: 0 | CG19: 0 | CH19: 0 | CJ19: 2027 | CK19: N/A | CL19: =IF(CJ19="","",IF(OR(CL18=1,CL18="X"),"X",IF(CF$7+NPV(DiscRate,CF$8:CF19)>0,1,0))) -> 0 | CM19: =IF(CK19="","",IF(OR(CM18=1,CM18="X"),"X",IF(CG$7+NPV(DiscRate,CG$8:CG19)>0,1,0))) -> 0 | CN19: =IF(CL19="","",IF(OR(CN18=1,CN18="X"),"X",IF(CH$7+NPV(DiscRate,CH$8:CH19)>0,1,0))) -> 0
G20: 2028 | H20: 0 | I20: 0 | J20: 0 | K20: 0 | P20: 2028 | Q20: 0 | R20: =IF(P20="","",IF(P20<InitialYear,0,(OFFSET('Traveler Welfare Summary'!K21,-J$3,0)+OFFSET('Reliability Summary'!Q21,-J$3,0)+IF(UseCrash="y",OFFSET('Crash Summary'!Y20,-J$3,0),0)+IF(UseEnv="y",OFFSET('Emissions Summary'!P61,-J$3,0),0))*1000000+BZ20)) -> 0 | S20: =IF(P20="","",IF(P20<InitialYear,0,(OFFSET('Traveler Welfare Summary'!L21,-J$3,0)+OFFSET('Reliability Summary'!R21,-J$3,0)+IF(UseCrash="y",OFFSET('Crash Summary'!Z20,-J$3,0),0)+IF(UseEnv="y",OFFSET('Emissions Summary'!Q61,-J$3,0),0))*1000000+CA20)) -> 0 | T20: =IF(P20="","",IF(P20<InitialYear,0,(OFFSET('Traveler Welfare Summary'!M21,-J$3,0)+OFFSET('Reliability Summary'!S21,-J$3,0)+IF(UseCrash="y",OFFSET('Crash Summary'!AA20,-J$3,0),0)+IF(UseEnv="y",OFFSET('Emissions Summary'!R61,-J$3,0),0))*1000000+CB20)) -> 0 | U20: =IF(L20="","",'ATIS Summary'!I20) ->  | V20: =IF(M20="","",'Incident Management Summary'!I20) ->  | W20: =IF(N20="","",'Speed Harmonization Summary'!I20) ->  | Y20: 2028 | Z20: 0 | AA20: 0 | AB20: 0 | AC20: 0 | AH20: 2028 | AI20: 0 | AJ20: 0 | AK20: 0 | AL20: 0 | AQ20: 2028 | AR20: 0 | AS20: 0 | AT20: 0 | AU20: 0 | AZ20: 2028 | BA20: N/A | BB20: =IF(AZ20="","",IF(OR(BB19=1,BB19="X"),"X",IF(AS$7+NPV(DiscRate,AS$8:AS20)>0,1,0))) -> 0 | BC20: =IF(AZ20="","",IF(OR(BC19=1,BC19="X"),"X",IF(AT$7+NPV(DiscRate,AT$8:AT20)>0,1,0))) -> 0 | BD20: =IF(AZ20="","",IF(OR(BD19=1,BD19="X"),"X",IF(AU$7+NPV(DiscRate,AU$8:AU20)>0,1,0))) -> 0 | BE20: =IF(OR($AZ20="",AV20=""),"",IF(OR(BE19=1,BE19="X"),"X",IF(AV$7+NPV(DiscRate,AV$8:AV20)>0,1,0))) ->  | BF20: =IF(OR(AW20="",$AZ20=""),"",IF(OR(BF19=1,BF19="X"),"X",IF(AW$7+NPV(DiscRate,AW$8:AW20)>0,1,0))) ->  | BG20: =IF(OR(AX20="",$AZ20=""),"",IF(OR(BG19=1,BG19="X"),"X",IF(AX$7+NPV(DiscRate,AX$8:AX20)>0,1,0))) ->  | BR20: 2028 | BS20: =IF($G20="","",IF($BR20<InitialYear,0,OFFSET('Tolls, Fuel and VMT Summary'!J21,-$J$3,0)*1000000)) -> 0 | BT20: =IF($G20="","",IF($BR20<InitialYear,0,OFFSET('Tolls, Fuel and VMT Summary'!K21,-$J$3,0)*1000000)) -> 0 | BU20: =IF($G20="","",IF($BR20<InitialYear,0,OFFSET('Tolls, Fuel and VMT Summary'!L21,-$J$3,0)*1000000)) -> 0 | BV20: =IF($G20="","",IF($BR20<InitialYear,0,OFFSET('Tolls, Fuel and VMT Summary'!M21,-$J$3,0)*1000000)) -> 0 | BX20: 2028 | BY20: 0 | BZ20: 0 | CA20: 0 | CB20: 0 | CD20: 2028 | CE20: 0 | CF20: 0 | CG20: 0 | CH20: 0 | CJ20: 2028 | CK20: N/A | CL20: =IF(CJ20="","",IF(OR(CL19=1,CL19="X"),"X",IF(CF$7+NPV(DiscRate,CF$8:CF20)>0,1,0))) -> 0 | CM20: =IF(CK20="","",IF(OR(CM19=1,CM19="X"),"X",IF(CG$7+NPV(DiscRate,CG$8:CG20)>0,1,0))) -> 0 | CN20: =IF(CL20="","",IF(OR(CN19=1,CN19="X"),"X",IF(CH$7+NPV(DiscRate,CH$8:CH20)>0,1,0))) -> 0
G21: 2029 | H21: 0 | I21: 0 | J21: 0 | K21: 0 | P21: 2029 | Q21: 0 | R21: =IF(P21="","",IF(P21<InitialYear,0,(OFFSET('Traveler Welfare Summary'!K22,-J$3,0)+OFFSET('Reliability Summary'!Q22,-J$3,0)+IF(UseCrash="y",OFFSET('Crash Summary'!Y21,-J$3,0),0)+IF(UseEnv="y",OFFSET('Emissions Summary'!P62,-J$3,0),0))*1000000+BZ21)) -> 0 | S21: =IF(P21="","",IF(P21<InitialYear,0,(OFFSET('Traveler Welfare Summary'!L22,-J$3,0)+OFFSET('Reliability Summary'!R22,-J$3,0)+IF(UseCrash="y",OFFSET('Crash Summary'!Z21,-J$3,0),0)+IF(UseEnv="y",OFFSET('Emissions Summary'!Q62,-J$3,0),0))*1000000+CA21)) -> 0 | T21: =IF(P21="","",IF(P21<InitialYear,0,(OFFSET('Traveler Welfare Summary'!M22,-J$3,0)+OFFSET('Reliability Summary'!S22,-J$3,0)+IF(UseCrash="y",OFFSET('Crash Summary'!AA21,-J$3,0),0)+IF(UseEnv="y",OFFSET('Emissions Summary'!R62,-J$3,0),0))*1000000+CB21)) -> 0 | U21: =IF(L21="","",'ATIS Summary'!I21) ->  | V21: =IF(M21="","",'Incident Management Summary'!I21) ->  | W21: =IF(N21="","",'Speed Harmonization Summary'!I21) ->  | Y21: 2029 | Z21: 0 | AA21: 0 | AB21: 0 | AC21: 0 | AH21: 2029 | AI21: 0 | AJ21: 0 | AK21: 0 | AL21: 0 | AQ21: 2029 | AR21: 0 | AS21: 0 | AT21: 0 | AU21: 0 | AZ21: 2029 | BA21: N/A | BB21: =IF(AZ21="","",IF(OR(BB20=1,BB20="X"),"X",IF(AS$7+NPV(DiscRate,AS$8:AS21)>0,1,0))) -> 0 | BC21: =IF(AZ21="","",IF(OR(BC20=1,BC20="X"),"X",IF(AT$7+NPV(DiscRate,AT$8:AT21)>0,1,0))) -> 0 | BD21: =IF(AZ21="","",IF(OR(BD20=1,BD20="X"),"X",IF(AU$7+NPV(DiscRate,AU$8:AU21)>0,1,0))) -> 0 | BE21: =IF(OR($AZ21="",AV21=""),"",IF(OR(BE20=1,BE20="X"),"X",IF(AV$7+NPV(DiscRate,AV$8:AV21)>0,1,0))) ->  | BF21: =IF(OR(AW21="",$AZ21=""),"",IF(OR(BF20=1,BF20="X"),"X",IF(AW$7+NPV(DiscRate,AW$8:AW21)>0,1,0))) ->  | BG21: =IF(OR(AX21="",$AZ21=""),"",IF(OR(BG20=1,BG20="X"),"X",IF(AX$7+NPV(DiscRate,AX$8:AX21)>0,1,0))) ->  | BR21: 2029 | BS21: =IF($G21="","",IF($BR21<InitialYear,0,OFFSET('Tolls, Fuel and VMT Summary'!J22,-$J$3,0)*1000000)) -> 0 | BT21: =IF($G21="","",IF($BR21<InitialYear,0,OFFSET('Tolls, Fuel and VMT Summary'!K22,-$J$3,0)*1000000)) -> 0 | BU21: =IF($G21="","",IF($BR21<InitialYear,0,OFFSET('Tolls, Fuel and VMT Summary'!L22,-$J$3,0)*1000000)) -> 0 | BV21: =IF($G21="","",IF($BR21<InitialYear,0,OFFSET('Tolls, Fuel and VMT Summary'!M22,-$J$3,0)*1000000)) -> 0 | BX21: 2029 | BY21: 0 | BZ21: 0 | CA21: 0 | CB21: 0 | CD21: 2029 | CE21: 0 | CF21: 0 | CG21: 0 | CH21: 0 | CJ21: 2029 | CK21: N/A | CL21: =IF(CJ21="","",IF(OR(CL20=1,CL20="X"),"X",IF(CF$7+NPV(DiscRate,CF$8:CF21)>0,1,0))) -> 0 | CM21: =IF(CK21="","",IF(OR(CM20=1,CM20="X"),"X",IF(CG$7+NPV(DiscRate,CG$8:CG21)>0,1,0))) -> 0 | CN21: =IF(CL21="","",IF(OR(CN20=1,CN20="X"),"X",IF(CH$7+NPV(DiscRate,CH$8:CH21)>0,1,0))) -> 0
G22: 2030 | H22: 0 | I22: 0 | J22: 0 | K22: 0 | P22: 2030 | Q22: 0 | R22: =IF(P22="","",IF(P22<InitialYear,0,(OFFSET('Traveler Welfare Summary'!K23,-J$3,0)+OFFSET('Reliability Summary'!Q23,-J$3,0)+IF(UseCrash="y",OFFSET('Crash Summary'!Y22,-J$3,0),0)+IF(UseEnv="y",OFFSET('Emissions Summary'!P63,-J$3,0),0))*1000000+BZ22)) -> 0 | S22: =IF(P22="","",IF(P22<InitialYear,0,(OFFSET('Traveler Welfare Summary'!L23,-J$3,0)+OFFSET('Reliability Summary'!R23,-J$3,0)+IF(UseCrash="y",OFFSET('Crash Summary'!Z22,-J$3,0),0)+IF(UseEnv="y",OFFSET('Emissions Summary'!Q63,-J$3,0),0))*1000000+CA22)) -> 0 | T22: =IF(P22="","",IF(P22<InitialYear,0,(OFFSET('Traveler Welfare Summary'!M23,-J$3,0)+OFFSET('Reliability Summary'!S23,-J$3,0)+IF(UseCrash="y",OFFSET('Crash Summary'!AA22,-J$3,0),0)+IF(UseEnv="y",OFFSET('Emissions Summary'!R63,-J$3,0),0))*1000000+CB22)) -> 0 | U22: =IF(L22="","",'ATIS Summary'!I22) ->  | V22: =IF(M22="","",'Incident Management Summary'!I22) ->  | W22: =IF(N22="","",'Speed Harmonization Summary'!I22) ->  | Y22: 2030 | Z22: 0 | AA22: 0 | AB22: 0 | AC22: 0 | AH22: 2030 | AI22: 0 | AJ22: 0 | AK22: 0 | AL22: 0 | AQ22: 2030 | AR22: 0 | AS22: 0 | AT22: 0 | AU22: 0 | AZ22: 2030 | BA22: N/A | BB22: =IF(AZ22="","",IF(OR(BB21=1,BB21="X"),"X",IF(AS$7+NPV(DiscRate,AS$8:AS22)>0,1,0))) -> 0 | BC22: =IF(AZ22="","",IF(OR(BC21=1,BC21="X"),"X",IF(AT$7+NPV(DiscRate,AT$8:AT22)>0,1,0))) -> 0 | BD22: =IF(AZ22="","",IF(OR(BD21=1,BD21="X"),"X",IF(AU$7+NPV(DiscRate,AU$8:AU22)>0,1,0))) -> 0 | BE22: =IF(OR($AZ22="",AV22=""),"",IF(OR(BE21=1,BE21="X"),"X",IF(AV$7+NPV(DiscRate,AV$8:AV22)>0,1,0))) ->  | BF22: =IF(OR(AW22="",$AZ22=""),"",IF(OR(BF21=1,BF21="X"),"X",IF(AW$7+NPV(DiscRate,AW$8:AW22)>0,1,0))) ->  | BG22: =IF(OR(AX22="",$AZ22=""),"",IF(OR(BG21=1,BG21="X"),"X",IF(AX$7+NPV(DiscRate,AX$8:AX22)>0,1,0))) ->  | BR22: 2030 | BS22: =IF($G22="","",IF($BR22<InitialYear,0,OFFSET('Tolls, Fuel and VMT Summary'!J23,-$J$3,0)*1000000)) -> 0 | BT22: =IF($G22="","",IF($BR22<InitialYear,0,OFFSET('Tolls, Fuel and VMT Summary'!K23,-$J$3,0)*1000000)) -> 0 | BU22: =IF($G22="","",IF($BR22<InitialYear,0,OFFSET('Tolls, Fuel and VMT Summary'!L23,-$J$3,0)*1000000)) -> 0 | BV22: =IF($G22="","",IF($BR22<InitialYear,0,OFFSET('Tolls, Fuel and VMT Summary'!M23,-$J$3,0)*1000000)) -> 0 | BX22: 2030 | BY22: 0 | BZ22: 0 | CA22: 0 | CB22: 0 | CD22: 2030 | CE22: 0 | CF22: 0 | CG22: 0 | CH22: 0 | CJ22: 2030 | CK22: N/A | CL22: =IF(CJ22="","",IF(OR(CL21=1,CL21="X"),"X",IF(CF$7+NPV(DiscRate,CF$8:CF22)>0,1,0))) -> 0 | CM22: =IF(CK22="","",IF(OR(CM21=1,CM21="X"),"X",IF(CG$7+NPV(DiscRate,CG$8:CG22)>0,1,0))) -> 0 | CN22: =IF(CL22="","",IF(OR(CN21=1,CN21="X"),"X",IF(CH$7+NPV(DiscRate,CH$8:CH22)>0,1,0))) -> 0
G23: 2031 | H23: 0 | I23: 0 | J23: 0 | K23: 0 | P23: 2031 | Q23: 0 | R23: =IF(P23="","",IF(P23<InitialYear,0,(OFFSET('Traveler Welfare Summary'!K24,-J$3,0)+OFFSET('Reliability Summary'!Q24,-J$3,0)+IF(UseCrash="y",OFFSET('Crash Summary'!Y23,-J$3,0),0)+IF(UseEnv="y",OFFSET('Emissions Summary'!P64,-J$3,0),0))*1000000+BZ23)) -> 0 | S23: =IF(P23="","",IF(P23<InitialYear,0,(OFFSET('Traveler Welfare Summary'!L24,-J$3,0)+OFFSET('Reliability Summary'!R24,-J$3,0)+IF(UseCrash="y",OFFSET('Crash Summary'!Z23,-J$3,0),0)+IF(UseEnv="y",OFFSET('Emissions Summary'!Q64,-J$3,0),0))*1000000+CA23)) -> 0 | T23: =IF(P23="","",IF(P23<InitialYear,0,(OFFSET('Traveler Welfare Summary'!M24,-J$3,0)+OFFSET('Reliability Summary'!S24,-J$3,0)+IF(UseCrash="y",OFFSET('Crash Summary'!AA23,-J$3,0),0)+IF(UseEnv="y",OFFSET('Emissions Summary'!R64,-J$3,0),0))*1000000+CB23)) -> 0 | U23: =IF(L23="","",'ATIS Summary'!I23) ->  | V23: =IF(M23="","",'Incident Management Summary'!I23) ->  | W23: =IF(N23="","",'Speed Harmonization Summary'!I23) ->  | Y23: 2031 | Z23: 0 | AA23: 0 | AB23: 0 | AC23: 0 | AH23: 2031 | AI23: 0 | AJ23: 0 | AK23: 0 | AL23: 0 | AQ23: 2031 | AR23: 0 | AS23: 0 | AT23: 0 | AU23: 0 | AZ23: 2031 | BA23: N/A | BB23: =IF(AZ23="","",IF(OR(BB22=1,BB22="X"),"X",IF(AS$7+NPV(DiscRate,AS$8:AS23)>0,1,0))) -> 0 | BC23: =IF(AZ23="","",IF(OR(BC22=1,BC22="X"),"X",IF(AT$7+NPV(DiscRate,AT$8:AT23)>0,1,0))) -> 0 | BD23: =IF(AZ23="","",IF(OR(BD22=1,BD22="X"),"X",IF(AU$7+NPV(DiscRate,AU$8:AU23)>0,1,0))) -> 0 | BE23: =IF(OR($AZ23="",AV23=""),"",IF(OR(BE22=1,BE22="X"),"X",IF(AV$7+NPV(DiscRate,AV$8:AV23)>0,1,0))) ->  | BF23: =IF(OR(AW23="",$AZ23=""),"",IF(OR(BF22=1,BF22="X"),"X",IF(AW$7+NPV(DiscRate,AW$8:AW23)>0,1,0))) ->  | BG23: =IF(OR(AX23="",$AZ23=""),"",IF(OR(BG22=1,BG22="X"),"X",IF(AX$7+NPV(DiscRate,AX$8:AX23)>0,1,0))) ->  | BR23: 2031 | BS23: =IF($G23="","",IF($BR23<InitialYear,0,OFFSET('Tolls, Fuel and VMT Summary'!J24,-$J$3,0)*1000000)) -> 0 | BT23: =IF($G23="","",IF($BR23<InitialYear,0,OFFSET('Tolls, Fuel and VMT Summary'!K24,-$J$3,0)*1000000)) -> 0 | BU23: =IF($G23="","",IF($BR23<InitialYear,0,OFFSET('Tolls, Fuel and VMT Summary'!L24,-$J$3,0)*1000000)) -> 0 | BV23: =IF($G23="","",IF($BR23<InitialYear,0,OFFSET('Tolls, Fuel and VMT Summary'!M24,-$J$3,0)*1000000)) -> 0 | BX23: 2031 | BY23: 0 | BZ23: 0 | CA23: 0 | CB23: 0 | CD23: 2031 | CE23: 0 | CF23: 0 | CG23: 0 | CH23: 0 | CJ23: 2031 | CK23: N/A | CL23: =IF(CJ23="","",IF(OR(CL22=1,CL22="X"),"X",IF(CF$7+NPV(DiscRate,CF$8:CF23)>0,1,0))) -> 0 | CM23: =IF(CK23="","",IF(OR(CM22=1,CM22="X"),"X",IF(CG$7+NPV(DiscRate,CG$8:CG23)>0,1,0))) -> 0 | CN23: =IF(CL23="","",IF(OR(CN22=1,CN22="X"),"X",IF(CH$7+NPV(DiscRate,CH$8:CH23)>0,1,0))) -> 0
G24: 2032 | H24: 0 | I24: 0 | J24: 0 | K24: 0 | P24: 2032 | Q24: 0 | R24: =IF(P24="","",IF(P24<InitialYear,0,(OFFSET('Traveler Welfare Summary'!K25,-J$3,0)+OFFSET('Reliability Summary'!Q25,-J$3,0)+IF(UseCrash="y",OFFSET('Crash Summary'!Y24,-J$3,0),0)+IF(UseEnv="y",OFFSET('Emissions Summary'!P65,-J$3,0),0))*1000000+BZ24)) -> 0 | S24: =IF(P24="","",IF(P24<InitialYear,0,(OFFSET('Traveler Welfare Summary'!L25,-J$3,0)+OFFSET('Reliability Summary'!R25,-J$3,0)+IF(UseCrash="y",OFFSET('Crash Summary'!Z24,-J$3,0),0)+IF(UseEnv="y",OFFSET('Emissions Summary'!Q65,-J$3,0),0))*1000000+CA24)) -> 0 | T24: =IF(P24="","",IF(P24<InitialYear,0,(OFFSET('Traveler Welfare Summary'!M25,-J$3,0)+OFFSET('Reliability Summary'!S25,-J$3,0)+IF(UseCrash="y",OFFSET('Crash Summary'!AA24,-J$3,0),0)+IF(UseEnv="y",OFFSET('Emissions Summary'!R65,-J$3,0),0))*1000000+CB24)) -> 0 | U24: =IF(L24="","",'ATIS Summary'!I24) ->  | V24: =IF(M24="","",'Incident Management Summary'!I24) ->  | W24: =IF(N24="","",'Speed Harmonization Summary'!I24) ->  | Y24: 2032 | Z24: 0 | AA24: 0 | AB24: 0 | AC24: 0 | AH24: 2032 | AI24: 0 | AJ24: 0 | AK24: 0 | AL24: 0 | AQ24: 2032 | AR24: 0 | AS24: 0 | AT24: 0 | AU24: 0 | AZ24: 2032 | BA24: N/A | BB24: =IF(AZ24="","",IF(OR(BB23=1,BB23="X"),"X",IF(AS$7+NPV(DiscRate,AS$8:AS24)>0,1,0))) -> 0 | BC24: =IF(AZ24="","",IF(OR(BC23=1,BC23="X"),"X",IF(AT$7+NPV(DiscRate,AT$8:AT24)>0,1,0))) -> 0 | BD24: =IF(AZ24="","",IF(OR(BD23=1,BD23="X"),"X",IF(AU$7+NPV(DiscRate,AU$8:AU24)>0,1,0))) -> 0 | BE24: =IF(OR($AZ24="",AV24=""),"",IF(OR(BE23=1,BE23="X"),"X",IF(AV$7+NPV(DiscRate,AV$8:AV24)>0,1,0))) ->  | BF24: =IF(OR(AW24="",$AZ24=""),"",IF(OR(BF23=1,BF23="X"),"X",IF(AW$7+NPV(DiscRate,AW$8:AW24)>0,1,0))) ->  | BG24: =IF(OR(AX24="",$AZ24=""),"",IF(OR(BG23=1,BG23="X"),"X",IF(AX$7+NPV(DiscRate,AX$8:AX24)>0,1,0))) ->  | BR24: 2032 | BS24: =IF($G24="","",IF($BR24<InitialYear,0,OFFSET('Tolls, Fuel and VMT Summary'!J25,-$J$3,0)*1000000)) -> 0 | BT24: =IF($G24="","",IF($BR24<InitialYear,0,OFFSET('Tolls, Fuel and VMT Summary'!K25,-$J$3,0)*1000000)) -> 0 | BU24: =IF($G24="","",IF($BR24<InitialYear,0,OFFSET('Tolls, Fuel and VMT Summary'!L25,-$J$3,0)*1000000)) -> 0 | BV24: =IF($G24="","",IF($BR24<InitialYear,0,OFFSET('Tolls, Fuel and VMT Summary'!M25,-$J$3,0)*1000000)) -> 0 | BX24: 2032 | BY24: 0 | BZ24: 0 | CA24: 0 | CB24: 0 | CD24: 2032 | CE24: 0 | CF24: 0 | CG24: 0 | CH24: 0 | CJ24: 2032 | CK24: N/A | CL24: =IF(CJ24="","",IF(OR(CL23=1,CL23="X"),"X",IF(CF$7+NPV(DiscRate,CF$8:CF24)>0,1,0))) -> 0 | CM24: =IF(CK24="","",IF(OR(CM23=1,CM23="X"),"X",IF(CG$7+NPV(DiscRate,CG$8:CG24)>0,1,0))) -> 0 | CN24: =IF(CL24="","",IF(OR(CN23=1,CN23="X"),"X",IF(CH$7+NPV(DiscRate,CH$8:CH24)>0,1,0))) -> 0
A25: Operations Measures | G25: 2033 | H25: 0 | I25: 0 | J25: 0 | K25: 0 | P25: 2033 | Q25: 0 | R25: =IF(P25="","",IF(P25<InitialYear,0,(OFFSET('Traveler Welfare Summary'!K26,-J$3,0)+OFFSET('Reliability Summary'!Q26,-J$3,0)+IF(UseCrash="y",OFFSET('Crash Summary'!Y25,-J$3,0),0)+IF(UseEnv="y",OFFSET('Emissions Summary'!P66,-J$3,0),0))*1000000+BZ25)) -> 0 | S25: =IF(P25="","",IF(P25<InitialYear,0,(OFFSET('Traveler Welfare Summary'!L26,-J$3,0)+OFFSET('Reliability Summary'!R26,-J$3,0)+IF(UseCrash="y",OFFSET('Crash Summary'!Z25,-J$3,0),0)+IF(UseEnv="y",OFFSET('Emissions Summary'!Q66,-J$3,0),0))*1000000+CA25)) -> 0 | T25: =IF(P25="","",IF(P25<InitialYear,0,(OFFSET('Traveler Welfare Summary'!M26,-J$3,0)+OFFSET('Reliability Summary'!S26,-J$3,0)+IF(UseCrash="y",OFFSET('Crash Summary'!AA25,-J$3,0),0)+IF(UseEnv="y",OFFSET('Emissions Summary'!R66,-J$3,0),0))*1000000+CB25)) -> 0 | U25: =IF(L25="","",'ATIS Summary'!I25) ->  | V25: =IF(M25="","",'Incident Management Summary'!I25) ->  | W25: =IF(N25="","",'Speed Harmonization Summary'!I25) ->  | Y25: 2033 | Z25: 0 | AA25: 0 | AB25: 0 | AC25: 0 | AH25: 2033 | AI25: 0 | AJ25: 0 | AK25: 0 | AL25: 0 | AQ25: 2033 | AR25: 0 | AS25: 0 | AT25: 0 | AU25: 0 | AZ25: 2033 | BA25: N/A | BB25: =IF(AZ25="","",IF(OR(BB24=1,BB24="X"),"X",IF(AS$7+NPV(DiscRate,AS$8:AS25)>0,1,0))) -> 0 | BC25: =IF(AZ25="","",IF(OR(BC24=1,BC24="X"),"X",IF(AT$7+NPV(DiscRate,AT$8:AT25)>0,1,0))) -> 0 | BD25: =IF(AZ25="","",IF(OR(BD24=1,BD24="X"),"X",IF(AU$7+NPV(DiscRate,AU$8:AU25)>0,1,0))) -> 0 | BE25: =IF(OR($AZ25="",AV25=""),"",IF(OR(BE24=1,BE24="X"),"X",IF(AV$7+NPV(DiscRate,AV$8:AV25)>0,1,0))) ->  | BF25: =IF(OR(AW25="",$AZ25=""),"",IF(OR(BF24=1,BF24="X"),"X",IF(AW$7+NPV(DiscRate,AW$8:AW25)>0,1,0))) ->  | BG25: =IF(OR(AX25="",$AZ25=""),"",IF(OR(BG24=1,BG24="X"),"X",IF(AX$7+NPV(DiscRate,AX$8:AX25)>0,1,0))) ->  | BR25: 2033 | BS25: =IF($G25="","",IF($BR25<InitialYear,0,OFFSET('Tolls, Fuel and VMT Summary'!J26,-$J$3,0)*1000000)) -> 0 | BT25: =IF($G25="","",IF($BR25<InitialYear,0,OFFSET('Tolls, Fuel and VMT Summary'!K26,-$J$3,0)*1000000)) -> 0 | BU25: =IF($G25="","",IF($BR25<InitialYear,0,OFFSET('Tolls, Fuel and VMT Summary'!L26,-$J$3,0)*1000000)) -> 0 | BV25: =IF($G25="","",IF($BR25<InitialYear,0,OFFSET('Tolls, Fuel and VMT Summary'!M26,-$J$3,0)*1000000)) -> 0 | BX25: 2033 | BY25: 0 | BZ25: 0 | CA25: 0 | CB25: 0 | CD25: 2033 | CE25: 0 | CF25: 0 | CG25: 0 | CH25: 0 | CJ25: 2033 | CK25: N/A | CL25: =IF(CJ25="","",IF(OR(CL24=1,CL24="X"),"X",IF(CF$7+NPV(DiscRate,CF$8:CF25)>0,1,0))) -> 0 | CM25: =IF(CK25="","",IF(OR(CM24=1,CM24="X"),"X",IF(CG$7+NPV(DiscRate,CG$8:CG25)>0,1,0))) -> 0 | CN25: =IF(CL25="","",IF(OR(CN24=1,CN24="X"),"X",IF(CH$7+NPV(DiscRate,CH$8:CH25)>0,1,0))) -> 0
A26: Measure | B26: No Build | C26: ATIS | D26: Incident Management | E26: Speed Harmonization | G26: 2034 | H26: 0 | I26: 0 | J26: 0 | K26: 0 | P26: 2034 | Q26: 0 | R26: =IF(P26="","",IF(P26<InitialYear,0,(OFFSET('Traveler Welfare Summary'!K27,-J$3,0)+OFFSET('Reliability Summary'!Q27,-J$3,0)+IF(UseCrash="y",OFFSET('Crash Summary'!Y26,-J$3,0),0)+IF(UseEnv="y",OFFSET('Emissions Summary'!P67,-J$3,0),0))*1000000+BZ26)) -> 0 | S26: =IF(P26="","",IF(P26<InitialYear,0,(OFFSET('Traveler Welfare Summary'!L27,-J$3,0)+OFFSET('Reliability Summary'!R27,-J$3,0)+IF(UseCrash="y",OFFSET('Crash Summary'!Z26,-J$3,0),0)+IF(UseEnv="y",OFFSET('Emissions Summary'!Q67,-J$3,0),0))*1000000+CA26)) -> 0 | T26: =IF(P26="","",IF(P26<InitialYear,0,(OFFSET('Traveler Welfare Summary'!M27,-J$3,0)+OFFSET('Reliability Summary'!S27,-J$3,0)+IF(UseCrash="y",OFFSET('Crash Summary'!AA26,-J$3,0),0)+IF(UseEnv="y",OFFSET('Emissions Summary'!R67,-J$3,0),0))*1000000+CB26)) -> 0 | U26: =IF(L26="","",'ATIS Summary'!I26) ->  | V26: =IF(M26="","",'Incident Management Summary'!I26) ->  | W26: =IF(N26="","",'Speed Harmonization Summary'!I26) ->  | Y26: 2034 | Z26: 0 | AA26: 0 | AB26: 0 | AC26: 0 | AH26: 2034 | AI26: 0 | AJ26: 0 | AK26: 0 | AL26: 0 | AQ26: 2034 | AR26: 0 | AS26: 0 | AT26: 0 | AU26: 0 | AZ26: 2034 | BA26: N/A | BB26: =IF(AZ26="","",IF(OR(BB25=1,BB25="X"),"X",IF(AS$7+NPV(DiscRate,AS$8:AS26)>0,1,0))) -> 0 | BC26: =IF(AZ26="","",IF(OR(BC25=1,BC25="X"),"X",IF(AT$7+NPV(DiscRate,AT$8:AT26)>0,1,0))) -> 0 | BD26: =IF(AZ26="","",IF(OR(BD25=1,BD25="X"),"X",IF(AU$7+NPV(DiscRate,AU$8:AU26)>0,1,0))) -> 0 | BE26: =IF(OR($AZ26="",AV26=""),"",IF(OR(BE25=1,BE25="X"),"X",IF(AV$7+NPV(DiscRate,AV$8:AV26)>0,1,0))) ->  | BF26: =IF(OR(AW26="",$AZ26=""),"",IF(OR(BF25=1,BF25="X"),"X",IF(AW$7+NPV(DiscRate,AW$8:AW26)>0,1,0))) ->  | BG26: =IF(OR(AX26="",$AZ26=""),"",IF(OR(BG25=1,BG25="X"),"X",IF(AX$7+NPV(DiscRate,AX$8:AX26)>0,1,0))) ->  | BR26: 2034 | BS26: =IF($G26="","",IF($BR26<InitialYear,0,OFFSET('Tolls, Fuel and VMT Summary'!J27,-$J$3,0)*1000000)) -> 0 | BT26: =IF($G26="","",IF($BR26<InitialYear,0,OFFSET('Tolls, Fuel and VMT Summary'!K27,-$J$3,0)*1000000)) -> 0 | BU26: =IF($G26="","",IF($BR26<InitialYear,0,OFFSET('Tolls, Fuel and VMT Summary'!L27,-$J$3,0)*1000000)) -> 0 | BV26: =IF($G26="","",IF($BR26<InitialYear,0,OFFSET('Tolls, Fuel and VMT Summary'!M27,-$J$3,0)*1000000)) -> 0 | BX26: 2034 | BY26: 0 | BZ26: 0 | CA26: 0 | CB26: 0 | CD26: 2034 | CE26: 0 | CF26: 0 | CG26: 0 | CH26: 0 | CJ26: 2034 | CK26: N/A | CL26: =IF(CJ26="","",IF(OR(CL25=1,CL25="X"),"X",IF(CF$7+NPV(DiscRate,CF$8:CF26)>0,1,0))) -> 0 | CM26: =IF(CK26="","",IF(OR(CM25=1,CM25="X"),"X",IF(CG$7+NPV(DiscRate,CG$8:CG26)>0,1,0))) -> 0 | CN26: =IF(CL26="","",IF(OR(CN25=1,CN25="X"),"X",IF(CH$7+NPV(DiscRate,CH$8:CH26)>0,1,0))) -> 0
A27: NPV | B27: =NPV(DiscRate,Z27:Z77) -> 0 | C27: =NPV(DiscRate,AD7:AD57) -> 0 | D27: =NPV(DiscRate,AE7:AE57) -> 0 | E27: =NPV(DiscRate,AF7:AF57) -> 0 | G27: 2035 | H27: 0 | I27: 0 | J27: 0 | K27: 0 | P27: 2035 | Q27: 0 | R27: =IF(P27="","",IF(P27<InitialYear,0,(OFFSET('Traveler Welfare Summary'!K28,-J$3,0)+OFFSET('Reliability Summary'!Q28,-J$3,0)+IF(UseCrash="y",OFFSET('Crash Summary'!Y27,-J$3,0),0)+IF(UseEnv="y",OFFSET('Emissions Summary'!P68,-J$3,0),0))*1000000+BZ27)) -> 0 | S27: =IF(P27="","",IF(P27<InitialYear,0,(OFFSET('Traveler Welfare Summary'!L28,-J$3,0)+OFFSET('Reliability Summary'!R28,-J$3,0)+IF(UseCrash="y",OFFSET('Crash Summary'!Z27,-J$3,0),0)+IF(UseEnv="y",OFFSET('Emissions Summary'!Q68,-J$3,0),0))*1000000+CA27)) -> 0 | T27: =IF(P27="","",IF(P27<InitialYear,0,(OFFSET('Traveler Welfare Summary'!M28,-J$3,0)+OFFSET('Reliability Summary'!S28,-J$3,0)+IF(UseCrash="y",OFFSET('Crash Summary'!AA27,-J$3,0),0)+IF(UseEnv="y",OFFSET('Emissions Summary'!R68,-J$3,0),0))*1000000+CB27)) -> 0 | U27: =IF(L27="","",'ATIS Summary'!I27) ->  | V27: =IF(M27="","",'Incident Management Summary'!I27) ->  | W27: =IF(N27="","",'Speed Harmonization Summary'!I27) ->  | Y27: 2035 | Z27: 0 | AA27: 0 | AB27: 0 | AC27: 0 | AH27: 2035 | AI27: 0 | AJ27: 0 | AK27: 0 | AL27: 0 | AQ27: 2035 | AR27: 0 | AS27: 0 | AT27: 0 | AU27: 0 | AZ27: 2035 | BA27: N/A | BB27: =IF(AZ27="","",IF(OR(BB26=1,BB26="X"),"X",IF(AS$7+NPV(DiscRate,AS$8:AS27)>0,1,0))) -> 0 | BC27: =IF(AZ27="","",IF(OR(BC26=1,BC26="X"),"X",IF(AT$7+NPV(DiscRate,AT$8:AT27)>0,1,0))) -> 0 | BD27: =IF(AZ27="","",IF(OR(BD26=1,BD26="X"),"X",IF(AU$7+NPV(DiscRate,AU$8:AU27)>0,1,0))) -> 0 | BE27: =IF(OR($AZ27="",AV27=""),"",IF(OR(BE26=1,BE26="X"),"X",IF(AV$7+NPV(DiscRate,AV$8:AV27)>0,1,0))) ->  | BF27: =IF(OR(AW27="",$AZ27=""),"",IF(OR(BF26=1,BF26="X"),"X",IF(AW$7+NPV(DiscRate,AW$8:AW27)>0,1,0))) ->  | BG27: =IF(OR(AX27="",$AZ27=""),"",IF(OR(BG26=1,BG26="X"),"X",IF(AX$7+NPV(DiscRate,AX$8:AX27)>0,1,0))) ->  | BR27: 2035 | BS27: =IF($G27="","",IF($BR27<InitialYear,0,OFFSET('Tolls, Fuel and VMT Summary'!J28,-$J$3,0)*1000000)) -> 0 | BT27: =IF($G27="","",IF($BR27<InitialYear,0,OFFSET('Tolls, Fuel and VMT Summary'!K28,-$J$3,0)*1000000)) -> 0 | BU27: =IF($G27="","",IF($BR27<InitialYear,0,OFFSET('Tolls, Fuel and VMT Summary'!L28,-$J$3,0)*1000000)) -> 0 | BV27: =IF($G27="","",IF($BR27<InitialYear,0,OFFSET('Tolls, Fuel and VMT Summary'!M28,-$J$3,0)*1000000)) -> 0 | BX27: 2035 | BY27: 0 | BZ27: 0 | CA27: 0 | CB27: 0 | CD27: 2035 | CE27: 0 | CF27: 0 | CG27: 0 | CH27: 0 | CJ27: 2035 | CK27: N/A | CL27: =IF(CJ27="","",IF(OR(CL26=1,CL26="X"),"X",IF(CF$7+NPV(DiscRate,CF$8:CF27)>0,1,0))) -> 0 | CM27: =IF(CK27="","",IF(OR(CM26=1,CM26="X"),"X",IF(CG$7+NPV(DiscRate,CG$8:CG27)>0,1,0))) -> 0 | CN27: =IF(CL27="","",IF(OR(CN26=1,CN26="X"),"X",IF(CH$7+NPV(DiscRate,CH$8:CH27)>0,1,0))) -> 0
A28: B/C | B28: N/A | C28: =IF(NPV(DiscRate,L7:L57)=0,0,NPV(DiscRate,U7:U57)/NPV(DiscRate,L7:L57)) -> 0 | D28: =IF(NPV(DiscRate,M7:M57)=0,0,NPV(DiscRate,V7:V57)/NPV(DiscRate,M7:M57)) -> 0 | E28: =IF(NPV(DiscRate,N7:N57)=0,0,NPV(DiscRate,W7:W57)/NPV(DiscRate,N7:N57)) -> 0 | R28: =IF(P28="","",IF(P28<InitialYear,0,(OFFSET('Traveler Welfare Summary'!K29,-J$3,0)+OFFSET('Reliability Summary'!Q29,-J$3,0)+IF(UseCrash="y",OFFSET('Crash Summary'!Y28,-J$3,0),0)+IF(UseEnv="y",OFFSET('Emissions Summary'!P69,-J$3,0),0))*1000000+BZ28)) ->  | S28: =IF(P28="","",IF(P28<InitialYear,0,(OFFSET('Traveler Welfare Summary'!L29,-J$3,0)+OFFSET('Reliability Summary'!R29,-J$3,0)+IF(UseCrash="y",OFFSET('Crash Summary'!Z28,-J$3,0),0)+IF(UseEnv="y",OFFSET('Emissions Summary'!Q69,-J$3,0),0))*1000000+CA28)) ->  | T28: =IF(P28="","",IF(P28<InitialYear,0,(OFFSET('Traveler Welfare Summary'!M29,-J$3,0)+OFFSET('Reliability Summary'!S29,-J$3,0)+IF(UseCrash="y",OFFSET('Crash Summary'!AA28,-J$3,0),0)+IF(UseEnv="y",OFFSET('Emissions Summary'!R69,-J$3,0),0))*1000000+CB28)) ->  | U28: =IF(L28="","",'ATIS Summary'!I28) ->  | V28: =IF(M28="","",'Incident Management Summary'!I28) ->  | W28: =IF(N28="","",'Speed Harmonization Summary'!I28) ->  | BB28: =IF(AZ28="","",IF(OR(BB27=1,BB27="X"),"X",IF(AS$7+NPV(DiscRate,AS$8:AS28)>0,1,0))) ->  | BC28: =IF(AZ28="","",IF(OR(BC27=1,BC27="X"),"X",IF(AT$7+NPV(DiscRate,AT$8:AT28)>0,1,0))) ->  | BD28: =IF(AZ28="","",IF(OR(BD27=1,BD27="X"),"X",IF(AU$7+NPV(DiscRate,AU$8:AU28)>0,1,0))) ->  | BE28: =IF(OR($AZ28="",AV28=""),"",IF(OR(BE27=1,BE27="X"),"X",IF(AV$7+NPV(DiscRate,AV$8:AV28)>0,1,0))) ->  | BF28: =IF(OR(AW28="",$AZ28=""),"",IF(OR(BF27=1,BF27="X"),"X",IF(AW$7+NPV(DiscRate,AW$8:AW28)>0,1,0))) ->  | BG28: =IF(OR(AX28="",$AZ28=""),"",IF(OR(BG27=1,BG27="X"),"X",IF(AX$7+NPV(DiscRate,AX$8:AX28)>0,1,0))) ->  | BS28: =IF($G28="","",IF($BR28<InitialYear,0,OFFSET('Tolls, Fuel and VMT Summary'!J29,-$J$3,0)*1000000)) ->  | BT28: =IF($G28="","",IF($BR28<InitialYear,0,OFFSET('Tolls, Fuel and VMT Summary'!K29,-$J$3,0)*1000000)) ->  | BU28: =IF($G28="","",IF($BR28<InitialYear,0,OFFSET('Tolls, Fuel and VMT Summary'!L29,-$J$3,0)*1000000)) ->  | BV28: =IF($G28="","",IF($BR28<InitialYear,0,OFFSET('Tolls, Fuel and VMT Summary'!M29,-$J$3,0)*1000000)) ->  | CL28: =IF(CJ28="","",IF(OR(CL27=1,CL27="X"),"X",IF(CF$7+NPV(DiscRate,CF$8:CF28)>0,1,0))) ->  | CM28: =IF(CK28="","",IF(OR(CM27=1,CM27="X"),"X",IF(CG$7+NPV(DiscRate,CG$8:CG28)>0,1,0))) ->  | CN28: =IF(CL28="","",IF(OR(CN27=1,CN27="X"),"X",IF(CH$7+NPV(DiscRate,CH$8:CH28)>0,1,0))) -> 
A29: IRR | B29: N/A | C29: =IF(NPV(DiscRate,L7:L57)=0,0,IF(AV7>0,"> 100%",IF(SUM(AV7:AV57)<0,"N/A",IRR(AV7:AV57)))) -> 0 | D29: =IF(NPV(DiscRate,M7:M57)=0,0,IF(AW7>0,"> 100%",IF(SUM(AW7:AW57)<0,"N/A",IRR(AW7:AW57)))) -> 0 | E29: =IF(NPV(DiscRate,N7:N57)=0,0,IF(AX7>0,"> 100%",IF(SUM(AX7:AX57)<0,"N/A",IRR(AX7:AX57)))) -> 0 | R29: =IF(P29="","",IF(P29<InitialYear,0,(OFFSET('Traveler Welfare Summary'!K30,-J$3,0)+OFFSET('Reliability Summary'!Q30,-J$3,0)+IF(UseCrash="y",OFFSET('Crash Summary'!Y29,-J$3,0),0)+IF(UseEnv="y",OFFSET('Emissions Summary'!P70,-J$3,0),0))*1000000+BZ29)) ->  | S29: =IF(P29="","",IF(P29<InitialYear,0,(OFFSET('Traveler Welfare Summary'!L30,-J$3,0)+OFFSET('Reliability Summary'!R30,-J$3,0)+IF(UseCrash="y",OFFSET('Crash Summary'!Z29,-J$3,0),0)+IF(UseEnv="y",OFFSET('Emissions Summary'!Q70,-J$3,0),0))*1000000+CA29)) ->  | T29: =IF(P29="","",IF(P29<InitialYear,0,(OFFSET('Traveler Welfare Summary'!M30,-J$3,0)+OFFSET('Reliability Summary'!S30,-J$3,0)+IF(UseCrash="y",OFFSET('Crash Summary'!AA29,-J$3,0),0)+IF(UseEnv="y",OFFSET('Emissions Summary'!R70,-J$3,0),0))*1000000+CB29)) ->  | U29: =IF(L29="","",'ATIS Summary'!I29) ->  | V29: =IF(M29="","",'Incident Management Summary'!I29) ->  | W29: =IF(N29="","",'Speed Harmonization Summary'!I29) ->  | BB29: =IF(AZ29="","",IF(OR(BB28=1,BB28="X"),"X",IF(AS$7+NPV(DiscRate,AS$8:AS29)>0,1,0))) ->  | BC29: =IF(AZ29="","",IF(OR(BC28=1,BC28="X"),"X",IF(AT$7+NPV(DiscRate,AT$8:AT29)>0,1,0))) ->  | BD29: =IF(AZ29="","",IF(OR(BD28=1,BD28="X"),"X",IF(AU$7+NPV(DiscRate,AU$8:AU29)>0,1,0))) ->  | BE29: =IF(OR($AZ29="",AV29=""),"",IF(OR(BE28=1,BE28="X"),"X",IF(AV$7+NPV(DiscRate,AV$8:AV29)>0,1,0))) ->  | BF29: =IF(OR(AW29="",$AZ29=""),"",IF(OR(BF28=1,BF28="X"),"X",IF(AW$7+NPV(DiscRate,AW$8:AW29)>0,1,0))) ->  | BG29: =IF(OR(AX29="",$AZ29=""),"",IF(OR(BG28=1,BG28="X"),"X",IF(AX$7+NPV(DiscRate,AX$8:AX29)>0,1,0))) ->  | BS29: =IF($G29="","",IF($BR29<InitialYear,0,OFFSET('Tolls, Fuel and VMT Summary'!J30,-$J$3,0)*1000000)) ->  | BT29: =IF($G29="","",IF($BR29<InitialYear,0,OFFSET('Tolls, Fuel and VMT Summary'!K30,-$J$3,0)*1000000)) ->  | BU29: =IF($G29="","",IF($BR29<InitialYear,0,OFFSET('Tolls, Fuel and VMT Summary'!L30,-$J$3,0)*1000000)) ->  | BV29: =IF($G29="","",IF($BR29<InitialYear,0,OFFSET('Tolls, Fuel and VMT Summary'!M30,-$J$3,0)*1000000)) ->  | CL29: =IF(CJ29="","",IF(OR(CL28=1,CL28="X"),"X",IF(CF$7+NPV(DiscRate,CF$8:CF29)>0,1,0))) ->  | CM29: =IF(CK29="","",IF(OR(CM28=1,CM28="X"),"X",IF(CG$7+NPV(DiscRate,CG$8:CG29)>0,1,0))) ->  | CN29: =IF(CL29="","",IF(OR(CN28=1,CN28="X"),"X",IF(CH$7+NPV(DiscRate,CH$8:CH29)>0,1,0))) -> 
A30: PP | B30: N/A | C30: =IF(NPV(DiscRate,L7:L57)=0,0,IF(BCATIS<1,"> " & ProjLife & " years",IF(AV7>0,"< 1 year",1+BN7+(-BN9/(BN10-BN9))))) -> 0 | D30: =IF(NPV(DiscRate,M7:M57)=0,0,IF(BCATIS<1,"> " & ProjLife & " years",IF(AW7>0,"< 1 year",1+BO7+(-BO9/(BO10-BO9))))) -> 0 | E30: =IF(NPV(DiscRate,N7:N57)=0,0,IF(BCATIS<1,"> " & ProjLife & " years",IF(AX7>0,"< 1 year",1+BP7+(-BP9/(BP10-BP9))))) -> 0 | R30: =IF(P30="","",IF(P30<InitialYear,0,(OFFSET('Traveler Welfare Summary'!K31,-J$3,0)+OFFSET('Reliability Summary'!Q31,-J$3,0)+IF(UseCrash="y",OFFSET('Crash Summary'!Y30,-J$3,0),0)+IF(UseEnv="y",OFFSET('Emissions Summary'!P71,-J$3,0),0))*1000000+BZ30)) ->  | S30: =IF(P30="","",IF(P30<InitialYear,0,(OFFSET('Traveler Welfare Summary'!L31,-J$3,0)+OFFSET('Reliability Summary'!R31,-J$3,0)+IF(UseCrash="y",OFFSET('Crash Summary'!Z30,-J$3,0),0)+IF(UseEnv="y",OFFSET('Emissions Summary'!Q71,-J$3,0),0))*1000000+CA30)) ->  | T30: =IF(P30="","",IF(P30<InitialYear,0,(OFFSET('Traveler Welfare Summary'!M31,-J$3,0)+OFFSET('Reliability Summary'!S31,-J$3,0)+IF(UseCrash="y",OFFSET('Crash Summary'!AA30,-J$3,0),0)+IF(UseEnv="y",OFFSET('Emissions Summary'!R71,-J$3,0),0))*1000000+CB30)) ->  | U30: =IF(L30="","",'ATIS Summary'!I30) ->  | V30: =IF(M30="","",'Incident Management Summary'!I30) ->  | W30: =IF(N30="","",'Speed Harmonization Summary'!I30) ->  | BB30: =IF(AZ30="","",IF(OR(BB29=1,BB29="X"),"X",IF(AS$7+NPV(DiscRate,AS$8:AS30)>0,1,0))) ->  | BC30: =IF(AZ30="","",IF(OR(BC29=1,BC29="X"),"X",IF(AT$7+NPV(DiscRate,AT$8:AT30)>0,1,0))) ->  | BD30: =IF(AZ30="","",IF(OR(BD29=1,BD29="X"),"X",IF(AU$7+NPV(DiscRate,AU$8:AU30)>0,1,0))) ->  | BE30: =IF(OR($AZ30="",AV30=""),"",IF(OR(BE29=1,BE29="X"),"X",IF(AV$7+NPV(DiscRate,AV$8:AV30)>0,1,0))) ->  | BF30: =IF(OR(AW30="",$AZ30=""),"",IF(OR(BF29=1,BF29="X"),"X",IF(AW$7+NPV(DiscRate,AW$8:AW30)>0,1,0))) ->  | BG30: =IF(OR(AX30="",$AZ30=""),"",IF(OR(BG29=1,BG29="X"),"X",IF(AX$7+NPV(DiscRate,AX$8:AX30)>0,1,0))) ->  | BS30: =IF($G30="","",IF($BR30<InitialYear,0,OFFSET('Tolls, Fuel and VMT Summary'!J31,-$J$3,0)*1000000)) ->  | BT30: =IF($G30="","",IF($BR30<InitialYear,0,OFFSET('Tolls, Fuel and VMT Summary'!K31,-$J$3,0)*1000000)) ->  | BU30: =IF($G30="","",IF($BR30<InitialYear,0,OFFSET('Tolls, Fuel and VMT Summary'!L31,-$J$3,0)*1000000)) ->  | BV30: =IF($G30="","",IF($BR30<InitialYear,0,OFFSET('Tolls, Fuel and VMT Summary'!M31,-$J$3,0)*1000000)) ->  | CL30: =IF(CJ30="","",IF(OR(CL29=1,CL29="X"),"X",IF(CF$7+NPV(DiscRate,CF$8:CF30)>0,1,0))) ->  | CM30: =IF(CK30="","",IF(OR(CM29=1,CM29="X"),"X",IF(CG$7+NPV(DiscRate,CG$8:CG30)>0,1,0))) ->  | CN30: =IF(CL30="","",IF(OR(CN29=1,CN29="X"),"X",IF(CH$7+NPV(DiscRate,CH$8:CH30)>0,1,0))) -> 
R31: =IF(P31="","",IF(P31<InitialYear,0,(OFFSET('Traveler Welfare Summary'!K32,-J$3,0)+OFFSET('Reliability Summary'!Q32,-J$3,0)+IF(UseCrash="y",OFFSET('Crash Summary'!Y31,-J$3,0),0)+IF(UseEnv="y",OFFSET('Emissions Summary'!P72,-J$3,0),0))*1000000+BZ31)) ->  | S31: =IF(P31="","",IF(P31<InitialYear,0,(OFFSET('Traveler Welfare Summary'!L32,-J$3,0)+OFFSET('Reliability Summary'!R32,-J$3,0)+IF(UseCrash="y",OFFSET('Crash Summary'!Z31,-J$3,0),0)+IF(UseEnv="y",OFFSET('Emissions Summary'!Q72,-J$3,0),0))*1000000+CA31)) ->  | T31: =IF(P31="","",IF(P31<InitialYear,0,(OFFSET('Traveler Welfare Summary'!M32,-J$3,0)+OFFSET('Reliability Summary'!S32,-J$3,0)+IF(UseCrash="y",OFFSET('Crash Summary'!AA31,-J$3,0),0)+IF(UseEnv="y",OFFSET('Emissions Summary'!R72,-J$3,0),0))*1000000+CB31)) ->  | U31: =IF(L31="","",'ATIS Summary'!I31) ->  | V31: =IF(M31="","",'Incident Management Summary'!I31) ->  | W31: =IF(N31="","",'Speed Harmonization Summary'!I31) ->  | BB31: =IF(AZ31="","",IF(OR(BB30=1,BB30="X"),"X",IF(AS$7+NPV(DiscRate,AS$8:AS31)>0,1,0))) ->  | BC31: =IF(AZ31="","",IF(OR(BC30=1,BC30="X"),"X",IF(AT$7+NPV(DiscRate,AT$8:AT31)>0,1,0))) ->  | BD31: =IF(AZ31="","",IF(OR(BD30=1,BD30="X"),"X",IF(AU$7+NPV(DiscRate,AU$8:AU31)>0,1,0))) ->  | BE31: =IF(OR($AZ31="",AV31=""),"",IF(OR(BE30=1,BE30="X"),"X",IF(AV$7+NPV(DiscRate,AV$8:AV31)>0,1,0))) ->  | BF31: =IF(OR(AW31="",$AZ31=""),"",IF(OR(BF30=1,BF30="X"),"X",IF(AW$7+NPV(DiscRate,AW$8:AW31)>0,1,0))) ->  | BG31: =IF(OR(AX31="",$AZ31=""),"",IF(OR(BG30=1,BG30="X"),"X",IF(AX$7+NPV(DiscRate,AX$8:AX31)>0,1,0))) ->  | BS31: =IF($G31="","",IF($BR31<InitialYear,0,OFFSET('Tolls, Fuel and VMT Summary'!J32,-$J$3,0)*1000000)) ->  | BT31: =IF($G31="","",IF($BR31<InitialYear,0,OFFSET('Tolls, Fuel and VMT Summary'!K32,-$J$3,0)*1000000)) ->  | BU31: =IF($G31="","",IF($BR31<InitialYear,0,OFFSET('Tolls, Fuel and VMT Summary'!L32,-$J$3,0)*1000000)) ->  | BV31: =IF($G31="","",IF($BR31<InitialYear,0,OFFSET('Tolls, Fuel and VMT Summary'!M32,-$J$3,0)*1000000)) ->  | CL31: =IF(CJ31="","",IF(OR(CL30=1,CL30="X"),"X",IF(CF$7+NPV(DiscRate,CF$8:CF31)>0,1,0))) ->  | CM31: =IF(CK31="","",IF(OR(CM30=1,CM30="X"),"X",IF(CG$7+NPV(DiscRate,CG$8:CG31)>0,1,0))) ->  | CN31: =IF(CL31="","",IF(OR(CN30=1,CN30="X"),"X",IF(CH$7+NPV(DiscRate,CH$8:CH31)>0,1,0))) -> 
... 38 more rows

Sheet Traveler Welfare Summary
B1: Project Evaluation Toolkit - Traveler Welfare Summary
I3: Project Design Life | L3: Growth is
I4: =ProjLife -> 20 | J4: Years | L4: =IF(Expon=0,"Linear","Exponential") -> Exponential
I6: Annual Traveler Welfare (Millions)
B7: Base Condition | E7: Annual User Surplus | I7: Year | J7: Base Cond | K7: =S1Name -> 0 | L7: =S2Name -> 0 | M7: =S3Name -> 0
B8: Initial Year Traveler Welfare | E8: =TWInitYrBase/1000000 -> 0 | F8: (Millions) | I8: 0 | J8: =E8 -> 0 | K8: =E14 -> 0 | L8: =E21 -> 0 | M8: =E28 -> 0
B9: Design Year Traveler Welfare | E9: =TWDesYrBase/1000000 -> 0 | F9: (Millions) | I9: 1 | J9: =IF(I9="","",IF(L$4="Exponential",E$8*(1+E$11)^I9,J8+E$8*E$11)) -> 0 | K9: =IF($I9="","",IF(E$14*E$15<0,K$8+I9^2*(E$15-E$14)/(ProjLife)^2,IF($L$4="Exponential",$E$14*(1+$E$18)^$I9,K8+$E$14*$E$18))) -> 0 | L9: =IF($I9="","",IF(E$21*E$22<0,L$8+I9^2*(E$22-E$21)/(ProjLife)^2,IF($L$4="Exponential",$E$21*(1+$E$25)^$I9,L8+$E$21*$E$25))) -> 0 | M9: =IF($I9="","",IF(E$28*E$29<0,M$8+I9^2*(E$29-E$28)/(ProjLife)^2,IF($L$4="Exponential",$E$28*(1+$E$32)^$I9,M8+$E$28*$E$32))) -> 0
B10: Average Annual Traveler Welfare | E10: =AVERAGE(J:J) -> 0 | F10: (Millions) | I10: =IF(I9="","",IF((I9+1>I$4),"",I9+1)) -> 2 | J10: 0 | K10: =IF($I10="","",IF(E$14*E$15<0,K$8+I10^2*(E$15-E$14)/(ProjLife)^2,IF($L$4="Exponential",$E$14*(1+$E$18)^$I10,K9+$E$14*$E$18))) -> 0 | L10: 0 | M10: 0
B11: Traveler Welfare Growth Rate | E11: =IF(AND(E8=0,E9=0),0,IF(L$4="linear",(E9-E8)/(E8*I$4),(EXP(LN(E9/E8)/I$4)-1))) -> 0 | I11: 3 | J11: 0 | K11: 0 | L11: 0 | M11: 0
I12: 4 | J12: 0 | K12: 0 | L12: 0 | M12: 0
B13: =S1Name -> 0 | E13: Annual User Surplus | I13: 5 | J13: 0 | K13: 0 | L13: 0 | M13: 0
B14: Initial Year Traveler Welfare | E14: =TWInitYrAlt1/1000000 -> 0 | F14: (Millions) | I14: 6 | J14: 0 | K14: 0 | L14: 0 | M14: 0
B15: Design Year Traveler Welfare | E15: =TWDesYrAlt1/1000000 -> 0 | F15: (Millions) | I15: 7 | J15: 0 | K15: 0 | L15: 0 | M15: 0
B16: Average Annual Traveler Welfare | E16: =AVERAGE(K:K) -> 0 | F16: (Millions) | I16: 8 | J16: 0 | K16: 0 | L16: 0 | M16: 0
B17: Annual Traveler Welfare Benefit | E17: =E16-E$10 -> 0 | F17: (Millions) | I17: 9 | J17: 0 | K17: 0 | L17: 0 | M17: 0
B18: Traveler Welfare Growth Rate | E18: =IF(AND(E14=0,E15=0),0,IF(L$4="linear",(E15-E14)/(E14*I$4),IF(E15*E14<0,"Quadratic",(EXP(LN(E15/E14)/I$4)-1)))) -> 0 | I18: 10 | J18: 0 | K18: 0 | L18: 0 | M18: 0
I19: 11 | J19: 0 | K19: 0 | L19: 0 | M19: 0
B20: =S2Name -> 0 | E20: Annual User Surplus | I20: 12 | J20: 0 | K20: 0 | L20: 0 | M20: 0
B21: Initial Year Traveler Welfare | E21: =TWInitYrAlt2/1000000 -> 0 | F21: (Millions) | I21: 13 | J21: 0 | K21: 0 | L21: 0 | M21: 0
B22: Design Year Traveler Welfare | E22: =TWDesYrAlt2/1000000 -> 0 | F22: (Millions) | I22: 14 | J22: 0 | K22: 0 | L22: 0 | M22: 0
B23: Average Annual Traveler Welfare | E23: =AVERAGE(L:L) -> 0 | F23: (Millions) | I23: 15 | J23: 0 | K23: 0 | L23: 0 | M23: 0
B24: Annual Traveler Welfare Benefit | E24: =E23-E$10 -> 0 | F24: (Millions) | I24: 16 | J24: 0 | K24: 0 | L24: 0 | M24: 0
B25: Traveler Welfare Growth Rate | E25: =IF(AND(E21=0,E22=0),0,IF(L$4="linear",(E22-E21)/(E21*I$4),(EXP(LN(E22/E21)/I$4)-1))) -> 0 | I25: 17 | J25: 0 | K25: 0 | L25: 0 | M25: 0
I26: 18 | J26: 0 | K26: 0 | L26: 0 | M26: 0
B27: =S3Name -> 0 | E27: Annual User Surplus | I27: 19 | J27: 0 | K27: 0 | L27: 0 | M27: 0
B28: Initial Year Traveler Welfare | E28: =TWInitYrAlt3/1000000 -> 0 | F28: (Millions) | I28: 20 | J28: 0 | K28: 0 | L28: 0 | M28: 0
B29: Design Year Traveler Welfare | E29: =TWDesYrAlt3/1000000 -> 0 | F29: (Millions)
B30: Average Annual Traveler Welfare | E30: =AVERAGE(M:M) -> 0 | F30: (Millions)
B31: Annual Traveler Welfare Benefit | E31: =E30-E$10 -> 0 | F31: (Millions)
... 4 more rows

Sheet Reliability Summary
B1: Project Evaluation Toolkit - Travel Time Reliability Summary
I3: Project Design Life | L3: Growth is
I4: ='Summary Input Information'!H19 -> 20 | J4: Years | L4: =IF(Expon=0,"Linear","Exponential") -> Exponential
I6: Annual Reliability Costs | O6: Annual Reliability Benefit
B7: Base Condition | E7: Annual Reliability Costs | I7: Year | J7: Base Cond | K7: =S1Name -> 0 | L7: =S2Name -> 0 | M7: =S3Name -> 0 | O7: Year | P7: Base Cond | Q7: =S1Name -> 0 | R7: =S2Name -> 0 | S7: =S3Name -> 0
B8: Initial Year Costs | E8: =RelCostInitYrBase/1000000 -> 0 | F8: (Millions) | I8: 0 | J8: =E8 -> 0 | K8: =E14 -> 0 | L8: =E21 -> 0 | M8: =E28 -> 0 | O8: =I8 -> 0 | P8: =IF(O8="","",0) -> 0 | Q8: =IF(O8="","",$J8-K8) -> 0 | R8: =IF(P8="","",$J8-L8) -> 0 | S8: =IF(Q8="","",$J8-M8) -> 0
B9: Design Year Costs | E9: =RelCostDesYrBase/1000000 -> 0 | F9: (Millions) | I9: 1 | J9: =IF(I9="","",IF(L$4="Exponential",E$8*(1+E$11)^I9,J8+E$8*E$11)) -> 0 | K9: =IF($I9="","",IF($L$4="Exponential",$E$14*(1+$E$18)^$I9,K8+$E$14*$E$18)) -> 0 | L9: =IF($I9="","",IF($L$4="Exponential",$E$21*(1+$E$25)^$I9,L8+$E$21*$E$25)) -> 0 | M9: =IF($I9="","",IF($L$4="Exponential",$E$28*(1+$E$32)^$I9,M8+$E$28*$E$32)) -> 0 | O9: 1 | P9: =IF(O9="","",0) -> 0 | Q9: 0 | R9: 0 | S9: 0
B10: Average Annual Costs | E10: =IF(E8=0,0,AVERAGE(J:J)) -> 0 | F10: (Millions) | I10: =IF(I9="","",IF((I9+1>I$4),"",I9+1)) -> 2 | J10: 0 | K10: 0 | L10: 0 | M10: 0 | O10: 2 | P10: 0 | Q10: 0 | R10: 0 | S10: 0
B11: Reliability Cost Growth Rate | E11: =IF(E8=0,0,IF(L$4="linear",(E9-E8)/(E8*I$4),(EXP(LN(E9/E8)/I$4)-1))) -> 0 | I11: 3 | J11: 0 | K11: 0 | L11: 0 | M11: 0 | O11: 3 | P11: 0 | Q11: 0 | R11: 0 | S11: 0
I12: 4 | J12: 0 | K12: 0 | L12: 0 | M12: 0 | O12: 4 | P12: 0 | Q12: 0 | R12: 0 | S12: 0
B13: =S1Name -> 0 | E13: Annual Reliability Costs | I13: 5 | J13: 0 | K13: 0 | L13: 0 | M13: 0 | O13: 5 | P13: 0 | Q13: 0 | R13: 0 | S13: 0
B14: Initial Year Costs | E14: =RelCostInitYrAlt1/1000000 -> 0 | F14: (Millions) | I14: 6 | J14: 0 | K14: 0 | L14: 0 | M14: 0 | O14: 6 | P14: 0 | Q14: 0 | R14: 0 | S14: 0
B15: Design Year Costs | E15: =RelCostDesYrAlt1/1000000 -> 0 | F15: (Millions) | I15: 7 | J15: 0 | K15: 0 | L15: 0 | M15: 0 | O15: 7 | P15: 0 | Q15: 0 | R15: 0 | S15: 0
B16: Average Annual Costs | E16: =IF(E8=0,0,AVERAGE(K:K)) -> 0 | F16: (Millions) | I16: 8 | J16: 0 | K16: 0 | L16: 0 | M16: 0 | O16: 8 | P16: 0 | Q16: 0 | R16: 0 | S16: 0
B17: Annual Reliability Benefit | E17: =E$10-E16 -> 0 | F17: (Millions) | I17: 9 | J17: 0 | K17: 0 | L17: 0 | M17: 0 | O17: 9 | P17: 0 | Q17: 0 | R17: 0 | S17: 0
B18: Reliability Cost Growth Rate | E18: =IF(E8=0,0,IF(L$4="linear",(E15-E14)/(E14*I$4),(EXP(LN(E15/E14)/I$4)-1))) -> 0 | I18: 10 | J18: 0 | K18: 0 | L18: 0 | M18: 0 | O18: 10 | P18: 0 | Q18: 0 | R18: 0 | S18: 0
I19: 11 | J19: 0 | K19: 0 | L19: 0 | M19: 0 | O19: 11 | P19: 0 | Q19: 0 | R19: 0 | S19: 0
B20: =S2Name -> 0 | E20: Annual Reliability Costs | I20: 12 | J20: 0 | K20: 0 | L20: 0 | M20: 0 | O20: 12 | P20: 0 | Q20: 0 | R20: 0 | S20: 0
B21: Initial Year Costs | E21: =RelCostInitYrAlt2/1000000 -> 0 | F21: (Millions) | I21: 13 | J21: 0 | K21: 0 | L21: 0 | M21: 0 | O21: 13 | P21: 0 | Q21: 0 | R21: 0 | S21: 0
B22: Design Year Costs | E22: =RelCostDesYrAlt2/1000000 -> 0 | F22: (Millions) | I22: 14 | J22: 0 | K22: 0 | L22: 0 | M22: 0 | O22: 14 | P22: 0 | Q22: 0 | R22: 0 | S22: 0
B23: Average Annual Costs | E23: =IF(E8=0,0,AVERAGE(L:L)) -> 0 | F23: (Millions) | I23: 15 | J23: 0 | K23: 0 | L23: 0 | M23: 0 | O23: 15 | P23: 0 | Q23: 0 | R23: 0 | S23: 0
B24: Annual Reliability Benefit | E24: =E$10-E23 -> 0 | F24: (Millions) | I24: 16 | J24: 0 | K24: 0 | L24: 0 | M24: 0 | O24: 16 | P24: 0 | Q24: 0 | R24: 0 | S24: 0
B25: Reliability Cost Growth Rate | E25: =IF(E8=0,0,IF(L$4="linear",(E22-E21)/(E21*I$4),(EXP(LN(E22/E21)/I$4)-1))) -> 0 | I25: 17 | J25: 0 | K25: 0 | L25: 0 | M25: 0 | O25: 17 | P25: 0 | Q25: 0 | R25: 0 | S25: 0
I26: 18 | J26: 0 | K26: 0 | L26: 0 | M26: 0 | O26: 18 | P26: 0 | Q26: 0 | R26: 0 | S26: 0
B27: =S3Name -> 0 | E27: Annual Reliability Costs | I27: 19 | J27: 0 | K27: 0 | L27: 0 | M27: 0 | O27: 19 | P27: 0 | Q27: 0 | R27: 0 | S27: 0
B28: Initial Year Costs | E28: =RelCostInitYrAlt3/1000000 -> 0 | F28: (Millions) | I28: 20 | J28: 0 | K28: 0 | L28: 0 | M28: 0 | O28: 20 | P28: 0 | Q28: 0 | R28: 0 | S28: 0
B29: Design Year Costs | E29: =RelCostDesYrAlt3/1000000 -> 0 | F29: (Millions) | P29: =IF(O29="","",0) -> 
B30: Average Annual Costs | E30: =IF(E8=0,0,AVERAGE(M:M)) -> 0 | F30: (Millions)
B31: Annual Reliability Benefit | E31: =E$10-E30 -> 0 | F31: (Millions)
... 6 more rows

Sheet Crash Summary
B1: Project Evaluation Toolkit - Vehicle Crash Summary
K2: Project Design Life | N2: Growth is
K3: ='Summary Input Information'!H19 -> 20 | L3: Years | N3: =IF(Expon=0,"Linear","Exponential") -> Exponential
K5: Annual Crash Costs | Q5: Annual # Crashes F+I | W5: Annual Change in Crash Costs | AC5: Annual # Crashes F+I
K6: Year | L6: Base Cond | M6: =S1Name -> 0 | N6: =S2Name -> 0 | O6: =S3Name -> 0 | Q6: Year | R6: Base Cond | S6: =S1Name -> 0 | T6: =S2Name -> 0 | U6: =S3Name -> 0 | W6: Year | X6: Base Cond | Y6: =S1Name -> 0 | Z6: =S2Name -> 0 | AA6: =S3Name -> 0 | AC6: Year | AD6: Base Cond | AE6: =S1Name -> 0 | AF6: =S2Name -> 0 | AG6: =S3Name -> 0
B7: Base Condition | D7: Annual Crash Costs | K7: 0 | L7: =D8 -> 0 | M7: =D14 -> 0 | N7: =D21 -> 0 | O7: =D28 -> 0 | Q7: 0 | R7: =SUM(C37:C40) -> 0 | S7: =SUM(E37:E40) -> 0 | T7: =SUM(G37:G40) -> 0 | U7: =SUM(I37:I40) -> 0 | W7: =K7 -> 0 | X7: =IF(W7="","",0) -> 0 | Y7: =IF(W7="","",$L7-M7) -> 0 | Z7: =IF(X7="","",$L7-N7) -> 0 | AA7: 0 | AC7: =Q7 -> 0 | AD7: =IF(AC7="","",0) -> 0 | AE7: =IF(AC7="","",S7-$R7) -> 0 | AF7: =IF(AE7="","",T7-$R7) -> 0 | AG7: 0
B8: Initial Year Costs | D8: =CrashCostInitYrBase/1000000 -> 0 | E8: (Millions) | K8: 1 | L8: =IF(K8="","",IF(N$3="Exponential",D$8*(1+D$11)^K8,L7+D$8*D$11)) -> 0 | M8: =IF($K8="","",IF($N$3="Exponential",$D$14*(1+$D$18)^$K8,M7+$D$14*$D$18)) -> 0 | N8: =IF($K8="","",IF($N$3="Exponential",$D$21*(1+$D$25)^$K8,N7+$D$21*$D$25)) -> 0 | O8: =IF($K8="","",IF($N$3="Exponential",$D$28*(1+$D$32)^$K8,O7+$D$28*$D$32)) -> 0 | Q8: 1 | R8: =IF(Q8="","",IF(N$3="Exponential",SUM(C$37:C$40)*(1+C$43)^Q8,R7+(SUM(D$37:D$40)-SUM(C$37:C$40))/K$3)) ->  | S8: =IF(Q8="","",IF(N$3="Exponential",SUM(E$37:E$40)*(1+E$43)^Q8,S7+(SUM(F$37:F$40)-SUM(E$37:E$40))/K$3)) ->  | T8: =IF(Q8="","",IF(N$3="Exponential",SUM(G$37:G$40)*(1+G$43)^Q8,T7+(SUM(H$37:H$40)-SUM(G$37:G$40))/K$3)) ->  | U8: =IF(Q8="","",IF(N$3="Exponential",SUM(I$37:I$40)*(1+I$43)^Q8,U7+(SUM(J$37:J$40)-SUM(I$37:I$40))/K$3)) ->  | W8: =K8 -> 1 | X8: =IF(W8="","",0) -> 0 | Y8: =IF(W8="","",$L8-M8) -> 0 | Z8: 0 | AA8: 0 | AC8: 1 | AD8: =IF(AC8="","",0) -> 0
B9: Design Year Costs | D9: =CrashCostDYBase/1000000 -> 0 | E9: (Millions) | K9: =IF(K8="","",IF((K8+1>K$3),"",K8+1)) -> 2 | L9: 0 | M9: 0 | N9: 0 | O9: 0 | Q9: =IF(K8="","",IF((K8+1>K$3),"",K8+1)) -> 2 | W9: 2 | X9: 0 | Y9: 0 | Z9: 0 | AA9: 0 | AC9: 2 | AD9: 0
B10: Average Annual Costs | D10: =AVERAGE(L:L) -> 0 | E10: (Millions) | K10: 3 | L10: 0 | M10: 0 | N10: 0 | O10: 0 | Q10: 3 | W10: 3 | X10: 0 | Y10: 0 | Z10: 0 | AA10: 0 | AC10: 3 | AD10: 0
B11: Crash Cost Growth Rate | D11: =IF(AND(D8=0,D9=0),0,IF(N$3="linear",(D9-D8)/(D8*K$3),(EXP(LN(D9/D8)/K$3)-1))) -> 0 | K11: 4 | L11: 0 | M11: 0 | N11: 0 | O11: 0 | Q11: 4 | W11: 4 | X11: 0 | Y11: 0 | Z11: 0 | AA11: 0 | AC11: 4 | AD11: 0
K12: 5 | L12: 0 | M12: 0 | N12: 0 | O12: 0 | Q12: 5 | W12: 5 | X12: 0 | Y12: 0 | Z12: 0 | AA12: 0 | AC12: 5 | AD12: 0
B13: =S1Name -> 0 | D13: Annual Crash Costs | K13: 6 | L13: 0 | M13: 0 | N13: 0 | O13: 0 | Q13: 6 | W13: 6 | X13: 0 | Y13: 0 | Z13: 0 | AA13: 0 | AC13: 6 | AD13: 0
B14: Initial Year Costs | D14: =CrashCostInitYrAlt1/1000000 -> 0 | E14: (Millions) | K14: 7 | L14: 0 | M14: 0 | N14: 0 | O14: 0 | Q14: 7 | W14: 7 | X14: 0 | Y14: 0 | Z14: 0 | AA14: 0 | AC14: 7 | AD14: 0
B15: Design Year Costs | D15: =CrashCostDYAlt1/1000000 -> 0 | E15: (Millions) | K15: 8 | L15: 0 | M15: 0 | N15: 0 | O15: 0 | Q15: 8 | W15: 8 | X15: 0 | Y15: 0 | Z15: 0 | AA15: 0 | AC15: 8 | AD15: 0
B16: Average Annual Costs | D16: =AVERAGE(M:M) -> 0 | E16: (Millions) | K16: 9 | L16: 0 | M16: 0 | N16: 0 | O16: 0 | Q16: 9 | W16: 9 | X16: 0 | Y16: 0 | Z16: 0 | AA16: 0 | AC16: 9 | AD16: 0
B17: Annual Crash Benefit | D17: =D$10-D16 -> 0 | E17: (Millions) | K17: 10 | L17: 0 | M17: 0 | N17: 0 | O17: 0 | Q17: 10 | W17: 10 | X17: 0 | Y17: 0 | Z17: 0 | AA17: 0 | AC17: 10 | AD17: 0
B18: Crash Cost Growth Rate | D18: =IF(AND(D14=0,D15=0),0,IF(N$3="linear",(D15-D14)/(D14*K$3),(EXP(LN(D15/D14)/K$3)-1))) -> 0 | K18: 11 | L18: 0 | M18: 0 | N18: 0 | O18: 0 | Q18: 11 | W18: 11 | X18: 0 | Y18: 0 | Z18: 0 | AA18: 0 | AC18: 11 | AD18: 0
K19: 12 | L19: 0 | M19: 0 | N19: 0 | O19: 0 | Q19: 12 | W19: 12 | X19: 0 | Y19: 0 | Z19: 0 | AA19: 0 | AC19: 12 | AD19: 0
B20: =S2Name -> 0 | D20: Annual Crash Costs | K20: 13 | L20: 0 | M20: 0 | N20: 0 | O20: 0 | Q20: 13 | W20: 13 | X20: 0 | Y20: 0 | Z20: 0 | AA20: 0 | AC20: 13 | AD20: 0
B21: Initial Year Costs | D21: =CrashCostInitYrAlt2/1000000 -> 0 | E21: (Millions) | K21: 14 | L21: 0 | M21: 0 | N21: 0 | O21: 0 | Q21: 14 | W21: 14 | X21: 0 | Y21: 0 | Z21: 0 | AA21: 0 | AC21: 14 | AD21: 0
B22: Design Year Costs | D22: =CrashCostDYAlt2/1000000 -> 0 | E22: (Millions) | K22: 15 | L22: 0 | M22: 0 | N22: 0 | O22: 0 | Q22: 15 | W22: 15 | X22: 0 | Y22: 0 | Z22: 0 | AA22: 0 | AC22: 15 | AD22: 0
B23: Average Annual Costs | D23: =AVERAGE(N:N) -> 0 | E23: (Millions) | K23: 16 | L23: 0 | M23: 0 | N23: 0 | O23: 0 | Q23: 16 | W23: 16 | X23: 0 | Y23: 0 | Z23: 0 | AA23: 0 | AC23: 16 | AD23: 0
B24: Annual Crash Benefit | D24: =D$10-D23 -> 0 | E24: (Millions) | K24: 17 | L24: 0 | M24: 0 | N24: 0 | O24: 0 | Q24: 17 | W24: 17 | X24: 0 | Y24: 0 | Z24: 0 | AA24: 0 | AC24: 17 | AD24: 0
B25: Crash Cost Growth Rate | D25: =IF(AND(D21=0,D22=0),0,IF(N$3="linear",(D22-D21)/(D21*K$3),(EXP(LN(D22/D21)/K$3)-1))) -> 0 | K25: 18 | L25: 0 | M25: 0 | N25: 0 | O25: 0 | Q25: 18 | W25: 18 | X25: 0 | Y25: 0 | Z25: 0 | AA25: 0 | AC25: 18 | AD25: 0
K26: 19 | L26: 0 | M26: 0 | N26: 0 | O26: 0 | Q26: 19 | W26: 19 | X26: 0 | Y26: 0 | Z26: 0 | AA26: 0 | AC26: 19 | AD26: 0
B27: =S3Name -> 0 | D27: Annual Crash Costs | K27: 20 | L27: 0 | M27: 0 | N27: 0 | O27: 0 | Q27: 20 | W27: 20 | X27: 0 | Y27: 0 | Z27: 0 | AA27: 0 | AC27: 20 | AD27: 0
B28: Initial Year Costs | D28: =CrashCostInitYrAlt3/1000000 -> 0 | E28: (Millions)
B29: Design Year Costs | D29: =CrashCostDYAlt3/1000000 -> 0 | E29: (Millions)
B30: Average Annual Costs | D30: =AVERAGE(O:O) -> 0 | E30: (Millions)
B31: Annual Crash Benefit | D31: =D$10-D30 -> 0 | E31: (Millions)
... 18 more rows

Sheet Emissions Summary
B1: Project Evaluation Toolkit - Vehicle Emissions Summary
J3: Project Design Life | M3: Growth is
J4: ='Summary Input Information'!H19 -> 20 | K4: Years | M4: =IF(Expon=0,"Linear","Exponential") -> Exponential
B6: Predicted Emissions (Tons)
D7: Base Condition | H7: =S1Name -> 0 | L7: =S2Name -> 0 | P7: =S3Name -> 0 | U7: Pollutant | V7: Total Pollutant Changes as a % of Initial Quantities
D8: Initial Yr | F8: Design Yr | H8: Initial Yr | J8: Design Yr | L8: Initial Yr | N8: Design Yr | P8: Initial Yr | R8: Design Yr | V8: Base Conditions | X8: =H7 -> 0 | Z8: =L7 -> 0 | AB8: =P7 -> 0
B9: Pollutant | D9: Daily | E9: Annual | F9: Daily | G9: Annual | H9: Daily | I9: Annual | J9: Daily | K9: Annual | L9: Daily | M9: Annual | N9: Daily | O9: Annual | P9: Daily | Q9: Annual | R9: Daily | S9: Annual | V9: Life | W9: Annual | X9: Life | Y9: Annual | Z9: Life | AA9: Annual | AB9: Life | AC9: Annual
B10: ='Summary Input Information'!C60 -> 1,3-Butadiene | D10: ='Emissions IY Base'!$D5 -> 0 | E10: ='Emissions IY Base'!$E5 -> 0 | F10: ='Emissions DY Base'!D5 -> 0 | G10: ='Emissions DY Base'!E5 -> 0 | H10: ='Emissions IY Alt 1'!D5 -> 0 | I10: ='Emissions IY Alt 1'!E5 -> 0 | J10: ='Emissions DY Alt 1'!D5 -> 0 | K10: ='Emissions DY Alt 1'!E5 -> 0 | L10: ='Emissions IY Alt 2'!D5 -> 0 | M10: ='Emissions IY Alt 2'!E5 -> 0 | N10: ='Emissions DY Alt 2'!D5 -> 0 | O10: ='Emissions DY Alt 2'!E5 -> 0 | P10: ='Emissions IY Alt 3'!D5 -> 0 | Q10: ='Emissions IY Alt 3'!E5 -> 0 | R10: ='Emissions DY Alt 3'!D5 -> 0 | S10: ='Emissions DY Alt 3'!E5 -> 0 | U10: ='Summary Input Information'!C60 -> 1,3-Butadiene | V10: =G10/E10-1 ->  | W10: =IF($M$4="linear",V10/$J$4,(EXP(LN(G10/E10)/$J$4)-1)) ->  | X10: =K10/I10-1 ->  | Y10: =IF($M$4="linear",X10/$J$4,(EXP(LN(K10/I10)/$J$4)-1)) ->  | Z10: =O10/M10-1 ->  | AA10: =IF($M$4="linear",Z10/$J$4,(EXP(LN(O10/M10)/$J$4)-1)) ->  | AB10: =S10/Q10-1 ->  | AC10: =IF($M$4="linear",AB10/$J$4,(EXP(LN(S10/Q10)/$J$4)-1)) -> 
B11: ='Summary Input Information'!C61 -> Acetaldehyde | D11: ='Emissions IY Base'!$D6 -> 0 | E11: ='Emissions IY Base'!$E6 -> 0 | F11: ='Emissions DY Base'!D6 -> 0 | G11: ='Emissions DY Base'!E6 -> 0 | H11: ='Emissions IY Alt 1'!D6 -> 0 | I11: ='Emissions IY Alt 1'!E6 -> 0 | J11: ='Emissions DY Alt 1'!D6 -> 0 | K11: ='Emissions DY Alt 1'!E6 -> 0 | L11: ='Emissions IY Alt 2'!D6 -> 0 | M11: ='Emissions IY Alt 2'!E6 -> 0 | N11: ='Emissions DY Alt 2'!D6 -> 0 | O11: ='Emissions DY Alt 2'!E6 -> 0 | P11: ='Emissions IY Alt 3'!D6 -> 0 | Q11: ='Emissions IY Alt 3'!E6 -> 0 | R11: ='Emissions DY Alt 3'!D6 -> 0 | S11: ='Emissions DY Alt 3'!E6 -> 0 | U11: ='Summary Input Information'!C61 -> Acetaldehyde | V11: =G11/E11-1 ->  | W11: =IF($M$4="linear",V11/$J$4,(EXP(LN(G11/E11)/$J$4)-1)) ->  | X11: =K11/I11-1 ->  | Y11: =IF($M$4="linear",X11/$J$4,(EXP(LN(K11/I11)/$J$4)-1)) ->  | Z11: =O11/M11-1 ->  | AA11: =IF($M$4="linear",Z11/$J$4,(EXP(LN(O11/M11)/$J$4)-1)) ->  | AB11: =S11/Q11-1 ->  | AC11: =IF($M$4="linear",AB11/$J$4,(EXP(LN(S11/Q11)/$J$4)-1)) -> 
B12: ='Summary Input Information'!C62 -> Benzene | D12: ='Emissions IY Base'!$D7 -> 0 | E12: ='Emissions IY Base'!$E7 -> 0 | F12: ='Emissions DY Base'!D7 -> 0 | G12: ='Emissions DY Base'!E7 -> 0 | H12: ='Emissions IY Alt 1'!D7 -> 0 | I12: ='Emissions IY Alt 1'!E7 -> 0 | J12: ='Emissions DY Alt 1'!D7 -> 0 | K12: ='Emissions DY Alt 1'!E7 -> 0 | L12: ='Emissions IY Alt 2'!D7 -> 0 | M12: ='Emissions IY Alt 2'!E7 -> 0 | N12: ='Emissions DY Alt 2'!D7 -> 0 | O12: ='Emissions DY Alt 2'!E7 -> 0 | P12: ='Emissions IY Alt 3'!D7 -> 0 | Q12: ='Emissions IY Alt 3'!E7 -> 0 | R12: ='Emissions DY Alt 3'!D7 -> 0 | S12: ='Emissions DY Alt 3'!E7 -> 0 | U12: ='Summary Input Information'!C62 -> Benzene
B13: ='Summary Input Information'!C63 -> CH4 | D13: ='Emissions IY Base'!$D8 -> 0 | E13: ='Emissions IY Base'!$E8 -> 0 | F13: ='Emissions DY Base'!D8 -> 0 | G13: ='Emissions DY Base'!E8 -> 0 | H13: ='Emissions IY Alt 1'!D8 -> 0 | I13: ='Emissions IY Alt 1'!E8 -> 0 | J13: ='Emissions DY Alt 1'!D8 -> 0 | K13: ='Emissions DY Alt 1'!E8 -> 0 | L13: ='Emissions IY Alt 2'!D8 -> 0 | M13: ='Emissions IY Alt 2'!E8 -> 0 | N13: ='Emissions DY Alt 2'!D8 -> 0 | O13: ='Emissions DY Alt 2'!E8 -> 0 | P13: ='Emissions IY Alt 3'!D8 -> 0 | Q13: ='Emissions IY Alt 3'!E8 -> 0 | R13: ='Emissions DY Alt 3'!D8 -> 0 | S13: ='Emissions DY Alt 3'!E8 -> 0 | U13: ='Summary Input Information'!C63 -> CH4
B14: ='Summary Input Information'!C64 -> CO | D14: ='Emissions IY Base'!$D9 -> 0 | E14: ='Emissions IY Base'!$E9 -> 0 | F14: ='Emissions DY Base'!D9 -> 0 | G14: ='Emissions DY Base'!E9 -> 0 | H14: ='Emissions IY Alt 1'!D9 -> 0 | I14: ='Emissions IY Alt 1'!E9 -> 0 | J14: ='Emissions DY Alt 1'!D9 -> 0 | K14: ='Emissions DY Alt 1'!E9 -> 0 | L14: ='Emissions IY Alt 2'!D9 -> 0 | M14: ='Emissions IY Alt 2'!E9 -> 0 | N14: ='Emissions DY Alt 2'!D9 -> 0 | O14: ='Emissions DY Alt 2'!E9 -> 0 | P14: ='Emissions IY Alt 3'!D9 -> 0 | Q14: ='Emissions IY Alt 3'!E9 -> 0 | R14: ='Emissions DY Alt 3'!D9 -> 0 | S14: ='Emissions DY Alt 3'!E9 -> 0 | U14: ='Summary Input Information'!C64 -> CO
B15: ='Summary Input Information'!C65 -> CO2 | D15: ='Emissions IY Base'!$D10 -> 0 | E15: ='Emissions IY Base'!$E10 -> 0 | F15: ='Emissions DY Base'!D10 -> 0 | G15: ='Emissions DY Base'!E10 -> 0 | H15: ='Emissions IY Alt 1'!D10 -> 0 | I15: ='Emissions IY Alt 1'!E10 -> 0 | J15: ='Emissions DY Alt 1'!D10 -> 0 | K15: ='Emissions DY Alt 1'!E10 -> 0 | L15: ='Emissions IY Alt 2'!D10 -> 0 | M15: ='Emissions IY Alt 2'!E10 -> 0 | N15: ='Emissions DY Alt 2'!D10 -> 0 | O15: ='Emissions DY Alt 2'!E10 -> 0 | P15: ='Emissions IY Alt 3'!D10 -> 0 | Q15: ='Emissions IY Alt 3'!E10 -> 0 | R15: ='Emissions DY Alt 3'!D10 -> 0 | S15: ='Emissions DY Alt 3'!E10 -> 0 | U15: ='Summary Input Information'!C65 -> CO2
B16: ='Summary Input Information'!C66 -> Formaldehyde | D16: ='Emissions IY Base'!$D11 -> 0 | E16: ='Emissions IY Base'!$E11 -> 0 | F16: ='Emissions DY Base'!D11 -> 0 | G16: ='Emissions DY Base'!E11 -> 0 | H16: ='Emissions IY Alt 1'!D11 -> 0 | I16: ='Emissions IY Alt 1'!E11 -> 0 | J16: ='Emissions DY Alt 1'!D11 -> 0 | K16: ='Emissions DY Alt 1'!E11 -> 0 | L16: ='Emissions IY Alt 2'!D11 -> 0 | M16: ='Emissions IY Alt 2'!E11 -> 0 | N16: ='Emissions DY Alt 2'!D11 -> 0 | O16: ='Emissions DY Alt 2'!E11 -> 0 | P16: ='Emissions IY Alt 3'!D11 -> 0 | Q16: ='Emissions IY Alt 3'!E11 -> 0 | R16: ='Emissions DY Alt 3'!D11 -> 0 | S16: ='Emissions DY Alt 3'!E11 -> 0 | U16: ='Summary Input Information'!C66 -> Formaldehyde
B17: ='Summary Input Information'!C67 -> N2O | D17: ='Emissions IY Base'!$I5 -> 0 | E17: ='Emissions IY Base'!$J5 -> 0 | F17: ='Emissions DY Base'!I5 -> 0 | G17: ='Emissions DY Base'!J5 -> 0 | H17: ='Emissions IY Alt 1'!I5 -> 0 | I17: ='Emissions IY Alt 1'!J5 -> 0 | J17: ='Emissions DY Alt 1'!I5 -> 0 | K17: ='Emissions DY Alt 1'!J5 -> 0 | L17: ='Emissions IY Alt 2'!I5 -> 0 | M17: ='Emissions IY Alt 2'!J5 -> 0 | N17: ='Emissions DY Alt 2'!I5 -> 0 | O17: ='Emissions DY Alt 2'!J5 -> 0 | P17: ='Emissions IY Alt 3'!I5 -> 0 | Q17: ='Emissions IY Alt 3'!J5 -> 0 | R17: ='Emissions DY Alt 3'!I5 -> 0 | S17: ='Emissions DY Alt 3'!J5 -> 0 | U17: ='Summary Input Information'!C67 -> N2O
B18: ='Summary Input Information'!C68 -> NH3 | D18: ='Emissions IY Base'!$I6 -> 0 | E18: ='Emissions IY Base'!$J6 -> 0 | F18: ='Emissions DY Base'!I6 -> 0 | G18: ='Emissions DY Base'!J6 -> 0 | H18: ='Emissions IY Alt 1'!I6 -> 0 | I18: ='Emissions IY Alt 1'!J6 -> 0 | J18: ='Emissions DY Alt 1'!I6 -> 0 | K18: ='Emissions DY Alt 1'!J6 -> 0 | L18: ='Emissions IY Alt 2'!I6 -> 0 | M18: ='Emissions IY Alt 2'!J6 -> 0 | N18: ='Emissions DY Alt 2'!I6 -> 0 | O18: ='Emissions DY Alt 2'!J6 -> 0 | P18: ='Emissions IY Alt 3'!I6 -> 0 | Q18: ='Emissions IY Alt 3'!J6 -> 0 | R18: ='Emissions DY Alt 3'!I6 -> 0 | S18: ='Emissions DY Alt 3'!J6 -> 0 | U18: ='Summary Input Information'!C68 -> NH3
B19: ='Summary Input Information'!C69 -> Nox | D19: ='Emissions IY Base'!$I7 -> 0 | E19: ='Emissions IY Base'!$J7 -> 0 | F19: ='Emissions DY Base'!I7 -> 0 | G19: ='Emissions DY Base'!J7 -> 0 | H19: ='Emissions IY Alt 1'!I7 -> 0 | I19: ='Emissions IY Alt 1'!J7 -> 0 | J19: ='Emissions DY Alt 1'!I7 -> 0 | K19: ='Emissions DY Alt 1'!J7 -> 0 | L19: ='Emissions IY Alt 2'!I7 -> 0 | M19: ='Emissions IY Alt 2'!J7 -> 0 | N19: ='Emissions DY Alt 2'!I7 -> 0 | O19: ='Emissions DY Alt 2'!J7 -> 0 | P19: ='Emissions IY Alt 3'!I7 -> 0 | Q19: ='Emissions IY Alt 3'!J7 -> 0 | R19: ='Emissions DY Alt 3'!I7 -> 0 | S19: ='Emissions DY Alt 3'!J7 -> 0 | U19: ='Summary Input Information'!C69 -> Nox
B20: ='Summary Input Information'!C70 -> PM10 | D20: ='Emissions IY Base'!$I8 -> 0 | E20: ='Emissions IY Base'!$J8 -> 0 | F20: ='Emissions DY Base'!I8 -> 0 | G20: ='Emissions DY Base'!J8 -> 0 | H20: ='Emissions IY Alt 1'!I8 -> 0 | I20: ='Emissions IY Alt 1'!J8 -> 0 | J20: ='Emissions DY Alt 1'!I8 -> 0 | K20: ='Emissions DY Alt 1'!J8 -> 0 | L20: ='Emissions IY Alt 2'!I8 -> 0 | M20: ='Emissions IY Alt 2'!J8 -> 0 | N20: ='Emissions DY Alt 2'!I8 -> 0 | O20: ='Emissions DY Alt 2'!J8 -> 0 | P20: ='Emissions IY Alt 3'!I8 -> 0 | Q20: ='Emissions IY Alt 3'!J8 -> 0 | R20: ='Emissions DY Alt 3'!I8 -> 0 | S20: ='Emissions DY Alt 3'!J8 -> 0 | U20: ='Summary Input Information'!C70 -> PM10
B21: ='Summary Input Information'!C71 -> PM25 | D21: ='Emissions IY Base'!$I9 -> 0 | E21: ='Emissions IY Base'!$J9 -> 0 | F21: ='Emissions DY Base'!I9 -> 0 | G21: ='Emissions DY Base'!J9 -> 0 | H21: ='Emissions IY Alt 1'!I9 -> 0 | I21: ='Emissions IY Alt 1'!J9 -> 0 | J21: ='Emissions DY Alt 1'!I9 -> 0 | K21: ='Emissions DY Alt 1'!J9 -> 0 | L21: ='Emissions IY Alt 2'!I9 -> 0 | M21: ='Emissions IY Alt 2'!J9 -> 0 | N21: ='Emissions DY Alt 2'!I9 -> 0 | O21: ='Emissions DY Alt 2'!J9 -> 0 | P21: ='Emissions IY Alt 3'!I9 -> 0 | Q21: ='Emissions IY Alt 3'!J9 -> 0 | R21: ='Emissions DY Alt 3'!I9 -> 0 | S21: ='Emissions DY Alt 3'!J9 -> 0 | U21: ='Summary Input Information'!C71 -> PM25
B22: ='Summary Input Information'!C72 -> SO2 | D22: ='Emissions IY Base'!$I10 -> 0 | E22: ='Emissions IY Base'!$J10 -> 0 | F22: ='Emissions DY Base'!I10 -> 0 | G22: ='Emissions DY Base'!J10 -> 0 | H22: ='Emissions IY Alt 1'!I10 -> 0 | I22: ='Emissions IY Alt 1'!J10 -> 0 | J22: ='Emissions DY Alt 1'!I10 -> 0 | K22: ='Emissions DY Alt 1'!J10 -> 0 | L22: ='Emissions IY Alt 2'!I10 -> 0 | M22: ='Emissions IY Alt 2'!J10 -> 0 | N22: ='Emissions DY Alt 2'!I10 -> 0 | O22: ='Emissions DY Alt 2'!J10 -> 0 | P22: ='Emissions IY Alt 3'!I10 -> 0 | Q22: ='Emissions IY Alt 3'!J10 -> 0 | R22: ='Emissions DY Alt 3'!I10 -> 0 | S22: ='Emissions DY Alt 3'!J10 -> 0 | U22: ='Summary Input Information'!C72 -> SO2
B23: ='Summary Input Information'!C73 -> VOC | D23: ='Emissions IY Base'!$I11 -> 0 | E23: ='Emissions IY Base'!$J11 -> 0 | F23: ='Emissions DY Base'!I11 -> 0 | G23: ='Emissions DY Base'!J11 -> 0 | H23: ='Emissions IY Alt 1'!I11 -> 0 | I23: ='Emissions IY Alt 1'!J11 -> 0 | J23: ='Emissions DY Alt 1'!I11 -> 0 | K23: ='Emissions DY Alt 1'!J11 -> 0 | L23: ='Emissions IY Alt 2'!I11 -> 0 | M23: ='Emissions IY Alt 2'!J11 -> 0 | N23: ='Emissions DY Alt 2'!I11 -> 0 | O23: ='Emissions DY Alt 2'!J11 -> 0 | P23: ='Emissions IY Alt 3'!I11 -> 0 | Q23: ='Emissions IY Alt 3'!J11 -> 0 | R23: ='Emissions DY Alt 3'!I11 -> 0 | S23: ='Emissions DY Alt 3'!J11 -> 0 | U23: ='Summary Input Information'!C73 -> VOC | W23: =IF($M$4="linear",V23/$J$4,(EXP(LN(G23/E23)/$J$4)-1)) ->  | X23: =K23/I23-1 ->  | Y23: =IF($M$4="linear",X23/$J$4,(EXP(LN(K23/I23)/$J$4)-1)) ->  | Z23: =O23/M23-1 ->  | AA23: =IF($M$4="linear",Z23/$J$4,(EXP(LN(O23/M23)/$J$4)-1)) ->  | AB23: =S23/Q23-1 ->  | AC23: =IF($M$4="linear",AB23/$J$4,(EXP(LN(S23/Q23)/$J$4)-1)) -> 
B25: Change in Predicted Emissions vs. Base Condition (Tons)
D26: Base Condition | H26: =S1Name -> 0 | L26: =S2Name -> 0 | P26: =S3Name -> 0
D27: Initial Yr | F27: Design Yr | H27: Initial Yr | J27: Design Yr | L27: Initial Yr | N27: Design Yr | P27: Initial Yr | R27: Design Yr
B28: Pollutant | D28: Daily | E28: Annual | F28: Daily | G28: Annual | H28: Daily | I28: Annual | J28: Daily | K28: Annual | L28: Daily | M28: Annual | N28: Daily | O28: Annual | P28: Daily | Q28: Annual | R28: Daily | S28: Annual
B29: ='Summary Input Information'!C60 -> 1,3-Butadiene | D29: 0 | E29: 0 | F29: 0 | G29: 0 | H29: =H10-D10 -> 0 | I29: =I10-E10 -> 0 | J29: =J10-F10 -> 0 | K29: =K10-G10 -> 0 | L29: 0 | M29: 0 | N29: 0 | O29: 0 | P29: 0 | Q29: 0 | R29: 0 | S29: 0
B30: ='Summary Input Information'!C61 -> Acetaldehyde | D30: 0 | E30: 0 | F30: 0 | G30: 0 | H30: =H11-D11 -> 0 | I30: =I11-E11 -> 0 | J30: =J11-F11 -> 0 | K30: =K11-G11 -> 0 | L30: =L11-H11 -> 0 | M30: =M11-I11 -> 0 | N30: =N11-J11 -> 0 | O30: =O11-K11 -> 0 | P30: =P11-L11 -> 0 | Q30: =Q11-M11 -> 0 | R30: =R11-N11 -> 0 | S30: =S11-O11 -> 0
B31: ='Summary Input Information'!C62 -> Benzene | D31: 0 | E31: 0 | F31: 0 | G31: 0 | H31: 0 | I31: 0 | J31: 0 | K31: 0 | L31: 0 | M31: 0 | N31: 0 | O31: 0 | P31: 0 | Q31: 0 | R31: 0 | S31: 0
... 18 more rows

Sheet Tolls, Fuel and VMT Summary
B1: Project Evaluation Toolkit - Tolls, Fuel and VMT Summary
I3: Project Design Life | L3: Growth is
I4: =ProjLife -> 20 | J4: Years | L4: =IF(Expon=0,"Linear","Exponential") -> Exponential
I6: Annual Tolling Revenue (Millions) | O6: Annual MVMT | U6: Annual Fuel Use | AA6: Annual Toll Change | AG6: Annual MVMT Change | AM6: Annual Fuel Change
B7: Base Condition | E7: Annual Tolling Revenues | I7: Year | J7: Base Cond | K7: =S1Name -> 0 | L7: =S2Name -> 0 | M7: =S3Name -> 0 | O7: Year | P7: Base Cond | Q7: =S1Name -> 0 | R7: =S2Name -> 0 | S7: =S3Name -> 0 | U7: Year | V7: Base Cond | W7: =S1Name -> 0 | X7: =S2Name -> 0 | Y7: =S3Name -> 0 | AA7: Year | AB7: Base Cond | AC7: =S1Name -> 0 | AD7: =S2Name -> 0 | AE7: =S3Name -> 0 | AG7: Year | AH7: Base Cond | AI7: =S1Name -> 0 | AJ7: =S2Name -> 0 | AK7: =S3Name -> 0 | AM7: Year | AN7: Base Cond | AO7: =S1Name -> 0 | AP7: =S2Name -> 0 | AQ7: =S3Name -> 0
B8: Initial Year Toll Collection | E8: =TollsInitYrBase/1000000 -> 0 | F8: (Millions) | I8: 0 | J8: =E8 -> 0 | K8: =E15 -> 0 | L8: =E23 -> 0 | M8: =E31 -> 0 | O8: =I8 -> 0 | P8: =E45 -> 0 | Q8: =E49 -> 0 | R8: =E55 -> 0 | S8: =E61 -> 0 | U8: =I8 -> 0 | V8: =E46 -> 0 | W8: =E51 -> 0 | X8: =E57 -> 0 | Y8: =E63 -> 0 | AA8: =O8 -> 0 | AB8: =IF(AA8="","",0) -> 0 | AC8: =IF(AA8="","",K8-$J8) -> 0 | AD8: =IF(AB8="","",L8-$J8) -> 0 | AE8: =IF(AC8="","",M8-$J8) -> 0 | AG8: =U8 -> 0 | AH8: =IF(AG8="","",0) -> 0 | AI8: =IF(AG8="","",Q8-$P8) -> 0 | AJ8: =IF(AH8="","",R8-$P8) -> 0 | AK8: =IF(AI8="","",S8-$P8) -> 0 | AM8: =AA8 -> 0 | AN8: =IF(AM8="","",0) -> 0 | AO8: =IF(AM8="","",W8-$V8) -> 0 | AP8: =IF(AN8="","",X8-$V8) -> 0 | AQ8: =IF(AO8="","",Y8-$V8) -> 0
B9: Design Year Toll Collection | E9: =TollsDYBase/1000000 -> 0 | F9: (Millions) | I9: 1 | J9: =IF(I9="","",IF(E$8*E$9=0, E$8+(E$9-E$8)*((I9^2)/(ProjLife^2)), IF(L$4="Exponential", E$8*(1+E$11)^I9, J8+E$8*E$11))) -> 0 | K9: =IF(I9="","",IF(E$15*E$16=0, E$15+(E$16-E$15)*((I9^2)/(ProjLife^2)), IF(L$4="Exponential", E$15*(1+E$19)^I9, K8+E$15*E$19))) -> 0 | L9: =IF(I9="","",IF(E$23*E$24=0, E$23+(E$24-E$23)*((I9^2)/(ProjLife^2)), IF(L$4="Exponential", E$23*(1+E$27)^I9, L8+E$23*E$27))) -> 0 | M9: =IF(I9="","",IF(E$31*E$32=0, E$31+(E$32-E$31)*((I9^2)/(ProjLife^2)), IF(L$4="Exponential", E$31*(1+E$35)^I9, M8+E$31*E$35))) -> 0 | O9: =I9 -> 1 | P9: =IF(O9="","",IF(E$45*F$45=0, E$45+O9^2/ProjLife^2*(F$45-E$45),IF($L$4="Exponential", E$45*(1+G$45)^O9, P8*(1+G$45)))) -> 0 | Q9: =IF($O9="","",IF(E$49*F$49=0,E$49+O9^2/ProjLife^2*(F$49-E$49),IF($L$4="Exponential",E$49*(1+G$49)^O9,Q8*(1+G$49)))) -> 0 | R9: =IF($O9="","",IF(E$55*F$55=0, $E$55+O9^2/ProjLife^2*(F$55-E$55),IF($L$4="Exponential", E$55*(1+G$55)^O9, R8*(1+$G$55)))) -> 0 | S9: =IF($O9="","",IF(E$61*F$61=0, $E$61+O9^2/O$28^2*(F$61-E$61),IF($L$4="Exponential", E$61*(1+G$61)^O9, S8*(1+$G$61)))) -> 0 | U9: =I9 -> 1 | V9: =IF($U9="","",IF(E$46*F$46=0,$E$46+U9^2/ProjLife^2*(F$46-E$46),IF($L$4="Exponential",E$46*(1+G$46)^U9,V8*(1+$G$46)))) -> 0 | W9: =IF($U9="","",IF(E$51*F$51=0,$E$51+U9^2/ProjLife^2*(F$51-E$51),IF($L$4="Exponential",E$51*(1+G$51)^U9,W8*(1+$G$51)))) -> 0 | X9: =IF($U9="","",IF(E$57*F$57=0, $E$57+U9^2/ProjLife^2*(F$57-E$57), IF($L$4="Exponential", E$57*(1+G$57)^U9, X8*(1+$G$57)))) -> 0 | Y9: =IF($U9="","",IF(E$63*F$63=0,$E$63+U9^2/ProjLife^2*(F$63-E$63),IF($L$4="Exponential",E$63*(1+G$63)^U9,Y8*(1+$G$63)))) -> 0 | AA9: =O9 -> 1 | AB9: =IF(AA9="","",0) -> 0 | AC9: 0 | AD9: 0 | AE9: 0 | AG9: =U9 -> 1 | AH9: 0 | AI9: 0 | AJ9: 0 | AK9: 0 | AM9: =AA9 -> 1 | AN9: 0 | AO9: 0 | AP9: 0 | AQ9: 0
B10: Average Annual Tolling Revenue | E10: =AVERAGE(J:J) -> 0 | F10: (Millions) | I10: =IF(I9="","",IF((I9+1>I$4),"",I9+1)) -> 2 | J10: =IF(I10="","",IF(E$8*E$9=0, E$8+(E$9-E$8)*((I10^2)/(ProjLife^2)), IF(L$4="Exponential", E$8*(1+E$11)^I10, J9+E$8*E$11))) -> 0 | K10: 0 | L10: 0 | M10: 0 | O10: 2 | P10: 0 | Q10: 0 | R10: 0 | S10: =IF($O10="","",IF(E$61*F$61=0, $E$61+O10^2/O$28^2*(F$61-E$61),IF($L$4="Exponential", E$61*(1+G$61)^O10, S9*(1+$G$61)))) -> 0 | U10: 2 | V10: 0 | W10: 0 | X10: 0 | Y10: 0 | AA10: 2 | AB10: 0 | AC10: 0 | AD10: 0 | AE10: 0 | AG10: 2 | AH10: 0 | AI10: 0 | AJ10: 0 | AK10: 0 | AM10: 2 | AN10: 0 | AO10: 0 | AP10: 0 | AQ10: 0
B11: Toll Collection Growth Rate | E11: =IF(AND(E8=0,E9=0),0,IF(L$4="linear",(E9-E8)/(E8*I$4),(EXP(LN(E9/E8)/I$4)-1))) -> 0 | I11: 3 | J11: 0 | K11: 0 | L11: 0 | M11: 0 | O11: 3 | P11: 0 | Q11: 0 | R11: 0 | S11: 0 | U11: 3 | V11: 0 | W11: 0 | X11: 0 | Y11: 0 | AA11: 3 | AB11: 0 | AC11: 0 | AD11: 0 | AE11: 0 | AG11: 3 | AH11: 0 | AI11: 0 | AJ11: 0 | AK11: 0 | AM11: 3 | AN11: 0 | AO11: 0 | AP11: 0 | AQ11: 0
B12: NPV of Tolling Revenues | E12: =NPV(DiscRate,J8:J58) -> 0 | F12: (Millions) | I12: 4 | J12: 0 | K12: 0 | L12: 0 | M12: 0 | O12: 4 | P12: 0 | Q12: 0 | R12: 0 | S12: 0 | U12: 4 | V12: 0 | W12: 0 | X12: 0 | Y12: 0 | AA12: 4 | AB12: 0 | AC12: 0 | AD12: 0 | AE12: 0 | AG12: 4 | AH12: 0 | AI12: 0 | AJ12: 0 | AK12: 0 | AM12: 4 | AN12: 0 | AO12: 0 | AP12: 0 | AQ12: 0
I13: 5 | J13: 0 | K13: 0 | L13: 0 | M13: 0 | O13: 5 | P13: 0 | Q13: 0 | R13: 0 | S13: 0 | U13: 5 | V13: 0 | W13: 0 | X13: 0 | Y13: 0 | AA13: 5 | AB13: 0 | AC13: 0 | AD13: 0 | AE13: 0 | AG13: 5 | AH13: 0 | AI13: 0 | AJ13: 0 | AK13: 0 | AM13: 5 | AN13: 0 | AO13: 0 | AP13: 0 | AQ13: 0
B14: =S1Name -> 0 | E14: Annual User Surplus | I14: 6 | J14: 0 | K14: 0 | L14: 0 | M14: 0 | O14: 6 | P14: 0 | Q14: 0 | R14: 0 | S14: 0 | U14: 6 | V14: 0 | W14: 0 | X14: 0 | Y14: 0 | AA14: 6 | AB14: 0 | AC14: 0 | AD14: 0 | AE14: 0 | AG14: 6 | AH14: 0 | AI14: 0 | AJ14: 0 | AK14: 0 | AM14: 6 | AN14: 0 | AO14: 0 | AP14: 0 | AQ14: 0
B15: Initial Year Toll Collection | E15: =TollsInitYrAlt1/1000000 -> 0 | F15: (Millions) | I15: 7 | J15: 0 | K15: 0 | L15: 0 | M15: 0 | O15: 7 | P15: 0 | Q15: 0 | R15: 0 | S15: 0 | U15: 7 | V15: 0 | W15: 0 | X15: 0 | Y15: 0 | AA15: 7 | AB15: 0 | AC15: 0 | AD15: 0 | AE15: 0 | AG15: 7 | AH15: 0 | AI15: 0 | AJ15: 0 | AK15: 0 | AM15: 7 | AN15: 0 | AO15: 0 | AP15: 0 | AQ15: 0
B16: Design Year Toll Collection | E16: =TollsDYAlt1/1000000 -> 0 | F16: (Millions) | I16: 8 | J16: 0 | K16: 0 | L16: 0 | M16: 0 | O16: 8 | P16: 0 | Q16: 0 | R16: 0 | S16: 0 | U16: 8 | V16: 0 | W16: 0 | X16: 0 | Y16: 0 | AA16: 8 | AB16: 0 | AC16: 0 | AD16: 0 | AE16: 0 | AG16: 8 | AH16: 0 | AI16: 0 | AJ16: 0 | AK16: 0 | AM16: 8 | AN16: 0 | AO16: 0 | AP16: 0 | AQ16: 0
B17: Average Annual Tolling Revenue | E17: =AVERAGE(K:K) -> 0 | F17: (Millions) | I17: 9 | J17: 0 | K17: 0 | L17: 0 | M17: 0 | O17: 9 | P17: 0 | Q17: 0 | R17: 0 | S17: 0 | U17: 9 | V17: 0 | W17: 0 | X17: 0 | Y17: 0 | AA17: 9 | AB17: 0 | AC17: 0 | AD17: 0 | AE17: 0 | AG17: 9 | AH17: 0 | AI17: 0 | AJ17: 0 | AK17: 0 | AM17: 9 | AN17: 0 | AO17: 0 | AP17: 0 | AQ17: 0
B18: Annual Tolling Change from Base Cond. | E18: =E17-E$10 -> 0 | F18: (Millions) | I18: 10 | J18: 0 | K18: 0 | L18: 0 | M18: 0 | O18: 10 | P18: 0 | Q18: 0 | R18: 0 | S18: 0 | U18: 10 | V18: 0 | W18: 0 | X18: 0 | Y18: 0 | AA18: 10 | AB18: 0 | AC18: 0 | AD18: 0 | AE18: 0 | AG18: 10 | AH18: 0 | AI18: 0 | AJ18: 0 | AK18: 0 | AM18: 10 | AN18: 0 | AO18: 0 | AP18: 0 | AQ18: 0
B19: Toll Collection Growth Rate | E19: =IF(AND(E15=0,E16=0),0,IF(L$4="linear",(E16-E15)/(E15*I$4),(EXP(LN(E16/E15)/I$4)-1))) -> 0 | I19: 11 | J19: 0 | K19: 0 | L19: 0 | M19: 0 | O19: 11 | P19: 0 | Q19: 0 | R19: 0 | S19: 0 | U19: 11 | V19: 0 | W19: 0 | X19: 0 | Y19: 0 | AA19: 11 | AB19: 0 | AC19: 0 | AD19: 0 | AE19: 0 | AG19: 11 | AH19: 0 | AI19: 0 | AJ19: 0 | AK19: 0 | AM19: 11 | AN19: 0 | AO19: 0 | AP19: 0 | AQ19: 0
B20: NPV of Tolling Revenues | E20: =NPV(DiscRate,K8:K58) -> 0 | F20: (Millions) | I20: 12 | J20: 0 | K20: 0 | L20: 0 | M20: 0 | O20: 12 | P20: 0 | Q20: 0 | R20: 0 | S20: 0 | U20: 12 | V20: 0 | W20: 0 | X20: 0 | Y20: 0 | AA20: 12 | AB20: 0 | AC20: 0 | AD20: 0 | AE20: 0 | AG20: 12 | AH20: 0 | AI20: 0 | AJ20: 0 | AK20: 0 | AM20: 12 | AN20: 0 | AO20: 0 | AP20: 0 | AQ20: 0
I21: 13 | J21: 0 | K21: 0 | L21: 0 | M21: 0 | O21: 13 | P21: 0 | Q21: 0 | R21: 0 | S21: 0 | U21: 13 | V21: 0 | W21: 0 | X21: 0 | Y21: 0 | AA21: 13 | AB21: 0 | AC21: 0 | AD21: 0 | AE21: 0 | AG21: 13 | AH21: 0 | AI21: 0 | AJ21: 0 | AK21: 0 | AM21: 13 | AN21: 0 | AO21: 0 | AP21: 0 | AQ21: 0
B22: =S2Name -> 0 | E22: Annual User Surplus | I22: 14 | J22: 0 | K22: 0 | L22: 0 | M22: 0 | O22: 14 | P22: 0 | Q22: 0 | R22: 0 | S22: 0 | U22: 14 | V22: 0 | W22: 0 | X22: 0 | Y22: 0 | AA22: 14 | AB22: 0 | AC22: 0 | AD22: 0 | AE22: 0 | AG22: 14 | AH22: 0 | AI22: 0 | AJ22: 0 | AK22: 0 | AM22: 14 | AN22: 0 | AO22: 0 | AP22: 0 | AQ22: 0
B23: Initial Year Toll Collection | E23: =TollsInitYrAlt2/1000000 -> 0 | F23: (Millions) | I23: 15 | J23: 0 | K23: 0 | L23: 0 | M23: 0 | O23: 15 | P23: 0 | Q23: 0 | R23: 0 | S23: 0 | U23: 15 | V23: 0 | W23: 0 | X23: 0 | Y23: 0 | AA23: 15 | AB23: 0 | AC23: 0 | AD23: 0 | AE23: 0 | AG23: 15 | AH23: 0 | AI23: 0 | AJ23: 0 | AK23: 0 | AM23: 15 | AN23: 0 | AO23: 0 | AP23: 0 | AQ23: 0
B24: Design Year Toll Collection | E24: =TollsDYAlt2/1000000 -> 0 | F24: (Millions) | I24: 16 | J24: 0 | K24: 0 | L24: 0 | M24: 0 | O24: 16 | P24: 0 | Q24: 0 | R24: 0 | S24: 0 | U24: 16 | V24: 0 | W24: 0 | X24: 0 | Y24: 0 | AA24: 16 | AB24: 0 | AC24: 0 | AD24: 0 | AE24: 0 | AG24: 16 | AH24: 0 | AI24: 0 | AJ24: 0 | AK24: 0 | AM24: 16 | AN24: 0 | AO24: 0 | AP24: 0 | AQ24: 0
B25: Average Annual Tolling Revenue | E25: =AVERAGE(L:L) -> 0 | F25: (Millions) | I25: 17 | J25: 0 | K25: 0 | L25: 0 | M25: 0 | O25: 17 | P25: 0 | Q25: 0 | R25: 0 | S25: 0 | U25: 17 | V25: 0 | W25: 0 | X25: 0 | Y25: 0 | AA25: 17 | AB25: 0 | AC25: 0 | AD25: 0 | AE25: 0 | AG25: 17 | AH25: 0 | AI25: 0 | AJ25: 0 | AK25: 0 | AM25: 17 | AN25: 0 | AO25: 0 | AP25: 0 | AQ25: 0
B26: Annual Tolling Change from Base Cond. | E26: =E25-E$10 -> 0 | F26: (Millions) | I26: 18 | J26: 0 | K26: 0 | L26: 0 | M26: 0 | O26: 18 | P26: 0 | Q26: 0 | R26: 0 | S26: 0 | U26: 18 | V26: 0 | W26: 0 | X26: 0 | Y26: 0 | AA26: 18 | AB26: 0 | AC26: 0 | AD26: 0 | AE26: 0 | AG26: 18 | AH26: 0 | AI26: 0 | AJ26: 0 | AK26: 0 | AM26: 18 | AN26: 0 | AO26: 0 | AP26: 0 | AQ26: 0
B27: Toll Collection Growth Rate | E27: =IF(AND(E23=0,E24=0),0,IF(L$4="linear",(E24-E23)/(E23*I$4),(EXP(LN(E24/E23)/I$4)-1))) -> 0 | I27: 19 | J27: 0 | K27: 0 | L27: 0 | M27: 0 | O27: 19 | P27: 0 | Q27: 0 | R27: 0 | S27: 0 | U27: 19 | V27: 0 | W27: 0 | X27: 0 | Y27: 0 | AA27: 19 | AB27: 0 | AC27: 0 | AD27: 0 | AE27: 0 | AG27: 19 | AH27: 0 | AI27: 0 | AJ27: 0 | AK27: 0 | AM27: 19 | AN27: 0 | AO27: 0 | AP27: 0 | AQ27: 0
B28: NPV of Tolling Revenues | E28: =NPV(DiscRate,L8:L58) -> 0 | F28: (Millions) | I28: 20 | J28: 0 | K28: 0 | L28: 0 | M28: 0 | O28: 20 | P28: 0 | Q28: 0 | R28: 0 | S28: 0 | U28: 20 | V28: 0 | W28: 0 | X28: 0 | Y28: 0 | AA28: 20 | AB28: 0 | AC28: 0 | AD28: 0 | AE28: 0 | AG28: 20 | AH28: 0 | AI28: 0 | AJ28: 0 | AK28: 0 | AM28: 20 | AN28: 0 | AO28: 0 | AP28: 0 | AQ28: 0
B30: =S3Name -> 0 | E30: Annual User Surplus
B31: Initial Year Toll Collection | E31: =TollsInitYrAlt3/1000000 -> 0 | F31: (Millions)
B32: Design Year Toll Collection | E32: =TollsDYAlt3/1000000 -> 0 | F32: (Millions)
B33: Average Annual Tolling Revenue | E33: =AVERAGE(M:M) -> 0 | F33: (Millions)
B34: Annual Tolling Change from Base Cond. | E34: =E33-E$10 -> 0 | F34: (Millions)
B35: Toll Collection Growth Rate | E35: =IF(AND(E31=0,E32=0),0,IF(L$4="linear",(E32-E31)/(E31*I$4),(EXP(LN(E32/E31)/I$4)-1))) -> 0
B36: NPV of Tolling Revenues | E36: =NPV(DiscRate,M8:M58) -> 0 | F36: (Millions)
B38: Note: Traveler Welfare changes for alternative scenarios are listed as relative to the base condition scenario, which should be $0. Also, traveler welfare estimates account for travel time savings, increased access and operating costs, including fuel consumption. Therefore, fuel costs are not monetized separately.
O39: =I39 ->  | U39: =I39 ->  | AA39: =O39 ->  | AB39: =IF(AA39="","",0) ->  | AG39: =U39 ->  | AH39: =IF(AG39="","",0) ->  | AM39: =AA39 ->  | AN39: =IF(AM39="","",0) -> 
AC40: =IF(AA40="","",K40-$J40) ->  | AD40: =IF(AB40="","",L40-$J40) ->  | AE40: =IF(AC40="","",M40-$J40) ->  | AI40: =IF(AG40="","",Q40-$P40) ->  | AJ40: =IF(AH40="","",R40-$P40) ->  | AK40: =IF(AI40="","",S40-$P40) ->  | AO40: =IF(AM40="","",W40-$V40) ->  | AP40: =IF(AN40="","",X40-$V40) ->  | AQ40: =IF(AO40="","",Y40-$V40) -> 
J41: =IF(I41="","",IF(E$8*E$9=0, E$8+(E$9-E$8)*((I41^2)/(ProjLife^2)), IF(L$4="Exponential", E$8*(1+E$11)^I41, J40+E$8*E$11))) ->  | K41: =IF(I41="","",IF(E$15*E$16=0, E$15+(E$16-E$15)*((I41^2)/(ProjLife^2)), IF(L$4="Exponential", E$15*(1+E$19)^I41, K40+E$15*E$19))) ->  | L41: =IF(I41="","",IF(E$23*E$24=0, E$23+(E$24-E$23)*((I41^2)/(ProjLife^2)), IF(L$4="Exponential", E$23*(1+E$27)^I41, L40+E$23*E$27))) ->  | M41: =IF(I41="","",IF(E$31*E$32=0, E$31+(E$32-E$31)*((I41^2)/(ProjLife^2)), IF(L$4="Exponential", E$31*(1+E$35)^I41, M40+E$31*E$35))) ->  | P41: =IF(O41="","",IF(E$45*F$45=0, E$45+O41^2/ProjLife^2*(F$45-E$45),IF($L$4="Exponential", E$45*(1+G$45)^O41, P40*(1+G$45)))) ->  | Q41: =IF($O41="","",IF(E$49*F$49=0,E$49+O41^2/ProjLife^2*(F$49-E$49),IF($L$4="Exponential",E$49*(1+G$49)^O41,Q40*(1+G$49)))) ->  | R41: =IF($O41="","",IF(E$55*F$55=0, $E$55+O41^2/ProjLife^2*(F$55-E$55),IF($L$4="Exponential", E$55*(1+G$55)^O41, R40*(1+$G$55)))) ->  | V41: =IF($U41="","",IF(E$46*F$46=0,$E$46+U41^2/ProjLife^2*(F$46-E$46),IF($L$4="Exponential",E$46*(1+G$46)^U41,V40*(1+$G$46)))) ->  | W41: =IF($U41="","",IF(E$51*F$51=0,$E$51+U41^2/ProjLife^2*(F$51-E$51),IF($L$4="Exponential",E$51*(1+G$51)^U41,W40*(1+$G$51)))) ->  | X41: =IF($U41="","",IF(E$57*F$57=0, $E$57+U41^2/ProjLife^2*(F$57-E$57), IF($L$4="Exponential", E$57*(1+G$57)^U41, X40*(1+$G$57)))) ->  | Y41: =IF($U41="","",IF(E$63*F$63=0,$E$63+U41^2/ProjLife^2*(F$63-E$63),IF($L$4="Exponential",E$63*(1+G$63)^U41,Y40*(1+$G$63)))) -> 
I42: =IF(I41="","",IF((I41+1>I$4),"",I41+1)) -> 
B44: Base Condition | E44: Initial | F44: Design | G44: Growth Rate
B45: Total MVMT Per Year | E45: =VMTIYBase -> 0 | F45: =VMTDYBase -> 0 | G45: =IF(L$4="linear",(F45-E45)/(E45*I$4),(EXP(LN(F45/E45)/I$4)-1)) -> 
B46: Total Fuel Per Year | E46: =FuelIYBase -> 0 | F46: =FuelDYBase -> 0 | G46: =IF(L$4="linear",(F46-E46)/(E46*I$4),(EXP(LN(F46/E46)/I$4)-1)) -> 
B48: =S1Name -> 0 | E48: Initial | F48: Design | G48: Growth Rate
B49: Total MVMT Per Year | E49: =VMTIYS1 -> 0 | F49: =VMTDYS1 -> 0 | G49: =IF(L$4="linear",(F49-E49)/(E49*I$4),(EXP(LN(F49/E49)/I$4)-1)) -> 
B50: VMT Change Per Year | E50: =(E49-E$45)*1000000 -> 0 | F50: =(F49-F$45)*1000000 -> 0
B51: Total Fuel Per Year | E51: =FuelIYS1 -> 0 | F51: =FuelDYS1 -> 0 | G51: =IF(L$4="linear",(F51-E51)/(E51*I$4),(EXP(LN(F51/E51)/I$4)-1)) -> 
B52: Fuel Change Per Year | E52: =E51-E$46 -> 0 | F52: =F51-F$46 -> 0
B54: =S2Name -> 0 | E54: Initial | F54: Design | G54: Growth Rate
B55: Total MVMT Per Year | E55: =VMTIYS2 -> 0 | F55: =VMTDYS2 -> 0 | G55: =IF(L$4="linear",(F55-E55)/(E55*I$4),(EXP(LN(F55/E55)/I$4)-1)) -> 
B56: VMT Change Per Year | E56: =(E55-E$45)*1000000 -> 0 | F56: =(F55-F$45)*1000000 -> 0
B57: Total Fuel Per Year | E57: =FuelIYS2 -> 0 | F57: =FuelDYS2 -> 0 | G57: =IF(L$4="linear",(F57-E57)/(E57*I$4),(EXP(LN(F57/E57)/I$4)-1)) -> 
B58: Fuel Change Per Year | E58: =E57-E$46 -> 0 | F58: =F57-F$46 -> 0
B60: =S3Name -> 0 | E60: Initial | F60: Design | G60: Growth Rate
B61: Total MVMT Per Year | E61: =VMTIYS3 -> 0 | F61: =VMTDYS3 -> 0 | G61: =IF(L$4="linear",(F61-E61)/(E61*I$4),(EXP(LN(F61/E61)/I$4)-1)) -> 
B62: VMT Change Per Year | E62: =(E61-E$45)*1000000 -> 0 | F62: =(F61-F$45)*1000000 -> 0
B63: Total Fuel Per Year | E63: =FuelIYS3 -> 0 | F63: =FuelDYS3 -> 0 | G63: =IF(L$4="linear",(F63-E63)/(E63*I$4),(EXP(LN(F63/E63)/I$4)-1)) -> 
B64: Fuel Change Per Year | E64: =E63-E$46 -> 0 | F64: =F63-F$46 -> 0

Sheet Link Comparison
B1: Project Evaluation Toolkit - Link Comparison
B6: Initial Year | G6: AADT | K6: Average Daily Link Speed | O6: PM Peak Speed | S6: AADT - Change vs. Base Case | V6: Average Daily Link Speed - Change vs. Base Case | Y6: PM Peak Speed - Change vs. Base Case
B7: Link # | C7: From Node # | D7: To Node # | E7: Link Name | F7: Length (mi) | G7: Base Case | H7: =S1Name -> 0 | I7: =S2Name -> 0 | J7: =S3Name -> 0 | K7: Base Case | L7: =S1Name -> 0 | M7: =S2Name -> 0 | N7: =S3Name -> 0 | O7: Base Case | P7: =S1Name -> 0 | Q7: =S2Name -> 0 | R7: =S3Name -> 0 | S7: =S1Name -> 0 | T7: =S2Name -> 0 | U7: =S3Name -> 0 | V7: =S1Name -> 0 | W7: =S2Name -> 0 | X7: =S3Name -> 0 | Y7: =S1Name -> 0 | Z7: =S2Name -> 0 | AA7: =S3Name -> 0
C8: =IF($B8="","",LOOKUP($B8,'Base Hwy Link Config'!$A$12:$A$311,'Base Hwy Link Config'!B$12:B$311)) ->  | D8: =IF($B8="","",LOOKUP($B8,'Base Hwy Link Config'!$A$12:$A$311,'Base Hwy Link Config'!C$12:C$311)) ->  | E8: =IF($B8="","",LOOKUP($B8,'Base Hwy Link Config'!$A$12:$A$311,'Base Hwy Link Config'!D$12:D$311)) ->  | F8: =IF($B8="","",LOOKUP($B8,'Base Hwy Link Config'!$A$12:$A$311,'Base Hwy Link Config'!E$12:E$311)) ->  | G8: =IF($B8="","",LOOKUP($B8,'Vol Output IY Base'!$A$12:$A$311,'Vol Output IY Base'!Q$12:Q$311)) ->  | H8: =IF($B8="","",LOOKUP($B8,'Vol Output IY Alt 1'!$A$12:$A$311,'Vol Output IY Alt 1'!Q$12:Q$311)) ->  | I8: =IF($B8="","",LOOKUP($B8,'Vol Output IY Alt 2'!$A$12:$A$311,'Vol Output IY Alt 2'!Q$12:Q$311)) ->  | J8: =IF($B8="","",LOOKUP($B8,'Vol Output IY Alt 3'!$A$12:$A$311,'Vol Output IY Alt 3'!Q$12:Q$311)) ->  | K8: =IF($B8="","",LOOKUP($B8,'Vol Output IY Base'!$A$12:$A$311,'Vol Output IY Base'!S$12:S$311)) ->  | L8: =IF($B8="","",LOOKUP($B8,'Vol Output IY Alt 1'!$A$12:$A$311,'Vol Output IY Alt 1'!S$12:S$311)) ->  | M8: =IF($B8="","",LOOKUP($B8,'Vol Output IY Alt 2'!$A$12:$A$311,'Vol Output IY Alt 2'!S$12:S$311)) ->  | N8: =IF($B8="","",LOOKUP($B8,'Vol Output IY Alt 3'!$A$12:$A$311,'Vol Output IY Alt 3'!S$12:S$311)) ->  | O8: =IF($B8="","",LOOKUP($B8,'Vol Output IY Base'!$A$12:$A$311,'Vol Output IY Base'!L$12:L$311)) ->  | P8: =IF($B8="","",LOOKUP($B8,'Vol Output IY Alt 1'!$A$12:$A$311,'Vol Output IY Alt 1'!L$12:L$311)) ->  | Q8: =IF($B8="","",LOOKUP($B8,'Vol Output IY Alt 2'!$A$12:$A$311,'Vol Output IY Alt 2'!L$12:L$311)) ->  | R8: =IF($B8="","",LOOKUP($B8,'Vol Output IY Alt 3'!$A$12:$A$311,'Vol Output IY Alt 3'!L$12:L$311)) ->  | S8: =IF($B8="","",H8-$G8) ->  | T8: =IF($B8="","",I8-$G8) ->  | V8: =IF($B8="","",L8-$K8) ->  | W8: =IF($B8="","",M8-$K8) ->  | Y8: =IF($B8="","",P8-$O8) ->  | Z8: =IF($B8="","",Q8-$O8) -> 
C9: =IF($B9="","",LOOKUP($B9,'Base Hwy Link Config'!$A$12:$A$311,'Base Hwy Link Config'!B$12:B$311)) ->  | D9: =IF($B9="","",LOOKUP($B9,'Base Hwy Link Config'!$A$12:$A$311,'Base Hwy Link Config'!C$12:C$311)) ->  | E9: =IF($B9="","",LOOKUP($B9,'Base Hwy Link Config'!$A$12:$A$311,'Base Hwy Link Config'!D$12:D$311)) ->  | F9: =IF($B9="","",LOOKUP($B9,'Base Hwy Link Config'!$A$12:$A$311,'Base Hwy Link Config'!E$12:E$311)) ->  | G9: =IF($B9="","",LOOKUP($B9,'Vol Output IY Base'!$A$12:$A$311,'Vol Output IY Base'!Q$12:Q$311)) ->  | H9: =IF($B9="","",LOOKUP($B9,'Vol Output IY Alt 1'!$A$12:$A$311,'Vol Output IY Alt 1'!Q$12:Q$311)) ->  | I9: =IF($B9="","",LOOKUP($B9,'Vol Output IY Alt 2'!$A$12:$A$311,'Vol Output IY Alt 2'!Q$12:Q$311)) ->  | J9: =IF($B9="","",LOOKUP($B9,'Vol Output IY Alt 3'!$A$12:$A$311,'Vol Output IY Alt 3'!Q$12:Q$311)) ->  | K9: =IF($B9="","",LOOKUP($B9,'Vol Output IY Base'!$A$12:$A$311,'Vol Output IY Base'!S$12:S$311)) ->  | L9: =IF($B9="","",LOOKUP($B9,'Vol Output IY Alt 1'!$A$12:$A$311,'Vol Output IY Alt 1'!S$12:S$311)) ->  | M9: =IF($B9="","",LOOKUP($B9,'Vol Output IY Alt 2'!$A$12:$A$311,'Vol Output IY Alt 2'!S$12:S$311)) ->  | N9: =IF($B9="","",LOOKUP($B9,'Vol Output IY Alt 3'!$A$12:$A$311,'Vol Output IY Alt 3'!S$12:S$311)) ->  | O9: =IF($B9="","",LOOKUP($B9,'Vol Output IY Base'!$A$12:$A$311,'Vol Output IY Base'!L$12:L$311)) ->  | P9: =IF($B9="","",LOOKUP($B9,'Vol Output IY Alt 1'!$A$12:$A$311,'Vol Output IY Alt 1'!L$12:L$311)) ->  | Q9: =IF($B9="","",LOOKUP($B9,'Vol Output IY Alt 2'!$A$12:$A$311,'Vol Output IY Alt 2'!L$12:L$311)) ->  | R9: =IF($B9="","",LOOKUP($B9,'Vol Output IY Alt 3'!$A$12:$A$311,'Vol Output IY Alt 3'!L$12:L$311)) ->  | S9: =IF($B9="","",H9-$G9) ->  | T9: =IF($B9="","",I9-$G9) ->  | U9: =IF($B9="","",J9-$G9) ->  | V9: =IF($B9="","",L9-$K9) ->  | W9: =IF($B9="","",M9-$K9) ->  | X9: =IF($B9="","",N9-$K9) ->  | Y9: =IF($B9="","",P9-$O9) ->  | Z9: =IF($B9="","",Q9-$O9) ->  | AA9: =IF($B9="","",R9-$O9) -> 
C10: =IF($B10="","",LOOKUP($B10,'Base Hwy Link Config'!$A$12:$A$311,'Base Hwy Link Config'!B$12:B$311)) ->  | D10: =IF($B10="","",LOOKUP($B10,'Base Hwy Link Config'!$A$12:$A$311,'Base Hwy Link Config'!C$12:C$311)) ->  | E10: =IF($B10="","",LOOKUP($B10,'Base Hwy Link Config'!$A$12:$A$311,'Base Hwy Link Config'!D$12:D$311)) ->  | F10: =IF($B10="","",LOOKUP($B10,'Base Hwy Link Config'!$A$12:$A$311,'Base Hwy Link Config'!E$12:E$311)) ->  | G10: =IF($B10="","",LOOKUP($B10,'Vol Output IY Base'!$A$12:$A$311,'Vol Output IY Base'!Q$12:Q$311)) ->  | H10: =IF($B10="","",LOOKUP($B10,'Vol Output IY Alt 1'!$A$12:$A$311,'Vol Output IY Alt 1'!Q$12:Q$311)) ->  | I10: =IF($B10="","",LOOKUP($B10,'Vol Output IY Alt 2'!$A$12:$A$311,'Vol Output IY Alt 2'!Q$12:Q$311)) ->  | J10: =IF($B10="","",LOOKUP($B10,'Vol Output IY Alt 3'!$A$12:$A$311,'Vol Output IY Alt 3'!Q$12:Q$311)) ->  | K10: =IF($B10="","",LOOKUP($B10,'Vol Output IY Base'!$A$12:$A$311,'Vol Output IY Base'!S$12:S$311)) ->  | L10: =IF($B10="","",LOOKUP($B10,'Vol Output IY Alt 1'!$A$12:$A$311,'Vol Output IY Alt 1'!S$12:S$311)) ->  | M10: =IF($B10="","",LOOKUP($B10,'Vol Output IY Alt 2'!$A$12:$A$311,'Vol Output IY Alt 2'!S$12:S$311)) ->  | N10: =IF($B10="","",LOOKUP($B10,'Vol Output IY Alt 3'!$A$12:$A$311,'Vol Output IY Alt 3'!S$12:S$311)) ->  | O10: =IF($B10="","",LOOKUP($B10,'Vol Output IY Base'!$A$12:$A$311,'Vol Output IY Base'!L$12:L$311)) ->  | P10: =IF($B10="","",LOOKUP($B10,'Vol Output IY Alt 1'!$A$12:$A$311,'Vol Output IY Alt 1'!L$12:L$311)) ->  | Q10: =IF($B10="","",LOOKUP($B10,'Vol Output IY Alt 2'!$A$12:$A$311,'Vol Output IY Alt 2'!L$12:L$311)) ->  | R10: =IF($B10="","",LOOKUP($B10,'Vol Output IY Alt 3'!$A$12:$A$311,'Vol Output IY Alt 3'!L$12:L$311)) -> 
C11: =IF($B11="","",LOOKUP($B11,'Base Hwy Link Config'!$A$12:$A$311,'Base Hwy Link Config'!B$12:B$311)) ->  | D11: =IF($B11="","",LOOKUP($B11,'Base Hwy Link Config'!$A$12:$A$311,'Base Hwy Link Config'!C$12:C$311)) ->  | E11: =IF($B11="","",LOOKUP($B11,'Base Hwy Link Config'!$A$12:$A$311,'Base Hwy Link Config'!D$12:D$311)) ->  | F11: =IF($B11="","",LOOKUP($B11,'Base Hwy Link Config'!$A$12:$A$311,'Base Hwy Link Config'!E$12:E$311)) ->  | G11: =IF($B11="","",LOOKUP($B11,'Vol Output IY Base'!$A$12:$A$311,'Vol Output IY Base'!Q$12:Q$311)) ->  | H11: =IF($B11="","",LOOKUP($B11,'Vol Output IY Alt 1'!$A$12:$A$311,'Vol Output IY Alt 1'!Q$12:Q$311)) ->  | I11: =IF($B11="","",LOOKUP($B11,'Vol Output IY Alt 2'!$A$12:$A$311,'Vol Output IY Alt 2'!Q$12:Q$311)) ->  | J11: =IF($B11="","",LOOKUP($B11,'Vol Output IY Alt 3'!$A$12:$A$311,'Vol Output IY Alt 3'!Q$12:Q$311)) ->  | K11: =IF($B11="","",LOOKUP($B11,'Vol Output IY Base'!$A$12:$A$311,'Vol Output IY Base'!S$12:S$311)) ->  | L11: =IF($B11="","",LOOKUP($B11,'Vol Output IY Alt 1'!$A$12:$A$311,'Vol Output IY Alt 1'!S$12:S$311)) ->  | M11: =IF($B11="","",LOOKUP($B11,'Vol Output IY Alt 2'!$A$12:$A$311,'Vol Output IY Alt 2'!S$12:S$311)) ->  | N11: =IF($B11="","",LOOKUP($B11,'Vol Output IY Alt 3'!$A$12:$A$311,'Vol Output IY Alt 3'!S$12:S$311)) ->  | O11: =IF($B11="","",LOOKUP($B11,'Vol Output IY Base'!$A$12:$A$311,'Vol Output IY Base'!L$12:L$311)) ->  | P11: =IF($B11="","",LOOKUP($B11,'Vol Output IY Alt 1'!$A$12:$A$311,'Vol Output IY Alt 1'!L$12:L$311)) ->  | Q11: =IF($B11="","",LOOKUP($B11,'Vol Output IY Alt 2'!$A$12:$A$311,'Vol Output IY Alt 2'!L$12:L$311)) ->  | R11: =IF($B11="","",LOOKUP($B11,'Vol Output IY Alt 3'!$A$12:$A$311,'Vol Output IY Alt 3'!L$12:L$311)) -> 
C12: =IF($B12="","",LOOKUP($B12,'Base Hwy Link Config'!$A$12:$A$311,'Base Hwy Link Config'!B$12:B$311)) ->  | D12: =IF($B12="","",LOOKUP($B12,'Base Hwy Link Config'!$A$12:$A$311,'Base Hwy Link Config'!C$12:C$311)) ->  | E12: =IF($B12="","",LOOKUP($B12,'Base Hwy Link Config'!$A$12:$A$311,'Base Hwy Link Config'!D$12:D$311)) ->  | F12: =IF($B12="","",LOOKUP($B12,'Base Hwy Link Config'!$A$12:$A$311,'Base Hwy Link Config'!E$12:E$311)) ->  | G12: =IF($B12="","",LOOKUP($B12,'Vol Output IY Base'!$A$12:$A$311,'Vol Output IY Base'!Q$12:Q$311)) ->  | H12: =IF($B12="","",LOOKUP($B12,'Vol Output IY Alt 1'!$A$12:$A$311,'Vol Output IY Alt 1'!Q$12:Q$311)) ->  | I12: =IF($B12="","",LOOKUP($B12,'Vol Output IY Alt 2'!$A$12:$A$311,'Vol Output IY Alt 2'!Q$12:Q$311)) ->  | J12: =IF($B12="","",LOOKUP($B12,'Vol Output IY Alt 3'!$A$12:$A$311,'Vol Output IY Alt 3'!Q$12:Q$311)) ->  | K12: =IF($B12="","",LOOKUP($B12,'Vol Output IY Base'!$A$12:$A$311,'Vol Output IY Base'!S$12:S$311)) ->  | L12: =IF($B12="","",LOOKUP($B12,'Vol Output IY Alt 1'!$A$12:$A$311,'Vol Output IY Alt 1'!S$12:S$311)) ->  | M12: =IF($B12="","",LOOKUP($B12,'Vol Output IY Alt 2'!$A$12:$A$311,'Vol Output IY Alt 2'!S$12:S$311)) ->  | N12: =IF($B12="","",LOOKUP($B12,'Vol Output IY Alt 3'!$A$12:$A$311,'Vol Output IY Alt 3'!S$12:S$311)) ->  | O12: =IF($B12="","",LOOKUP($B12,'Vol Output IY Base'!$A$12:$A$311,'Vol Output IY Base'!L$12:L$311)) ->  | P12: =IF($B12="","",LOOKUP($B12,'Vol Output IY Alt 1'!$A$12:$A$311,'Vol Output IY Alt 1'!L$12:L$311)) ->  | Q12: =IF($B12="","",LOOKUP($B12,'Vol Output IY Alt 2'!$A$12:$A$311,'Vol Output IY Alt 2'!L$12:L$311)) ->  | R12: =IF($B12="","",LOOKUP($B12,'Vol Output IY Alt 3'!$A$12:$A$311,'Vol Output IY Alt 3'!L$12:L$311)) -> 
C13: =IF($B13="","",LOOKUP($B13,'Base Hwy Link Config'!$A$12:$A$311,'Base Hwy Link Config'!B$12:B$311)) ->  | D13: =IF($B13="","",LOOKUP($B13,'Base Hwy Link Config'!$A$12:$A$311,'Base Hwy Link Config'!C$12:C$311)) ->  | E13: =IF($B13="","",LOOKUP($B13,'Base Hwy Link Config'!$A$12:$A$311,'Base Hwy Link Config'!D$12:D$311)) ->  | F13: =IF($B13="","",LOOKUP($B13,'Base Hwy Link Config'!$A$12:$A$311,'Base Hwy Link Config'!E$12:E$311)) ->  | G13: =IF($B13="","",LOOKUP($B13,'Vol Output IY Base'!$A$12:$A$311,'Vol Output IY Base'!Q$12:Q$311)) ->  | H13: =IF($B13="","",LOOKUP($B13,'Vol Output IY Alt 1'!$A$12:$A$311,'Vol Output IY Alt 1'!Q$12:Q$311)) ->  | I13: =IF($B13="","",LOOKUP($B13,'Vol Output IY Alt 2'!$A$12:$A$311,'Vol Output IY Alt 2'!Q$12:Q$311)) ->  | J13: =IF($B13="","",LOOKUP($B13,'Vol Output IY Alt 3'!$A$12:$A$311,'Vol Output IY Alt 3'!Q$12:Q$311)) ->  | K13: =IF($B13="","",LOOKUP($B13,'Vol Output IY Base'!$A$12:$A$311,'Vol Output IY Base'!S$12:S$311)) ->  | L13: =IF($B13="","",LOOKUP($B13,'Vol Output IY Alt 1'!$A$12:$A$311,'Vol Output IY Alt 1'!S$12:S$311)) ->  | M13: =IF($B13="","",LOOKUP($B13,'Vol Output IY Alt 2'!$A$12:$A$311,'Vol Output IY Alt 2'!S$12:S$311)) ->  | N13: =IF($B13="","",LOOKUP($B13,'Vol Output IY Alt 3'!$A$12:$A$311,'Vol Output IY Alt 3'!S$12:S$311)) ->  | O13: =IF($B13="","",LOOKUP($B13,'Vol Output IY Base'!$A$12:$A$311,'Vol Output IY Base'!L$12:L$311)) ->  | P13: =IF($B13="","",LOOKUP($B13,'Vol Output IY Alt 1'!$A$12:$A$311,'Vol Output IY Alt 1'!L$12:L$311)) ->  | Q13: =IF($B13="","",LOOKUP($B13,'Vol Output IY Alt 2'!$A$12:$A$311,'Vol Output IY Alt 2'!L$12:L$311)) ->  | R13: =IF($B13="","",LOOKUP($B13,'Vol Output IY Alt 3'!$A$12:$A$311,'Vol Output IY Alt 3'!L$12:L$311)) -> 
C14: =IF($B14="","",LOOKUP($B14,'Base Hwy Link Config'!$A$12:$A$311,'Base Hwy Link Config'!B$12:B$311)) ->  | D14: =IF($B14="","",LOOKUP($B14,'Base Hwy Link Config'!$A$12:$A$311,'Base Hwy Link Config'!C$12:C$311)) ->  | E14: =IF($B14="","",LOOKUP($B14,'Base Hwy Link Config'!$A$12:$A$311,'Base Hwy Link Config'!D$12:D$311)) ->  | F14: =IF($B14="","",LOOKUP($B14,'Base Hwy Link Config'!$A$12:$A$311,'Base Hwy Link Config'!E$12:E$311)) ->  | G14: =IF($B14="","",LOOKUP($B14,'Vol Output IY Base'!$A$12:$A$311,'Vol Output IY Base'!Q$12:Q$311)) ->  | H14: =IF($B14="","",LOOKUP($B14,'Vol Output IY Alt 1'!$A$12:$A$311,'Vol Output IY Alt 1'!Q$12:Q$311)) ->  | I14: =IF($B14="","",LOOKUP($B14,'Vol Output IY Alt 2'!$A$12:$A$311,'Vol Output IY Alt 2'!Q$12:Q$311)) ->  | J14: =IF($B14="","",LOOKUP($B14,'Vol Output IY Alt 3'!$A$12:$A$311,'Vol Output IY Alt 3'!Q$12:Q$311)) ->  | K14: =IF($B14="","",LOOKUP($B14,'Vol Output IY Base'!$A$12:$A$311,'Vol Output IY Base'!S$12:S$311)) ->  | L14: =IF($B14="","",LOOKUP($B14,'Vol Output IY Alt 1'!$A$12:$A$311,'Vol Output IY Alt 1'!S$12:S$311)) ->  | M14: =IF($B14="","",LOOKUP($B14,'Vol Output IY Alt 2'!$A$12:$A$311,'Vol Output IY Alt 2'!S$12:S$311)) ->  | N14: =IF($B14="","",LOOKUP($B14,'Vol Output IY Alt 3'!$A$12:$A$311,'Vol Output IY Alt 3'!S$12:S$311)) ->  | O14: =IF($B14="","",LOOKUP($B14,'Vol Output IY Base'!$A$12:$A$311,'Vol Output IY Base'!L$12:L$311)) ->  | P14: =IF($B14="","",LOOKUP($B14,'Vol Output IY Alt 1'!$A$12:$A$311,'Vol Output IY Alt 1'!L$12:L$311)) ->  | Q14: =IF($B14="","",LOOKUP($B14,'Vol Output IY Alt 2'!$A$12:$A$311,'Vol Output IY Alt 2'!L$12:L$311)) ->  | R14: =IF($B14="","",LOOKUP($B14,'Vol Output IY Alt 3'!$A$12:$A$311,'Vol Output IY Alt 3'!L$12:L$311)) -> 
C15: =IF($B15="","",LOOKUP($B15,'Base Hwy Link Config'!$A$12:$A$311,'Base Hwy Link Config'!B$12:B$311)) ->  | D15: =IF($B15="","",LOOKUP($B15,'Base Hwy Link Config'!$A$12:$A$311,'Base Hwy Link Config'!C$12:C$311)) ->  | E15: =IF($B15="","",LOOKUP($B15,'Base Hwy Link Config'!$A$12:$A$311,'Base Hwy Link Config'!D$12:D$311)) ->  | F15: =IF($B15="","",LOOKUP($B15,'Base Hwy Link Config'!$A$12:$A$311,'Base Hwy Link Config'!E$12:E$311)) ->  | G15: =IF($B15="","",LOOKUP($B15,'Vol Output IY Base'!$A$12:$A$311,'Vol Output IY Base'!Q$12:Q$311)) ->  | H15: =IF($B15="","",LOOKUP($B15,'Vol Output IY Alt 1'!$A$12:$A$311,'Vol Output IY Alt 1'!Q$12:Q$311)) ->  | I15: =IF($B15="","",LOOKUP($B15,'Vol Output IY Alt 2'!$A$12:$A$311,'Vol Output IY Alt 2'!Q$12:Q$311)) ->  | J15: =IF($B15="","",LOOKUP($B15,'Vol Output IY Alt 3'!$A$12:$A$311,'Vol Output IY Alt 3'!Q$12:Q$311)) ->  | K15: =IF($B15="","",LOOKUP($B15,'Vol Output IY Base'!$A$12:$A$311,'Vol Output IY Base'!S$12:S$311)) ->  | L15: =IF($B15="","",LOOKUP($B15,'Vol Output IY Alt 1'!$A$12:$A$311,'Vol Output IY Alt 1'!S$12:S$311)) ->  | M15: =IF($B15="","",LOOKUP($B15,'Vol Output IY Alt 2'!$A$12:$A$311,'Vol Output IY Alt 2'!S$12:S$311)) ->  | N15: =IF($B15="","",LOOKUP($B15,'Vol Output IY Alt 3'!$A$12:$A$311,'Vol Output IY Alt 3'!S$12:S$311)) ->  | O15: =IF($B15="","",LOOKUP($B15,'Vol Output IY Base'!$A$12:$A$311,'Vol Output IY Base'!L$12:L$311)) ->  | P15: =IF($B15="","",LOOKUP($B15,'Vol Output IY Alt 1'!$A$12:$A$311,'Vol Output IY Alt 1'!L$12:L$311)) ->  | Q15: =IF($B15="","",LOOKUP($B15,'Vol Output IY Alt 2'!$A$12:$A$311,'Vol Output IY Alt 2'!L$12:L$311)) ->  | R15: =IF($B15="","",LOOKUP($B15,'Vol Output IY Alt 3'!$A$12:$A$311,'Vol Output IY Alt 3'!L$12:L$311)) -> 
C16: =IF($B16="","",LOOKUP($B16,'Base Hwy Link Config'!$A$12:$A$311,'Base Hwy Link Config'!B$12:B$311)) ->  | D16: =IF($B16="","",LOOKUP($B16,'Base Hwy Link Config'!$A$12:$A$311,'Base Hwy Link Config'!C$12:C$311)) ->  | E16: =IF($B16="","",LOOKUP($B16,'Base Hwy Link Config'!$A$12:$A$311,'Base Hwy Link Config'!D$12:D$311)) ->  | F16: =IF($B16="","",LOOKUP($B16,'Base Hwy Link Config'!$A$12:$A$311,'Base Hwy Link Config'!E$12:E$311)) ->  | G16: =IF($B16="","",LOOKUP($B16,'Vol Output IY Base'!$A$12:$A$311,'Vol Output IY Base'!Q$12:Q$311)) ->  | H16: =IF($B16="","",LOOKUP($B16,'Vol Output IY Alt 1'!$A$12:$A$311,'Vol Output IY Alt 1'!Q$12:Q$311)) ->  | I16: =IF($B16="","",LOOKUP($B16,'Vol Output IY Alt 2'!$A$12:$A$311,'Vol Output IY Alt 2'!Q$12:Q$311)) ->  | J16: =IF($B16="","",LOOKUP($B16,'Vol Output IY Alt 3'!$A$12:$A$311,'Vol Output IY Alt 3'!Q$12:Q$311)) ->  | K16: =IF($B16="","",LOOKUP($B16,'Vol Output IY Base'!$A$12:$A$311,'Vol Output IY Base'!S$12:S$311)) ->  | L16: =IF($B16="","",LOOKUP($B16,'Vol Output IY Alt 1'!$A$12:$A$311,'Vol Output IY Alt 1'!S$12:S$311)) ->  | M16: =IF($B16="","",LOOKUP($B16,'Vol Output IY Alt 2'!$A$12:$A$311,'Vol Output IY Alt 2'!S$12:S$311)) ->  | N16: =IF($B16="","",LOOKUP($B16,'Vol Output IY Alt 3'!$A$12:$A$311,'Vol Output IY Alt 3'!S$12:S$311)) ->  | O16: =IF($B16="","",LOOKUP($B16,'Vol Output IY Base'!$A$12:$A$311,'Vol Output IY Base'!L$12:L$311)) ->  | P16: =IF($B16="","",LOOKUP($B16,'Vol Output IY Alt 1'!$A$12:$A$311,'Vol Output IY Alt 1'!L$12:L$311)) ->  | Q16: =IF($B16="","",LOOKUP($B16,'Vol Output IY Alt 2'!$A$12:$A$311,'Vol Output IY Alt 2'!L$12:L$311)) ->  | R16: =IF($B16="","",LOOKUP($B16,'Vol Output IY Alt 3'!$A$12:$A$311,'Vol Output IY Alt 3'!L$12:L$311)) -> 
C17: =IF($B17="","",LOOKUP($B17,'Base Hwy Link Config'!$A$12:$A$311,'Base Hwy Link Config'!B$12:B$311)) ->  | D17: =IF($B17="","",LOOKUP($B17,'Base Hwy Link Config'!$A$12:$A$311,'Base Hwy Link Config'!C$12:C$311)) ->  | E17: =IF($B17="","",LOOKUP($B17,'Base Hwy Link Config'!$A$12:$A$311,'Base Hwy Link Config'!D$12:D$311)) ->  | F17: =IF($B17="","",LOOKUP($B17,'Base Hwy Link Config'!$A$12:$A$311,'Base Hwy Link Config'!E$12:E$311)) ->  | G17: =IF($B17="","",LOOKUP($B17,'Vol Output IY Base'!$A$12:$A$311,'Vol Output IY Base'!Q$12:Q$311)) ->  | H17: =IF($B17="","",LOOKUP($B17,'Vol Output IY Alt 1'!$A$12:$A$311,'Vol Output IY Alt 1'!Q$12:Q$311)) ->  | I17: =IF($B17="","",LOOKUP($B17,'Vol Output IY Alt 2'!$A$12:$A$311,'Vol Output IY Alt 2'!Q$12:Q$311)) ->  | J17: =IF($B17="","",LOOKUP($B17,'Vol Output IY Alt 3'!$A$12:$A$311,'Vol Output IY Alt 3'!Q$12:Q$311)) ->  | K17: =IF($B17="","",LOOKUP($B17,'Vol Output IY Base'!$A$12:$A$311,'Vol Output IY Base'!S$12:S$311)) ->  | L17: =IF($B17="","",LOOKUP($B17,'Vol Output IY Alt 1'!$A$12:$A$311,'Vol Output IY Alt 1'!S$12:S$311)) ->  | M17: =IF($B17="","",LOOKUP($B17,'Vol Output IY Alt 2'!$A$12:$A$311,'Vol Output IY Alt 2'!S$12:S$311)) ->  | N17: =IF($B17="","",LOOKUP($B17,'Vol Output IY Alt 3'!$A$12:$A$311,'Vol Output IY Alt 3'!S$12:S$311)) ->  | O17: =IF($B17="","",LOOKUP($B17,'Vol Output IY Base'!$A$12:$A$311,'Vol Output IY Base'!L$12:L$311)) ->  | P17: =IF($B17="","",LOOKUP($B17,'Vol Output IY Alt 1'!$A$12:$A$311,'Vol Output IY Alt 1'!L$12:L$311)) ->  | Q17: =IF($B17="","",LOOKUP($B17,'Vol Output IY Alt 2'!$A$12:$A$311,'Vol Output IY Alt 2'!L$12:L$311)) ->  | R17: =IF($B17="","",LOOKUP($B17,'Vol Output IY Alt 3'!$A$12:$A$311,'Vol Output IY Alt 3'!L$12:L$311)) -> 
C18: =IF($B18="","",LOOKUP($B18,'Base Hwy Link Config'!$A$12:$A$311,'Base Hwy Link Config'!B$12:B$311)) ->  | D18: =IF($B18="","",LOOKUP($B18,'Base Hwy Link Config'!$A$12:$A$311,'Base Hwy Link Config'!C$12:C$311)) ->  | E18: =IF($B18="","",LOOKUP($B18,'Base Hwy Link Config'!$A$12:$A$311,'Base Hwy Link Config'!D$12:D$311)) ->  | F18: =IF($B18="","",LOOKUP($B18,'Base Hwy Link Config'!$A$12:$A$311,'Base Hwy Link Config'!E$12:E$311)) ->  | G18: =IF($B18="","",LOOKUP($B18,'Vol Output IY Base'!$A$12:$A$311,'Vol Output IY Base'!Q$12:Q$311)) ->  | H18: =IF($B18="","",LOOKUP($B18,'Vol Output IY Alt 1'!$A$12:$A$311,'Vol Output IY Alt 1'!Q$12:Q$311)) ->  | I18: =IF($B18="","",LOOKUP($B18,'Vol Output IY Alt 2'!$A$12:$A$311,'Vol Output IY Alt 2'!Q$12:Q$311)) ->  | J18: =IF($B18="","",LOOKUP($B18,'Vol Output IY Alt 3'!$A$12:$A$311,'Vol Output IY Alt 3'!Q$12:Q$311)) ->  | K18: =IF($B18="","",LOOKUP($B18,'Vol Output IY Base'!$A$12:$A$311,'Vol Output IY Base'!S$12:S$311)) ->  | L18: =IF($B18="","",LOOKUP($B18,'Vol Output IY Alt 1'!$A$12:$A$311,'Vol Output IY Alt 1'!S$12:S$311)) ->  | M18: =IF($B18="","",LOOKUP($B18,'Vol Output IY Alt 2'!$A$12:$A$311,'Vol Output IY Alt 2'!S$12:S$311)) ->  | N18: =IF($B18="","",LOOKUP($B18,'Vol Output IY Alt 3'!$A$12:$A$311,'Vol Output IY Alt 3'!S$12:S$311)) ->  | O18: =IF($B18="","",LOOKUP($B18,'Vol Output IY Base'!$A$12:$A$311,'Vol Output IY Base'!L$12:L$311)) ->  | P18: =IF($B18="","",LOOKUP($B18,'Vol Output IY Alt 1'!$A$12:$A$311,'Vol Output IY Alt 1'!L$12:L$311)) ->  | Q18: =IF($B18="","",LOOKUP($B18,'Vol Output IY Alt 2'!$A$12:$A$311,'Vol Output IY Alt 2'!L$12:L$311)) ->  | R18: =IF($B18="","",LOOKUP($B18,'Vol Output IY Alt 3'!$A$12:$A$311,'Vol Output IY Alt 3'!L$12:L$311)) -> 
C19: =IF($B19="","",LOOKUP($B19,'Base Hwy Link Config'!$A$12:$A$311,'Base Hwy Link Config'!B$12:B$311)) ->  | D19: =IF($B19="","",LOOKUP($B19,'Base Hwy Link Config'!$A$12:$A$311,'Base Hwy Link Config'!C$12:C$311)) ->  | E19: =IF($B19="","",LOOKUP($B19,'Base Hwy Link Config'!$A$12:$A$311,'Base Hwy Link Config'!D$12:D$311)) ->  | F19: =IF($B19="","",LOOKUP($B19,'Base Hwy Link Config'!$A$12:$A$311,'Base Hwy Link Config'!E$12:E$311)) ->  | G19: =IF($B19="","",LOOKUP($B19,'Vol Output IY Base'!$A$12:$A$311,'Vol Output IY Base'!Q$12:Q$311)) ->  | H19: =IF($B19="","",LOOKUP($B19,'Vol Output IY Alt 1'!$A$12:$A$311,'Vol Output IY Alt 1'!Q$12:Q$311)) ->  | I19: =IF($B19="","",LOOKUP($B19,'Vol Output IY Alt 2'!$A$12:$A$311,'Vol Output IY Alt 2'!Q$12:Q$311)) ->  | J19: =IF($B19="","",LOOKUP($B19,'Vol Output IY Alt 3'!$A$12:$A$311,'Vol Output IY Alt 3'!Q$12:Q$311)) ->  | K19: =IF($B19="","",LOOKUP($B19,'Vol Output IY Base'!$A$12:$A$311,'Vol Output IY Base'!S$12:S$311)) ->  | L19: =IF($B19="","",LOOKUP($B19,'Vol Output IY Alt 1'!$A$12:$A$311,'Vol Output IY Alt 1'!S$12:S$311)) ->  | M19: =IF($B19="","",LOOKUP($B19,'Vol Output IY Alt 2'!$A$12:$A$311,'Vol Output IY Alt 2'!S$12:S$311)) ->  | N19: =IF($B19="","",LOOKUP($B19,'Vol Output IY Alt 3'!$A$12:$A$311,'Vol Output IY Alt 3'!S$12:S$311)) ->  | O19: =IF($B19="","",LOOKUP($B19,'Vol Output IY Base'!$A$12:$A$311,'Vol Output IY Base'!L$12:L$311)) ->  | P19: =IF($B19="","",LOOKUP($B19,'Vol Output IY Alt 1'!$A$12:$A$311,'Vol Output IY Alt 1'!L$12:L$311)) ->  | Q19: =IF($B19="","",LOOKUP($B19,'Vol Output IY Alt 2'!$A$12:$A$311,'Vol Output IY Alt 2'!L$12:L$311)) ->  | R19: =IF($B19="","",LOOKUP($B19,'Vol Output IY Alt 3'!$A$12:$A$311,'Vol Output IY Alt 3'!L$12:L$311)) -> 
C20: =IF($B20="","",LOOKUP($B20,'Base Hwy Link Config'!$A$12:$A$311,'Base Hwy Link Config'!B$12:B$311)) ->  | D20: =IF($B20="","",LOOKUP($B20,'Base Hwy Link Config'!$A$12:$A$311,'Base Hwy Link Config'!C$12:C$311)) ->  | E20: =IF($B20="","",LOOKUP($B20,'Base Hwy Link Config'!$A$12:$A$311,'Base Hwy Link Config'!D$12:D$311)) ->  | F20: =IF($B20="","",LOOKUP($B20,'Base Hwy Link Config'!$A$12:$A$311,'Base Hwy Link Config'!E$12:E$311)) ->  | G20: =IF($B20="","",LOOKUP($B20,'Vol Output IY Base'!$A$12:$A$311,'Vol Output IY Base'!Q$12:Q$311)) ->  | H20: =IF($B20="","",LOOKUP($B20,'Vol Output IY Alt 1'!$A$12:$A$311,'Vol Output IY Alt 1'!Q$12:Q$311)) ->  | I20: =IF($B20="","",LOOKUP($B20,'Vol Output IY Alt 2'!$A$12:$A$311,'Vol Output IY Alt 2'!Q$12:Q$311)) ->  | J20: =IF($B20="","",LOOKUP($B20,'Vol Output IY Alt 3'!$A$12:$A$311,'Vol Output IY Alt 3'!Q$12:Q$311)) ->  | K20: =IF($B20="","",LOOKUP($B20,'Vol Output IY Base'!$A$12:$A$311,'Vol Output IY Base'!S$12:S$311)) ->  | L20: =IF($B20="","",LOOKUP($B20,'Vol Output IY Alt 1'!$A$12:$A$311,'Vol Output IY Alt 1'!S$12:S$311)) ->  | M20: =IF($B20="","",LOOKUP($B20,'Vol Output IY Alt 2'!$A$12:$A$311,'Vol Output IY Alt 2'!S$12:S$311)) ->  | N20: =IF($B20="","",LOOKUP($B20,'Vol Output IY Alt 3'!$A$12:$A$311,'Vol Output IY Alt 3'!S$12:S$311)) ->  | O20: =IF($B20="","",LOOKUP($B20,'Vol Output IY Base'!$A$12:$A$311,'Vol Output IY Base'!L$12:L$311)) ->  | P20: =IF($B20="","",LOOKUP($B20,'Vol Output IY Alt 1'!$A$12:$A$311,'Vol Output IY Alt 1'!L$12:L$311)) ->  | Q20: =IF($B20="","",LOOKUP($B20,'Vol Output IY Alt 2'!$A$12:$A$311,'Vol Output IY Alt 2'!L$12:L$311)) ->  | R20: =IF($B20="","",LOOKUP($B20,'Vol Output IY Alt 3'!$A$12:$A$311,'Vol Output IY Alt 3'!L$12:L$311)) -> 
C21: =IF($B21="","",LOOKUP($B21,'Base Hwy Link Config'!$A$12:$A$311,'Base Hwy Link Config'!B$12:B$311)) ->  | D21: =IF($B21="","",LOOKUP($B21,'Base Hwy Link Config'!$A$12:$A$311,'Base Hwy Link Config'!C$12:C$311)) ->  | E21: =IF($B21="","",LOOKUP($B21,'Base Hwy Link Config'!$A$12:$A$311,'Base Hwy Link Config'!D$12:D$311)) ->  | F21: =IF($B21="","",LOOKUP($B21,'Base Hwy Link Config'!$A$12:$A$311,'Base Hwy Link Config'!E$12:E$311)) ->  | G21: =IF($B21="","",LOOKUP($B21,'Vol Output IY Base'!$A$12:$A$311,'Vol Output IY Base'!Q$12:Q$311)) ->  | H21: =IF($B21="","",LOOKUP($B21,'Vol Output IY Alt 1'!$A$12:$A$311,'Vol Output IY Alt 1'!Q$12:Q$311)) ->  | I21: =IF($B21="","",LOOKUP($B21,'Vol Output IY Alt 2'!$A$12:$A$311,'Vol Output IY Alt 2'!Q$12:Q$311)) ->  | J21: =IF($B21="","",LOOKUP($B21,'Vol Output IY Alt 3'!$A$12:$A$311,'Vol Output IY Alt 3'!Q$12:Q$311)) ->  | K21: =IF($B21="","",LOOKUP($B21,'Vol Output IY Base'!$A$12:$A$311,'Vol Output IY Base'!S$12:S$311)) ->  | L21: =IF($B21="","",LOOKUP($B21,'Vol Output IY Alt 1'!$A$12:$A$311,'Vol Output IY Alt 1'!S$12:S$311)) ->  | M21: =IF($B21="","",LOOKUP($B21,'Vol Output IY Alt 2'!$A$12:$A$311,'Vol Output IY Alt 2'!S$12:S$311)) ->  | N21: =IF($B21="","",LOOKUP($B21,'Vol Output IY Alt 3'!$A$12:$A$311,'Vol Output IY Alt 3'!S$12:S$311)) ->  | O21: =IF($B21="","",LOOKUP($B21,'Vol Output IY Base'!$A$12:$A$311,'Vol Output IY Base'!L$12:L$311)) ->  | P21: =IF($B21="","",LOOKUP($B21,'Vol Output IY Alt 1'!$A$12:$A$311,'Vol Output IY Alt 1'!L$12:L$311)) ->  | Q21: =IF($B21="","",LOOKUP($B21,'Vol Output IY Alt 2'!$A$12:$A$311,'Vol Output IY Alt 2'!L$12:L$311)) ->  | R21: =IF($B21="","",LOOKUP($B21,'Vol Output IY Alt 3'!$A$12:$A$311,'Vol Output IY Alt 3'!L$12:L$311)) -> 
C22: =IF($B22="","",LOOKUP($B22,'Base Hwy Link Config'!$A$12:$A$311,'Base Hwy Link Config'!B$12:B$311)) ->  | D22: =IF($B22="","",LOOKUP($B22,'Base Hwy Link Config'!$A$12:$A$311,'Base Hwy Link Config'!C$12:C$311)) ->  | E22: =IF($B22="","",LOOKUP($B22,'Base Hwy Link Config'!$A$12:$A$311,'Base Hwy Link Config'!D$12:D$311)) ->  | F22: =IF($B22="","",LOOKUP($B22,'Base Hwy Link Config'!$A$12:$A$311,'Base Hwy Link Config'!E$12:E$311)) ->  | G22: =IF($B22="","",LOOKUP($B22,'Vol Output IY Base'!$A$12:$A$311,'Vol Output IY Base'!Q$12:Q$311)) ->  | H22: =IF($B22="","",LOOKUP($B22,'Vol Output IY Alt 1'!$A$12:$A$311,'Vol Output IY Alt 1'!Q$12:Q$311)) ->  | I22: =IF($B22="","",LOOKUP($B22,'Vol Output IY Alt 2'!$A$12:$A$311,'Vol Output IY Alt 2'!Q$12:Q$311)) ->  | J22: =IF($B22="","",LOOKUP($B22,'Vol Output IY Alt 3'!$A$12:$A$311,'Vol Output IY Alt 3'!Q$12:Q$311)) ->  | K22: =IF($B22="","",LOOKUP($B22,'Vol Output IY Base'!$A$12:$A$311,'Vol Output IY Base'!S$12:S$311)) ->  | L22: =IF($B22="","",LOOKUP($B22,'Vol Output IY Alt 1'!$A$12:$A$311,'Vol Output IY Alt 1'!S$12:S$311)) ->  | M22: =IF($B22="","",LOOKUP($B22,'Vol Output IY Alt 2'!$A$12:$A$311,'Vol Output IY Alt 2'!S$12:S$311)) ->  | N22: =IF($B22="","",LOOKUP($B22,'Vol Output IY Alt 3'!$A$12:$A$311,'Vol Output IY Alt 3'!S$12:S$311)) ->  | O22: =IF($B22="","",LOOKUP($B22,'Vol Output IY Base'!$A$12:$A$311,'Vol Output IY Base'!L$12:L$311)) ->  | P22: =IF($B22="","",LOOKUP($B22,'Vol Output IY Alt 1'!$A$12:$A$311,'Vol Output IY Alt 1'!L$12:L$311)) ->  | Q22: =IF($B22="","",LOOKUP($B22,'Vol Output IY Alt 2'!$A$12:$A$311,'Vol Output IY Alt 2'!L$12:L$311)) ->  | R22: =IF($B22="","",LOOKUP($B22,'Vol Output IY Alt 3'!$A$12:$A$311,'Vol Output IY Alt 3'!L$12:L$311)) -> 
C23: =IF($B23="","",LOOKUP($B23,'Base Hwy Link Config'!$A$12:$A$311,'Base Hwy Link Config'!B$12:B$311)) ->  | D23: =IF($B23="","",LOOKUP($B23,'Base Hwy Link Config'!$A$12:$A$311,'Base Hwy Link Config'!C$12:C$311)) ->  | E23: =IF($B23="","",LOOKUP($B23,'Base Hwy Link Config'!$A$12:$A$311,'Base Hwy Link Config'!D$12:D$311)) ->  | F23: =IF($B23="","",LOOKUP($B23,'Base Hwy Link Config'!$A$12:$A$311,'Base Hwy Link Config'!E$12:E$311)) ->  | G23: =IF($B23="","",LOOKUP($B23,'Vol Output IY Base'!$A$12:$A$311,'Vol Output IY Base'!Q$12:Q$311)) ->  | H23: =IF($B23="","",LOOKUP($B23,'Vol Output IY Alt 1'!$A$12:$A$311,'Vol Output IY Alt 1'!Q$12:Q$311)) ->  | I23: =IF($B23="","",LOOKUP($B23,'Vol Output IY Alt 2'!$A$12:$A$311,'Vol Output IY Alt 2'!Q$12:Q$311)) ->  | J23: =IF($B23="","",LOOKUP($B23,'Vol Output IY Alt 3'!$A$12:$A$311,'Vol Output IY Alt 3'!Q$12:Q$311)) ->  | K23: =IF($B23="","",LOOKUP($B23,'Vol Output IY Base'!$A$12:$A$311,'Vol Output IY Base'!S$12:S$311)) ->  | L23: =IF($B23="","",LOOKUP($B23,'Vol Output IY Alt 1'!$A$12:$A$311,'Vol Output IY Alt 1'!S$12:S$311)) ->  | M23: =IF($B23="","",LOOKUP($B23,'Vol Output IY Alt 2'!$A$12:$A$311,'Vol Output IY Alt 2'!S$12:S$311)) ->  | N23: =IF($B23="","",LOOKUP($B23,'Vol Output IY Alt 3'!$A$12:$A$311,'Vol Output IY Alt 3'!S$12:S$311)) ->  | O23: =IF($B23="","",LOOKUP($B23,'Vol Output IY Base'!$A$12:$A$311,'Vol Output IY Base'!L$12:L$311)) ->  | P23: =IF($B23="","",LOOKUP($B23,'Vol Output IY Alt 1'!$A$12:$A$311,'Vol Output IY Alt 1'!L$12:L$311)) ->  | Q23: =IF($B23="","",LOOKUP($B23,'Vol Output IY Alt 2'!$A$12:$A$311,'Vol Output IY Alt 2'!L$12:L$311)) ->  | R23: =IF($B23="","",LOOKUP($B23,'Vol Output IY Alt 3'!$A$12:$A$311,'Vol Output IY Alt 3'!L$12:L$311)) -> 
C24: =IF($B24="","",LOOKUP($B24,'Base Hwy Link Config'!$A$12:$A$311,'Base Hwy Link Config'!B$12:B$311)) ->  | D24: =IF($B24="","",LOOKUP($B24,'Base Hwy Link Config'!$A$12:$A$311,'Base Hwy Link Config'!C$12:C$311)) ->  | E24: =IF($B24="","",LOOKUP($B24,'Base Hwy Link Config'!$A$12:$A$311,'Base Hwy Link Config'!D$12:D$311)) ->  | F24: =IF($B24="","",LOOKUP($B24,'Base Hwy Link Config'!$A$12:$A$311,'Base Hwy Link Config'!E$12:E$311)) ->  | G24: =IF($B24="","",LOOKUP($B24,'Vol Output IY Base'!$A$12:$A$311,'Vol Output IY Base'!Q$12:Q$311)) ->  | H24: =IF($B24="","",LOOKUP($B24,'Vol Output IY Alt 1'!$A$12:$A$311,'Vol Output IY Alt 1'!Q$12:Q$311)) ->  | I24: =IF($B24="","",LOOKUP($B24,'Vol Output IY Alt 2'!$A$12:$A$311,'Vol Output IY Alt 2'!Q$12:Q$311)) ->  | J24: =IF($B24="","",LOOKUP($B24,'Vol Output IY Alt 3'!$A$12:$A$311,'Vol Output IY Alt 3'!Q$12:Q$311)) ->  | K24: =IF($B24="","",LOOKUP($B24,'Vol Output IY Base'!$A$12:$A$311,'Vol Output IY Base'!S$12:S$311)) ->  | L24: =IF($B24="","",LOOKUP($B24,'Vol Output IY Alt 1'!$A$12:$A$311,'Vol Output IY Alt 1'!S$12:S$311)) ->  | M24: =IF($B24="","",LOOKUP($B24,'Vol Output IY Alt 2'!$A$12:$A$311,'Vol Output IY Alt 2'!S$12:S$311)) ->  | N24: =IF($B24="","",LOOKUP($B24,'Vol Output IY Alt 3'!$A$12:$A$311,'Vol Output IY Alt 3'!S$12:S$311)) ->  | O24: =IF($B24="","",LOOKUP($B24,'Vol Output IY Base'!$A$12:$A$311,'Vol Output IY Base'!L$12:L$311)) ->  | P24: =IF($B24="","",LOOKUP($B24,'Vol Output IY Alt 1'!$A$12:$A$311,'Vol Output IY Alt 1'!L$12:L$311)) ->  | Q24: =IF($B24="","",LOOKUP($B24,'Vol Output IY Alt 2'!$A$12:$A$311,'Vol Output IY Alt 2'!L$12:L$311)) ->  | R24: =IF($B24="","",LOOKUP($B24,'Vol Output IY Alt 3'!$A$12:$A$311,'Vol Output IY Alt 3'!L$12:L$311)) -> 
C25: =IF($B25="","",LOOKUP($B25,'Base Hwy Link Config'!$A$12:$A$311,'Base Hwy Link Config'!B$12:B$311)) ->  | D25: =IF($B25="","",LOOKUP($B25,'Base Hwy Link Config'!$A$12:$A$311,'Base Hwy Link Config'!C$12:C$311)) ->  | E25: =IF($B25="","",LOOKUP($B25,'Base Hwy Link Config'!$A$12:$A$311,'Base Hwy Link Config'!D$12:D$311)) ->  | F25: =IF($B25="","",LOOKUP($B25,'Base Hwy Link Config'!$A$12:$A$311,'Base Hwy Link Config'!E$12:E$311)) ->  | G25: =IF($B25="","",LOOKUP($B25,'Vol Output IY Base'!$A$12:$A$311,'Vol Output IY Base'!Q$12:Q$311)) ->  | H25: =IF($B25="","",LOOKUP($B25,'Vol Output IY Alt 1'!$A$12:$A$311,'Vol Output IY Alt 1'!Q$12:Q$311)) ->  | I25: =IF($B25="","",LOOKUP($B25,'Vol Output IY Alt 2'!$A$12:$A$311,'Vol Output IY Alt 2'!Q$12:Q$311)) ->  | J25: =IF($B25="","",LOOKUP($B25,'Vol Output IY Alt 3'!$A$12:$A$311,'Vol Output IY Alt 3'!Q$12:Q$311)) ->  | K25: =IF($B25="","",LOOKUP($B25,'Vol Output IY Base'!$A$12:$A$311,'Vol Output IY Base'!S$12:S$311)) ->  | L25: =IF($B25="","",LOOKUP($B25,'Vol Output IY Alt 1'!$A$12:$A$311,'Vol Output IY Alt 1'!S$12:S$311)) ->  | M25: =IF($B25="","",LOOKUP($B25,'Vol Output IY Alt 2'!$A$12:$A$311,'Vol Output IY Alt 2'!S$12:S$311)) ->  | N25: =IF($B25="","",LOOKUP($B25,'Vol Output IY Alt 3'!$A$12:$A$311,'Vol Output IY Alt 3'!S$12:S$311)) ->  | O25: =IF($B25="","",LOOKUP($B25,'Vol Output IY Base'!$A$12:$A$311,'Vol Output IY Base'!L$12:L$311)) ->  | P25: =IF($B25="","",LOOKUP($B25,'Vol Output IY Alt 1'!$A$12:$A$311,'Vol Output IY Alt 1'!L$12:L$311)) ->  | Q25: =IF($B25="","",LOOKUP($B25,'Vol Output IY Alt 2'!$A$12:$A$311,'Vol Output IY Alt 2'!L$12:L$311)) ->  | R25: =IF($B25="","",LOOKUP($B25,'Vol Output IY Alt 3'!$A$12:$A$311,'Vol Output IY Alt 3'!L$12:L$311)) -> 
C26: =IF($B26="","",LOOKUP($B26,'Base Hwy Link Config'!$A$12:$A$311,'Base Hwy Link Config'!B$12:B$311)) ->  | D26: =IF($B26="","",LOOKUP($B26,'Base Hwy Link Config'!$A$12:$A$311,'Base Hwy Link Config'!C$12:C$311)) ->  | E26: =IF($B26="","",LOOKUP($B26,'Base Hwy Link Config'!$A$12:$A$311,'Base Hwy Link Config'!D$12:D$311)) ->  | F26: =IF($B26="","",LOOKUP($B26,'Base Hwy Link Config'!$A$12:$A$311,'Base Hwy Link Config'!E$12:E$311)) ->  | G26: =IF($B26="","",LOOKUP($B26,'Vol Output IY Base'!$A$12:$A$311,'Vol Output IY Base'!Q$12:Q$311)) ->  | H26: =IF($B26="","",LOOKUP($B26,'Vol Output IY Alt 1'!$A$12:$A$311,'Vol Output IY Alt 1'!Q$12:Q$311)) ->  | I26: =IF($B26="","",LOOKUP($B26,'Vol Output IY Alt 2'!$A$12:$A$311,'Vol Output IY Alt 2'!Q$12:Q$311)) ->  | J26: =IF($B26="","",LOOKUP($B26,'Vol Output IY Alt 3'!$A$12:$A$311,'Vol Output IY Alt 3'!Q$12:Q$311)) ->  | K26: =IF($B26="","",LOOKUP($B26,'Vol Output IY Base'!$A$12:$A$311,'Vol Output IY Base'!S$12:S$311)) ->  | L26: =IF($B26="","",LOOKUP($B26,'Vol Output IY Alt 1'!$A$12:$A$311,'Vol Output IY Alt 1'!S$12:S$311)) ->  | M26: =IF($B26="","",LOOKUP($B26,'Vol Output IY Alt 2'!$A$12:$A$311,'Vol Output IY Alt 2'!S$12:S$311)) ->  | N26: =IF($B26="","",LOOKUP($B26,'Vol Output IY Alt 3'!$A$12:$A$311,'Vol Output IY Alt 3'!S$12:S$311)) ->  | O26: =IF($B26="","",LOOKUP($B26,'Vol Output IY Base'!$A$12:$A$311,'Vol Output IY Base'!L$12:L$311)) ->  | P26: =IF($B26="","",LOOKUP($B26,'Vol Output IY Alt 1'!$A$12:$A$311,'Vol Output IY Alt 1'!L$12:L$311)) ->  | Q26: =IF($B26="","",LOOKUP($B26,'Vol Output IY Alt 2'!$A$12:$A$311,'Vol Output IY Alt 2'!L$12:L$311)) ->  | R26: =IF($B26="","",LOOKUP($B26,'Vol Output IY Alt 3'!$A$12:$A$311,'Vol Output IY Alt 3'!L$12:L$311)) -> 
